Workbook

Sheet Wyniki
A1: Populacja docelowa do programu profilaktyki grypy za pomocą szczepień
C4: Wybór czynnika ryzyka (nacisnij na pole poniżej)
C6: Dzieci poniżej 4 roku życia
A36: Możliwość rozszerzenia widoku na powiaty poprzez kliknięcie na znak + w panelu bocznym.
C40: =INDEX('Odsetki grupy ryzyka'!$F$34:$T$34,MATCH('Wyniki '!$C$6,'Odsetki grupy ryzyka'!$F$19:$T$19,0)) -> 0.05094434837
A41: Województwo/powiat | B41: Ludność[2] | C41: Dzieci poniżej 4 roku życia[3] | D41: Zachorowania i podejrzenia zachorowań na grypę w całej populacji[1] | E41: Odsetek zachorowań/województwo
A42: Dolnośląskie | B42: 2903812 | C42: =$B42*$C$40 -> 147932.8101 | D42: 192757 | E42: =D42/B42 -> 0.06638067478
A43: Jelenia Góra | B43: 80889 | C43: =$B43*$C$40 -> 4120.837395 | D43: =$B43*$E$42 -> 5369.466402
A44: Legnica | B44: 100769 | C44: =$B44*$C$40 -> 5133.61104 | D44: 6689.114217
A45: Wrocław | B45: 637075 | C45: 32455.37073 | D45: 42289.46839
A46: Wałbrzych | B46: 114930 | C46: 5855.033958 | D46: 7629.130953
A47: bolesławiecki | B47: 90195 | C47: 4594.925501 | D47: 5987.204962
A48: dzierżoniowski | B48: 102977 | C48: 5246.096162 | D48: 6835.682747
A49: głogowski | B49: 90060 | C49: 4588.048014 | D49: 5978.243571
A50: górowski | B50: 35847 | C50: 1826.202056 | D50: 2379.548049
A51: jaworski | B51: 51324 | C51: 2614.667736 | D51: 3406.921753
A52: jeleniogórski | B52: 64430 | C52: 3282.344365 | D52: 4276.906876
A53: kamiennogórski | B53: 44280 | C53: 2255.815746 | D53: 2939.336279
A54: kłodzki | B54: 161856 | C54: 8245.648449 | D54: 10744.1105
A55: legnicki | B55: 55115 | C55: 2807.79776 | D55: 3658.570891
A56: lubański | B56: 55356 | C56: 2820.075348 | D56: 3674.568633
A57: lubiński | B57: 106267 | C57: 5413.703068 | D57: 7054.075167
A58: lwówecki | B58: 46536 | C58: 2370.746196 | D58: 3089.091082
A59: milicki | B59: 37170 | C59: 1893.601429 | D59: 2467.369682
A60: oleśnicki | B60: 106602 | C60: 5430.769424 | D60: 7076.312693
A61: oławski | B61: 76201 | C61: 3882.01029 | D61: 5058.273799
A62: polkowicki | B62: 63081 | C62: 3213.620439 | D62: 4187.359346
A63: strzeliński | B63: 44075 | C63: 2245.372154 | D63: 2925.728241
A64: średzki | B64: 52969 | C64: 2698.471189 | D64: 3516.117963
A65: świdnicki | B65: 159259 | C65: 8113.345976 | D65: 10571.71989
A66: trzebnicki | B66: 83959 | C66: 4277.236544 | D66: 5573.255074
A67: wałbrzyski | B67: 56848 | C67: 2896.084316 | D67: 3773.6086
A68: wołowski | B68: 47128 | C68: 2400.90525 | D68: 3128.388441
A69: wrocławski | B69: 135837 | C69: 6920.127449 | D69: 9016.95172
A70: ząbkowicki | B70: 66758 | C70: 3400.942808 | D70: 4431.441087
A71: zgorzelecki | B71: 91579 | C71: 4665.432479 | D71: 6079.075816
A72: złotoryjski | B72: 44440 | C72: 2263.966841 | D72: 2949.957187
A73: Lubelskie | B73: 2135715 | C73: 108802.609 | D73: 99436 | E73: =D73/B73 -> 0.04655864664
A74: Biała Podlaska | B74: 57389 | C74: 2923.645208 | D74: =$B74*$E$73 -> 2671.954172
A75: Chełm | B75: 63949 | C75: 3257.840134 | D75: 2977.378894
A76: Lublin | B76: 340745 | C76: 17359.03198 | D76: 15864.62605
A77: zamojski | B77: 108038 | C77: 5503.925509 | D77: 5030.103065
A78: bialski | B78: 112330 | C78: 5722.578652 | D78: 5229.932777
A79: biłgorajski | B79: 102341 | C79: 5213.695556 | D79: 4764.858455
A80: chełmski | B80: 79239 | C80: 4036.77922 | D80: 3689.260601
A81: hrubieszowski | B81: 65562 | C81: 3340.013368 | D81: 3052.477991
A82: janowski | B82: 46742 | C82: 2381.240731 | D82: 2176.244261
A83: krasnostawski | B83: 65142 | C83: 3318.616741 | D83: 3032.923359
A84: kraśnicki | B84: 97244 | C84: 4954.032212 | D84: 4527.549033
A85: lubartowski | B85: 89332 | C85: 4550.960528 | D85: 4159.177021
A86: lubelski | B86: 151679 | C86: 7727.187816 | D86: 7061.968963
A87: łęczyński | B87: 57367 | C87: 2922.524433 | D87: 2670.929882
A88: łukowski | B88: 108382 | C88: 5521.450365 | D88: 5046.11924
A89: opolski | B89: 60764 | C89: 3095.582384 | D89: 2829.089604
A90: parczewski | B90: 35500 | C90: 1808.524367 | D90: 1652.831956
A91: puławski | B91: 114859 | C91: 5851.416909 | D91: 5347.679594
A92: radzyński | B92: 60119 | C92: 3062.723279 | D92: 2799.059277
A93: rycki | B93: 57233 | C93: 2915.69789 | D93: 2664.691023
A94: świdnicki | B94: 72509 | C94: 3693.923756 | D94: 3375.920909
A95: tomaszowski | B95: 85356 | C95: 4348.405799 | D95: 3974.059842
A96: włodawski | B96: 39148 | C96: 1994.36935 | D96: 1822.677899
A97: Zamość | B97: 64746 | C97: 3298.442779 | D97: 3014.486135
A98: Lubuskie | B98: 1017450 | C98: 51833.32724 | D98: 57933 | E98: =D98/B98 -> 0.05693940734
A99: Gorzów Wielkopolski | B99: 123911 | C99: 6312.56515 | D99: =$B99*$E$98 -> 7055.418903
A100: Zielona Góra | B100: 138898 | C100: 7076.068099 | D100: 7908.769801
A101: gorzowski | B101: 70990 | C101: 3616.53929 | D101: 4042.128527
A102: krośnieński | B102: 55855 | C102: 2845.496578 | D102: 3180.350597
A103: międzyrzecki | B103: 58375 | C103: 2973.876336 | D103: 3323.837904
A104: nowosolski | B104: 87213 | C104: 4443.009454 | D104: 4965.856533
A105: słubicki | B105: 47247 | C105: 2406.967627 | D105: 2690.216179
A106: strzelecko-drezdenecki | B106: 49936 | C106: 2543.95698 | D106: 2843.326245
A107: sulęciński | B107: 35457 | C107: =$B107*$C$40 -> 1806.33376 | D107: 2018.900566
A108: świebodziński | B108: 56232 | C108: 2864.702597 | D108: 3201.816754
A109: zielonogórski | B109: 75283 | C109: 3835.243378 | D109: 4286.569403
A110: żagański | B110: 80834 | C110: 4118.035456 | D110: 4602.640053
A111: żarski | B111: 97942 | C111: 4989.591368 | D111: 5576.759434
A112: wschowski | B112: 39277 | C112: 2000.941171 | D112: 2236.409102
A113: Łódzkie | B113: 2488417 | C113: 126770.7825 | D113: 238373 | E113: =D113/B113 -> 0.09579302826
A114: Łódź | B114: 698688 | C114: 35594.20487 | D114: =$B114*$E$113 -> 66929.43933
A115: Piotrków Trybunalski | B115: 74905 | C115: 3815.986414 | D115: 7175.376782
A116: Skierniewice | B116: 48304 | C116: 2460.815803 | D116: 4627.186437
A117: bełchatowski | B117: 112853 | C117: 5749.222546 | D117: 10810.53062
A118: kutnowski | B118: 98825 | C118: 5034.575227 | D118: 9466.746018
A119: łaski | B119: 50232 | C119: 2559.036507 | D119: 4811.875395
A120: łęczycki | B120: 50888 | C120: 2592.456 | D120: 4874.715622
A121: łowicki | B121: 79426 | C121: 4046.305813 | D121: 7608.457062
A122: łódzki wschodni | B122: 70619 | C122: 3597.638937 | D122: 6764.807863
A123: opoczyński | B123: 77313 | C123: 3938.660405 | D123: 7406.046394
A124: pabianicki | B124: 119484 | C124: 6087.03452 | D124: 11445.73419
A125: pajęczański | B125: 51908 | C125: 2644.419235 | D125: 4972.424511
A126: piotrkowski | B126: 91275 | C126: 4649.945397 | D126: 8743.508654
A127: poddębicki | B127: 41555 | C127: 2116.992396 | D127: 3980.679289
A128: radomszczański | B128: 114675 | C128: 5842.043149 | D128: 10985.06552
A129: rawski | B129: 49161 | C129: 2504.47511 | D129: 4709.281062
A130: sieradzki | B130: 118993 | C130: 6062.020845 | D130: 11398.69981
A131: skierniewicki | B131: 38159 | C131: 1943.985389 | D131: 3655.366165
A132: tomaszowski | B132: 118400 | C132: 6031.810846 | D132: 11341.89455
A133: wieluński | B133: 77189 | C133: 3932.343306 | D133: 7394.168058
A134: wieruszowski | B134: 42169 | C134: 2148.272226 | D134: 4039.496209
A135: zduńskowolski | B135: 67277 | C135: 3427.382925 | D135: 6444.667562
A136: zgierski | B136: 165187 | C136: 8415.344073 | D136: 15823.76296
A137: brzeziński | B137: 30932 | C137: 1575.810584 | D137: 2963.06995
A138: Małopolskie | B138: 3376329 | C138: 172004.8808 | D138: 425668 | E138: =D138/B138 -> 0.1260742066
A139: Kraków | B139: 762448 | C139: 38842.41652 | D139: =$B139*$E$138 -> 96125.0267
A140: Nowy Sącz | B140: 83829 | C140: 4270.613779 | D140: 10568.67467
A141: Tarnów | B141: 110381 | C141: 5623.288117 | D141: 13916.197
A142: bocheński | B142: 105577 | C142: 5378.551467 | D142: 13310.53651
A143: brzeski | B143: 92963 | C143: 4735.939457 | D143: 11720.23647
A144: chrzanowski | B144: 126222 | C144: 6430.297539 | D144: 15913.33851
A145: dąbrowski | B145: 59314 | C145: 3021.713079 | D145: 7477.965492
A146: gorlicki | B146: 109072 | C146: 5556.601965 | D146: 13751.16587
A147: krakowski | B147: 271529 | C147: 13832.86797 | D147: 34232.80325
A148: limanowski | B148: 129936 | C148: 6619.504849 | D148: 16381.57811
A149: miechowski | B149: 49521 | C149: 2522.815075 | D149: 6243.320787
A150: myślenicki | B150: 125315 | C150: 6384.091015 | D150: 15798.9892
A151: nowosądecki | B151: 213420 | C151: 10872.54283 | D151: 26906.75718
A152: nowotarski | B152: 190592 | C152: 9709.585244 | D152: 24028.73519
A153: olkuski | B153: 113004 | C153: 5756.915143 | D153: 14246.88965
A154: oświęcimski | B154: 154715 | C154: 7881.854857 | D154: 19505.57088
A155: proszowicki | B155: 43696 | C155: 2226.064246 | D155: 5508.938533
A156: suski | B156: 84142 | C156: 4286.55936 | D156: 10608.13589
A157: tarnowski | B157: 200677 | C157: 10223.359 | D157: 25300.19356
A158: tatrzański | B158: 67935 | C158: 3460.904306 | D158: 8564.851227
A159: wadowicki | B159: 159593 | C159: 8130.361389 | D159: 20120.56086
A160: wielicki | B160: 122448 | C160: 6238.033569 | D160: 15437.53445
A161: Mazowieckie | B161: 5356838 | C161: 272900.6212 | D161: 808925 | E161: =D161/B161 -> 0.1510079267
A162: Ostrołęka | B162: 52408 | C162: 2669.891409 | D162: =$B162*$E$161 -> 7914.023422
A163: Płock | B163: 121468 | C163: 6188.108107 | D163: 18342.63084
A164: Radom | B164: 215653 | C164: 10986.30156 | D164: 32565.31241
A165: Siedlce | B165: 77072 | C165: 3926.382817 | D165: 11638.48293
A166: Warszawa | B166: 1748916 | C166: 89097.38597 | D166: 264100.1791
A167: białobrzeski | B167: 33553 | C167: 1709.335721 | D167: 5066.768964
A168: ciechanowski | B168: 90256 | C168: 4598.033106 | D168: 13629.37143
A169: garwoliński | B169: 108765 | C169: 5540.96205 | D169: 16424.37715
A170: gostyniński | B170: 45869 | C170: =$B170*$C$40 -> 2336.766315 | D170: 6926.582589
A171: grodziski | B171: 91289 | C171: 4650.658618 | D171: 13785.36262
A172: grójecki | B172: 98551 | C172: 5020.616476 | D172: 14881.98218
A173: kozienicki | B173: 61128 | C173: 3114.126127 | D173: 9230.812543
A174: legionowski | B174: 113842 | C174: 5799.606507 | D174: 17191.04439
A175: lipski | B175: 34887 | C175: 1777.295481 | D175: 5268.213538
A176: łosicki | B176: 31628 | C176: 1611.26785 | D176: 4776.078705
A177: makowski | B177: 45845 | C177: 2335.543651 | D177: 6922.958399
A178: miński | B178: 151847 | C178: 7735.746466 | D178: 22930.10064
A179: mławski | B179: 73703 | C179: 3754.751308 | D179: 11129.73722
A180: nowodworski | B180: 78843 | C180: 4016.605258 | D180: 11905.91796
A181: ostrołęcki | B181: 88522 | C181: 4509.695606 | D181: 13367.52369
A182: ostrowski | B182: 73747 | C182: 3756.992859 | D182: 11136.38157
A183: otwocki | B183: 123294 | C183: 6281.132487 | D183: 18618.37131
A184: piaseczyński | B184: 178449 | C184: 9090.968021 | D184: 26947.21351
A185: płocki | B185: 111103 | C185: 5660.069936 | D185: 16777.43368
A186: płoński | B186: 88062 | C186: 4486.261206 | D186: 13298.06004
A187: pruszkowski | B187: 161319 | C187: 8218.291334 | D187: 24360.44773
A188: przasnyski | B188: 53030 | C188: 2701.578794 | D188: 8007.950352
A189: przysuski | B189: 42395 | C189: 2159.785649 | D189: 6401.981052
A190: pułtuski | B190: 51584 | C190: 2627.913266 | D190: 7789.59289
A191: radomski | B191: 151453 | C191: 7715.674393 | D191: 22870.60352
A192: siedlecki | B192: 81449 | C192: 4149.36623 | D192: 12299.44462
A193: sierpecki | B193: 52776 | C193: 2688.638929 | D193: 7969.594339
A194: sochaczewski | B194: 85158 | C194: 4338.318818 | D194: 12859.53302
A195: sokołowski | B195: 54965 | C195: 2800.156108 | D195: 8300.150691
A196: szydłowiecki | B196: 40163 | C196: 2046.077863 | D196: 6064.93136
A197: warszawski zachodni | B197: 113689 | C197: 5791.812021 | D197: 17167.94018
A198: węgrowski | B198: 66907 | C198: 3408.533516 | D198: 10103.48735
A199: wołomiński | B199: 236912 | C199: 12069.32746 | D199: 35775.58993
A200: wyszkowski | B200: 73972 | C200: 3768.455337 | D200: 11170.35835
A201: zwoleński | B201: 36704 | C201: 1869.861362 | D201: 5542.594941
A202: żuromiński | B202: 39613 | C202: 2018.058472 | D202: 5981.877
A203: żyrardowski | B203: 76049 | C203: 3874.266749 | D203: 11484.00182
A204: Opolskie | B204: 994489 | C204: 50663.59406 | D204: 52098 | E204: =D204/B204 -> 0.05238670312
A205: Opole | B205: 118938 | C205: 6059.218906 | D205: =$B205*$E$204 -> 6230.769696
A206: brzeski | B206: 91044 | C206: 4638.177253 | D206: 4769.494999
A207: głubczycki | B207: 46695 | C207: 2378.846347 | D207: 2446.197102
A208: kędzierzyńsko-kozielski | B208: 95888 | C208: 4884.951676 | D208: 5023.256189
A209: kluczborski | B209: 66503 | C209: 3387.951999 | D209: 3483.872918
A210: krapkowicki | B210: 64463 | C210: 3284.025529 | D210: 3377.004043
A211: namysłowski | B211: 42665 | C211: 2173.540623 | D211: 2235.078689
A212: nyski | B212: 138548 | C212: 7058.237577 | D212: 7258.072944
A213: oleski | B213: 65181 | C213: 3320.603571 | D213: 3414.617696
A214: opolski | B214: 133197 | C214: 6785.634369 | D214: 6977.751696
A215: prudnicki | B215: 56043 | C215: 2855.074115 | D215: 2935.908003
A216: strzelecki | B216: 75324 | C216: 3837.332096 | D216: 3945.976026
A217: Podkarpackie | B217: 2126824 | C217: 108349.6628 | D217: 70004 | E217: =D217/B217 -> 0.0329148063
A218: Krosno | B218: 46695 | C218: 2378.846347 | D218: =$B218*$E$217 -> 1536.95688
A219: Przemyśl | B219: 62485 | C219: 3183.257608 | D219: 2056.681672
A220: Rzeszów | B220: 187027 | C220: 9527.968642 | D220: 6155.957478
A221: Tarnobrzeg | B221: 47658 | C221: 2427.905754 | D221: 1568.653839
A222: bieszczadzki | B222: 22032 | C222: 1122.405883 | D222: 725.1790125
A223: brzozowski | B223: 66004 | C223: 3362.53077 | D223: 2172.508875
A224: dębicki | B224: 135242 | C224: 6889.815562 | D224: 4451.464234
A225: jarosławski | B225: 121374 | C225: 6183.319339 | D225: 3995.0017
A226: jasielski | B226: 114533 | C226: 5834.809051 | D226: 3769.83151
A227: kolbuszowski | B227: 62412 | C227: 3179.53867 | D227: 2054.278891
A228: krośnieński | B228: 112081 | C228: 5709.893509 | D228: 3689.124405
A229: leżajski | B229: 69588 | C229: 3545.115314 | D229: 2290.475541
A230: lubaczowski | B230: 56376 | C230: 2872.038583 | D230: 1855.60512
A231: łańcucki | B231: 80216 | C231: 4086.551848 | D231: 2640.294102
A232: mielecki | B232: 136280 | C232: 6942.695795 | D232: 4485.629803
A233: niżański | B233: 67068 | C233: 3416.735556 | D233: 2207.530229
A234: przemyski | B234: 74215 | C234: =$B234*$C$40 -> 3780.834814 | D234: 2442.77235
A235: przeworski | B235: 78830 | C235: 4015.942982 | D235: 2594.674181
... 207 more rows

Sheet Wybór powiązań (hidden)
C5: Kujawsko-pomorskie | E5: lipnowski | F5: Dzieci poniżej 4 roku życia
C7: =MATCH(woj,wyb_woj,0) -> 2 | F7: =MATCH(cho,wyb_cho,0) -> 12
C15: Przedział wiekowy | D15: Liczba osób w województwie | E15: Liczba osób w powiecie | F15: Odsetek ogółem | G15: Liczba osób w danym województwie będących w danej grupie ryzyka | H15: Liczba osób w danych województwie i powiecie będących w danej grupie ryzyka
C16: 0 - 4 | D16: =SUMIFS('Wszystkie województwa'!D:D,'Wszystkie województwa'!$A:$A,woj,'Wszystkie województwa'!$B:$B,'Wszystkie województwa'!B4,'Wszystkie województwa'!$C:$C,'Wybór powiązań'!C16) -> 99362 | E16: =SUMIFS('Wszystkie województwa'!D:D,'Wszystkie województwa'!$A:$A,woj,'Wszystkie województwa'!$B:$B,'Wybór powiązań'!$E$5,'Wszystkie województwa'!$C:$C,'Wybór powiązań'!C16) -> 3425 | F16: =INDEX('Odsetki grupy ryzyka'!$F20:$T20,,MATCH(cho,'Odsetki grupy ryzyka'!$F$19:$T$19,0)) -> 0 | G16: =D16*F16 -> 0 | H16: =E16*F16 -> 0
C17: 5 - 9 | D17: =SUMIFS('Wszystkie województwa'!D:D,'Wszystkie województwa'!$A:$A,woj,'Wszystkie województwa'!$B:$B,'Wszystkie województwa'!B5,'Wszystkie województwa'!$C:$C,'Wybór powiązań'!C17) -> 113956 | E17: =SUMIFS('Wszystkie województwa'!D:D,'Wszystkie województwa'!$A:$A,woj,'Wszystkie województwa'!$B:$B,'Wybór powiązań'!$E$5,'Wszystkie województwa'!$C:$C,'Wybór powiązań'!C17) -> 3944 | F17: =INDEX('Odsetki grupy ryzyka'!$F21:$T21,,MATCH(cho,'Odsetki grupy ryzyka'!$F$19:$T$19,0)) -> 0 | G17: =D17*F17 -> 0 | H17: =E17*F17 -> 0
C18: 10 - 14 | D18: =SUMIFS('Wszystkie województwa'!D:D,'Wszystkie województwa'!$A:$A,woj,'Wszystkie województwa'!$B:$B,'Wszystkie województwa'!B6,'Wszystkie województwa'!$C:$C,'Wybór powiązań'!C18) -> 100283 | E18: =SUMIFS('Wszystkie województwa'!D:D,'Wszystkie województwa'!$A:$A,woj,'Wszystkie województwa'!$B:$B,'Wybór powiązań'!$E$5,'Wszystkie województwa'!$C:$C,'Wybór powiązań'!C18) -> 3589 | F18: =INDEX('Odsetki grupy ryzyka'!$F22:$T22,,MATCH(cho,'Odsetki grupy ryzyka'!$F$19:$T$19,0)) -> 0 | G18: 0 | H18: 0
C19: 15 - 19 | D19: =SUMIFS('Wszystkie województwa'!D:D,'Wszystkie województwa'!$A:$A,woj,'Wszystkie województwa'!$B:$B,'Wszystkie województwa'!B7,'Wszystkie województwa'!$C:$C,'Wybór powiązań'!C19) -> 110268 | E19: =SUMIFS('Wszystkie województwa'!D:D,'Wszystkie województwa'!$A:$A,woj,'Wszystkie województwa'!$B:$B,'Wybór powiązań'!$E$5,'Wszystkie województwa'!$C:$C,'Wybór powiązań'!C19) -> 4142 | F19: =INDEX('Odsetki grupy ryzyka'!$F23:$T23,,MATCH(cho,'Odsetki grupy ryzyka'!$F$19:$T$19,0)) -> 0 | G19: 0 | H19: 0
C20: 20 - 24 | D20: =SUMIFS('Wszystkie województwa'!D:D,'Wszystkie województwa'!$A:$A,woj,'Wszystkie województwa'!$B:$B,'Wszystkie województwa'!B8,'Wszystkie województwa'!$C:$C,'Wybór powiązań'!C20) -> 133515 | E20: =SUMIFS('Wszystkie województwa'!D:D,'Wszystkie województwa'!$A:$A,woj,'Wszystkie województwa'!$B:$B,'Wybór powiązań'!$E$5,'Wszystkie województwa'!$C:$C,'Wybór powiązań'!C20) -> 5109 | F20: =INDEX('Odsetki grupy ryzyka'!$F24:$T24,,MATCH(cho,'Odsetki grupy ryzyka'!$F$19:$T$19,0)) -> 0 | G20: 0 | H20: 0
C21: 25 - 29 | D21: =SUMIFS('Wszystkie województwa'!D:D,'Wszystkie województwa'!$A:$A,woj,'Wszystkie województwa'!$B:$B,'Wszystkie województwa'!B9,'Wszystkie województwa'!$C:$C,'Wybór powiązań'!C21) -> 151784 | E21: =SUMIFS('Wszystkie województwa'!D:D,'Wszystkie województwa'!$A:$A,woj,'Wszystkie województwa'!$B:$B,'Wybór powiązań'!$E$5,'Wszystkie województwa'!$C:$C,'Wybór powiązań'!C21) -> 5176 | F21: =INDEX('Odsetki grupy ryzyka'!$F25:$T25,,MATCH(cho,'Odsetki grupy ryzyka'!$F$19:$T$19,0)) -> 0 | G21: 0 | H21: 0
C22: 30 - 34 | D22: =SUMIFS('Wszystkie województwa'!D:D,'Wszystkie województwa'!$A:$A,woj,'Wszystkie województwa'!$B:$B,'Wszystkie województwa'!B10,'Wszystkie województwa'!$C:$C,'Wybór powiązań'!C22) -> 172960 | E22: =SUMIFS('Wszystkie województwa'!D:D,'Wszystkie województwa'!$A:$A,woj,'Wszystkie województwa'!$B:$B,'Wybór powiązań'!$E$5,'Wszystkie województwa'!$C:$C,'Wybór powiązań'!C22) -> 5236 | F22: =INDEX('Odsetki grupy ryzyka'!$F26:$T26,,MATCH(cho,'Odsetki grupy ryzyka'!$F$19:$T$19,0)) -> 0 | G22: 0 | H22: 0
C23: 35 - 39 | D23: =SUMIFS('Wszystkie województwa'!D:D,'Wszystkie województwa'!$A:$A,woj,'Wszystkie województwa'!$B:$B,'Wszystkie województwa'!B11,'Wszystkie województwa'!$C:$C,'Wybór powiązań'!C23) -> 164228 | E23: =SUMIFS('Wszystkie województwa'!D:D,'Wszystkie województwa'!$A:$A,woj,'Wszystkie województwa'!$B:$B,'Wybór powiązań'!$E$5,'Wszystkie województwa'!$C:$C,'Wybór powiązań'!C23) -> 4952 | F23: =INDEX('Odsetki grupy ryzyka'!$F27:$T27,,MATCH(cho,'Odsetki grupy ryzyka'!$F$19:$T$19,0)) -> 0 | G23: 0 | H23: 0
C24: 40 - 44 | D24: =SUMIFS('Wszystkie województwa'!D:D,'Wszystkie województwa'!$A:$A,woj,'Wszystkie województwa'!$B:$B,'Wszystkie województwa'!B12,'Wszystkie województwa'!$C:$C,'Wybór powiązań'!C24) -> 150711 | E24: =SUMIFS('Wszystkie województwa'!D:D,'Wszystkie województwa'!$A:$A,woj,'Wszystkie województwa'!$B:$B,'Wybór powiązań'!$E$5,'Wszystkie województwa'!$C:$C,'Wybór powiązań'!C24) -> 4674 | F24: =INDEX('Odsetki grupy ryzyka'!$F28:$T28,,MATCH(cho,'Odsetki grupy ryzyka'!$F$19:$T$19,0)) -> 0 | G24: 0 | H24: 0
C25: 45 - 49 | D25: =SUMIFS('Wszystkie województwa'!D:D,'Wszystkie województwa'!$A:$A,woj,'Wszystkie województwa'!$B:$B,'Wszystkie województwa'!B13,'Wszystkie województwa'!$C:$C,'Wybór powiązań'!C25) -> 128755 | E25: =SUMIFS('Wszystkie województwa'!D:D,'Wszystkie województwa'!$A:$A,woj,'Wszystkie województwa'!$B:$B,'Wybór powiązań'!$E$5,'Wszystkie województwa'!$C:$C,'Wybór powiązań'!C25) -> 4239 | F25: =INDEX('Odsetki grupy ryzyka'!$F29:$T29,,MATCH(cho,'Odsetki grupy ryzyka'!$F$19:$T$19,0)) -> 0 | G25: 0 | H25: 0
C26: 50 - 54 | D26: =SUMIFS('Wszystkie województwa'!D:D,'Wszystkie województwa'!$A:$A,woj,'Wszystkie województwa'!$B:$B,'Wszystkie województwa'!B14,'Wszystkie województwa'!$C:$C,'Wybór powiązań'!C26) -> 130323 | E26: =SUMIFS('Wszystkie województwa'!D:D,'Wszystkie województwa'!$A:$A,woj,'Wszystkie województwa'!$B:$B,'Wybór powiązań'!$E$5,'Wszystkie województwa'!$C:$C,'Wybór powiązań'!C26) -> 4238 | F26: =INDEX('Odsetki grupy ryzyka'!$F30:$T30,,MATCH(cho,'Odsetki grupy ryzyka'!$F$19:$T$19,0)) -> 0 | G26: 0 | H26: 0
C27: 55 - 59 | D27: =SUMIFS('Wszystkie województwa'!D:D,'Wszystkie województwa'!$A:$A,woj,'Wszystkie województwa'!$B:$B,'Wszystkie województwa'!B15,'Wszystkie województwa'!$C:$C,'Wybór powiązań'!C27) -> 154119 | E27: =SUMIFS('Wszystkie województwa'!D:D,'Wszystkie województwa'!$A:$A,woj,'Wszystkie województwa'!$B:$B,'Wybór powiązań'!$E$5,'Wszystkie województwa'!$C:$C,'Wybór powiązań'!C27) -> 4653 | F27: =INDEX('Odsetki grupy ryzyka'!$F31:$T31,,MATCH(cho,'Odsetki grupy ryzyka'!$F$19:$T$19,0)) -> 0 | G27: 0 | H27: 0
C28: 60 - 64 | D28: =SUMIFS('Wszystkie województwa'!D:D,'Wszystkie województwa'!$A:$A,woj,'Wszystkie województwa'!$B:$B,'Wszystkie województwa'!B16,'Wszystkie województwa'!$C:$C,'Wybór powiązań'!C28) -> 148542 | E28: =SUMIFS('Wszystkie województwa'!D:D,'Wszystkie województwa'!$A:$A,woj,'Wszystkie województwa'!$B:$B,'Wybór powiązań'!$E$5,'Wszystkie województwa'!$C:$C,'Wybór powiązań'!C28) -> 4272 | F28: =INDEX('Odsetki grupy ryzyka'!$F32:$T32,,MATCH(cho,'Odsetki grupy ryzyka'!$F$19:$T$19,0)) -> 0 | G28: 0 | H28: 0
C29: 65+ | D29: =SUMIFS('Wszystkie województwa'!D:D,'Wszystkie województwa'!$A:$A,woj,'Wszystkie województwa'!$B:$B,'Wszystkie województwa'!B17,'Wszystkie województwa'!$C:$C,'Wybór powiązań'!C29) -> 325718 | E29: =SUMIFS('Wszystkie województwa'!D:D,'Wszystkie województwa'!$A:$A,woj,'Wszystkie województwa'!$B:$B,'Wybór powiązań'!$E$5,'Wszystkie województwa'!$C:$C,'Wybór powiązań'!C29) -> 9009 | F29: =INDEX('Odsetki grupy ryzyka'!$F33:$T33,,MATCH(cho,'Odsetki grupy ryzyka'!$F$19:$T$19,0)) -> 0 | G29: 0 | H29: 0
C30: Ogółem | D30: =SUM(D16:D29) -> 2084524 | E30: =SUM(E16:E29) -> 66658 | F30: =INDEX('Odsetki grupy ryzyka'!$F34:$T34,,MATCH(cho,'Odsetki grupy ryzyka'!$F$19:$T$19,0)) -> 0.05094434837 | G30: 106194.7168 | H30: 3395.848373
G31: =SUM(G16:G30) -> 106194.7168 | H31: =SUM(H16:H30) -> 3395.848373
A34: Dolnośląskie | B34: ='Wszystkie województwa'!D4 -> 2903812 | C34: =ROUNDUP(B34/1000000,0)-1 -> 2
A35: Lubelskie | B35: ='Wszystkie województwa'!D939 -> 2135715 | C35: 2
A36: Lubuskie | B36: ='Wszystkie województwa'!D1364 -> 1017450 | C36: 1
A37: Łódzkie | B37: ='Wszystkie województwa'!D1619 -> 2488417 | C37: 2
A38: Małopolskie | B38: ='Wszystkie województwa'!D2044 -> 3376329 | C38: 3
A39: Mazowieckie | B39: ='Wszystkie województwa'!D2435 -> 5356838 | C39: 5
A40: Opolskie | B40: ='Wszystkie województwa'!D3166 -> 994489 | C40: 0
A41: Podkarpackie | B41: ='Wszystkie województwa'!D3387 -> 2126824 | C41: 2
A42: Podlaskie | B42: ='Wszystkie województwa'!D3829 -> 1187587 | C42: 1
A43: Pomorskie | B43: ='Wszystkie województwa'!D4135 -> 2311469 | C43: 2
A44: Śląskie | B44: ='Wszystkie województwa'!D4492 -> 4564394 | C44: 4
A45: Świętokrzyskie | B45: ='Wszystkie województwa'!D5121 -> 1254505 | C45: 1
A46: Warmińsko-Mazurskie | B46: ='Wszystkie województwa'!D5376 -> 1437812 | C46: 1
A47: Wielkopolskie | B47: ='Wszystkie województwa'!D5750 -> 3477755 | C47: 3
A48: Zachodniopomorskie | B48: ='Wszystkie województwa'!D6362 -> 1708889 | C48: 1
A49: Kujawsko-Pomorskie | B49: ='Wszystkie województwa'!D531 -> 2084524 | C49: 2
A51: =MIN(B34:B49) -> 994489
A52: =MAX(B34:B49) -> 5356838
B63: R | C63: G | D63: B
B64: 10 | C64: 28 | D64: 78 | E64: =C39 -> 5
B65: 14 | C65: 77 | D65: 116 | E65: =C44 -> 4
B66: 52 | C66: 104 | D66: 162 | E66: =C38 -> 3
B67: 124 | C67: 160 | D67: 232 | E67: =C37 -> 2
B68: 197 | C68: 207 | D68: 237 | E68: =C36 -> 1
B69: 240 | C69: 244 | D69: 250 | E69: =C40 -> 0
A72: Województwo | B72: l.mieszkańców | C72: Osoby 65+ | D72: Zapadalność - Grypa
A73: Odsetek bedących w grupie ryzyka | C73: =INDEX('Odsetki grupy ryzyka'!$F$34:$T$34,MATCH('Wybór powiązań'!$C$72,'Odsetki grupy ryzyka'!$F$19:$T$19,0)) -> 0.1626099287
A74: Dolnośląskie | B74: 2903812 | C74: =C$73*$B74 -> 472188.6622 | D74: 192757
A75: Lubelskie | B75: 2135715 | C75: =C$73*$B75 -> 347288.4638 | D75: 99436
A76: Lubuskie | B76: 1017450 | C76: 165447.4719 | D76: 57933
A77: Łódzkie | B77: 2488417 | C77: 404641.3109 | D77: 238373
A78: Małopolskie | B78: 3376329 | C78: 549024.6178 | D78: 425668
A79: Mazowieckie | B79: 5356838 | C79: 871075.0451 | D79: 808925
A80: Opolskie | B80: 994489 | C80: 161713.7854 | D80: 52098
A81: Podkarpackie | B81: 2126824 | C81: 345842.6989 | D81: 70004
A82: Podlaskie | B82: 1187587 | C82: 193113.4374 | D82: 107992
A83: Pomorskie | B83: 2311469 | C83: 375867.8092 | D83: 841702
A84: Śląskie | B84: 4564394 | C84: 742215.7828 | D84: 287108
A85: Świętokrzyskie | B85: 1254505 | C85: 203994.9686 | D85: 88789
A86: Warmińsko-Mazurskie | B86: 1437812 | C86: 233802.5068 | D86: 77627
A87: Wielkopolskie | B87: 3477755 | C87: 565517.4925 | D87: 605382
A88: Zachodniopomorskie | B88: 1708889 | C88: 277882.3184 | D88: 76012
A89: Kujawsko-Pomorskie | B89: 2084524 | C89: 338964.2989 | D89: 280269
A90: Polska | B90: =SUM(B74:B89) -> 38426809 | C90: =B90*C73 -> 6248580.67 | D90: =SUM(D74:D89) -> 4310075

Sheet Zachorowania grypa (hidden)
A2: Meldunki Epidemiologiczne
A3: Zachorowania i podejrzenia zachorowań na grypę w Polsce
A4: Narodowy Instytut Zdrowia Publicznego - Państwowy Zakład Higieny • Zakład Epidemiologii oraz Zakład Badania Wirusów Grypy. Krajowy Ośrodek ds. Grypy
A5: Główny Inspektorat Sanitarny • Departament Zapobiegania oraz Zwalczania Zakażeń i Chorób Zakaźnych u Ludzi
B6: Rok: 2016 | E6: Miesiąc: Grudzień | H6: Numer: 12D (48) | K6: Okres: 23 - 31 grudzień
B7: Zachorowania i podejrzenia zachorowań na grypę w okresie od 23 do 31 grudnia 2016 r. wg wieku i województw
D8: Ogółem | I8: Wiek (ukończone lata)
A9: Województwo | F9: 0 - 4 | H9: 5 - 14 | J9: 15 - 64 | L9: 65+
C10: liczba | D10: zapadal- | E10: wzrost/spa- | F10: liczba | G10: zapadal- | H10: liczba | I10: zapadal- | J10: liczba | K10: zapadal- | L10: liczba | M10: zapadal-
D11: ność 1) | E11: dek zap. 2,3) | G11: ność 1) | I11: ność 1) | K11: ność 1) | M11: ność 1)
A12: POLSKA | C12: 4310075 | D12: 1483.07 | E12: 17.9 | F12: 1009082 | G12: 6978.37 | H12: 1026319 | I12: 3534.76 | J12: 1924427 | K12: 838.69 | L12: 313350.81 | M12: 37683.16
A13: Dolnośląskie | C13: 192757 | D13: 876.92 | E13: 8.64 | F13: 40696 | G13: 3939.24 | H13: 42639 | I13: 2082.21 | J13: 90174 | K13: 519.1 | L13: 17210.08 | M13: 2584.2
A14: Kujawsko-Pomorskie | C14: 280269 | D14: 1778.56 | E14: 9.43 | F14: 66339 | G14: 8636.31 | H14: 74120 | I14: 4618.48 | J14: 119026 | K14: 940.33 | L14: 18555.09 | M14: 3122.81
A15: Lubelskie | C15: 99436 | D15: 610.43 | E15: 19.94 | F15: 19183 | G15: 2488.22 | H15: 20749 | I15: 1271.4 | J15: 47613 | K15: 2267.99 | L15: 9072.82 | M15: 1318.05
A16: Lubuskie | C16: 57933 | D16: 754.13 | E16: 4.89 | F16: 15174 | G16: 3972.43 | H16: 16144 | I16: 2066.63 | J16: 21070 | K16: 2760.29 | L16: 2985.17 | M16: 492.01
A17: Łódzkie | C17: 238373 | D17: 1263.43 | E17: 11.33 | F17: 53224 | G17: 6062.4 | H17: 58296 | I17: 3302.99 | J17: 102475 | K17: 706.34 | L17: 22136.93 | M17: 2981.22
A18: Małopolskie | C18: 425668 | D18: 1669.63 | E18: 32.83 | F18: 95342 | G18: 7094.27 | H18: 103283 | I18: 3879.4 | J18: 191382 | K18: 964.18 | L18: 32437.49 | M18: 4152.27
A19: Mazowieckie | C19: 808925 | D19: 2003.52 | E19: 34.53 | F19: 190981 | G19: 8766.57 | H19: 191651 | I19: 4618.18 | J19: 365348 | K19: 1144.67 | L19: 53740.3 | M19: 8186.16
A20: Opolskie | C20: 52098 | D20: 692.54 | E20: 4.34 | F20: 11114 | G20: 3431.11 | H20: 10869 | I20: 1631.12 | J20: 21443 | K20: 3514.28 | L20: 5004.86 | M20: 1010.91
A21: Podkarpackie | C21: 70004 | D21: 438.35 | E21: 11.17 | F21: 13271 | G21: 1701.79 | H21: 16495 | I21: 991.1 | J21: 30907 | K21: 2146.67 | L21: 6970.53 | M21: 794.25
A22: Podlaskie | C22: 107992 | D22: 1201.72 | E22: 30.37 | F22: 25264 | G22: 6065.08 | H22: 25836 | I22: 2952.26 | J22: 43235 | K22: 4196.13 | L22: 9435.23 | M22: 1403.54
A23: Pomorskie | C23: 841702 | D23: 4814.17 | E23: 12.75 | F23: 221649 | G23: 23275.53 | H23: 192638 | I23: 10150.63 | J23: 367963 | K23: 2652.62 | L23: 52989.42 | M23: 8879.01
A24: Śląskie | C24: 287108 | D24: 832.91 | E24: 7.92 | F24: 62661 | G24: 3800.36 | H24: 66810 | I24: 2089.05 | J24: 134778 | K24: 492.86 | L24: 20397.59 | M24: 2881.7
A25: Świętokrzyskie | C25: 88789 | D25: 939.29 | E25: 23.57 | F25: 18151 | G25: 4340.85 | H25: 22225 | I25: 2498.48 | J25: 36090 | K25: 4110.99 | L25: 8116.11 | M25: 1188.71
A26: Warmińsko-Mazurskie | C26: 77627 | D26: 717.37 | E26: 5.85 | F26: 14605 | G26: 2722.86 | H26: 20514 | I26: 1821.78 | J26: 32769 | K26: 2721.35 | L26: 7003.1 | M26: 925.99
A27: Wielkopolskie | C27: 605382 | D27: 2307.9 | E27: 25.97 | F27: 144399 | G27: 10159.61 | H27: 146277 | I27: 5252.37 | J27: 266017 | K27: 1281.17 | L27: 43541.95 | M27: 6444.98
A28: Zachodniopomorskie | C28: 76012 | D28: 585.99 | E28: 8.98 | F28: 17029 | G28: 2823.62 | H28: 17773 | I28: 1401.74 | J28: 31769 | K28: 4099.99 | L28: 5242.48 | M28: 744.44

Sheet Odsetki grupy ryzyka (hidden)
A2: Czynnik Ryzyka | B2: Odsetek | F2: Astma | H2: Astma[3]
A3: Astma | F3: Przewlekłe zapalenie oskrzeli, przewlekła zaporowa (obturacyjna) choroba płuc (POCHP), rozedma płuc | H3: Przewlekłe zapalenie oskrzeli, przewlekła zaporowa (obturacyjna) choroba płuc (POCHP), rozedma płuc[3]
A4: Ogółem | B4: =('Czynniki Ryzyka 15-'!B9+'Czynniki ryzyka dzieci '!B10)/Ludność!B7 -> 0.04058621614 | F4: Choroba wieńcowa (choroba niedokrwienna serca) lub dusznica bolesna | H4: Choroba wieńcowa (choroba niedokrwienna serca) lub dusznica bolesna[3]
A5: 0 - 4 | B5: =('Czynniki ryzyka dzieci '!C10/Ludność!C7) -> 0.03085177733 | F5: Wysokie ciśnienie krwii (nadciśnienie) | H5: Wysokie ciśnienie krwii (nadciśnienie)[3]
A6: 5 - 9 | B6: ='Czynniki ryzyka dzieci '!D10/Ludność!D7 -> 0.04345477757 | F6: Udar mózgu (wylew krwi do mózgu, zator mózgowy) lub jego przewlekłe konsekwencje | H6: Udar mózgu (wylew krwi do mózgu, zator mózgowy) lub jego przewlekłe konsekwencje[3]
A7: 10 - 14 | B7: ='Czynniki ryzyka dzieci '!E10/Ludność!E7 -> 0.05016044587 | F7: Cukrzyca | H7: Cukrzyca[3]
A8: 15 - 19 | B8: ='Czynniki Ryzyka 15-'!C9/Ludność!F7 -> 0.03914760025 | F8: Marskość wątroby | H8: Marskość wątroby[3]
A9: 20-29 | B9: ='Czynniki Ryzyka 15-'!D9/Ludność!G7 -> 0.0207624565 | F9: Problemy z nerkami | H9: Problemy z nerkami[3]
A10: 30-39 | B10: ='Czynniki Ryzyka 15-'!E9/Ludność!H7 -> 0.02456186284 | F10: HIV i AIDS | G10: 20.558 | H10: HIV i AIDS[3]
A11: 40-49 | B11: ='Czynniki Ryzyka 15-'!F9/Ludność!I7 -> 0.02609515207 | F11: Ciąża | G11: 373.229 | H11: Ciąża[3]
A12: 50-59 | B12: ='Czynniki Ryzyka 15-'!G9/Ludność!J7 -> 0.04136253041 | F12: Osoby 65+ | G12: 6186.885 | H12: Osoby 65+[3]
A13: 60-69 | B13: ='Czynniki Ryzyka 15-'!H9/Ludność!K7 -> 0.06424344886 | F13: Dzieci poniżej 4 roku życia | G13: =Ludność!C7 -> 1938.3 | H13: Dzieci poniżej 4 roku życia[3] | I13: asfgj h,j
A14: 70-79 | B14: ='Czynniki Ryzyka 15-'!I9/Ludność!L7 -> 0.07924480379 | F14: Dzieci poniżej 2 roku życia | G14: 1124.9 | H14: Dzieci poniżej 2 roku życia[3]
A15: 80 lat i więcej | B15: ='Czynniki Ryzyka 15-'!J9/Ludność!M7 -> 0.08443431024 | F15: BMI > 40 | G15: 1500 | H15: BMI > 40[3]
A16: Przewlekłe zapalenie oskrzeli, przewlekła zaporowa (obturacyjna) choroba płuc (POCHP), rozedma płuc | F16: Nowotwory | G16: 364.052 | H16: Nowotwory[3]
A17: Ogółem | B17: ='Czynniki Ryzyka 15-'!B13/Ludność!B7 -> 0.02665622355
A18: 0 - 4
A19: 5 - 9 | F19: Astma | G19: Przewlekłe zapalenie oskrzeli, przewlekła zaporowa (obturacyjna) choroba płuc (POCHP), rozedma płuc | H19: Choroba wieńcowa (choroba niedokrwienna serca) lub dusznica bolesna | I19: Wysokie ciśnienie krwii (nadciśnienie) | J19: Udar mózgu (wylew krwi do mózgu, zator mózgowy) lub jego przewlekłe konsekwencje | K19: Cukrzyca | L19: Marskość wątroby | M19: Problemy z nerkami | N19: HIV i AIDS | O19: Ciąża | P19: Osoby 65+ | Q19: Dzieci poniżej 4 roku życia | R19: Dzieci poniżej 2 roku życia | S19: BMI > 40 | T19: Nowotwory
A20: 10 - 14 | E20: 0 - 4 | F20: =B5 -> 0.03085177733 | G20: =B18 -> 0
A21: 15 - 19 | B21: ='Czynniki Ryzyka 15-'!C13/Ludność!F7 -> 0.006231270513 | E21: 5 - 9 | F21: =B6 -> 0.04345477757 | G21: =B19 -> 0
A22: 20-29 | B22: ='Czynniki Ryzyka 15-'!D13/Ludność!G7 -> 0.007231866871 | E22: 10 - 14 | F22: 0.05016044587 | G22: =B20 -> 0
A23: 30-39 | B23: ='Czynniki Ryzyka 15-'!E13/Ludność!H7 -> 0.01292729623 | E23: 15 - 19 | F23: 0.03914760025 | G23: =B21 -> 0.006231270513
A24: 40-49 | B24: ='Czynniki Ryzyka 15-'!F13/Ludność!I7 -> 0.01886940643 | E24: 20 - 24 | F24: =B9 -> 0.0207624565 | G24: =B22 -> 0.007231866871 | H24: =B35 -> 0.0008359416007 | I24: =B48 -> 0.01957658586 | J24: =B61 -> 0.001283073155 | K24: =B74 -> 0.007951165458 | L24: =B87 -> 0.001807966718 | M24: =B100 -> 0.01508582982
A25: 50-59 | B25: ='Czynniki Ryzyka 15-'!G13/Ludność!J7 -> 0.03794099757 | E25: 25 - 29 | F25: =B9 -> 0.0207624565 | G25: =B22 -> 0.007231866871 | H25: =B35 -> 0.0008359416007 | I25: =B48 -> 0.01957658586 | J25: =B61 -> 0.001283073155 | K25: =B74 -> 0.007951165458 | L25: =B87 -> 0.001807966718 | M25: =B100 -> 0.01508582982
A26: 60-69 | B26: ='Czynniki Ryzyka 15-'!H13/Ludność!K7 -> 0.05906593407 | E26: 30 - 34 | F26: =B10 -> 0.02456186284 | G26: =B23 -> 0.01292729623 | H26: =B36 -> 0.007363649752 | I26: =B49 -> 0.05076009229 | J26: =B62 -> 0.001030910965 | K26: =B75 -> 0.01168365761 | L26: =B88 -> 0.002372731587 | M26: =B101 -> 0.02228731325
A27: 70-79 | B27: ='Czynniki Ryzyka 15-'!I13/Ludność!L7 -> 0.07606993185 | E27: 35 - 39 | F27: =B10 -> 0.02456186284 | G27: =B23 -> 0.01292729623 | H27: =B36 -> 0.007363649752 | I27: =B49 -> 0.05076009229 | J27: =B62 -> 0.001030910965 | K27: =B75 -> 0.01168365761 | L27: =B88 -> 0.002372731587 | M27: =B101 -> 0.02228731325
A28: 80 lat i więcej | B28: ='Czynniki Ryzyka 15-'!J13/Ludność!M7 -> 0.08711689357 | E28: 40 - 44 | F28: =B11 -> 0.02609515207 | G28: =B24 -> 0.01886940643 | H28: =B37 -> 0.01949773214 | I28: =B50 -> 0.1503858313 | J28: =B63 -> 0.003573602466 | K28: =B76 -> 0.02444579709 | L28: =B89 -> 0.002964911936 | M28: =B102 -> 0.02695909992
A29: Choroba wieńcowa (choroba niedokrwienna serca) lub dusznica bolesna | E29: 45 - 49 | F29: =B11 -> 0.02609515207 | G29: =B24 -> 0.01886940643 | H29: =B37 -> 0.01949773214 | I29: =B50 -> 0.1503858313 | J29: =B63 -> 0.003573602466 | K29: =B76 -> 0.02444579709 | L29: =B89 -> 0.002964911936 | M29: =B102 -> 0.02695909992
A30: Ogółem | B30: ='Czynniki Ryzyka 15-'!B21/Ludność!B7 -> 0.0759105747 | E30: 50 - 54 | F30: =B12 -> 0.04136253041 | G30: =B25 -> 0.03794099757 | H30: =B38 -> 0.08508211679 | I30: =B51 -> 0.3301208942 | J30: =B64 -> 0.0188754562 | K30: =B77 -> 0.0718711983 | L30: =B90 -> 0.007033150852 | M30: =B103 -> 0.04752128954
A31: 0 - 4 | E31: 55 - 59 | F31: =B12 -> 0.04136253041 | G31: =B25 -> 0.03794099757 | H31: =B38 -> 0.08508211679 | I31: =B51 -> 0.3301208942 | J31: =B64 -> 0.0188754562 | K31: =B77 -> 0.0718711983 | L31: =B90 -> 0.007033150852 | M31: =B103 -> 0.04752128954
A32: 5 - 9 | E32: 60 - 64 | F32: =B13 -> 0.06424344886 | G32: =B26 -> 0.05906593407 | H32: =B39 -> 0.1817413356 | I32: =B52 -> 0.4742814877 | J32: =B65 -> 0.04448436179 | K32: =B78 -> 0.1451394759 | L32: =B91 -> 0.009847844463 | M32: =B104 -> 0.06418005072
A33: 10 - 14 | E33: 65+ | F33: =((Ludność!$K$7*'Odsetki grupy ryzyka'!B13)+(Ludność!$K$8*'Odsetki grupy ryzyka'!B14)+(Ludność!$K$9*'Odsetki grupy ryzyka'!B15))/(Ludność!$K$7+Ludność!$K$8+Ludność!$K$9) -> 0.07261833242 | G33: =((Ludność!$K$7*B26)+(Ludność!$K$8*B27)+(Ludność!$K$9*B28))/(Ludność!$K$7+Ludność!$K$8+Ludność!$K$9) -> 0.06942894433 | H33: =((Ludność!$K$7*B39)+(Ludność!$K$8*B40)+(Ludność!$K$9*B41))/(Ludność!$K$7+Ludność!$K$8+Ludność!$K$9) -> 0.2746809787 | I33: =((Ludność!$K$7*B52)+(Ludność!$K$8*B53)+(Ludność!$K$9*B54))/(Ludność!$K$7+Ludność!$K$8+Ludność!$K$9) -> 0.5306726608 | J33: =((Ludność!$K$7*B65)+(Ludność!$K$8*B66)+(Ludność!$K$9*B67))/(Ludność!$K$7+Ludność!$K$8+Ludność!$K$9) -> 0.06271632587 | K33: =((Ludność!$K$7*B78)+(Ludność!$K$8*B79)+(Ludność!$K$9*B80))/(Ludność!$K$7+Ludność!$K$8+Ludność!$K$9) -> 0.1803184487 | L33: =((Ludność!$K$7*B91)+(Ludność!$K$8*B92)+(Ludność!$K$9*B93))/(Ludność!$K$7+Ludność!$K$8+Ludność!$K$9) -> 0.01218426192 | M33: =((Ludność!$K$7*B104)+(Ludność!$K$8*B105)+(Ludność!$K$9*B106))/(Ludność!$K$7+Ludność!$K$8+Ludność!$K$9) -> 0.08302571976
A34: 15 - 19 | E34: Ogółem | F34: =B4 -> 0.04058621614 | G34: =B17 -> 0.02665622355 | H34: =B30 -> 0.0759105747 | I34: =B43 -> 0.195437796 | J34: =B56 -> 0.01727319081 | K34: =B69 -> 0.05622723235 | L34: =B82 -> 0.004751967283 | M34: =B95 -> 0.0344254798 | N34: =B108 -> 0.0005403260144 | O34: =B121 -> 0.00980957963 | P34: =B134 -> 0.1626099287 | Q34: =B147 -> 0.05094434837 | R34: =B160 -> 0.02956575219 | S34: =B174 -> 0.03942450733 | T34: =B188 -> 0.009568380494
A35: 20-29 | B35: ='Czynniki Ryzyka 15-'!D21/Ludność!G7 -> 0.0008359416007
A36: 30-39 | B36: ='Czynniki Ryzyka 15-'!E21/Ludność!H7 -> 0.007363649752
A37: 40-49 | B37: ='Czynniki Ryzyka 15-'!F21/Ludność!I7 -> 0.01949773214
A38: 50-59 | B38: ='Czynniki Ryzyka 15-'!G21/Ludność!J7 -> 0.08508211679
A39: 60-69 | B39: ='Czynniki Ryzyka 15-'!H21/Ludność!K7 -> 0.1817413356
A40: 70-79 | B40: ='Czynniki Ryzyka 15-'!I21/Ludność!L7 -> 0.3405155992
A41: 80 lat i więcej | B41: ='Czynniki Ryzyka 15-'!J21/Ludność!M7 -> 0.4209643887
A42: Wysokie ciśnienie krwii (nadciśnienie)
A43: Ogółem | B43: ='Czynniki Ryzyka 15-'!B25/Ludność!B7 -> 0.195437796
A44: 0 - 4
A45: 5 - 9
A46: 10 - 14
A47: 15 - 19 | B47: ='Czynniki Ryzyka 15-'!C25/Ludność!F7 -> 0.006754506969
A48: 20-29 | B48: ='Czynniki Ryzyka 15-'!D25/Ludność!G7 -> 0.01957658586
A49: 30-39 | B49: ='Czynniki Ryzyka 15-'!E25/Ludność!H7 -> 0.05076009229
A50: 40-49 | B50: ='Czynniki Ryzyka 15-'!F25/Ludność!I7 -> 0.1503858313
A51: 50-59 | B51: ='Czynniki Ryzyka 15-'!G25/Ludność!J7 -> 0.3301208942
A52: 60-69 | B52: ='Czynniki Ryzyka 15-'!H25/Ludność!K7 -> 0.4742814877
A53: 70-79 | B53: ='Czynniki Ryzyka 15-'!I25/Ludność!L7 -> 0.5842611015
A54: 80 lat i więcej | B54: ='Czynniki Ryzyka 15-'!J25/Ludność!M7 -> 0.5925826571
A55: Udar mózgu (wylew krwi do mózgu, zator mózgowy) lub jego przewlekłe konsekwencje
A56: Ogółem | B56: ='Czynniki Ryzyka 15-'!B29/Ludność!B7 -> 0.01727319081
A57: 0 - 4
A58: 5 - 9
A59: 10 - 14
A60: 15 - 19 | B60: ='Czynniki Ryzyka 15-'!C29/Ludność!F7 -> 0.0008562051087
A61: 20-29 | B61: ='Czynniki Ryzyka 15-'!D29/Ludność!G7 -> 0.001283073155
A62: 30-39 | B62: ='Czynniki Ryzyka 15-'!E29/Ludność!H7 -> 0.001030910965
A63: 40-49 | B63: ='Czynniki Ryzyka 15-'!F29/Ludność!I7 -> 0.003573602466
A64: 50-59 | B64: ='Czynniki Ryzyka 15-'!G29/Ludność!J7 -> 0.0188754562
A65: 60-69 | B65: ='Czynniki Ryzyka 15-'!H29/Ludność!K7 -> 0.04448436179
A66: 70-79 | B66: ='Czynniki Ryzyka 15-'!I29/Ludność!L7 -> 0.07645091648
A67: 80 lat i więcej | B67: ='Czynniki Ryzyka 15-'!J29/Ludność!M7 -> 0.0897994769
A68: Cukrzyca
A69: Ogółem | B69: ='Czynniki Ryzyka 15-'!B49/Ludność!B7 -> 0.05622723235
A70: 0 - 4
A71: 5 - 9
A72: 10 - 14
A73: 15 - 19 | B73: ='Czynniki Ryzyka 15-'!C49/Ludność!F7 -> 0.003472387385
A74: 20-29 | B74: ='Czynniki Ryzyka 15-'!D49/Ludność!G7 -> 0.007951165458
A75: 30-39 | B75: ='Czynniki Ryzyka 15-'!E49/Ludność!H7 -> 0.01168365761
A76: 40-49 | B76: ='Czynniki Ryzyka 15-'!F49/Ludność!I7 -> 0.02444579709
A77: 50-59 | B77: ='Czynniki Ryzyka 15-'!G49/Ludność!J7 -> 0.0718711983
A78: 60-69 | B78: ='Czynniki Ryzyka 15-'!H49/Ludność!K7 -> 0.1451394759
A79: 70-79 | B79: ='Czynniki Ryzyka 15-'!I49/Ludność!L7 -> 0.2158489608
A80: 80 lat i więcej | B80: ='Czynniki Ryzyka 15-'!J49/Ludność!M7 -> 0.21480786
A81: Marskość wątroby
A82: Ogółem | B82: ='Czynniki Ryzyka 15-'!B57/Ludność!B7 -> 0.004751967283
A83: 0 - 4
A84: 5 - 9
A85: 10 - 14
A86: 15 - 19 | B86: ='Czynniki Ryzyka 15-'!C57/Ludność!F7 -> 0.001046472911
A87: 20-29 | B87: ='Czynniki Ryzyka 15-'!D57/Ludność!G7 -> 0.001807966718
A88: 30-39 | B88: ='Czynniki Ryzyka 15-'!E57/Ludność!H7 -> 0.002372731587
A89: 40-49 | B89: ='Czynniki Ryzyka 15-'!F57/Ludność!I7 -> 0.002964911936
A90: 50-59 | B90: ='Czynniki Ryzyka 15-'!G57/Ludność!J7 -> 0.007033150852
A91: 60-69 | B91: ='Czynniki Ryzyka 15-'!H57/Ludność!K7 -> 0.009847844463
A92: 70-79 | B92: ='Czynniki Ryzyka 15-'!I57/Ludność!L7 -> 0.01426575795
A93: 80 lat i więcej | B93: ='Czynniki Ryzyka 15-'!J57/Ludność!M7 -> 0.01502246664
A94: Problemy z nerkami
A95: Ogółem | B95: ='Czynniki Ryzyka 15-'!B69/Ludność!B7 -> 0.0344254798
A96: 0 - 4
A97: 5 - 9
A98: 10 - 14
A99: 15 - 19 | B99: ='Czynniki Ryzyka 15-'!C69/Ludność!F7 -> 0.005422632355
A100: 20-29 | B100: ='Czynniki Ryzyka 15-'!D69/Ludność!G7 -> 0.01508582982
A101: 30-39 | B101: ='Czynniki Ryzyka 15-'!E69/Ludność!H7 -> 0.02228731325
A102: 40-49 | B102: ='Czynniki Ryzyka 15-'!F69/Ludność!I7 -> 0.02695909992
A103: 50-59 | B103: ='Czynniki Ryzyka 15-'!G69/Ludność!J7 -> 0.04752128954
A104: 60-69 | B104: ='Czynniki Ryzyka 15-'!H69/Ludność!K7 -> 0.06418005072
A105: 70-79 | B105: ='Czynniki Ryzyka 15-'!I69/Ludność!L7 -> 0.09969097913
A106: 80 lat i więcej | B106: ='Czynniki Ryzyka 15-'!J69/Ludność!M7 -> 0.1061632352
A107: HIV i AIDS
A108: Ogółem | B108: =G10/Ludność!B7 -> 0.0005403260144
A109: 0 - 4
A110: 5 - 9
A111: 10 - 14
A112: 15 - 19
A113: 20-29
A114: 30-39
A115: 40-49
A116: 50-59
A117: 60-69
A118: 70-79
A119: 80 lat i więcej
A120: Ciąża
A121: Ogółem | B121: =G11/Ludność!B7 -> 0.00980957963
A122: 0 - 4
A123: 5 - 9
A124: 10 - 14
A125: 15 - 19
A126: 20-29
A127: 30-39
A128: 40-49
A129: 50-59
A130: 60-69
A131: 70-79
A132: 80 lat i więcej
A133: Osoby 65+
A134: Ogółem | B134: =G12/Ludność!B7 -> 0.1626099287
A135: 0 - 4
A136: 5 - 9
A137: 10 - 14
A138: 15 - 19
A139: 20-29
A140: 30-39
A141: 40-49
A142: 50-59
A143: 60-69
A144: 70-79
A145: 80 lat i więcej
A146: Dzieci poniżej 4 roku życia
A147: Ogółem | B147: =G13/Ludność!B7 -> 0.05094434837
A148: 0 - 4
A149: 5 - 9
A150: 10 - 14
A151: 15 - 19
A152: 20-29
A153: 30-39
A154: 40-49
A155: 50-59
A156: 60-69
A157: 70-79
A158: 80 lat i więcej
A159: Dzieci poniżej 2 roku życia
A160: Ogółem | B160: =G14/Ludność!B7 -> 0.02956575219
A161: 0 - 4
A162: 5 - 9
A163: 10 - 14
A164: 15 - 19
A165: 20-29
A166: 30-39
A167: 40-49
A168: 50-59
A169: 60-69
A170: 70-79
A171: 80 lat i więcej
A172: 70-79
A173: 80 lat i więcej
A174: BMI > 40 | B174: =G15/Ludność!B7 -> 0.03942450733
A175: Ogółem
A176: 0 - 4
A177: 5 - 9
A178: 10 - 14
A179: 15 - 19
A180: 20-29
A181: 30-39
A182: 40-49
A183: 50-59
A184: 60-69
A185: 70-79
A186: 80 lat i więcej
A187: Nowotwory
A188: Ogółem | B188: =G16/Ludność!B7 -> 0.009568380494
A189: 0 - 4
A190: 5 - 9
A191: 10 - 14
A192: 15 - 19
A193: 20-29
A194: 30-39
A195: 40-49
A196: 50-59
A197: 60-69
A198: 70-79
A199: 80 lat i więcej

Sheet Lista województw (hidden)
B3: Dolnośląskie | C3: Kujawsko-pomorskie | D3: Lubelskie | E3: Lubuskie | F3: Łódzkie | G3: Małopolskie | H3: Mazowieckie | I3: Opolskie | J3: Podkarpackie | K3: Podlaskie | L3: Pomorskie | M3: Śląskie | N3: Świętokrzyskie | O3: Warmińsko-mazurskie | P3: Wielkopolskie | Q3: Zachodniopomorskie | R3: Wszystkie
B4: Jelenia Góra | C4: Bydgoszcz | D4: Biała Podlaska | E4: Gorzów Wielkopolski | F4: Łódź | G4: Kraków | H4: Ostrołęka | I4: Opole | J4: Krosno | K4: Białystok | L4: Gdańsk | M4: Bielsko-Biała | N4: Kielce | O4: Elbląg | P4: Kalisz | Q4: Koszalin
B5: Legnica | C5: Grudziądz | D5: Chełm | E5: Zielona Góra | F5: Piotrków Trybunalski | G5: Nowy Sącz | H5: Płock | I5: brzeski | J5: Przemyśl | K5: Łomża | L5: Gdynia | M5: Bytom | N5: buski | O5: Olsztyn | P5: Konin | Q5: Szczecin
B6: Wrocław | C6: Toruń | D6: Lublin | E6: gorzowski | F6: Skierniewice | G6: Tarnów | H6: Radom | I6: głubczycki | J6: Rzeszów | K6: Suwałki | L6: Słupsk | M6: Chorzów | N6: jędrzejowski | O6: bartoszycki | P6: Leszno | Q6: Świnoujście
B7: Wałbrzych | C7: Włocławek | D7: Zamość | E7: krośnieński | F7: bełchatowski | G7: bocheński | H7: Siedlce | I7: kędzierzyńsko-kozielski | J7: Tarnobrzeg | K7: augustowski | L7: Sopot | M7: Częstochowa | N7: kazimierski | O7: braniewski | P7: Poznań | Q7: białogardzki
B8: bolesławiecki | C8: aleksandrowski | D8: bialski | E8: międzyrzecki | F8: kutnowski | G8: brzeski | H8: Warszawa | I8: kluczborski | J8: bieszczadzki | K8: białostocki | L8: bytowski | M8: Dąbrowa Górnicza | N8: kielecki | O8: działdowski | P8: chodzieski | Q8: choszczeński
B9: dzierżoniowski | C9: brodnicki | D9: biłgorajski | E9: nowosolski | F9: łaski | G9: chrzanowski | H9: białobrzeski | I9: krapkowicki | J9: brzozowski | K9: bielski | L9: chojnicki | M9: Gliwice | N9: konecki | O9: elbląski | P9: czarnkowsko-trzcianecki | Q9: drawski
B10: głogowski | C10: bydgoski | D10: chełmski | E10: słubicki | F10: łęczycki | G10: dąbrowski | H10: ciechanowski | I10: namysłowski | J10: dębicki | K10: grajewski | L10: człuchowski | M10: Jastrzębie-Zdrój | N10: opatowski | O10: ełcki | P10: gnieźnieński | Q10: goleniowski
B11: górowski | C11: chełmiński | D11: hrubieszowski | E11: strzelecko-drezdenecki | F11: łowicki | G11: gorlicki | H11: garwoliński | I11: nyski | J11: jarosławski | K11: hajnowski | L11: gdański | M11: Jaworzno | N11: ostrowiecki | O11: giżycki | P11: gostyński | Q11: gryficki
B12: jaworski | C12: golubsko-dobrzyński | D12: janowski | E12: sulęciński | F12: łódzki wschodni | G12: krakowski | H12: gostyniński | I12: oleski | J12: jasielski | K12: kolneński | L12: kartuski | M12: Katowice | N12: pińczowski | O12: iławski | P12: grodziski | Q12: gryfiński
B13: jeleniogórski | C13: grudziądzki | D13: krasnostawski | E13: świebodziński | F13: opoczyński | G13: limanowski | H13: grodziski | I13: opolski | J13: kolbuszowski | K13: łomżyński | L13: kościerski | M13: Mysłowice | N13: sandomierski | O13: kętrzyński | P13: jarociński | Q13: kamieński
B14: kamiennogórski | C14: inowrocławski | D14: kraśnicki | E14: zielonogórski | F14: pabianicki | G14: miechowski | H14: grójecki | I14: prudnicki | J14: krośnieński | K14: moniecki | L14: kwidzyński | M14: Piekary Śląskie | N14: skarżyski | O14: lidzbarski | P14: kaliski | Q14: kołobrzeski
B15: kłodzki | C15: lipnowski | D15: lubartowski | E15: żagański | F15: pajęczański | G15: myślenicki | H15: kozienicki | I15: strzelecki | J15: leżajski | K15: sejneński | L15: lęborski | M15: Ruda Śląska | N15: starachowicki | O15: mrągowski | P15: kępiński | Q15: koszaliński
B16: legnicki | C16: mogileński | D16: lubelski | E16: żarski | F16: piotrkowski | G16: nowosądecki | H16: legionowski | I16: Wszystkie | J16: lubaczowski | K16: siemiatycki | L16: malborski | M16: Rybnik | N16: staszowski | O16: nidzicki | P16: kolski | Q16: myśliborski
B17: lubański | C17: nakielski | D17: łęczyński | E17: wschowski | F17: poddębicki | G17: nowotarski | H17: lipski | J17: łańcucki | K17: sokólski | L17: nowodworski | M17: Siemianowice Śląskie | N17: włoszczowski | O17: nowomiejski | P17: koniński | Q17: policki
B18: lubiński | C18: radziejowski | D18: łukowski | E18: Wszystkie | F18: radomszczański | G18: olkuski | H18: łosicki | J18: mielecki | K18: suwalski | L18: pucki | M18: Sosnowiec | N18: Wszystkie | O18: olecki | P18: kościański | Q18: pyrzycki
B19: lwówecki | C19: rypiński | D19: opolski | F19: rawski | G19: oświęcimski | H19: makowski | J19: niżański | K19: wysokomazowiecki | L19: słupski | M19: Świętochłowice | O19: olsztyński | P19: krotoszyński | Q19: sławieński
B20: milicki | C20: sępoleński | D20: parczewski | F20: sieradzki | G20: proszowicki | H20: miński | J20: przemyski | K20: zambrowski | L20: starogardzki | M20: Tychy | O20: ostródzki | P20: leszczyński | Q20: stargardzki
B21: oleśnicki | C21: świecki | D21: puławski | F21: skierniewicki | G21: suski | H21: mławski | J21: przeworski | K21: Wszystkie | L21: tczewski | M21: Zabrze | O21: piski | P21: międzychodzki | Q21: szczecinecki
B22: oławski | C22: toruński | D22: radzyński | F22: tomaszowski | G22: tarnowski | H22: nowodworski | J22: ropczycko-sędziszowski | L22: wejherowski | M22: Żory | O22: szczycieński | P22: nowotomyski | Q22: świdwiński
B23: polkowicki | C23: tucholski | D23: rycki | F23: wieluński | G23: tatrzański | H23: ostrołęcki | J23: rzeszowski | L23: sztumski | M23: będziński | O23: gołdapski | P23: obornicki | Q23: wałecki
B24: strzeliński | C24: wąbrzeski | D24: świdnicki | F24: wieruszowski | G24: wadowicki | H24: ostrowski | J24: sanocki | L24: Wszystkie | M24: bielski | O24: węgorzewski | P24: ostrowski | Q24: łobeski
B25: średzki | C25: włocławski | D25: tomaszowski | F25: zduńskowolski | G25: wielicki | H25: otwocki | J25: stalowowolski | M25: cieszyński | O25: Wszystkie | P25: ostrzeszowski | Q25: Wszystkie
B26: świdnicki | C26: żniński | D26: włodawski | F26: zgierski | G26: Wszystkie | H26: piaseczyński | J26: strzyżowski | M26: częstochowski | P26: pilski
B27: trzebnicki | C27: Wszystkie | D27: zamojski | F27: brzeziński | H27: płocki | J27: tarnobrzeski | M27: gliwicki | P27: pleszewski
B28: wałbrzyski | D28: Wszystkie | F28: Wszystkie | H28: płoński | J28: leski | M28: kłobucki | P28: poznański
B29: wołowski | H29: pruszkowski | J29: Wszystkie | M29: lubliniecki | P29: rawicki
B30: wrocławski | H30: przasnyski | M30: mikołowski | P30: słupecki
B31: ząbkowicki | H31: przysuski | M31: myszkowski | P31: szamotulski
B32: zgorzelecki | H32: pułtuski | M32: pszczyński | P32: średzki
B33: złotoryjski | H33: radomski | M33: raciborski | P33: śremski
B34: Wszystkie | H34: siedlecki | M34: rybnicki | P34: turecki
H35: sierpecki | M35: tarnogórski | P35: wągrowiecki
H36: sochaczewski | M36: bieruńsko-lędziński | P36: wolsztyński
H37: sokołowski | M37: wodzisławski | P37: wrzesiński
H38: szydłowiecki | M38: zawierciański | P38: złotowski
H39: warszawski zachodni | M39: żywiecki | P39: Wszystkie
H40: węgrowski | M40: Wszystkie
H41: wołomiński
H42: wyszkowski
H43: zwoleński
H44: żuromiński
H45: żyrardowski
H46: Wszystkie

Sheet Wszystkie województwa (hidden)
C1: Województwa Powiaty Grupy wieku | D1: Ogółem | E1: Mężczyźni | F1: Kobiety
A3: woj. | B3: pow
A4: Dolnośląskie | B4: Wszystkie | C4: Dolnośląskie | D4: 2903812 | E4: 1396008 | F4: 1507804 | G4: =IFERROR(IF(SEARCH(" - ",C4)>0,FALSE,TRUE),TRUE) -> TRUE | H4: =IFERROR(IF(SEARCH("70",C4)>0,FALSE,TRUE),TRUE) -> TRUE | I4: =IFERROR(IF(SEARCH("65+",C4)>0,FALSE,TRUE),TRUE) -> TRUE | J4: =AND(G4:I4) -> TRUE
A5: Dolnośląskie | B5: Wszystkie | C5: 0 - 4 | D5: 134844 | E5: 69399 | F5: 65445 | G5: =IFERROR(IF(SEARCH(" - ",C5)>0,FALSE,TRUE),TRUE) -> FALSE | H5: =IFERROR(IF(SEARCH("70",C5)>0,FALSE,TRUE),TRUE) -> TRUE | I5: =IFERROR(IF(SEARCH("65+",C5)>0,FALSE,TRUE),TRUE) -> TRUE | J5: =AND(G5:I5) -> FALSE
A6: Dolnośląskie | B6: Wszystkie | C6: 5 - 9 | D6: 149467 | E6: 76437 | F6: 73030 | G6: FALSE | H6: TRUE | I6: TRUE | J6: FALSE
A7: Dolnośląskie | B7: Wszystkie | C7: 10 - 14 | D7: 125044 | E7: 64220 | F7: 60824 | G7: FALSE | H7: TRUE | I7: TRUE | J7: FALSE
A8: Dolnośląskie | B8: Wszystkie | C8: 15 - 19 | D8: 134228 | E8: 68615 | F8: 65613 | G8: FALSE | H8: TRUE | I8: TRUE | J8: FALSE
A9: Dolnośląskie | B9: Wszystkie | C9: 20 - 24 | D9: 165968 | E9: 84367 | F9: 81601 | G9: FALSE | H9: TRUE | I9: TRUE | J9: FALSE
A10: Dolnośląskie | B10: Wszystkie | C10: 25 - 29 | D10: 206978 | E10: 104098 | F10: 102880 | G10: FALSE | H10: TRUE | I10: TRUE | J10: FALSE
A11: Dolnośląskie | B11: Wszystkie | C11: 30 - 34 | D11: 255384 | E11: 128986 | F11: 126398 | G11: FALSE | H11: TRUE | I11: TRUE | J11: FALSE
A12: Dolnośląskie | B12: Wszystkie | C12: 35 - 39 | D12: 244691 | E12: 124016 | F12: 120675 | G12: FALSE | H12: TRUE | I12: TRUE | J12: FALSE
A13: Dolnośląskie | B13: Wszystkie | C13: 40 - 44 | D13: 212062 | E13: 107643 | F13: 104419 | G13: FALSE | H13: TRUE | I13: TRUE | J13: FALSE
A14: Dolnośląskie | B14: Wszystkie | C14: 45 - 49 | D14: 168041 | E14: 84678 | F14: 83363 | G14: FALSE | H14: TRUE | I14: TRUE | J14: FALSE
A15: Dolnośląskie | B15: Wszystkie | C15: 50 - 54 | D15: 173873 | E15: 85461 | F15: 88412 | G15: FALSE | H15: TRUE | I15: TRUE | J15: FALSE
A16: Dolnośląskie | B16: Wszystkie | C16: 55 - 59 | D16: 221686 | E16: 106311 | F16: 115375 | G16: FALSE | H16: TRUE | I16: TRUE | J16: FALSE
A17: Dolnośląskie | B17: Wszystkie | C17: 60 - 64 | D17: 229985 | E17: 106679 | F17: 123306 | G17: FALSE | H17: TRUE | I17: TRUE | J17: FALSE
A18: Dolnośląskie | B18: Wszystkie | C18: 65 - 69 | D18: 185548 | E18: 82887 | F18: 102661 | G18: FALSE | H18: TRUE | I18: TRUE | J18: FALSE
A19: Dolnośląskie | B19: Wszystkie | C19: 70 i więcej | D19: 296013 | E19: 102211 | F19: 193802 | G19: TRUE | H19: FALSE | I19: TRUE | J19: FALSE
A20: Dolnośląskie | B20: Wszystkie | C20: 65+ | D20: =SUM(D18:D19) -> 481561 | E20: =SUM(E18:E19) -> 185098 | F20: =SUM(F18:F19) -> 296463 | G20: TRUE | H20: TRUE | I20: FALSE | J20: FALSE
A21: Dolnośląskie | B21: Jelenia Góra | C21: Jelenia Góra | D21: 80889 | E21: 37678 | F21: 43211 | G21: TRUE | H21: TRUE | I21: TRUE | J21: TRUE
A22: Dolnośląskie | B22: Jelenia Góra | C22: 0 - 4 | D22: 3183 | E22: 1618 | F22: 1565 | G22: FALSE | H22: TRUE | I22: TRUE | J22: FALSE
A23: Dolnośląskie | B23: Jelenia Góra | C23: 5 - 9 | D23: 3523 | E23: 1806 | F23: 1717 | G23: FALSE | H23: TRUE | I23: TRUE | J23: FALSE
A24: Dolnośląskie | B24: Jelenia Góra | C24: 10 - 14 | D24: 3023 | E24: 1562 | F24: 1461 | G24: FALSE | H24: TRUE | I24: TRUE | J24: FALSE
A25: Dolnośląskie | B25: Jelenia Góra | C25: 15 - 19 | D25: 3241 | E25: 1581 | F25: 1660 | G25: FALSE | H25: TRUE | I25: TRUE | J25: FALSE
A26: Dolnośląskie | B26: Jelenia Góra | C26: 20 - 24 | D26: 3983 | E26: 2014 | F26: 1969 | G26: FALSE | H26: TRUE | I26: TRUE | J26: FALSE
A27: Dolnośląskie | B27: Jelenia Góra | C27: 25 - 29 | D27: 4920 | E27: 2453 | F27: 2467 | G27: FALSE | H27: TRUE | I27: TRUE | J27: FALSE
A28: Dolnośląskie | B28: Jelenia Góra | C28: 30 - 34 | D28: 6508 | E28: 3347 | F28: 3161 | G28: FALSE | H28: TRUE | I28: TRUE | J28: FALSE
A29: Dolnośląskie | B29: Jelenia Góra | C29: 35 - 39 | D29: 6547 | E29: 3285 | F29: 3262 | G29: FALSE | H29: TRUE | I29: TRUE | J29: FALSE
A30: Dolnośląskie | B30: Jelenia Góra | C30: 40 - 44 | D30: 5591 | E30: 2767 | F30: 2824 | G30: FALSE | H30: TRUE | I30: TRUE | J30: FALSE
A31: Dolnośląskie | B31: Jelenia Góra | C31: 45 - 49 | D31: 4561 | E31: 2289 | F31: 2272 | G31: FALSE | H31: TRUE | I31: TRUE | J31: FALSE
A32: Dolnośląskie | B32: Jelenia Góra | C32: 50 - 54 | D32: 4840 | E32: 2282 | F32: 2558 | G32: FALSE | H32: TRUE | I32: TRUE | J32: FALSE
A33: Dolnośląskie | B33: Jelenia Góra | C33: 55 - 59 | D33: 6747 | E33: 3064 | F33: 3683 | G33: FALSE | H33: TRUE | I33: TRUE | J33: FALSE
A34: Dolnośląskie | B34: Jelenia Góra | C34: 60 - 64 | D34: 7669 | E34: 3408 | F34: 4261 | G34: FALSE | H34: TRUE | I34: TRUE | J34: FALSE
A35: Dolnośląskie | B35: Jelenia Góra | C35: 65 - 69 | D35: 6113 | E35: 2551 | F35: 3562 | G35: FALSE | H35: TRUE | I35: TRUE | J35: FALSE
A36: Dolnośląskie | B36: Jelenia Góra | C36: 70 i więcej | D36: 10440 | E36: 3651 | F36: 6789 | G36: TRUE | H36: FALSE | I36: TRUE | J36: FALSE
A37: Dolnośląskie | B37: Jelenia Góra | C37: 65+ | D37: =SUM(D35:D36) -> 16553 | E37: =SUM(E35:E36) -> 6202 | F37: =SUM(F35:F36) -> 10351 | G37: TRUE | H37: TRUE | I37: FALSE | J37: FALSE
A38: Dolnośląskie | B38: Legnica | C38: Legnica | D38: 100769 | E38: 47653 | F38: 53116 | G38: TRUE | H38: TRUE | I38: TRUE | J38: TRUE
A39: Dolnośląskie | B39: Legnica | C39: 0 - 4 | D39: 4552 | E39: 2329 | F39: 2223 | G39: FALSE | H39: TRUE | I39: TRUE | J39: FALSE
A40: Dolnośląskie | B40: Legnica | C40: 5 - 9 | D40: 4981 | E40: 2589 | F40: 2392 | G40: FALSE | H40: TRUE | I40: TRUE | J40: FALSE
A41: Dolnośląskie | B41: Legnica | C41: 10 - 14 | D41: 4158 | E41: 2147 | F41: 2011 | G41: FALSE | H41: TRUE | I41: TRUE | J41: FALSE
A42: Dolnośląskie | B42: Legnica | C42: 15 - 19 | D42: 4640 | E42: 2401 | F42: 2239 | G42: FALSE | H42: TRUE | I42: TRUE | J42: FALSE
A43: Dolnośląskie | B43: Legnica | C43: 20 - 24 | D43: 5708 | E43: 2954 | F43: 2754 | G43: FALSE | H43: TRUE | I43: TRUE | J43: FALSE
A44: Dolnośląskie | B44: Legnica | C44: 25 - 29 | D44: 6988 | E44: 3511 | F44: 3477 | G44: FALSE | H44: TRUE | I44: TRUE | J44: FALSE
A45: Dolnośląskie | B45: Legnica | C45: 30 - 34 | D45: 8503 | E45: 4301 | F45: 4202 | G45: FALSE | H45: TRUE | I45: TRUE | J45: FALSE
A46: Dolnośląskie | B46: Legnica | C46: 35 - 39 | D46: 8228 | E46: 4102 | F46: 4126 | G46: FALSE | H46: TRUE | I46: TRUE | J46: FALSE
A47: Dolnośląskie | B47: Legnica | C47: 40 - 44 | D47: 7239 | E47: 3585 | F47: 3654 | G47: FALSE | H47: TRUE | I47: TRUE | J47: FALSE
A48: Dolnośląskie | B48: Legnica | C48: 45 - 49 | D48: 5993 | E48: 2928 | F48: 3065 | G48: FALSE | H48: TRUE | I48: TRUE | J48: FALSE
A49: Dolnośląskie | B49: Legnica | C49: 50 - 54 | D49: 6103 | E49: 2924 | F49: 3179 | G49: FALSE | H49: TRUE | I49: TRUE | J49: FALSE
A50: Dolnośląskie | B50: Legnica | C50: 55 - 59 | D50: 7907 | E50: 3599 | F50: 4308 | G50: FALSE | H50: TRUE | I50: TRUE | J50: FALSE
A51: Dolnośląskie | B51: Legnica | C51: 60 - 64 | D51: 8566 | E51: 3786 | F51: 4780 | G51: FALSE | H51: TRUE | I51: TRUE | J51: FALSE
A52: Dolnośląskie | B52: Legnica | C52: 65 - 69 | D52: 6936 | E52: 2981 | F52: 3955 | G52: FALSE | H52: TRUE | I52: TRUE | J52: FALSE
A53: Dolnośląskie | B53: Legnica | C53: 70 i więcej | D53: 10267 | E53: 3516 | F53: 6751 | G53: TRUE | H53: FALSE | I53: TRUE | J53: FALSE
A54: Dolnośląskie | B54: Legnica | C54: 65+ | D54: =SUM(D52:D53) -> 17203 | E54: =SUM(E52:E53) -> 6497 | F54: =SUM(F52:F53) -> 10706 | G54: TRUE | H54: TRUE | I54: FALSE | J54: FALSE
A55: Dolnośląskie | B55: =IF(C54="65+",C55,B54) -> Wrocław | C55: Wrocław | D55: 637075 | E55: 297249 | F55: 339826 | G55: TRUE | H55: TRUE | I55: TRUE | J55: TRUE
A56: Dolnośląskie | B56: =IF(C55="65+",C56,B55) -> Wrocław | C56: 0 - 4 | D56: 33184 | E56: 17229 | F56: 15955 | G56: FALSE | H56: TRUE | I56: TRUE | J56: FALSE
A57: Dolnośląskie | B57: Wrocław | C57: 5 - 9 | D57: 30861 | E57: 15760 | F57: 15101 | G57: FALSE | H57: TRUE | I57: TRUE | J57: FALSE
A58: Dolnośląskie | B58: Wrocław | C58: 10 - 14 | D58: 22113 | E58: 11256 | F58: 10857 | G58: FALSE | H58: TRUE | I58: TRUE | J58: FALSE
A59: Dolnośląskie | B59: Wrocław | C59: 15 - 19 | D59: 23032 | E59: 11688 | F59: 11344 | G59: FALSE | H59: TRUE | I59: TRUE | J59: FALSE
A60: Dolnośląskie | B60: Wrocław | C60: 20 - 24 | D60: 29838 | E60: 14972 | F60: 14866 | G60: FALSE | H60: TRUE | I60: TRUE | J60: FALSE
A61: Dolnośląskie | B61: Wrocław | C61: 25 - 29 | D61: 49126 | E61: 23333 | F61: 25793 | G61: FALSE | H61: TRUE | I61: TRUE | J61: FALSE
A62: Dolnośląskie | B62: Wrocław | C62: 30 - 34 | D62: 67222 | E62: 32808 | F62: 34414 | G62: FALSE | H62: TRUE | I62: TRUE | J62: FALSE
A63: Dolnośląskie | B63: =IF(C62="65+",C63,B62) -> Wrocław | C63: 35 - 39 | D63: 57696 | E63: 28691 | F63: 29005 | G63: FALSE | H63: TRUE | I63: TRUE | J63: FALSE
A64: Dolnośląskie | B64: Wrocław | C64: 40 - 44 | D64: 45928 | E64: 22714 | F64: 23214 | G64: FALSE | H64: TRUE | I64: TRUE | J64: FALSE
A65: Dolnośląskie | B65: Wrocław | C65: 45 - 49 | D65: 33605 | E65: 16581 | F65: 17024 | G65: FALSE | H65: TRUE | I65: TRUE | J65: FALSE
A66: Dolnośląskie | B66: Wrocław | C66: 50 - 54 | D66: 33188 | E66: 15757 | F66: 17431 | G66: FALSE | H66: TRUE | I66: TRUE | J66: FALSE
A67: Dolnośląskie | B67: Wrocław | C67: 55 - 59 | D67: 43122 | E67: 19795 | F67: 23327 | G67: FALSE | H67: TRUE | I67: TRUE | J67: FALSE
A68: Dolnośląskie | B68: Wrocław | C68: 60 - 64 | D68: 49355 | E68: 21666 | F68: 27689 | G68: FALSE | H68: TRUE | I68: TRUE | J68: FALSE
A69: Dolnośląskie | B69: Wrocław | C69: 65 - 69 | D69: 41922 | E69: 17842 | F69: 24080 | G69: =IFERROR(IF(SEARCH(" - ",C69)>0,FALSE,TRUE),TRUE) -> FALSE | H69: =IFERROR(IF(SEARCH("70",C69)>0,FALSE,TRUE),TRUE) -> TRUE | I69: =IFERROR(IF(SEARCH("65+",C69)>0,FALSE,TRUE),TRUE) -> TRUE | J69: =AND(G69:I69) -> FALSE
A70: Dolnośląskie | B70: Wrocław | C70: 70 i więcej | D70: 76883 | E70: 27157 | F70: 49726 | G70: TRUE | H70: FALSE | I70: TRUE | J70: FALSE
A71: Dolnośląskie | B71: Wrocław | C71: 65+ | D71: =SUM(D69:D70) -> 118805 | E71: =SUM(E69:E70) -> 44999 | F71: =SUM(F69:F70) -> 73806 | G71: TRUE | H71: TRUE | I71: FALSE | J71: FALSE
A72: Dolnośląskie | B72: Wałbrzych | C72: Wałbrzych | D72: 114930 | E72: 54112 | F72: 60818 | G72: TRUE | H72: TRUE | I72: TRUE | J72: TRUE
A73: Dolnośląskie | B73: Wałbrzych | C73: 0 - 4 | D73: 4390 | E73: 2255 | F73: 2135 | G73: FALSE | H73: TRUE | I73: TRUE | J73: FALSE
A74: Dolnośląskie | B74: Wałbrzych | C74: 5 - 9 | D74: 5064 | E74: 2551 | F74: 2513 | G74: FALSE | H74: TRUE | I74: TRUE | J74: FALSE
A75: Dolnośląskie | B75: Wałbrzych | C75: 10 - 14 | D75: 4536 | E75: 2344 | F75: 2192 | G75: FALSE | H75: TRUE | I75: TRUE | J75: FALSE
A76: Dolnośląskie | B76: Wałbrzych | C76: 15 - 19 | D76: 4809 | E76: 2422 | F76: 2387 | G76: FALSE | H76: TRUE | I76: TRUE | J76: FALSE
A77: Dolnośląskie | B77: Wałbrzych | C77: 20 - 24 | D77: 6043 | E77: 3058 | F77: 2985 | G77: FALSE | H77: TRUE | I77: TRUE | J77: FALSE
A78: Dolnośląskie | B78: Wałbrzych | C78: 25 - 29 | D78: 7392 | E78: 3820 | F78: 3572 | G78: FALSE | H78: TRUE | I78: TRUE | J78: FALSE
A79: Dolnośląskie | B79: Wałbrzych | C79: 30 - 34 | D79: 9377 | E79: 4730 | F79: 4647 | G79: FALSE | H79: TRUE | I79: TRUE | J79: FALSE
A80: Dolnośląskie | B80: Wałbrzych | C80: 35 - 39 | D80: 9169 | E80: 4750 | F80: 4419 | G80: FALSE | H80: TRUE | I80: TRUE | J80: FALSE
A81: Dolnośląskie | B81: Wałbrzych | C81: 40 - 44 | D81: 7514 | E81: 3774 | F81: 3740 | G81: FALSE | H81: TRUE | I81: TRUE | J81: FALSE
A82: Dolnośląskie | B82: Wałbrzych | C82: 45 - 49 | D82: 6322 | E82: 3148 | F82: 3174 | G82: FALSE | H82: TRUE | I82: TRUE | J82: FALSE
A83: Dolnośląskie | B83: Wałbrzych | C83: 50 - 54 | D83: 7339 | E83: 3523 | F83: 3816 | G83: FALSE | H83: TRUE | I83: TRUE | J83: FALSE
A84: Dolnośląskie | B84: Wałbrzych | C84: 55 - 59 | D84: 10596 | E84: 5005 | F84: 5591 | G84: FALSE | H84: TRUE | I84: TRUE | J84: FALSE
A85: Dolnośląskie | B85: Wałbrzych | C85: 60 - 64 | D85: 10467 | E85: 4689 | F85: 5778 | G85: FALSE | H85: TRUE | I85: TRUE | J85: FALSE
A86: Dolnośląskie | B86: Wałbrzych | C86: 65 - 69 | D86: 7825 | E86: 3310 | F86: 4515 | G86: FALSE | H86: TRUE | I86: TRUE | J86: FALSE
A87: Dolnośląskie | B87: Wałbrzych | C87: 70 i więcej | D87: 14087 | E87: 4733 | F87: 9354 | G87: TRUE | H87: FALSE | I87: TRUE | J87: FALSE
A88: Dolnośląskie | B88: Wałbrzych | C88: 65+ | D88: =SUM(D86:D87) -> 21912 | E88: =SUM(E86:E87) -> 8043 | F88: =SUM(F86:F87) -> 13869 | G88: TRUE | H88: TRUE | I88: FALSE | J88: FALSE
A89: Dolnośląskie | B89: bolesławiecki | C89: bolesławiecki | D89: 90195 | E89: 43801 | F89: 46394 | G89: TRUE | H89: TRUE | I89: TRUE | J89: TRUE
A90: Dolnośląskie | B90: bolesławiecki | C90: 0 - 4 | D90: 4148 | E90: 2089 | F90: 2059 | G90: FALSE | H90: TRUE | I90: TRUE | J90: FALSE
A91: Dolnośląskie | B91: bolesławiecki | C91: 5 - 9 | D91: 4876 | E91: 2507 | F91: 2369 | G91: FALSE | H91: TRUE | I91: TRUE | J91: FALSE
A92: Dolnośląskie | B92: bolesławiecki | C92: 10 - 14 | D92: 4292 | E92: 2179 | F92: 2113 | G92: FALSE | H92: TRUE | I92: TRUE | J92: FALSE
A93: Dolnośląskie | B93: bolesławiecki | C93: 15 - 19 | D93: 4686 | E93: 2480 | F93: 2206 | G93: FALSE | H93: TRUE | I93: TRUE | J93: FALSE
A94: Dolnośląskie | B94: bolesławiecki | C94: 20 - 24 | D94: 5522 | E94: 2776 | F94: 2746 | G94: FALSE | H94: TRUE | I94: TRUE | J94: FALSE
A95: Dolnośląskie | B95: bolesławiecki | C95: 25 - 29 | D95: 6716 | E95: 3415 | F95: 3301 | G95: FALSE | H95: TRUE | I95: TRUE | J95: FALSE
A96: Dolnośląskie | B96: bolesławiecki | C96: 30 - 34 | D96: 7369 | E96: 3828 | F96: 3541 | G96: FALSE | H96: TRUE | I96: TRUE | J96: FALSE
A97: Dolnośląskie | B97: bolesławiecki | C97: 35 - 39 | D97: 7319 | E97: 3711 | F97: 3608 | G97: FALSE | H97: TRUE | I97: TRUE | J97: FALSE
A98: Dolnośląskie | B98: bolesławiecki | C98: 40 - 44 | D98: 6737 | E98: 3433 | F98: 3304 | G98: FALSE | H98: TRUE | I98: TRUE | J98: FALSE
A99: Dolnośląskie | B99: bolesławiecki | C99: 45 - 49 | D99: 5317 | E99: 2701 | F99: 2616 | G99: FALSE | H99: TRUE | I99: TRUE | J99: FALSE
A100: Dolnośląskie | B100: bolesławiecki | C100: 50 - 54 | D100: 5640 | E100: 2820 | F100: 2820 | G100: FALSE | H100: TRUE | I100: TRUE | J100: FALSE
A101: Dolnośląskie | B101: bolesławiecki | C101: 55 - 59 | D101: 7048 | E101: 3446 | F101: 3602 | G101: FALSE | H101: TRUE | I101: TRUE | J101: FALSE
A102: Dolnośląskie | B102: bolesławiecki | C102: 60 - 64 | D102: 6749 | E102: 3145 | F102: 3604 | G102: FALSE | H102: TRUE | I102: TRUE | J102: FALSE
A103: Dolnośląskie | B103: bolesławiecki | C103: 65 - 69 | D103: 5285 | E103: 2330 | F103: 2955 | G103: FALSE | H103: TRUE | I103: TRUE | J103: FALSE
A104: Dolnośląskie | B104: bolesławiecki | C104: 70 i więcej | D104: 8491 | E104: 2941 | F104: 5550 | G104: TRUE | H104: FALSE | I104: TRUE | J104: FALSE
A105: Dolnośląskie | B105: bolesławiecki | C105: 65+ | D105: =SUM(D103:D104) -> 13776 | E105: =SUM(E103:E104) -> 5271 | F105: =SUM(F103:F104) -> 8505 | G105: TRUE | H105: TRUE | I105: FALSE | J105: FALSE
A106: Dolnośląskie | B106: dzierżoniowski | C106: dzierżoniowski | D106: 102977 | E106: 49060 | F106: 53917 | G106: TRUE | H106: TRUE | I106: TRUE | J106: TRUE
A107: Dolnośląskie | B107: dzierżoniowski | C107: 0 - 4 | D107: 4230 | E107: 2181 | F107: 2049 | G107: FALSE | H107: TRUE | I107: TRUE | J107: FALSE
A108: Dolnośląskie | B108: dzierżoniowski | C108: 5 - 9 | D108: 4813 | E108: 2415 | F108: 2398 | G108: FALSE | H108: TRUE | I108: TRUE | J108: FALSE
A109: Dolnośląskie | B109: dzierżoniowski | C109: 10 - 14 | D109: 4242 | E109: 2178 | F109: 2064 | G109: FALSE | H109: TRUE | I109: TRUE | J109: FALSE
A110: Dolnośląskie | B110: dzierżoniowski | C110: 15 - 19 | D110: 4645 | E110: 2378 | F110: 2267 | G110: FALSE | H110: TRUE | I110: TRUE | J110: FALSE
A111: Dolnośląskie | B111: dzierżoniowski | C111: 20 - 24 | D111: 5806 | E111: 2974 | F111: 2832 | G111: FALSE | H111: TRUE | I111: TRUE | J111: FALSE
A112: Dolnośląskie | B112: dzierżoniowski | C112: 25 - 29 | D112: 6953 | E112: 3494 | F112: 3459 | G112: FALSE | H112: TRUE | I112: TRUE | J112: FALSE
A113: Dolnośląskie | B113: dzierżoniowski | C113: 30 - 34 | D113: 8331 | E113: 4268 | F113: 4063 | G113: FALSE | H113: TRUE | I113: TRUE | J113: FALSE
A114: Dolnośląskie | B114: dzierżoniowski | C114: 35 - 39 | D114: 8280 | E114: 4230 | F114: 4050 | G114: FALSE | H114: TRUE | I114: TRUE | J114: FALSE
A115: Dolnośląskie | B115: dzierżoniowski | C115: 40 - 44 | D115: 7230 | E115: 3683 | F115: 3547 | G115: FALSE | H115: TRUE | I115: TRUE | J115: FALSE
A116: Dolnośląskie | B116: dzierżoniowski | C116: 45 - 49 | D116: 6052 | E116: 3070 | F116: 2982 | G116: FALSE | H116: TRUE | I116: TRUE | J116: FALSE
A117: Dolnośląskie | B117: dzierżoniowski | C117: 50 - 54 | D117: 6615 | E117: 3266 | F117: 3349 | G117: FALSE | H117: TRUE | I117: TRUE | J117: FALSE
A118: Dolnośląskie | B118: dzierżoniowski | C118: 55 - 59 | D118: 8616 | E118: 4146 | F118: 4470 | G118: FALSE | H118: TRUE | I118: TRUE | J118: FALSE
A119: Dolnośląskie | B119: dzierżoniowski | C119: 60 - 64 | D119: 8652 | E119: 4005 | F119: 4647 | G119: FALSE | H119: TRUE | I119: TRUE | J119: FALSE
A120: Dolnośląskie | B120: =IF(C119="65+",C120,B119) -> dzierżoniowski | C120: 65 - 69 | D120: 6656 | E120: 2979 | F120: 3677 | G120: FALSE | H120: TRUE | I120: TRUE | J120: FALSE
A121: Dolnośląskie | B121: dzierżoniowski | C121: 70 i więcej | D121: 11856 | E121: 3793 | F121: 8063 | G121: TRUE | H121: FALSE | I121: TRUE | J121: FALSE
A122: Dolnośląskie | B122: dzierżoniowski | C122: 65+ | D122: =SUM(D120:D121) -> 18512 | E122: =SUM(E120:E121) -> 6772 | F122: =SUM(F120:F121) -> 11740 | G122: TRUE | H122: TRUE | I122: FALSE | J122: FALSE
A123: Dolnośląskie | B123: głogowski | C123: głogowski | D123: 90060 | E123: 43769 | F123: 46291 | G123: TRUE | H123: TRUE | I123: TRUE | J123: TRUE
A124: Dolnośląskie | B124: głogowski | C124: 0 - 4 | D124: 4349 | E124: 2229 | F124: 2120 | G124: FALSE | H124: TRUE | I124: TRUE | J124: FALSE
A125: Dolnośląskie | B125: głogowski | C125: 5 - 9 | D125: 5179 | E125: 2565 | F125: 2614 | G125: FALSE | H125: TRUE | I125: TRUE | J125: FALSE
A126: Dolnośląskie | B126: głogowski | C126: 10 - 14 | D126: 4323 | E126: 2196 | F126: 2127 | G126: FALSE | H126: TRUE | I126: TRUE | J126: FALSE
A127: Dolnośląskie | B127: głogowski | C127: 15 - 19 | D127: 4530 | E127: 2289 | F127: 2241 | G127: FALSE | H127: TRUE | I127: TRUE | J127: FALSE
A128: Dolnośląskie | B128: głogowski | C128: 20 - 24 | D128: 5028 | E128: 2573 | F128: 2455 | G128: FALSE | H128: TRUE | I128: TRUE | J128: FALSE
A129: Dolnośląskie | B129: głogowski | C129: 25 - 29 | D129: 6255 | E129: 3183 | F129: 3072 | G129: FALSE | H129: TRUE | I129: TRUE | J129: FALSE
A130: Dolnośląskie | B130: głogowski | C130: 30 - 34 | D130: 7526 | E130: 3855 | F130: 3671 | G130: FALSE | H130: TRUE | I130: TRUE | J130: FALSE
A131: Dolnośląskie | B131: głogowski | C131: 35 - 39 | D131: 7979 | E131: 4060 | F131: 3919 | G131: FALSE | H131: TRUE | I131: TRUE | J131: FALSE
A132: Dolnośląskie | B132: głogowski | C132: 40 - 44 | D132: 6791 | E132: 3469 | F132: 3322 | G132: FALSE | H132: TRUE | I132: TRUE | J132: FALSE
A133: Dolnośląskie | B133: głogowski | C133: 45 - 49 | D133: 4995 | E133: 2507 | F133: 2488 | G133: =IFERROR(IF(SEARCH(" - ",C133)>0,FALSE,TRUE),TRUE) -> FALSE | H133: =IFERROR(IF(SEARCH("70",C133)>0,FALSE,TRUE),TRUE) -> TRUE | I133: =IFERROR(IF(SEARCH("65+",C133)>0,FALSE,TRUE),TRUE) -> TRUE | J133: =AND(G133:I133) -> FALSE
A134: Dolnośląskie | B134: głogowski | C134: 50 - 54 | D134: 5063 | E134: 2370 | F134: 2693 | G134: FALSE | H134: TRUE | I134: TRUE | J134: FALSE
A135: Dolnośląskie | B135: głogowski | C135: 55 - 59 | D135: 6781 | E135: 3180 | F135: 3601 | G135: FALSE | H135: TRUE | I135: TRUE | J135: FALSE
A136: Dolnośląskie | B136: głogowski | C136: 60 - 64 | D136: 7697 | E136: 3611 | F136: 4086 | G136: FALSE | H136: TRUE | I136: TRUE | J136: FALSE
A137: Dolnośląskie | B137: głogowski | C137: 65 - 69 | D137: 6430 | E137: 2993 | F137: 3437 | G137: FALSE | H137: TRUE | I137: TRUE | J137: FALSE
A138: Dolnośląskie | B138: głogowski | C138: 70 i więcej | D138: 7134 | E138: 2689 | F138: 4445 | G138: TRUE | H138: FALSE | I138: TRUE | J138: FALSE
A139: Dolnośląskie | B139: głogowski | C139: 65+ | D139: =SUM(D137:D138) -> 13564 | E139: =SUM(E137:E138) -> 5682 | F139: =SUM(F137:F138) -> 7882 | G139: TRUE | H139: TRUE | I139: FALSE | J139: FALSE
A140: Dolnośląskie | B140: górowski | C140: górowski | D140: 35847 | E140: 17735 | F140: 18112 | G140: TRUE | H140: TRUE | I140: TRUE | J140: TRUE
A141: Dolnośląskie | B141: górowski | C141: 0 - 4 | D141: 1702 | E141: 868 | F141: 834 | G141: FALSE | H141: TRUE | I141: TRUE | J141: FALSE
A142: Dolnośląskie | B142: górowski | C142: 5 - 9 | D142: 1970 | E142: 1025 | F142: 945 | G142: FALSE | H142: TRUE | I142: TRUE | J142: FALSE
A143: Dolnośląskie | B143: górowski | C143: 10 - 14 | D143: 1930 | E143: 993 | F143: 937 | G143: FALSE | H143: TRUE | I143: TRUE | J143: FALSE
A144: Dolnośląskie | B144: górowski | C144: 15 - 19 | D144: 2062 | E144: 1043 | F144: 1019 | G144: FALSE | H144: TRUE | I144: TRUE | J144: FALSE
A145: Dolnośląskie | B145: górowski | C145: 20 - 24 | D145: 2641 | E145: 1311 | F145: 1330 | G145: FALSE | H145: TRUE | I145: TRUE | J145: FALSE
A146: Dolnośląskie | B146: górowski | C146: 25 - 29 | D146: 2662 | E146: 1402 | F146: 1260 | G146: FALSE | H146: TRUE | I146: TRUE | J146: FALSE
A147: Dolnośląskie | B147: górowski | C147: 30 - 34 | D147: 2823 | E147: 1484 | F147: 1339 | G147: FALSE | H147: TRUE | I147: TRUE | J147: FALSE
A148: Dolnośląskie | B148: górowski | C148: 35 - 39 | D148: 2643 | E148: 1396 | F148: 1247 | G148: FALSE | H148: TRUE | I148: TRUE | J148: FALSE
A149: Dolnośląskie | B149: górowski | C149: 40 - 44 | D149: 2455 | E149: 1236 | F149: 1219 | G149: FALSE | H149: TRUE | I149: TRUE | J149: FALSE
A150: Dolnośląskie | B150: górowski | C150: 45 - 49 | D150: 2134 | E150: 1098 | F150: 1036 | G150: FALSE | H150: TRUE | I150: TRUE | J150: FALSE
A151: Dolnośląskie | B151: górowski | C151: 50 - 54 | D151: 2211 | E151: 1101 | F151: 1110 | G151: FALSE | H151: TRUE | I151: TRUE | J151: FALSE
A152: Dolnośląskie | B152: górowski | C152: 55 - 59 | D152: 2707 | E152: 1359 | F152: 1348 | G152: FALSE | H152: TRUE | I152: TRUE | J152: FALSE
A153: Dolnośląskie | B153: górowski | C153: 60 - 64 | D153: 2595 | E153: 1296 | F153: 1299 | G153: FALSE | H153: TRUE | I153: TRUE | J153: FALSE
A154: Dolnośląskie | B154: górowski | C154: 65 - 69 | D154: 2059 | E154: 999 | F154: 1060 | G154: FALSE | H154: TRUE | I154: TRUE | J154: FALSE
A155: Dolnośląskie | B155: górowski | C155: 70 i więcej | D155: 3253 | E155: 1124 | F155: 2129 | G155: TRUE | H155: FALSE | I155: TRUE | J155: FALSE
A156: Dolnośląskie | B156: górowski | C156: 65+ | D156: =SUM(D154:D155) -> 5312 | E156: =SUM(E154:E155) -> 2123 | F156: =SUM(F154:F155) -> 3189 | G156: TRUE | H156: TRUE | I156: FALSE | J156: FALSE
A157: Dolnośląskie | B157: jaworski | C157: jaworski | D157: 51324 | E157: 25158 | F157: 26166 | G157: TRUE | H157: TRUE | I157: TRUE | J157: TRUE
A158: Dolnośląskie | B158: jaworski | C158: 0 - 4 | D158: 2190 | E158: 1125 | F158: 1065 | G158: FALSE | H158: TRUE | I158: TRUE | J158: FALSE
A159: Dolnośląskie | B159: jaworski | C159: 5 - 9 | D159: 2612 | E159: 1339 | F159: 1273 | G159: FALSE | H159: TRUE | I159: TRUE | J159: FALSE
A160: Dolnośląskie | B160: jaworski | C160: 10 - 14 | D160: 2298 | E160: 1202 | F160: 1096 | G160: FALSE | H160: TRUE | I160: TRUE | J160: FALSE
A161: Dolnośląskie | B161: jaworski | C161: 15 - 19 | D161: 2600 | E161: 1316 | F161: 1284 | G161: FALSE | H161: TRUE | I161: TRUE | J161: FALSE
A162: Dolnośląskie | B162: jaworski | C162: 20 - 24 | D162: 3155 | E162: 1613 | F162: 1542 | G162: FALSE | H162: TRUE | I162: TRUE | J162: FALSE
A163: Dolnośląskie | B163: jaworski | C163: 25 - 29 | D163: 3746 | E163: 1974 | F163: 1772 | G163: FALSE | H163: TRUE | I163: TRUE | J163: FALSE
A164: Dolnośląskie | B164: jaworski | C164: 30 - 34 | D164: 4286 | E164: 2129 | F164: 2157 | G164: FALSE | H164: TRUE | I164: TRUE | J164: FALSE
A165: Dolnośląskie | B165: jaworski | C165: 35 - 39 | D165: 4080 | E165: 2116 | F165: 1964 | G165: FALSE | H165: TRUE | I165: TRUE | J165: FALSE
A166: Dolnośląskie | B166: jaworski | C166: 40 - 44 | D166: 3511 | E166: 1830 | F166: 1681 | G166: FALSE | H166: TRUE | I166: TRUE | J166: FALSE
A167: Dolnośląskie | B167: jaworski | C167: 45 - 49 | D167: 2989 | E167: 1523 | F167: 1466 | G167: FALSE | H167: TRUE | I167: TRUE | J167: FALSE
A168: Dolnośląskie | B168: jaworski | C168: 50 - 54 | D168: 3320 | E168: 1652 | F168: 1668 | G168: FALSE | H168: TRUE | I168: TRUE | J168: FALSE
A169: Dolnośląskie | B169: jaworski | C169: 55 - 59 | D169: 4237 | E169: 2060 | F169: 2177 | G169: FALSE | H169: TRUE | I169: TRUE | J169: FALSE
A170: Dolnośląskie | B170: jaworski | C170: 60 - 64 | D170: 4210 | E170: 2093 | F170: 2117 | G170: FALSE | H170: TRUE | I170: TRUE | J170: FALSE
A171: Dolnośląskie | B171: jaworski | C171: 65 - 69 | D171: 3235 | E171: 1537 | F171: 1698 | G171: FALSE | H171: TRUE | I171: TRUE | J171: FALSE
A172: Dolnośląskie | B172: jaworski | C172: 70 i więcej | D172: 4855 | E172: 1649 | F172: 3206 | G172: TRUE | H172: FALSE | I172: TRUE | J172: FALSE
A173: Dolnośląskie | B173: jaworski | C173: 65+ | D173: =SUM(D171:D172) -> 8090 | E173: =SUM(E171:E172) -> 3186 | F173: =SUM(F171:F172) -> 4904 | G173: TRUE | H173: TRUE | I173: FALSE | J173: FALSE
A174: Dolnośląskie | B174: jeleniogórski | C174: jeleniogórski | D174: 64430 | E174: 31104 | F174: 33326 | G174: TRUE | H174: TRUE | I174: TRUE | J174: TRUE
A175: Dolnośląskie | B175: jeleniogórski | C175: 0 - 4 | D175: 2496 | E175: 1303 | F175: 1193 | G175: FALSE | H175: TRUE | I175: TRUE | J175: FALSE
A176: Dolnośląskie | B176: jeleniogórski | C176: 5 - 9 | D176: 3024 | E176: 1540 | F176: 1484 | G176: FALSE | H176: TRUE | I176: TRUE | J176: FALSE
A177: Dolnośląskie | B177: jeleniogórski | C177: 10 - 14 | D177: 2886 | E177: 1502 | F177: 1384 | G177: FALSE | H177: TRUE | I177: TRUE | J177: FALSE
A178: Dolnośląskie | B178: jeleniogórski | C178: 15 - 19 | D178: 3146 | E178: 1613 | F178: 1533 | G178: FALSE | H178: TRUE | I178: TRUE | J178: FALSE
A179: Dolnośląskie | B179: jeleniogórski | C179: 20 - 24 | D179: 3748 | E179: 1909 | F179: 1839 | G179: FALSE | H179: TRUE | I179: TRUE | J179: FALSE
A180: Dolnośląskie | B180: jeleniogórski | C180: 25 - 29 | D180: 4221 | E180: 2137 | F180: 2084 | G180: FALSE | H180: TRUE | I180: TRUE | J180: FALSE
A181: Dolnośląskie | B181: jeleniogórski | C181: 30 - 34 | D181: 5117 | E181: 2550 | F181: 2567 | G181: FALSE | H181: TRUE | I181: TRUE | J181: FALSE
A182: Dolnośląskie | B182: jeleniogórski | C182: 35 - 39 | D182: 5287 | E182: 2720 | F182: 2567 | G182: FALSE | H182: TRUE | I182: TRUE | J182: FALSE
A183: Dolnośląskie | B183: jeleniogórski | C183: 40 - 44 | D183: 4886 | E183: 2503 | F183: 2383 | G183: FALSE | H183: TRUE | I183: TRUE | J183: FALSE
A184: Dolnośląskie | B184: =IF(C183="65+",C184,B183) -> jeleniogórski | C184: 45 - 49 | D184: 3908 | E184: 1933 | F184: 1975 | G184: FALSE | H184: TRUE | I184: TRUE | J184: FALSE
A185: Dolnośląskie | B185: jeleniogórski | C185: 50 - 54 | D185: 4124 | E185: 2029 | F185: 2095 | G185: FALSE | H185: TRUE | I185: TRUE | J185: FALSE
A186: Dolnośląskie | B186: jeleniogórski | C186: 55 - 59 | D186: 5499 | E186: 2645 | F186: 2854 | G186: FALSE | H186: TRUE | I186: TRUE | J186: FALSE
A187: Dolnośląskie | B187: jeleniogórski | C187: 60 - 64 | D187: 5891 | E187: 2785 | F187: 3106 | G187: FALSE | H187: TRUE | I187: TRUE | J187: FALSE
A188: Dolnośląskie | B188: jeleniogórski | C188: 65 - 69 | D188: 4263 | E188: 1967 | F188: 2296 | G188: FALSE | H188: TRUE | I188: TRUE | J188: FALSE
A189: Dolnośląskie | B189: jeleniogórski | C189: 70 i więcej | D189: 5934 | E189: 1968 | F189: 3966 | G189: TRUE | H189: FALSE | I189: TRUE | J189: FALSE
A190: Dolnośląskie | B190: jeleniogórski | C190: 65+ | D190: =SUM(D188:D189) -> 10197 | E190: =SUM(E188:E189) -> 3935 | F190: =SUM(F188:F189) -> 6262 | G190: TRUE | H190: TRUE | I190: FALSE | J190: FALSE
A191: Dolnośląskie | B191: kamiennogórski | C191: kamiennogórski | D191: 44280 | E191: 21635 | F191: 22645 | G191: TRUE | H191: TRUE | I191: TRUE | J191: TRUE
A192: Dolnośląskie | B192: kamiennogórski | C192: 0 - 4 | D192: 1725 | E192: 891 | F192: 834 | G192: FALSE | H192: TRUE | I192: TRUE | J192: FALSE
A193: Dolnośląskie | B193: kamiennogórski | C193: 5 - 9 | D193: 2204 | E193: 1167 | F193: 1037 | G193: FALSE | H193: TRUE | I193: TRUE | J193: FALSE
A194: Dolnośląskie | B194: kamiennogórski | C194: 10 - 14 | D194: 2141 | E194: 1121 | F194: 1020 | G194: FALSE | H194: TRUE | I194: TRUE | J194: FALSE
A195: Dolnośląskie | B195: kamiennogórski | C195: 15 - 19 | D195: 2291 | E195: 1185 | F195: 1106 | G195: FALSE | H195: TRUE | I195: TRUE | J195: FALSE
A196: Dolnośląskie | B196: kamiennogórski | C196: 20 - 24 | D196: 2790 | E196: 1462 | F196: 1328 | G196: FALSE | H196: TRUE | I196: TRUE | J196: FALSE
A197: Dolnośląskie | B197: kamiennogórski | C197: 25 - 29 | D197: 3007 | E197: 1582 | F197: 1425 | G197: =IFERROR(IF(SEARCH(" - ",C197)>0,FALSE,TRUE),TRUE) -> FALSE | H197: =IFERROR(IF(SEARCH("70",C197)>0,FALSE,TRUE),TRUE) -> TRUE | I197: =IFERROR(IF(SEARCH("65+",C197)>0,FALSE,TRUE),TRUE) -> TRUE | J197: =AND(G197:I197) -> FALSE
A198: Dolnośląskie | B198: kamiennogórski | C198: 30 - 34 | D198: 3557 | E198: 1869 | F198: 1688 | G198: FALSE | H198: TRUE | I198: TRUE | J198: FALSE
A199: Dolnośląskie | B199: kamiennogórski | C199: 35 - 39 | D199: 3510 | E199: 1839 | F199: 1671 | G199: FALSE | H199: TRUE | I199: TRUE | J199: FALSE
A200: Dolnośląskie | B200: kamiennogórski | C200: 40 - 44 | D200: 3064 | E200: 1564 | F200: 1500 | G200: FALSE | H200: TRUE | I200: TRUE | J200: FALSE
A201: Dolnośląskie | B201: kamiennogórski | C201: 45 - 49 | D201: 2582 | E201: 1347 | F201: 1235 | G201: FALSE | H201: TRUE | I201: TRUE | J201: FALSE
... 6534 more rows

Sheet Dolnośląskie (hidden)
A1: Województwa Powiaty Grupy wieku | B1: Ogółem | C1: Mężczyźni | D1: Kobiety
A4: Dolnośląskie | B4: 2903812 | C4: 1396008 | D4: 1507804 | E4: =IFERROR(IF(SEARCH(" - ",A4)>0,FALSE,TRUE),TRUE) -> TRUE | F4: =IFERROR(IF(SEARCH("70",A4)>0,FALSE,TRUE),TRUE) -> TRUE | G4: =IFERROR(IF(SEARCH("65+",A4)>0,FALSE,TRUE),TRUE) -> TRUE | H4: =AND(E4:G4) -> TRUE
A5: 0 - 4 | B5: 134844 | C5: 69399 | D5: 65445 | E5: =IFERROR(IF(SEARCH(" - ",A5)>0,FALSE,TRUE),TRUE) -> FALSE | F5: =IFERROR(IF(SEARCH("70",A5)>0,FALSE,TRUE),TRUE) -> TRUE | G5: =IFERROR(IF(SEARCH("65+",A5)>0,FALSE,TRUE),TRUE) -> TRUE | H5: =AND(E5:G5) -> FALSE
A6: 5 - 9 | B6: 149467 | C6: 76437 | D6: 73030 | E6: FALSE | F6: TRUE | G6: TRUE | H6: FALSE
A7: 10 - 14 | B7: 125044 | C7: 64220 | D7: 60824 | E7: FALSE | F7: TRUE | G7: TRUE | H7: FALSE
A8: 15 - 19 | B8: 134228 | C8: 68615 | D8: 65613 | E8: FALSE | F8: TRUE | G8: TRUE | H8: FALSE
A9: 20 - 24 | B9: 165968 | C9: 84367 | D9: 81601 | E9: FALSE | F9: TRUE | G9: TRUE | H9: FALSE
A10: 25 - 29 | B10: 206978 | C10: 104098 | D10: 102880 | E10: FALSE | F10: TRUE | G10: TRUE | H10: FALSE
A11: 30 - 34 | B11: 255384 | C11: 128986 | D11: 126398 | E11: FALSE | F11: TRUE | G11: TRUE | H11: FALSE
A12: 35 - 39 | B12: 244691 | C12: 124016 | D12: 120675 | E12: FALSE | F12: TRUE | G12: TRUE | H12: FALSE
A13: 40 - 44 | B13: 212062 | C13: 107643 | D13: 104419 | E13: FALSE | F13: TRUE | G13: TRUE | H13: FALSE
A14: 45 - 49 | B14: 168041 | C14: 84678 | D14: 83363 | E14: FALSE | F14: TRUE | G14: TRUE | H14: FALSE
A15: 50 - 54 | B15: 173873 | C15: 85461 | D15: 88412 | E15: FALSE | F15: TRUE | G15: TRUE | H15: FALSE
A16: 55 - 59 | B16: 221686 | C16: 106311 | D16: 115375 | E16: FALSE | F16: TRUE | G16: TRUE | H16: FALSE
A17: 60 - 64 | B17: 229985 | C17: 106679 | D17: 123306 | E17: FALSE | F17: TRUE | G17: TRUE | H17: FALSE
A18: 65 - 69 | B18: 185548 | C18: 82887 | D18: 102661 | E18: FALSE | F18: TRUE | G18: TRUE | H18: FALSE
A19: 70 i więcej | B19: 296013 | C19: 102211 | D19: 193802 | E19: TRUE | F19: FALSE | G19: TRUE | H19: FALSE
A20: 65+ | B20: =SUM(B18:B19) -> 481561 | C20: =SUM(C18:C19) -> 185098 | D20: =SUM(D18:D19) -> 296463 | E20: TRUE | F20: TRUE | G20: FALSE | H20: FALSE
A21: Jelenia Góra | B21: 80889 | C21: 37678 | D21: 43211 | E21: TRUE | F21: TRUE | G21: TRUE | H21: TRUE
A22: 0 - 4 | B22: 3183 | C22: 1618 | D22: 1565 | E22: FALSE | F22: TRUE | G22: TRUE | H22: FALSE
A23: 5 - 9 | B23: 3523 | C23: 1806 | D23: 1717 | E23: FALSE | F23: TRUE | G23: TRUE | H23: FALSE
A24: 10 - 14 | B24: 3023 | C24: 1562 | D24: 1461 | E24: FALSE | F24: TRUE | G24: TRUE | H24: FALSE
A25: 15 - 19 | B25: 3241 | C25: 1581 | D25: 1660 | E25: FALSE | F25: TRUE | G25: TRUE | H25: FALSE
A26: 20 - 24 | B26: 3983 | C26: 2014 | D26: 1969 | E26: FALSE | F26: TRUE | G26: TRUE | H26: FALSE
A27: 25 - 29 | B27: 4920 | C27: 2453 | D27: 2467 | E27: FALSE | F27: TRUE | G27: TRUE | H27: FALSE
A28: 30 - 34 | B28: 6508 | C28: 3347 | D28: 3161 | E28: FALSE | F28: TRUE | G28: TRUE | H28: FALSE
A29: 35 - 39 | B29: 6547 | C29: 3285 | D29: 3262 | E29: FALSE | F29: TRUE | G29: TRUE | H29: FALSE
A30: 40 - 44 | B30: 5591 | C30: 2767 | D30: 2824 | E30: FALSE | F30: TRUE | G30: TRUE | H30: FALSE
A31: 45 - 49 | B31: 4561 | C31: 2289 | D31: 2272 | E31: FALSE | F31: TRUE | G31: TRUE | H31: FALSE
A32: 50 - 54 | B32: 4840 | C32: 2282 | D32: 2558 | E32: FALSE | F32: TRUE | G32: TRUE | H32: FALSE
A33: 55 - 59 | B33: 6747 | C33: 3064 | D33: 3683 | E33: FALSE | F33: TRUE | G33: TRUE | H33: FALSE
A34: 60 - 64 | B34: 7669 | C34: 3408 | D34: 4261 | E34: FALSE | F34: TRUE | G34: TRUE | H34: FALSE
A35: 65 - 69 | B35: 6113 | C35: 2551 | D35: 3562 | E35: FALSE | F35: TRUE | G35: TRUE | H35: FALSE
A36: 70 i więcej | B36: 10440 | C36: 3651 | D36: 6789 | E36: TRUE | F36: FALSE | G36: TRUE | H36: FALSE
A37: 65+ | B37: =SUM(B35:B36) -> 16553 | C37: =SUM(C35:C36) -> 6202 | D37: =SUM(D35:D36) -> 10351 | E37: TRUE | F37: TRUE | G37: FALSE | H37: FALSE
A38: Legnica | B38: 100769 | C38: 47653 | D38: 53116 | E38: TRUE | F38: TRUE | G38: TRUE | H38: TRUE
A39: 0 - 4 | B39: 4552 | C39: 2329 | D39: 2223 | E39: FALSE | F39: TRUE | G39: TRUE | H39: FALSE
A40: 5 - 9 | B40: 4981 | C40: 2589 | D40: 2392 | E40: FALSE | F40: TRUE | G40: TRUE | H40: FALSE
A41: 10 - 14 | B41: 4158 | C41: 2147 | D41: 2011 | E41: FALSE | F41: TRUE | G41: TRUE | H41: FALSE
A42: 15 - 19 | B42: 4640 | C42: 2401 | D42: 2239 | E42: FALSE | F42: TRUE | G42: TRUE | H42: FALSE
A43: 20 - 24 | B43: 5708 | C43: 2954 | D43: 2754 | E43: FALSE | F43: TRUE | G43: TRUE | H43: FALSE
A44: 25 - 29 | B44: 6988 | C44: 3511 | D44: 3477 | E44: FALSE | F44: TRUE | G44: TRUE | H44: FALSE
A45: 30 - 34 | B45: 8503 | C45: 4301 | D45: 4202 | E45: FALSE | F45: TRUE | G45: TRUE | H45: FALSE
A46: 35 - 39 | B46: 8228 | C46: 4102 | D46: 4126 | E46: FALSE | F46: TRUE | G46: TRUE | H46: FALSE
A47: 40 - 44 | B47: 7239 | C47: 3585 | D47: 3654 | E47: FALSE | F47: TRUE | G47: TRUE | H47: FALSE
A48: 45 - 49 | B48: 5993 | C48: 2928 | D48: 3065 | E48: FALSE | F48: TRUE | G48: TRUE | H48: FALSE
A49: 50 - 54 | B49: 6103 | C49: 2924 | D49: 3179 | E49: FALSE | F49: TRUE | G49: TRUE | H49: FALSE
A50: 55 - 59 | B50: 7907 | C50: 3599 | D50: 4308 | E50: FALSE | F50: TRUE | G50: TRUE | H50: FALSE
A51: 60 - 64 | B51: 8566 | C51: 3786 | D51: 4780 | E51: FALSE | F51: TRUE | G51: TRUE | H51: FALSE
A52: 65 - 69 | B52: 6936 | C52: 2981 | D52: 3955 | E52: FALSE | F52: TRUE | G52: TRUE | H52: FALSE
A53: 70 i więcej | B53: 10267 | C53: 3516 | D53: 6751 | E53: TRUE | F53: FALSE | G53: TRUE | H53: FALSE
A54: 65+ | B54: =SUM(B52:B53) -> 17203 | C54: =SUM(C52:C53) -> 6497 | D54: =SUM(D52:D53) -> 10706 | E54: TRUE | F54: TRUE | G54: FALSE | H54: FALSE
A55: Wrocław | B55: 637075 | C55: 297249 | D55: 339826 | E55: TRUE | F55: TRUE | G55: TRUE | H55: TRUE
A56: 0 - 4 | B56: 33184 | C56: 17229 | D56: 15955 | E56: FALSE | F56: TRUE | G56: TRUE | H56: FALSE
A57: 5 - 9 | B57: 30861 | C57: 15760 | D57: 15101 | E57: FALSE | F57: TRUE | G57: TRUE | H57: FALSE
A58: 10 - 14 | B58: 22113 | C58: 11256 | D58: 10857 | E58: FALSE | F58: TRUE | G58: TRUE | H58: FALSE
A59: 15 - 19 | B59: 23032 | C59: 11688 | D59: 11344 | E59: FALSE | F59: TRUE | G59: TRUE | H59: FALSE
A60: 20 - 24 | B60: 29838 | C60: 14972 | D60: 14866 | E60: FALSE | F60: TRUE | G60: TRUE | H60: FALSE
A61: 25 - 29 | B61: 49126 | C61: 23333 | D61: 25793 | E61: FALSE | F61: TRUE | G61: TRUE | H61: FALSE
A62: 30 - 34 | B62: 67222 | C62: 32808 | D62: 34414 | E62: FALSE | F62: TRUE | G62: TRUE | H62: FALSE
A63: 35 - 39 | B63: 57696 | C63: 28691 | D63: 29005 | E63: FALSE | F63: TRUE | G63: TRUE | H63: FALSE
A64: 40 - 44 | B64: 45928 | C64: 22714 | D64: 23214 | E64: FALSE | F64: TRUE | G64: TRUE | H64: FALSE
A65: 45 - 49 | B65: 33605 | C65: 16581 | D65: 17024 | E65: FALSE | F65: TRUE | G65: TRUE | H65: FALSE
A66: 50 - 54 | B66: 33188 | C66: 15757 | D66: 17431 | E66: FALSE | F66: TRUE | G66: TRUE | H66: FALSE
A67: 55 - 59 | B67: 43122 | C67: 19795 | D67: 23327 | E67: FALSE | F67: TRUE | G67: TRUE | H67: FALSE
A68: 60 - 64 | B68: 49355 | C68: 21666 | D68: 27689 | E68: FALSE | F68: TRUE | G68: TRUE | H68: FALSE
A69: 65 - 69 | B69: 41922 | C69: 17842 | D69: 24080 | E69: =IFERROR(IF(SEARCH(" - ",A69)>0,FALSE,TRUE),TRUE) -> FALSE | F69: =IFERROR(IF(SEARCH("70",A69)>0,FALSE,TRUE),TRUE) -> TRUE | G69: =IFERROR(IF(SEARCH("65+",A69)>0,FALSE,TRUE),TRUE) -> TRUE | H69: =AND(E69:G69) -> FALSE
A70: 70 i więcej | B70: 76883 | C70: 27157 | D70: 49726 | E70: TRUE | F70: FALSE | G70: TRUE | H70: FALSE
A71: 65+ | B71: =SUM(B69:B70) -> 118805 | C71: =SUM(C69:C70) -> 44999 | D71: =SUM(D69:D70) -> 73806 | E71: TRUE | F71: TRUE | G71: FALSE | H71: FALSE
A72: Wałbrzych | B72: 114930 | C72: 54112 | D72: 60818 | E72: TRUE | F72: TRUE | G72: TRUE | H72: TRUE
A73: 0 - 4 | B73: 4390 | C73: 2255 | D73: 2135 | E73: FALSE | F73: TRUE | G73: TRUE | H73: FALSE
A74: 5 - 9 | B74: 5064 | C74: 2551 | D74: 2513 | E74: FALSE | F74: TRUE | G74: TRUE | H74: FALSE
A75: 10 - 14 | B75: 4536 | C75: 2344 | D75: 2192 | E75: FALSE | F75: TRUE | G75: TRUE | H75: FALSE
A76: 15 - 19 | B76: 4809 | C76: 2422 | D76: 2387 | E76: FALSE | F76: TRUE | G76: TRUE | H76: FALSE
A77: 20 - 24 | B77: 6043 | C77: 3058 | D77: 2985 | E77: FALSE | F77: TRUE | G77: TRUE | H77: FALSE
A78: 25 - 29 | B78: 7392 | C78: 3820 | D78: 3572 | E78: FALSE | F78: TRUE | G78: TRUE | H78: FALSE
A79: 30 - 34 | B79: 9377 | C79: 4730 | D79: 4647 | E79: FALSE | F79: TRUE | G79: TRUE | H79: FALSE
A80: 35 - 39 | B80: 9169 | C80: 4750 | D80: 4419 | E80: FALSE | F80: TRUE | G80: TRUE | H80: FALSE
A81: 40 - 44 | B81: 7514 | C81: 3774 | D81: 3740 | E81: FALSE | F81: TRUE | G81: TRUE | H81: FALSE
A82: 45 - 49 | B82: 6322 | C82: 3148 | D82: 3174 | E82: FALSE | F82: TRUE | G82: TRUE | H82: FALSE
A83: 50 - 54 | B83: 7339 | C83: 3523 | D83: 3816 | E83: FALSE | F83: TRUE | G83: TRUE | H83: FALSE
A84: 55 - 59 | B84: 10596 | C84: 5005 | D84: 5591 | E84: FALSE | F84: TRUE | G84: TRUE | H84: FALSE
A85: 60 - 64 | B85: 10467 | C85: 4689 | D85: 5778 | E85: FALSE | F85: TRUE | G85: TRUE | H85: FALSE
A86: 65 - 69 | B86: 7825 | C86: 3310 | D86: 4515 | E86: FALSE | F86: TRUE | G86: TRUE | H86: FALSE
A87: 70 i więcej | B87: 14087 | C87: 4733 | D87: 9354 | E87: TRUE | F87: FALSE | G87: TRUE | H87: FALSE
A88: 65+ | B88: =SUM(B86:B87) -> 21912 | C88: =SUM(C86:C87) -> 8043 | D88: =SUM(D86:D87) -> 13869 | E88: TRUE | F88: TRUE | G88: FALSE | H88: FALSE
A89: bolesławiecki | B89: 90195 | C89: 43801 | D89: 46394 | E89: TRUE | F89: TRUE | G89: TRUE | H89: TRUE
A90: 0 - 4 | B90: 4148 | C90: 2089 | D90: 2059 | E90: FALSE | F90: TRUE | G90: TRUE | H90: FALSE
A91: 5 - 9 | B91: 4876 | C91: 2507 | D91: 2369 | E91: FALSE | F91: TRUE | G91: TRUE | H91: FALSE
A92: 10 - 14 | B92: 4292 | C92: 2179 | D92: 2113 | E92: FALSE | F92: TRUE | G92: TRUE | H92: FALSE
A93: 15 - 19 | B93: 4686 | C93: 2480 | D93: 2206 | E93: FALSE | F93: TRUE | G93: TRUE | H93: FALSE
A94: 20 - 24 | B94: 5522 | C94: 2776 | D94: 2746 | E94: FALSE | F94: TRUE | G94: TRUE | H94: FALSE
A95: 25 - 29 | B95: 6716 | C95: 3415 | D95: 3301 | E95: FALSE | F95: TRUE | G95: TRUE | H95: FALSE
A96: 30 - 34 | B96: 7369 | C96: 3828 | D96: 3541 | E96: FALSE | F96: TRUE | G96: TRUE | H96: FALSE
A97: 35 - 39 | B97: 7319 | C97: 3711 | D97: 3608 | E97: FALSE | F97: TRUE | G97: TRUE | H97: FALSE
A98: 40 - 44 | B98: 6737 | C98: 3433 | D98: 3304 | E98: FALSE | F98: TRUE | G98: TRUE | H98: FALSE
A99: 45 - 49 | B99: 5317 | C99: 2701 | D99: 2616 | E99: FALSE | F99: TRUE | G99: TRUE | H99: FALSE
A100: 50 - 54 | B100: 5640 | C100: 2820 | D100: 2820 | E100: FALSE | F100: TRUE | G100: TRUE | H100: FALSE
A101: 55 - 59 | B101: 7048 | C101: 3446 | D101: 3602 | E101: FALSE | F101: TRUE | G101: TRUE | H101: FALSE
A102: 60 - 64 | B102: 6749 | C102: 3145 | D102: 3604 | E102: FALSE | F102: TRUE | G102: TRUE | H102: FALSE
A103: 65 - 69 | B103: 5285 | C103: 2330 | D103: 2955 | E103: FALSE | F103: TRUE | G103: TRUE | H103: FALSE
A104: 70 i więcej | B104: 8491 | C104: 2941 | D104: 5550 | E104: TRUE | F104: FALSE | G104: TRUE | H104: FALSE
A105: 65+ | B105: =SUM(B103:B104) -> 13776 | C105: =SUM(C103:C104) -> 5271 | D105: =SUM(D103:D104) -> 8505 | E105: TRUE | F105: TRUE | G105: FALSE | H105: FALSE
A106: dzierżoniowski | B106: 102977 | C106: 49060 | D106: 53917 | E106: TRUE | F106: TRUE | G106: TRUE | H106: TRUE
A107: 0 - 4 | B107: 4230 | C107: 2181 | D107: 2049 | E107: FALSE | F107: TRUE | G107: TRUE | H107: FALSE
A108: 5 - 9 | B108: 4813 | C108: 2415 | D108: 2398 | E108: FALSE | F108: TRUE | G108: TRUE | H108: FALSE
A109: 10 - 14 | B109: 4242 | C109: 2178 | D109: 2064 | E109: FALSE | F109: TRUE | G109: TRUE | H109: FALSE
A110: 15 - 19 | B110: 4645 | C110: 2378 | D110: 2267 | E110: FALSE | F110: TRUE | G110: TRUE | H110: FALSE
A111: 20 - 24 | B111: 5806 | C111: 2974 | D111: 2832 | E111: FALSE | F111: TRUE | G111: TRUE | H111: FALSE
A112: 25 - 29 | B112: 6953 | C112: 3494 | D112: 3459 | E112: FALSE | F112: TRUE | G112: TRUE | H112: FALSE
A113: 30 - 34 | B113: 8331 | C113: 4268 | D113: 4063 | E113: FALSE | F113: TRUE | G113: TRUE | H113: FALSE
A114: 35 - 39 | B114: 8280 | C114: 4230 | D114: 4050 | E114: FALSE | F114: TRUE | G114: TRUE | H114: FALSE
A115: 40 - 44 | B115: 7230 | C115: 3683 | D115: 3547 | E115: FALSE | F115: TRUE | G115: TRUE | H115: FALSE
A116: 45 - 49 | B116: 6052 | C116: 3070 | D116: 2982 | E116: FALSE | F116: TRUE | G116: TRUE | H116: FALSE
A117: 50 - 54 | B117: 6615 | C117: 3266 | D117: 3349 | E117: FALSE | F117: TRUE | G117: TRUE | H117: FALSE
A118: 55 - 59 | B118: 8616 | C118: 4146 | D118: 4470 | E118: FALSE | F118: TRUE | G118: TRUE | H118: FALSE
A119: 60 - 64 | B119: 8652 | C119: 4005 | D119: 4647 | E119: FALSE | F119: TRUE | G119: TRUE | H119: FALSE
A120: 65 - 69 | B120: 6656 | C120: 2979 | D120: 3677 | E120: FALSE | F120: TRUE | G120: TRUE | H120: FALSE
A121: 70 i więcej | B121: 11856 | C121: 3793 | D121: 8063 | E121: TRUE | F121: FALSE | G121: TRUE | H121: FALSE
A122: 65+ | B122: =SUM(B120:B121) -> 18512 | C122: =SUM(C120:C121) -> 6772 | D122: =SUM(D120:D121) -> 11740 | E122: TRUE | F122: TRUE | G122: FALSE | H122: FALSE
A123: głogowski | B123: 90060 | C123: 43769 | D123: 46291 | E123: TRUE | F123: TRUE | G123: TRUE | H123: TRUE
A124: 0 - 4 | B124: 4349 | C124: 2229 | D124: 2120 | E124: FALSE | F124: TRUE | G124: TRUE | H124: FALSE
A125: 5 - 9 | B125: 5179 | C125: 2565 | D125: 2614 | E125: FALSE | F125: TRUE | G125: TRUE | H125: FALSE
A126: 10 - 14 | B126: 4323 | C126: 2196 | D126: 2127 | E126: FALSE | F126: TRUE | G126: TRUE | H126: FALSE
A127: 15 - 19 | B127: 4530 | C127: 2289 | D127: 2241 | E127: FALSE | F127: TRUE | G127: TRUE | H127: FALSE
A128: 20 - 24 | B128: 5028 | C128: 2573 | D128: 2455 | E128: FALSE | F128: TRUE | G128: TRUE | H128: FALSE
A129: 25 - 29 | B129: 6255 | C129: 3183 | D129: 3072 | E129: FALSE | F129: TRUE | G129: TRUE | H129: FALSE
A130: 30 - 34 | B130: 7526 | C130: 3855 | D130: 3671 | E130: FALSE | F130: TRUE | G130: TRUE | H130: FALSE
A131: 35 - 39 | B131: 7979 | C131: 4060 | D131: 3919 | E131: FALSE | F131: TRUE | G131: TRUE | H131: FALSE
A132: 40 - 44 | B132: 6791 | C132: 3469 | D132: 3322 | E132: FALSE | F132: TRUE | G132: TRUE | H132: FALSE
A133: 45 - 49 | B133: 4995 | C133: 2507 | D133: 2488 | E133: =IFERROR(IF(SEARCH(" - ",A133)>0,FALSE,TRUE),TRUE) -> FALSE | F133: =IFERROR(IF(SEARCH("70",A133)>0,FALSE,TRUE),TRUE) -> TRUE | G133: =IFERROR(IF(SEARCH("65+",A133)>0,FALSE,TRUE),TRUE) -> TRUE | H133: =AND(E133:G133) -> FALSE
A134: 50 - 54 | B134: 5063 | C134: 2370 | D134: 2693 | E134: FALSE | F134: TRUE | G134: TRUE | H134: FALSE
A135: 55 - 59 | B135: 6781 | C135: 3180 | D135: 3601 | E135: FALSE | F135: TRUE | G135: TRUE | H135: FALSE
A136: 60 - 64 | B136: 7697 | C136: 3611 | D136: 4086 | E136: FALSE | F136: TRUE | G136: TRUE | H136: FALSE
A137: 65 - 69 | B137: 6430 | C137: 2993 | D137: 3437 | E137: FALSE | F137: TRUE | G137: TRUE | H137: FALSE
A138: 70 i więcej | B138: 7134 | C138: 2689 | D138: 4445 | E138: TRUE | F138: FALSE | G138: TRUE | H138: FALSE
A139: 65+ | B139: =SUM(B137:B138) -> 13564 | C139: =SUM(C137:C138) -> 5682 | D139: =SUM(D137:D138) -> 7882 | E139: TRUE | F139: TRUE | G139: FALSE | H139: FALSE
A140: górowski | B140: 35847 | C140: 17735 | D140: 18112 | E140: TRUE | F140: TRUE | G140: TRUE | H140: TRUE
A141: 0 - 4 | B141: 1702 | C141: 868 | D141: 834 | E141: FALSE | F141: TRUE | G141: TRUE | H141: FALSE
A142: 5 - 9 | B142: 1970 | C142: 1025 | D142: 945 | E142: FALSE | F142: TRUE | G142: TRUE | H142: FALSE
A143: 10 - 14 | B143: 1930 | C143: 993 | D143: 937 | E143: FALSE | F143: TRUE | G143: TRUE | H143: FALSE
A144: 15 - 19 | B144: 2062 | C144: 1043 | D144: 1019 | E144: FALSE | F144: TRUE | G144: TRUE | H144: FALSE
A145: 20 - 24 | B145: 2641 | C145: 1311 | D145: 1330 | E145: FALSE | F145: TRUE | G145: TRUE | H145: FALSE
A146: 25 - 29 | B146: 2662 | C146: 1402 | D146: 1260 | E146: FALSE | F146: TRUE | G146: TRUE | H146: FALSE
A147: 30 - 34 | B147: 2823 | C147: 1484 | D147: 1339 | E147: FALSE | F147: TRUE | G147: TRUE | H147: FALSE
A148: 35 - 39 | B148: 2643 | C148: 1396 | D148: 1247 | E148: FALSE | F148: TRUE | G148: TRUE | H148: FALSE
A149: 40 - 44 | B149: 2455 | C149: 1236 | D149: 1219 | E149: FALSE | F149: TRUE | G149: TRUE | H149: FALSE
A150: 45 - 49 | B150: 2134 | C150: 1098 | D150: 1036 | E150: FALSE | F150: TRUE | G150: TRUE | H150: FALSE
A151: 50 - 54 | B151: 2211 | C151: 1101 | D151: 1110 | E151: FALSE | F151: TRUE | G151: TRUE | H151: FALSE
A152: 55 - 59 | B152: 2707 | C152: 1359 | D152: 1348 | E152: FALSE | F152: TRUE | G152: TRUE | H152: FALSE
A153: 60 - 64 | B153: 2595 | C153: 1296 | D153: 1299 | E153: FALSE | F153: TRUE | G153: TRUE | H153: FALSE
A154: 65 - 69 | B154: 2059 | C154: 999 | D154: 1060 | E154: FALSE | F154: TRUE | G154: TRUE | H154: FALSE
A155: 70 i więcej | B155: 3253 | C155: 1124 | D155: 2129 | E155: TRUE | F155: FALSE | G155: TRUE | H155: FALSE
A156: 65+ | B156: =SUM(B154:B155) -> 5312 | C156: =SUM(C154:C155) -> 2123 | D156: =SUM(D154:D155) -> 3189 | E156: TRUE | F156: TRUE | G156: FALSE | H156: FALSE
A157: jaworski | B157: 51324 | C157: 25158 | D157: 26166 | E157: TRUE | F157: TRUE | G157: TRUE | H157: TRUE
A158: 0 - 4 | B158: 2190 | C158: 1125 | D158: 1065 | E158: FALSE | F158: TRUE | G158: TRUE | H158: FALSE
A159: 5 - 9 | B159: 2612 | C159: 1339 | D159: 1273 | E159: FALSE | F159: TRUE | G159: TRUE | H159: FALSE
A160: 10 - 14 | B160: 2298 | C160: 1202 | D160: 1096 | E160: FALSE | F160: TRUE | G160: TRUE | H160: FALSE
A161: 15 - 19 | B161: 2600 | C161: 1316 | D161: 1284 | E161: FALSE | F161: TRUE | G161: TRUE | H161: FALSE
A162: 20 - 24 | B162: 3155 | C162: 1613 | D162: 1542 | E162: FALSE | F162: TRUE | G162: TRUE | H162: FALSE
A163: 25 - 29 | B163: 3746 | C163: 1974 | D163: 1772 | E163: FALSE | F163: TRUE | G163: TRUE | H163: FALSE
A164: 30 - 34 | B164: 4286 | C164: 2129 | D164: 2157 | E164: FALSE | F164: TRUE | G164: TRUE | H164: FALSE
A165: 35 - 39 | B165: 4080 | C165: 2116 | D165: 1964 | E165: FALSE | F165: TRUE | G165: TRUE | H165: FALSE
A166: 40 - 44 | B166: 3511 | C166: 1830 | D166: 1681 | E166: FALSE | F166: TRUE | G166: TRUE | H166: FALSE
A167: 45 - 49 | B167: 2989 | C167: 1523 | D167: 1466 | E167: FALSE | F167: TRUE | G167: TRUE | H167: FALSE
A168: 50 - 54 | B168: 3320 | C168: 1652 | D168: 1668 | E168: FALSE | F168: TRUE | G168: TRUE | H168: FALSE
A169: 55 - 59 | B169: 4237 | C169: 2060 | D169: 2177 | E169: FALSE | F169: TRUE | G169: TRUE | H169: FALSE
A170: 60 - 64 | B170: 4210 | C170: 2093 | D170: 2117 | E170: FALSE | F170: TRUE | G170: TRUE | H170: FALSE
A171: 65 - 69 | B171: 3235 | C171: 1537 | D171: 1698 | E171: FALSE | F171: TRUE | G171: TRUE | H171: FALSE
A172: 70 i więcej | B172: 4855 | C172: 1649 | D172: 3206 | E172: TRUE | F172: FALSE | G172: TRUE | H172: FALSE
A173: 65+ | B173: =SUM(B171:B172) -> 8090 | C173: =SUM(C171:C172) -> 3186 | D173: =SUM(D171:D172) -> 4904 | E173: TRUE | F173: TRUE | G173: FALSE | H173: FALSE
A174: jeleniogórski | B174: 64430 | C174: 31104 | D174: 33326 | E174: TRUE | F174: TRUE | G174: TRUE | H174: TRUE
A175: 0 - 4 | B175: 2496 | C175: 1303 | D175: 1193 | E175: FALSE | F175: TRUE | G175: TRUE | H175: FALSE
A176: 5 - 9 | B176: 3024 | C176: 1540 | D176: 1484 | E176: FALSE | F176: TRUE | G176: TRUE | H176: FALSE
A177: 10 - 14 | B177: 2886 | C177: 1502 | D177: 1384 | E177: FALSE | F177: TRUE | G177: TRUE | H177: FALSE
A178: 15 - 19 | B178: 3146 | C178: 1613 | D178: 1533 | E178: FALSE | F178: TRUE | G178: TRUE | H178: FALSE
A179: 20 - 24 | B179: 3748 | C179: 1909 | D179: 1839 | E179: FALSE | F179: TRUE | G179: TRUE | H179: FALSE
A180: 25 - 29 | B180: 4221 | C180: 2137 | D180: 2084 | E180: FALSE | F180: TRUE | G180: TRUE | H180: FALSE
A181: 30 - 34 | B181: 5117 | C181: 2550 | D181: 2567 | E181: FALSE | F181: TRUE | G181: TRUE | H181: FALSE
A182: 35 - 39 | B182: 5287 | C182: 2720 | D182: 2567 | E182: FALSE | F182: TRUE | G182: TRUE | H182: FALSE
A183: 40 - 44 | B183: 4886 | C183: 2503 | D183: 2383 | E183: FALSE | F183: TRUE | G183: TRUE | H183: FALSE
A184: 45 - 49 | B184: 3908 | C184: 1933 | D184: 1975 | E184: FALSE | F184: TRUE | G184: TRUE | H184: FALSE
A185: 50 - 54 | B185: 4124 | C185: 2029 | D185: 2095 | E185: FALSE | F185: TRUE | G185: TRUE | H185: FALSE
A186: 55 - 59 | B186: 5499 | C186: 2645 | D186: 2854 | E186: FALSE | F186: TRUE | G186: TRUE | H186: FALSE
A187: 60 - 64 | B187: 5891 | C187: 2785 | D187: 3106 | E187: FALSE | F187: TRUE | G187: TRUE | H187: FALSE
A188: 65 - 69 | B188: 4263 | C188: 1967 | D188: 2296 | E188: FALSE | F188: TRUE | G188: TRUE | H188: FALSE
A189: 70 i więcej | B189: 5934 | C189: 1968 | D189: 3966 | E189: TRUE | F189: FALSE | G189: TRUE | H189: FALSE
A190: 65+ | B190: =SUM(B188:B189) -> 10197 | C190: =SUM(C188:C189) -> 3935 | D190: =SUM(D188:D189) -> 6262 | E190: TRUE | F190: TRUE | G190: FALSE | H190: FALSE
A191: kamiennogórski | B191: 44280 | C191: 21635 | D191: 22645 | E191: TRUE | F191: TRUE | G191: TRUE | H191: TRUE
A192: 0 - 4 | B192: 1725 | C192: 891 | D192: 834 | E192: FALSE | F192: TRUE | G192: TRUE | H192: FALSE
A193: 5 - 9 | B193: 2204 | C193: 1167 | D193: 1037 | E193: FALSE | F193: TRUE | G193: TRUE | H193: FALSE
A194: 10 - 14 | B194: 2141 | C194: 1121 | D194: 1020 | E194: FALSE | F194: TRUE | G194: TRUE | H194: FALSE
A195: 15 - 19 | B195: 2291 | C195: 1185 | D195: 1106 | E195: FALSE | F195: TRUE | G195: TRUE | H195: FALSE
A196: 20 - 24 | B196: 2790 | C196: 1462 | D196: 1328 | E196: FALSE | F196: TRUE | G196: TRUE | H196: FALSE
A197: 25 - 29 | B197: 3007 | C197: 1582 | D197: 1425 | E197: =IFERROR(IF(SEARCH(" - ",A197)>0,FALSE,TRUE),TRUE) -> FALSE | F197: =IFERROR(IF(SEARCH("70",A197)>0,FALSE,TRUE),TRUE) -> TRUE | G197: =IFERROR(IF(SEARCH("65+",A197)>0,FALSE,TRUE),TRUE) -> TRUE | H197: =AND(E197:G197) -> FALSE
A198: 30 - 34 | B198: 3557 | C198: 1869 | D198: 1688 | E198: FALSE | F198: TRUE | G198: TRUE | H198: FALSE
A199: 35 - 39 | B199: 3510 | C199: 1839 | D199: 1671 | E199: FALSE | F199: TRUE | G199: TRUE | H199: FALSE
A200: 40 - 44 | B200: 3064 | C200: 1564 | D200: 1500 | E200: FALSE | F200: TRUE | G200: TRUE | H200: FALSE
A201: 45 - 49 | B201: 2582 | C201: 1347 | D201: 1235 | E201: FALSE | F201: TRUE | G201: TRUE | H201: FALSE
A202: 50 - 54 | B202: 2953 | C202: 1501 | D202: 1452 | E202: FALSE | F202: TRUE | G202: TRUE | H202: FALSE
... 328 more rows

Sheet Kujawsko-pomorskie (hidden)
A1: Województwa Powiaty Grupy wieku | B1: Ogółem | C1: Mężczyźni | D1: Kobiety
A4: Kujawsko-pomorskie | B4: 2084524 | C4: 1010102 | D4: 1074422 | E4: =IFERROR(IF(SEARCH(" - ",A4)>0,FALSE,TRUE),TRUE) -> TRUE | F4: =IFERROR(IF(SEARCH("70",A4)>0,FALSE,TRUE),TRUE) -> TRUE | G4: =IFERROR(IF(SEARCH("65+",A4)>0,FALSE,TRUE),TRUE) -> TRUE | H4: =AND(E4:G4) -> TRUE
A5: 0 - 4 | B5: 99362 | C5: 51276 | D5: 48086 | E5: =IFERROR(IF(SEARCH(" - ",A5)>0,FALSE,TRUE),TRUE) -> FALSE | F5: =IFERROR(IF(SEARCH("70",A5)>0,FALSE,TRUE),TRUE) -> TRUE | G5: =IFERROR(IF(SEARCH("65+",A5)>0,FALSE,TRUE),TRUE) -> TRUE | H5: =AND(E5:G5) -> FALSE
A6: 5 - 9 | B6: 113956 | C6: 58353 | D6: 55603 | E6: FALSE | F6: TRUE | G6: TRUE | H6: FALSE
A7: 10 - 14 | B7: 100283 | C7: 51457 | D7: 48826 | E7: FALSE | F7: TRUE | G7: TRUE | H7: FALSE
A8: 15 - 19 | B8: 110268 | C8: 56611 | D8: 53657 | E8: FALSE | F8: TRUE | G8: TRUE | H8: FALSE
A9: 20 - 24 | B9: 133515 | C9: 67711 | D9: 65804 | E9: FALSE | F9: TRUE | G9: TRUE | H9: FALSE
A10: 25 - 29 | B10: 151784 | C10: 77181 | D10: 74603 | E10: FALSE | F10: TRUE | G10: TRUE | H10: FALSE
A11: 30 - 34 | B11: 172960 | C11: 88242 | D11: 84718 | E11: FALSE | F11: TRUE | G11: TRUE | H11: FALSE
A12: 35 - 39 | B12: 164228 | C12: 83407 | D12: 80821 | E12: FALSE | F12: TRUE | G12: TRUE | H12: FALSE
A13: 40 - 44 | B13: 150711 | C13: 76016 | D13: 74695 | E13: FALSE | F13: TRUE | G13: TRUE | H13: FALSE
A14: 45 - 49 | B14: 128755 | C14: 64072 | D14: 64683 | E14: FALSE | F14: TRUE | G14: TRUE | H14: FALSE
A15: 50 - 54 | B15: 130323 | C15: 64229 | D15: 66094 | E15: FALSE | F15: TRUE | G15: TRUE | H15: FALSE
A16: 55 - 59 | B16: 154119 | C16: 74357 | D16: 79762 | E16: FALSE | F16: TRUE | G16: TRUE | H16: FALSE
A17: 60 - 64 | B17: 148542 | C17: 69574 | D17: 78968 | E17: FALSE | F17: TRUE | G17: TRUE | H17: FALSE
A18: 65 - 69 | B18: 123556 | C18: 54761 | D18: 68795 | E18: FALSE | F18: TRUE | G18: TRUE | H18: FALSE
A19: 70 i więcej | B19: 202162 | C19: 72855 | D19: 129307 | E19: TRUE | F19: FALSE | G19: TRUE | H19: FALSE
A20: 65+ | B20: =SUM(B18:B19) -> 325718 | C20: =SUM(C18:C19) -> 127616 | D20: =SUM(D18:D19) -> 198102 | E20: TRUE | F20: TRUE | G20: FALSE | H20: FALSE
A21: Bydgoszcz | B21: 354990 | C21: 166985 | D21: 188005 | E21: TRUE | F21: TRUE | G21: TRUE | H21: TRUE
A22: 0 - 4 | B22: 15713 | C22: 8106 | D22: 7607 | E22: FALSE | F22: TRUE | G22: TRUE | H22: FALSE
A23: 5 - 9 | B23: 17067 | C23: 8780 | D23: 8287 | E23: FALSE | F23: TRUE | G23: TRUE | H23: FALSE
A24: 10 - 14 | B24: 13943 | C24: 7175 | D24: 6768 | E24: FALSE | F24: TRUE | G24: TRUE | H24: FALSE
A25: 15 - 19 | B25: 15430 | C25: 7888 | D25: 7542 | E25: FALSE | F25: TRUE | G25: TRUE | H25: FALSE
A26: 20 - 24 | B26: 19017 | C26: 9481 | D26: 9536 | E26: FALSE | F26: TRUE | G26: TRUE | H26: FALSE
A27: 25 - 29 | B27: 24790 | C27: 12190 | D27: 12600 | E27: FALSE | F27: TRUE | G27: TRUE | H27: FALSE
A28: 30 - 34 | B28: 31061 | C28: 15475 | D28: 15586 | E28: FALSE | F28: TRUE | G28: TRUE | H28: FALSE
A29: 35 - 39 | B29: 28940 | C29: 14486 | D29: 14454 | E29: FALSE | F29: TRUE | G29: TRUE | H29: FALSE
A30: 40 - 44 | B30: 25198 | C30: 12434 | D30: 12764 | E30: FALSE | F30: TRUE | G30: TRUE | H30: FALSE
A31: 45 - 49 | B31: 20827 | C31: 10058 | D31: 10769 | E31: FALSE | F31: TRUE | G31: TRUE | H31: FALSE
A32: 50 - 54 | B32: 20739 | C32: 9963 | D32: 10776 | E32: FALSE | F32: TRUE | G32: TRUE | H32: FALSE
A33: 55 - 59 | B33: 26125 | C33: 12124 | D33: 14001 | E33: FALSE | F33: TRUE | G33: TRUE | H33: FALSE
A34: 60 - 64 | B34: 28127 | C34: 12527 | D34: 15600 | E34: FALSE | F34: TRUE | G34: TRUE | H34: FALSE
A35: 65 - 69 | B35: 24681 | C35: 10427 | D35: 14254 | E35: FALSE | F35: TRUE | G35: TRUE | H35: FALSE
A36: 70 i więcej | B36: 43332 | C36: 15871 | D36: 27461 | E36: TRUE | F36: FALSE | G36: TRUE | H36: FALSE
A37: 65+ | B37: =SUM(B35:B36) -> 68013 | C37: =SUM(C35:C36) -> 26298 | D37: =SUM(D35:D36) -> 41715 | E37: TRUE | F37: TRUE | G37: FALSE | H37: FALSE
A38: Grudziądz | B38: 96111 | C38: 45728 | D38: 50383 | E38: TRUE | F38: TRUE | G38: TRUE | H38: TRUE
A39: 0 - 4 | B39: 4388 | C39: 2239 | D39: 2149 | E39: FALSE | F39: TRUE | G39: TRUE | H39: FALSE
A40: 5 - 9 | B40: 5162 | C40: 2684 | D40: 2478 | E40: FALSE | F40: TRUE | G40: TRUE | H40: FALSE
A41: 10 - 14 | B41: 4287 | C41: 2213 | D41: 2074 | E41: FALSE | F41: TRUE | G41: TRUE | H41: FALSE
A42: 15 - 19 | B42: 4775 | C42: 2408 | D42: 2367 | E42: FALSE | F42: TRUE | G42: TRUE | H42: FALSE
A43: 20 - 24 | B43: 5168 | C43: 2580 | D43: 2588 | E43: FALSE | F43: TRUE | G43: TRUE | H43: FALSE
A44: 25 - 29 | B44: 6710 | C44: 3422 | D44: 3288 | E44: FALSE | F44: TRUE | G44: TRUE | H44: FALSE
A45: 30 - 34 | B45: 7864 | C45: 4018 | D45: 3846 | E45: FALSE | F45: TRUE | G45: TRUE | H45: FALSE
A46: 35 - 39 | B46: 7414 | C46: 3791 | D46: 3623 | E46: FALSE | F46: TRUE | G46: TRUE | H46: FALSE
A47: 40 - 44 | B47: 6511 | C47: 3323 | D47: 3188 | E47: FALSE | F47: TRUE | G47: TRUE | H47: FALSE
A48: 45 - 49 | B48: 5606 | C48: 2723 | D48: 2883 | E48: FALSE | F48: TRUE | G48: TRUE | H48: FALSE
A49: 50 - 54 | B49: 6315 | C49: 2990 | D49: 3325 | E49: FALSE | F49: TRUE | G49: TRUE | H49: FALSE
A50: 55 - 59 | B50: 7746 | C50: 3582 | D50: 4164 | E50: FALSE | F50: TRUE | G50: TRUE | H50: FALSE
A51: 60 - 64 | B51: 7621 | C51: 3488 | D51: 4133 | E51: FALSE | F51: TRUE | G51: TRUE | H51: FALSE
A52: 65 - 69 | B52: 6080 | C52: 2624 | D52: 3456 | E52: FALSE | F52: TRUE | G52: TRUE | H52: FALSE
A53: 70 i więcej | B53: 10464 | C53: 3643 | D53: 6821 | E53: TRUE | F53: FALSE | G53: TRUE | H53: FALSE
A54: 65+ | B54: =SUM(B52:B53) -> 16544 | C54: =SUM(C52:C53) -> 6267 | D54: =SUM(D52:D53) -> 10277 | E54: TRUE | F54: TRUE | G54: FALSE | H54: FALSE
A55: Toruń | B55: 202591 | C55: 94223 | D55: 108368 | E55: TRUE | F55: TRUE | G55: TRUE | H55: TRUE
A56: 0 - 4 | B56: 9553 | C56: 4873 | D56: 4680 | E56: FALSE | F56: TRUE | G56: TRUE | H56: FALSE
A57: 5 - 9 | B57: 9978 | C57: 5048 | D57: 4930 | E57: FALSE | F57: TRUE | G57: TRUE | H57: FALSE
A58: 10 - 14 | B58: 8335 | C58: 4238 | D58: 4097 | E58: FALSE | F58: TRUE | G58: TRUE | H58: FALSE
A59: 15 - 19 | B59: 9521 | C59: 4805 | D59: 4716 | E59: FALSE | F59: TRUE | G59: TRUE | H59: FALSE
A60: 20 - 24 | B60: 11461 | C60: 5629 | D60: 5832 | E60: FALSE | F60: TRUE | G60: TRUE | H60: FALSE
A61: 25 - 29 | B61: 14720 | C61: 7186 | D61: 7534 | E61: FALSE | F61: TRUE | G61: TRUE | H61: FALSE
A62: 30 - 34 | B62: 18897 | C62: 9320 | D62: 9577 | E62: FALSE | F62: TRUE | G62: TRUE | H62: FALSE
A63: 35 - 39 | B63: 17129 | C63: 8485 | D63: 8644 | E63: FALSE | F63: TRUE | G63: TRUE | H63: FALSE
A64: 40 - 44 | B64: 14531 | C64: 7090 | D64: 7441 | E64: FALSE | F64: TRUE | G64: TRUE | H64: FALSE
A65: 45 - 49 | B65: 11551 | C65: 5486 | D65: 6065 | E65: FALSE | F65: TRUE | G65: TRUE | H65: FALSE
A66: 50 - 54 | B66: 11649 | C66: 5392 | D66: 6257 | E66: FALSE | F66: TRUE | G66: TRUE | H66: FALSE
A67: 55 - 59 | B67: 14878 | C67: 6627 | D67: 8251 | E67: FALSE | F67: TRUE | G67: TRUE | H67: FALSE
A68: 60 - 64 | B68: 15475 | C68: 6692 | D68: 8783 | E68: FALSE | F68: TRUE | G68: TRUE | H68: FALSE
A69: 65 - 69 | B69: 13538 | C69: 5733 | D69: 7805 | E69: =IFERROR(IF(SEARCH(" - ",A69)>0,FALSE,TRUE),TRUE) -> FALSE | F69: =IFERROR(IF(SEARCH("70",A69)>0,FALSE,TRUE),TRUE) -> TRUE | G69: =IFERROR(IF(SEARCH("65+",A69)>0,FALSE,TRUE),TRUE) -> TRUE | H69: =AND(E69:G69) -> FALSE
A70: 70 i więcej | B70: 21375 | C70: 7619 | D70: 13756 | E70: TRUE | F70: FALSE | G70: TRUE | H70: FALSE
A71: 65+ | B71: =SUM(B69:B70) -> 34913 | C71: =SUM(C69:C70) -> 13352 | D71: =SUM(D69:D70) -> 21561 | E71: TRUE | F71: TRUE | G71: FALSE | H71: FALSE
A72: Włocławek | B72: 112635 | C72: 53071 | D72: 59564 | E72: TRUE | F72: TRUE | G72: TRUE | H72: TRUE
A73: 0 - 4 | B73: 4663 | C73: 2399 | D73: 2264 | E73: FALSE | F73: TRUE | G73: TRUE | H73: FALSE
A74: 5 - 9 | B74: 5345 | C74: 2730 | D74: 2615 | E74: FALSE | F74: TRUE | G74: TRUE | H74: FALSE
A75: 10 - 14 | B75: 4856 | C75: 2458 | D75: 2398 | E75: FALSE | F75: TRUE | G75: TRUE | H75: FALSE
A76: 15 - 19 | B76: 5475 | C76: 2862 | D76: 2613 | E76: FALSE | F76: TRUE | G76: TRUE | H76: FALSE
A77: 20 - 24 | B77: 6342 | C77: 3250 | D77: 3092 | E77: FALSE | F77: TRUE | G77: TRUE | H77: FALSE
A78: 25 - 29 | B78: 7228 | C78: 3671 | D78: 3557 | E78: FALSE | F78: TRUE | G78: TRUE | H78: FALSE
A79: 30 - 34 | B79: 8635 | C79: 4451 | D79: 4184 | E79: FALSE | F79: TRUE | G79: TRUE | H79: FALSE
A80: 35 - 39 | B80: 8952 | C80: 4491 | D80: 4461 | E80: FALSE | F80: TRUE | G80: TRUE | H80: FALSE
A81: 40 - 44 | B81: 8497 | C81: 4268 | D81: 4229 | E81: FALSE | F81: TRUE | G81: TRUE | H81: FALSE
A82: 45 - 49 | B82: 7210 | C82: 3511 | D82: 3699 | E82: FALSE | F82: TRUE | G82: TRUE | H82: FALSE
A83: 50 - 54 | B83: 6958 | C83: 3220 | D83: 3738 | E83: FALSE | F83: TRUE | G83: TRUE | H83: FALSE
A84: 55 - 59 | B84: 8865 | C84: 4019 | D84: 4846 | E84: FALSE | F84: TRUE | G84: TRUE | H84: FALSE
A85: 60 - 64 | B85: 9357 | C85: 4051 | D85: 5306 | E85: FALSE | F85: TRUE | G85: TRUE | H85: FALSE
A86: 65 - 69 | B86: 8189 | C86: 3446 | D86: 4743 | E86: FALSE | F86: TRUE | G86: TRUE | H86: FALSE
A87: 70 i więcej | B87: 12063 | C87: 4244 | D87: 7819 | E87: TRUE | F87: FALSE | G87: TRUE | H87: FALSE
A88: 65+ | B88: =SUM(B86:B87) -> 20252 | C88: =SUM(C86:C87) -> 7690 | D88: =SUM(D86:D87) -> 12562 | E88: TRUE | F88: TRUE | G88: FALSE | H88: FALSE
A89: aleksandrowski | B89: 55477 | C89: 26898 | D89: 28579 | E89: TRUE | F89: TRUE | G89: TRUE | H89: TRUE
A90: 0 - 4 | B90: 2455 | C90: 1261 | D90: 1194 | E90: FALSE | F90: TRUE | G90: TRUE | H90: FALSE
A91: 5 - 9 | B91: 2934 | C91: 1468 | D91: 1466 | E91: FALSE | F91: TRUE | G91: TRUE | H91: FALSE
A92: 10 - 14 | B92: 2682 | C92: 1396 | D92: 1286 | E92: FALSE | F92: TRUE | G92: TRUE | H92: FALSE
A93: 15 - 19 | B93: 2928 | C93: 1556 | D93: 1372 | E93: FALSE | F93: TRUE | G93: TRUE | H93: FALSE
A94: 20 - 24 | B94: 3513 | C94: 1777 | D94: 1736 | E94: FALSE | F94: TRUE | G94: TRUE | H94: FALSE
A95: 25 - 29 | B95: 4058 | C95: 2072 | D95: 1986 | E95: FALSE | F95: TRUE | G95: TRUE | H95: FALSE
A96: 30 - 34 | B96: 4492 | C96: 2345 | D96: 2147 | E96: FALSE | F96: TRUE | G96: TRUE | H96: FALSE
A97: 35 - 39 | B97: 4174 | C97: 2110 | D97: 2064 | E97: FALSE | F97: TRUE | G97: TRUE | H97: FALSE
A98: 40 - 44 | B98: 3992 | C98: 2074 | D98: 1918 | E98: FALSE | F98: TRUE | G98: TRUE | H98: FALSE
A99: 45 - 49 | B99: 3387 | C99: 1695 | D99: 1692 | E99: FALSE | F99: TRUE | G99: TRUE | H99: FALSE
A100: 50 - 54 | B100: 3483 | C100: 1682 | D100: 1801 | E100: FALSE | F100: TRUE | G100: TRUE | H100: FALSE
A101: 55 - 59 | B101: 4260 | C101: 2068 | D101: 2192 | E101: FALSE | F101: TRUE | G101: TRUE | H101: FALSE
A102: 60 - 64 | B102: 4008 | C102: 1913 | D102: 2095 | E102: FALSE | F102: TRUE | G102: TRUE | H102: FALSE
A103: 65 - 69 | B103: 3353 | C103: 1450 | D103: 1903 | E103: FALSE | F103: TRUE | G103: TRUE | H103: FALSE
A104: 70 i więcej | B104: 5758 | C104: 2031 | D104: 3727 | E104: TRUE | F104: FALSE | G104: TRUE | H104: FALSE
A105: 65+ | B105: =SUM(B103:B104) -> 9111 | C105: =SUM(C103:C104) -> 3481 | D105: =SUM(D103:D104) -> 5630 | E105: TRUE | F105: TRUE | G105: FALSE | H105: FALSE
A106: brodnicki | B106: 78411 | C106: 38886 | D106: 39525 | E106: TRUE | F106: TRUE | G106: TRUE | H106: TRUE
A107: 0 - 4 | B107: 4301 | C107: 2215 | D107: 2086 | E107: FALSE | F107: TRUE | G107: TRUE | H107: FALSE
A108: 5 - 9 | B108: 4858 | C108: 2536 | D108: 2322 | E108: FALSE | F108: TRUE | G108: TRUE | H108: FALSE
A109: 10 - 14 | B109: 4149 | C109: 2166 | D109: 1983 | E109: FALSE | F109: TRUE | G109: TRUE | H109: FALSE
A110: 15 - 19 | B110: 4587 | C110: 2408 | D110: 2179 | E110: FALSE | F110: TRUE | G110: TRUE | H110: FALSE
A111: 20 - 24 | B111: 5552 | C111: 2815 | D111: 2737 | E111: FALSE | F111: TRUE | G111: TRUE | H111: FALSE
A112: 25 - 29 | B112: 6218 | C112: 3210 | D112: 3008 | E112: FALSE | F112: TRUE | G112: TRUE | H112: FALSE
A113: 30 - 34 | B113: 6626 | C113: 3458 | D113: 3168 | E113: FALSE | F113: TRUE | G113: TRUE | H113: FALSE
A114: 35 - 39 | B114: 6054 | C114: 3160 | D114: 2894 | E114: FALSE | F114: TRUE | G114: TRUE | H114: FALSE
A115: 40 - 44 | B115: 5514 | C115: 2788 | D115: 2726 | E115: FALSE | F115: TRUE | G115: TRUE | H115: FALSE
A116: 45 - 49 | B116: 4695 | C116: 2385 | D116: 2310 | E116: FALSE | F116: TRUE | G116: TRUE | H116: FALSE
A117: 50 - 54 | B117: 4963 | C117: 2509 | D117: 2454 | E117: FALSE | F117: TRUE | G117: TRUE | H117: FALSE
A118: 55 - 59 | B118: 5448 | C118: 2746 | D118: 2702 | E118: FALSE | F118: TRUE | G118: TRUE | H118: FALSE
A119: 60 - 64 | B119: 4924 | C119: 2391 | D119: 2533 | E119: FALSE | F119: TRUE | G119: TRUE | H119: FALSE
A120: 65 - 69 | B120: 3928 | C120: 1774 | D120: 2154 | E120: FALSE | F120: TRUE | G120: TRUE | H120: FALSE
A121: 70 i więcej | B121: 6594 | C121: 2325 | D121: 4269 | E121: TRUE | F121: FALSE | G121: TRUE | H121: FALSE
A122: 65+ | B122: =SUM(B120:B121) -> 10522 | C122: =SUM(C120:C121) -> 4099 | D122: =SUM(D120:D121) -> 6423 | E122: TRUE | F122: TRUE | G122: FALSE | H122: FALSE
A123: bydgoski | B123: 113680 | C123: 56262 | D123: 57418 | E123: TRUE | F123: TRUE | G123: TRUE | H123: TRUE
A124: 0 - 4 | B124: 5604 | C124: 2947 | D124: 2657 | E124: FALSE | F124: TRUE | G124: TRUE | H124: FALSE
A125: 5 - 9 | B125: 7271 | C125: 3715 | D125: 3556 | E125: FALSE | F125: TRUE | G125: TRUE | H125: FALSE
A126: 10 - 14 | B126: 6571 | C126: 3433 | D126: 3138 | E126: FALSE | F126: TRUE | G126: TRUE | H126: FALSE
A127: 15 - 19 | B127: 6652 | C127: 3384 | D127: 3268 | E127: FALSE | F127: TRUE | G127: TRUE | H127: FALSE
A128: 20 - 24 | B128: 7674 | C128: 3923 | D128: 3751 | E128: FALSE | F128: TRUE | G128: TRUE | H128: FALSE
A129: 25 - 29 | B129: 7916 | C129: 4021 | D129: 3895 | E129: FALSE | F129: TRUE | G129: TRUE | H129: FALSE
A130: 30 - 34 | B130: 9191 | C130: 4600 | D130: 4591 | E130: FALSE | F130: TRUE | G130: TRUE | H130: FALSE
A131: 35 - 39 | B131: 9583 | C131: 4711 | D131: 4872 | E131: FALSE | F131: TRUE | G131: TRUE | H131: FALSE
A132: 40 - 44 | B132: 9399 | C132: 4778 | D132: 4621 | E132: FALSE | F132: TRUE | G132: TRUE | H132: FALSE
A133: 45 - 49 | B133: 7848 | C133: 4010 | D133: 3838 | E133: =IFERROR(IF(SEARCH(" - ",A133)>0,FALSE,TRUE),TRUE) -> FALSE | F133: =IFERROR(IF(SEARCH("70",A133)>0,FALSE,TRUE),TRUE) -> TRUE | G133: =IFERROR(IF(SEARCH("65+",A133)>0,FALSE,TRUE),TRUE) -> TRUE | H133: =AND(E133:G133) -> FALSE
A134: 50 - 54 | B134: 7189 | C134: 3614 | D134: 3575 | E134: FALSE | F134: TRUE | G134: TRUE | H134: FALSE
A135: 55 - 59 | B135: 7849 | C135: 3952 | D135: 3897 | E135: FALSE | F135: TRUE | G135: TRUE | H135: FALSE
A136: 60 - 64 | B136: 6985 | C136: 3391 | D136: 3594 | E136: FALSE | F136: TRUE | G136: TRUE | H136: FALSE
A137: 65 - 69 | B137: 5699 | C137: 2664 | D137: 3035 | E137: FALSE | F137: TRUE | G137: TRUE | H137: FALSE
A138: 70 i więcej | B138: 8249 | C138: 3119 | D138: 5130 | E138: TRUE | F138: FALSE | G138: TRUE | H138: FALSE
A139: 65+ | B139: =SUM(B137:B138) -> 13948 | C139: =SUM(C137:C138) -> 5783 | D139: =SUM(D137:D138) -> 8165 | E139: TRUE | F139: TRUE | G139: FALSE | H139: FALSE
A140: chełmiński | B140: 52345 | C140: 25713 | D140: 26632 | E140: TRUE | F140: TRUE | G140: TRUE | H140: TRUE
A141: 0 - 4 | B141: 2591 | C141: 1343 | D141: 1248 | E141: FALSE | F141: TRUE | G141: TRUE | H141: FALSE
A142: 5 - 9 | B142: 3057 | C142: 1588 | D142: 1469 | E142: FALSE | F142: TRUE | G142: TRUE | H142: FALSE
A143: 10 - 14 | B143: 2753 | C143: 1400 | D143: 1353 | E143: FALSE | F143: TRUE | G143: TRUE | H143: FALSE
A144: 15 - 19 | B144: 2929 | C144: 1493 | D144: 1436 | E144: FALSE | F144: TRUE | G144: TRUE | H144: FALSE
A145: 20 - 24 | B145: 3582 | C145: 1832 | D145: 1750 | E145: FALSE | F145: TRUE | G145: TRUE | H145: FALSE
A146: 25 - 29 | B146: 3915 | C146: 2031 | D146: 1884 | E146: FALSE | F146: TRUE | G146: TRUE | H146: FALSE
A147: 30 - 34 | B147: 4493 | C147: 2295 | D147: 2198 | E147: FALSE | F147: TRUE | G147: TRUE | H147: FALSE
A148: 35 - 39 | B148: 4034 | C148: 2047 | D148: 1987 | E148: FALSE | F148: TRUE | G148: TRUE | H148: FALSE
A149: 40 - 44 | B149: 3739 | C149: 1903 | D149: 1836 | E149: FALSE | F149: TRUE | G149: TRUE | H149: FALSE
A150: 45 - 49 | B150: 3263 | C150: 1647 | D150: 1616 | E150: FALSE | F150: TRUE | G150: TRUE | H150: FALSE
A151: 50 - 54 | B151: 3358 | C151: 1668 | D151: 1690 | E151: FALSE | F151: TRUE | G151: TRUE | H151: FALSE
A152: 55 - 59 | B152: 3847 | C152: 1903 | D152: 1944 | E152: FALSE | F152: TRUE | G152: TRUE | H152: FALSE
A153: 60 - 64 | B153: 3520 | C153: 1686 | D153: 1834 | E153: FALSE | F153: TRUE | G153: TRUE | H153: FALSE
A154: 65 - 69 | B154: 2746 | C154: 1238 | D154: 1508 | E154: FALSE | F154: TRUE | G154: TRUE | H154: FALSE
A155: 70 i więcej | B155: 4518 | C155: 1639 | D155: 2879 | E155: TRUE | F155: FALSE | G155: TRUE | H155: FALSE
A156: 65+ | B156: =SUM(B154:B155) -> 7264 | C156: =SUM(C154:C155) -> 2877 | D156: =SUM(D154:D155) -> 4387 | E156: TRUE | F156: TRUE | G156: FALSE | H156: FALSE
A157: golubsko-dobrzyński | B157: 45290 | C157: 22408 | D157: 22882 | E157: TRUE | F157: TRUE | G157: TRUE | H157: TRUE
A158: 0 - 4 | B158: 2336 | C158: 1165 | D158: 1171 | E158: FALSE | F158: TRUE | G158: TRUE | H158: FALSE
A159: 5 - 9 | B159: 2582 | C159: 1350 | D159: 1232 | E159: FALSE | F159: TRUE | G159: TRUE | H159: FALSE
A160: 10 - 14 | B160: 2431 | C160: 1257 | D160: 1174 | E160: FALSE | F160: TRUE | G160: TRUE | H160: FALSE
A161: 15 - 19 | B161: 2658 | C161: 1366 | D161: 1292 | E161: FALSE | F161: TRUE | G161: TRUE | H161: FALSE
A162: 20 - 24 | B162: 3343 | C162: 1676 | D162: 1667 | E162: FALSE | F162: TRUE | G162: TRUE | H162: FALSE
A163: 25 - 29 | B163: 3564 | C163: 1785 | D163: 1779 | E163: FALSE | F163: TRUE | G163: TRUE | H163: FALSE
A164: 30 - 34 | B164: 3674 | C164: 1965 | D164: 1709 | E164: FALSE | F164: TRUE | G164: TRUE | H164: FALSE
A165: 35 - 39 | B165: 3376 | C165: 1762 | D165: 1614 | E165: FALSE | F165: TRUE | G165: TRUE | H165: FALSE
A166: 40 - 44 | B166: 3048 | C166: 1537 | D166: 1511 | E166: FALSE | F166: TRUE | G166: TRUE | H166: FALSE
A167: 45 - 49 | B167: 2886 | C167: 1463 | D167: 1423 | E167: FALSE | F167: TRUE | G167: TRUE | H167: FALSE
A168: 50 - 54 | B168: 2954 | C168: 1561 | D168: 1393 | E168: FALSE | F168: TRUE | G168: TRUE | H168: FALSE
A169: 55 - 59 | B169: 3157 | C169: 1589 | D169: 1568 | E169: FALSE | F169: TRUE | G169: TRUE | H169: FALSE
A170: 60 - 64 | B170: 2912 | C170: 1406 | D170: 1506 | E170: FALSE | F170: TRUE | G170: TRUE | H170: FALSE
A171: 65 - 69 | B171: 2268 | C171: 1055 | D171: 1213 | E171: FALSE | F171: TRUE | G171: TRUE | H171: FALSE
A172: 70 i więcej | B172: 4101 | C172: 1471 | D172: 2630 | E172: TRUE | F172: FALSE | G172: TRUE | H172: FALSE
A173: 65+ | B173: =SUM(B171:B172) -> 6369 | C173: =SUM(C171:C172) -> 2526 | D173: =SUM(D171:D172) -> 3843 | E173: TRUE | F173: TRUE | G173: FALSE | H173: FALSE
A174: grudziądzki | B174: 40316 | C174: 20166 | D174: 20150 | E174: TRUE | F174: TRUE | G174: TRUE | H174: TRUE
A175: 0 - 4 | B175: 2113 | C175: 1058 | D175: 1055 | E175: FALSE | F175: TRUE | G175: TRUE | H175: FALSE
A176: 5 - 9 | B176: 2552 | C176: 1289 | D176: 1263 | E176: FALSE | F176: TRUE | G176: TRUE | H176: FALSE
A177: 10 - 14 | B177: 2302 | C177: 1220 | D177: 1082 | E177: FALSE | F177: TRUE | G177: TRUE | H177: FALSE
A178: 15 - 19 | B178: 2403 | C178: 1279 | D178: 1124 | E178: FALSE | F178: TRUE | G178: TRUE | H178: FALSE
A179: 20 - 24 | B179: 3053 | C179: 1549 | D179: 1504 | E179: FALSE | F179: TRUE | G179: TRUE | H179: FALSE
A180: 25 - 29 | B180: 3026 | C180: 1577 | D180: 1449 | E180: FALSE | F180: TRUE | G180: TRUE | H180: FALSE
A181: 30 - 34 | B181: 3048 | C181: 1571 | D181: 1477 | E181: FALSE | F181: TRUE | G181: TRUE | H181: FALSE
A182: 35 - 39 | B182: 3028 | C182: 1550 | D182: 1478 | E182: FALSE | F182: TRUE | G182: TRUE | H182: FALSE
A183: 40 - 44 | B183: 3002 | C183: 1533 | D183: 1469 | E183: FALSE | F183: TRUE | G183: TRUE | H183: FALSE
A184: 45 - 49 | B184: 2632 | C184: 1355 | D184: 1277 | E184: FALSE | F184: TRUE | G184: TRUE | H184: FALSE
A185: 50 - 54 | B185: 2660 | C185: 1359 | D185: 1301 | E185: FALSE | F185: TRUE | G185: TRUE | H185: FALSE
A186: 55 - 59 | B186: 2828 | C186: 1468 | D186: 1360 | E186: FALSE | F186: TRUE | G186: TRUE | H186: FALSE
A187: 60 - 64 | B187: 2477 | C187: 1218 | D187: 1259 | E187: FALSE | F187: TRUE | G187: TRUE | H187: FALSE
A188: 65 - 69 | B188: 2024 | C188: 979 | D188: 1045 | E188: FALSE | F188: TRUE | G188: TRUE | H188: FALSE
A189: 70 i więcej | B189: 3168 | C189: 1161 | D189: 2007 | E189: TRUE | F189: FALSE | G189: TRUE | H189: FALSE
A190: 65+ | B190: =SUM(B188:B189) -> 5192 | C190: =SUM(C188:C189) -> 2140 | D190: =SUM(D188:D189) -> 3052 | E190: TRUE | F190: TRUE | G190: FALSE | H190: FALSE
A191: inowrocławski | B191: 162157 | C191: 78648 | D191: 83509 | E191: TRUE | F191: TRUE | G191: TRUE | H191: TRUE
A192: 0 - 4 | B192: 7075 | C192: 3665 | D192: 3410 | E192: FALSE | F192: TRUE | G192: TRUE | H192: FALSE
A193: 5 - 9 | B193: 8204 | C193: 4192 | D193: 4012 | E193: FALSE | F193: TRUE | G193: TRUE | H193: FALSE
A194: 10 - 14 | B194: 7344 | C194: 3756 | D194: 3588 | E194: FALSE | F194: TRUE | G194: TRUE | H194: FALSE
A195: 15 - 19 | B195: 8307 | C195: 4178 | D195: 4129 | E195: FALSE | F195: TRUE | G195: TRUE | H195: FALSE
A196: 20 - 24 | B196: 10417 | C196: 5369 | D196: 5048 | E196: FALSE | F196: TRUE | G196: TRUE | H196: FALSE
A197: 25 - 29 | B197: 11762 | C197: 6123 | D197: 5639 | E197: =IFERROR(IF(SEARCH(" - ",A197)>0,FALSE,TRUE),TRUE) -> FALSE | F197: =IFERROR(IF(SEARCH("70",A197)>0,FALSE,TRUE),TRUE) -> TRUE | G197: =IFERROR(IF(SEARCH("65+",A197)>0,FALSE,TRUE),TRUE) -> TRUE | H197: =AND(E197:G197) -> FALSE
A198: 30 - 34 | B198: 13295 | C198: 6913 | D198: 6382 | E198: FALSE | F198: TRUE | G198: TRUE | H198: FALSE
A199: 35 - 39 | B199: 12598 | C199: 6470 | D199: 6128 | E199: FALSE | F199: TRUE | G199: TRUE | H199: FALSE
A200: 40 - 44 | B200: 11722 | C200: 5943 | D200: 5779 | E200: FALSE | F200: TRUE | G200: TRUE | H200: FALSE
A201: 45 - 49 | B201: 10370 | C201: 5139 | D201: 5231 | E201: FALSE | F201: TRUE | G201: TRUE | H201: FALSE
A202: 50 - 54 | B202: 10949 | C202: 5304 | D202: 5645 | E202: FALSE | F202: TRUE | G202: TRUE | H202: FALSE
... 209 more rows

Sheet Lubelskie (hidden)
A1: Województwa Powiaty Grupy wieku | B1: Ogółem | C1: Mężczyźni | D1: Kobiety
A4: Lubelskie | B4: 2135715 | C4: 1034911 | D4: 1100804 | E4: =IFERROR(IF(SEARCH(" - ",A4)>0,FALSE,TRUE),TRUE) -> TRUE | F4: =IFERROR(IF(SEARCH(" 70 ",A4)>0,FALSE,TRUE),TRUE) -> TRUE | G4: =IFERROR(IF(SEARCH("65+",A4)>0,FALSE,TRUE),TRUE) -> TRUE | H4: =AND(E4:G4) -> TRUE
A5: 0 - 4 | B5: 98952 | C5: 50350 | D5: 48602 | E5: =IFERROR(IF(SEARCH(" - ",A5)>0,FALSE,TRUE),TRUE) -> FALSE | F5: =IFERROR(IF(SEARCH(" 70 ",A5)>0,FALSE,TRUE),TRUE) -> TRUE | G5: =IFERROR(IF(SEARCH(" 65+ ",A5)>0,FALSE,TRUE),TRUE) -> TRUE | H5: =AND(E5:G5) -> FALSE
A6: 5 - 9 | B6: 111204 | C6: 56772 | D6: 54432 | E6: FALSE | F6: TRUE | G6: TRUE | H6: FALSE
A7: 10 - 14 | B7: 102783 | C7: 52759 | D7: 50024 | E7: FALSE | F7: TRUE | G7: TRUE | H7: FALSE
A8: 15 - 19 | B8: 116259 | C8: 59596 | D8: 56663 | E8: FALSE | F8: TRUE | G8: TRUE | H8: FALSE
A9: 20 - 24 | B9: 141054 | C9: 72041 | D9: 69013 | E9: FALSE | F9: TRUE | G9: TRUE | H9: FALSE
A10: 25 - 29 | B10: 159367 | C10: 82407 | D10: 76960 | E10: FALSE | F10: TRUE | G10: TRUE | H10: FALSE
A11: 30 - 34 | B11: 173253 | C11: 89846 | D11: 83407 | E11: FALSE | F11: TRUE | G11: TRUE | H11: FALSE
A12: 35 - 39 | B12: 163050 | C12: 84003 | D12: 79047 | E12: FALSE | F12: TRUE | G12: TRUE | H12: FALSE
A13: 40 - 44 | B13: 149100 | C13: 76112 | D13: 72988 | E13: FALSE | F13: TRUE | G13: TRUE | H13: FALSE
A14: 45 - 49 | B14: 131321 | C14: 66235 | D14: 65086 | E14: FALSE | F14: TRUE | G14: TRUE | H14: FALSE
A15: 50 - 54 | B15: 133476 | C15: 66383 | D15: 67093 | E15: FALSE | F15: TRUE | G15: TRUE | H15: FALSE
A16: 55 - 59 | B16: 152026 | C16: 73801 | D16: 78225 | E16: FALSE | F16: TRUE | G16: TRUE | H16: FALSE
A17: 60 - 64 | B17: 148679 | C17: 69529 | D17: 79150 | E17: FALSE | F17: TRUE | G17: TRUE | H17: FALSE
A18: 65 - 69 | B18: 119104 | C18: 51977 | D18: 67127 | E18: FALSE | F18: TRUE | G18: TRUE | H18: FALSE
A19: 70 i więcej | B19: 236087 | C19: 83100 | D19: 152987 | E19: TRUE | F19: FALSE | G19: TRUE | H19: FALSE
A20: 65+ | B20: =SUM(B18:B19) -> 355191 | C20: =SUM(C18:C19) -> 135077 | D20: =SUM(D18:D19) -> 220114 | E20: TRUE | F20: TRUE | G20: =IFERROR(IF(SEARCH("65+",A20)>0,FALSE,TRUE),TRUE) -> FALSE | H20: FALSE
A21: Biała Podlaska | B21: 57389 | C21: 27527 | D21: 29862 | E21: TRUE | F21: TRUE | G21: TRUE | H21: TRUE
A22: 0 - 4 | B22: 2778 | C22: 1401 | D22: 1377 | E22: FALSE | F22: TRUE | G22: TRUE | H22: FALSE
A23: 5 - 9 | B23: 3075 | C23: 1574 | D23: 1501 | E23: FALSE | F23: TRUE | G23: TRUE | H23: FALSE
A24: 10 - 14 | B24: 2564 | C24: 1318 | D24: 1246 | E24: FALSE | F24: TRUE | G24: TRUE | H24: FALSE
A25: 15 - 19 | B25: 3162 | C25: 1558 | D25: 1604 | E25: FALSE | F25: TRUE | G25: TRUE | H25: FALSE
A26: 20 - 24 | B26: 3526 | C26: 1783 | D26: 1743 | E26: FALSE | F26: TRUE | G26: TRUE | H26: FALSE
A27: 25 - 29 | B27: 4794 | C27: 2584 | D27: 2210 | E27: FALSE | F27: TRUE | G27: TRUE | H27: FALSE
A28: 30 - 34 | B28: 4959 | C28: 2599 | D28: 2360 | E28: FALSE | F28: TRUE | G28: TRUE | H28: FALSE
A29: 35 - 39 | B29: 4441 | C29: 2236 | D29: 2205 | E29: FALSE | F29: TRUE | G29: TRUE | H29: FALSE
A30: 40 - 44 | B30: 4020 | C30: 2017 | D30: 2003 | E30: FALSE | F30: TRUE | G30: TRUE | H30: FALSE
A31: 45 - 49 | B31: 3422 | C31: 1637 | D31: 1785 | E31: FALSE | F31: TRUE | G31: TRUE | H31: FALSE
A32: 50 - 54 | B32: 3688 | C32: 1691 | D32: 1997 | E32: FALSE | F32: TRUE | G32: TRUE | H32: FALSE
A33: 55 - 59 | B33: 4602 | C33: 2081 | D33: 2521 | E33: FALSE | F33: TRUE | G33: TRUE | H33: FALSE
A34: 60 - 64 | B34: 4527 | C34: 1930 | D34: 2597 | E34: FALSE | F34: TRUE | G34: TRUE | H34: FALSE
A35: 65 - 69 | B35: 3157 | C35: 1402 | D35: 1755 | E35: FALSE | F35: TRUE | G35: TRUE | H35: FALSE
A36: 70 i więcej | B36: 4674 | C36: 1716 | D36: 2958 | E36: TRUE | F36: FALSE | G36: TRUE | H36: FALSE
A37: 65+ | B37: =SUM(B35:B36) -> 7831 | C37: =SUM(C35:C36) -> 3118 | D37: =SUM(D35:D36) -> 4713 | E37: TRUE | F37: TRUE | G37: =IFERROR(IF(SEARCH("65+",A37)>0,FALSE,TRUE),TRUE) -> FALSE | H37: FALSE
A38: Chełm | B38: 63949 | C38: 30070 | D38: 33879 | E38: TRUE | F38: TRUE | G38: TRUE | H38: TRUE
A39: 0 - 4 | B39: 2555 | C39: 1278 | D39: 1277 | E39: FALSE | F39: TRUE | G39: TRUE | H39: FALSE
A40: 5 - 9 | B40: 3022 | C40: 1530 | D40: 1492 | E40: FALSE | F40: TRUE | G40: TRUE | H40: FALSE
A41: 10 - 14 | B41: 2604 | C41: 1371 | D41: 1233 | E41: FALSE | F41: TRUE | G41: TRUE | H41: FALSE
A42: 15 - 19 | B42: 2960 | C42: 1512 | D42: 1448 | E42: FALSE | F42: TRUE | G42: TRUE | H42: FALSE
A43: 20 - 24 | B43: 3775 | C43: 1974 | D43: 1801 | E43: FALSE | F43: TRUE | G43: TRUE | H43: FALSE
A44: 25 - 29 | B44: 4668 | C44: 2408 | D44: 2260 | E44: FALSE | F44: TRUE | G44: TRUE | H44: FALSE
A45: 30 - 34 | B45: 5300 | C45: 2737 | D45: 2563 | E45: FALSE | F45: TRUE | G45: TRUE | H45: FALSE
A46: 35 - 39 | B46: 5052 | C46: 2546 | D46: 2506 | E46: FALSE | F46: TRUE | G46: TRUE | H46: FALSE
A47: 40 - 44 | B47: 4498 | C47: 2233 | D47: 2265 | E47: FALSE | F47: TRUE | G47: TRUE | H47: FALSE
A48: 45 - 49 | B48: 3952 | C48: 1876 | D48: 2076 | E48: FALSE | F48: TRUE | G48: TRUE | H48: FALSE
A49: 50 - 54 | B49: 4250 | C49: 1970 | D49: 2280 | E49: FALSE | F49: TRUE | G49: TRUE | H49: FALSE
A50: 55 - 59 | B50: 5194 | C50: 2274 | D50: 2920 | E50: FALSE | F50: TRUE | G50: TRUE | H50: FALSE
A51: 60 - 64 | B51: 5428 | C51: 2316 | D51: 3112 | E51: FALSE | F51: TRUE | G51: TRUE | H51: FALSE
A52: 65 - 69 | B52: 4133 | C52: 1715 | D52: 2418 | E52: FALSE | F52: TRUE | G52: TRUE | H52: FALSE
A53: 70 i więcej | B53: 6558 | C53: 2330 | D53: 4228 | E53: TRUE | F53: FALSE | G53: TRUE | H53: FALSE
A54: 65+ | B54: =SUM(B52:B53) -> 10691 | C54: =SUM(C52:C53) -> 4045 | D54: =SUM(D52:D53) -> 6646 | E54: TRUE | F54: TRUE | G54: =IFERROR(IF(SEARCH("65+",A54)>0,FALSE,TRUE),TRUE) -> FALSE | H54: FALSE
A55: Lublin | B55: 340745 | C55: 156905 | D55: 183840 | E55: TRUE | F55: TRUE | G55: TRUE | H55: TRUE
A56: 0 - 4 | B56: 16551 | C56: 8388 | D56: 8163 | E56: FALSE | F56: TRUE | G56: TRUE | H56: FALSE
A57: 5 - 9 | B57: 16840 | C57: 8510 | D57: 8330 | E57: FALSE | F57: TRUE | G57: TRUE | H57: FALSE
A58: 10 - 14 | B58: 14135 | C58: 7165 | D58: 6970 | E58: FALSE | F58: TRUE | G58: TRUE | H58: FALSE
A59: 15 - 19 | B59: 14884 | C59: 7357 | D59: 7527 | E59: FALSE | F59: TRUE | G59: TRUE | H59: FALSE
A60: 20 - 24 | B60: 16735 | C60: 8388 | D60: 8347 | E60: FALSE | F60: TRUE | G60: TRUE | H60: FALSE
A61: 25 - 29 | B61: 26552 | C61: 12667 | D61: 13885 | E61: FALSE | F61: TRUE | G61: TRUE | H61: FALSE
A62: 30 - 34 | B62: 31055 | C62: 15215 | D62: 15840 | E62: FALSE | F62: TRUE | G62: TRUE | H62: FALSE
A63: 35 - 39 | B63: 27941 | C63: 13780 | D63: 14161 | E63: FALSE | F63: TRUE | G63: TRUE | H63: FALSE
A64: 40 - 44 | B64: 24982 | C64: 12127 | D64: 12855 | E64: FALSE | F64: TRUE | G64: TRUE | H64: FALSE
A65: 45 - 49 | B65: 20340 | C65: 9787 | D65: 10553 | E65: FALSE | F65: TRUE | G65: TRUE | H65: FALSE
A66: 50 - 54 | B66: 20009 | C66: 9323 | D66: 10686 | E66: FALSE | F66: TRUE | G66: TRUE | H66: FALSE
A67: 55 - 59 | B67: 23803 | C67: 10617 | D67: 13186 | E67: FALSE | F67: TRUE | G67: TRUE | H67: FALSE
A68: 60 - 64 | B68: 25738 | C68: 10944 | D68: 14794 | E68: FALSE | F68: TRUE | G68: TRUE | H68: FALSE
A69: 65 - 69 | B69: 21161 | C69: 8638 | D69: 12523 | E69: =IFERROR(IF(SEARCH(" - ",A69)>0,FALSE,TRUE),TRUE) -> FALSE | F69: =IFERROR(IF(SEARCH(" 70 ",A69)>0,FALSE,TRUE),TRUE) -> TRUE | G69: =IFERROR(IF(SEARCH(" 65+ ",A69)>0,FALSE,TRUE),TRUE) -> TRUE | H69: =AND(E69:G69) -> FALSE
A70: 70 i więcej | B70: 40019 | C70: 13999 | D70: 26020 | E70: TRUE | F70: FALSE | G70: TRUE | H70: FALSE
A71: 65+ | B71: =SUM(B69:B70) -> 61180 | C71: =SUM(C69:C70) -> 22637 | D71: =SUM(D69:D70) -> 38543 | E71: TRUE | F71: TRUE | G71: =IFERROR(IF(SEARCH("65+",A71)>0,FALSE,TRUE),TRUE) -> FALSE | H71: FALSE
A72: Zamość | B72: 64746 | C72: 30544 | D72: 34202 | E72: TRUE | F72: TRUE | G72: TRUE | H72: TRUE
A73: 0 - 4 | B73: 2848 | C73: 1426 | D73: 1422 | E73: FALSE | F73: TRUE | G73: TRUE | H73: FALSE
A74: 5 - 9 | B74: 3170 | C74: 1624 | D74: 1546 | E74: FALSE | F74: TRUE | G74: TRUE | H74: FALSE
A75: 10 - 14 | B75: 2684 | C75: 1380 | D75: 1304 | E75: FALSE | F75: TRUE | G75: TRUE | H75: FALSE
A76: 15 - 19 | B76: 3571 | C76: 1815 | D76: 1756 | E76: FALSE | F76: TRUE | G76: TRUE | H76: FALSE
A77: 20 - 24 | B77: 3779 | C77: 1921 | D77: 1858 | E77: FALSE | F77: TRUE | G77: TRUE | H77: FALSE
A78: 25 - 29 | B78: 4814 | C78: 2419 | D78: 2395 | E78: FALSE | F78: TRUE | G78: TRUE | H78: FALSE
A79: 30 - 34 | B79: 5790 | C79: 2982 | D79: 2808 | E79: FALSE | F79: TRUE | G79: TRUE | H79: FALSE
A80: 35 - 39 | B80: 5045 | C80: 2580 | D80: 2465 | E80: FALSE | F80: TRUE | G80: TRUE | H80: FALSE
A81: 40 - 44 | B81: 4246 | C81: 2089 | D81: 2157 | E81: FALSE | F81: TRUE | G81: TRUE | H81: FALSE
A82: 45 - 49 | B82: 3814 | C82: 1753 | D82: 2061 | E82: FALSE | F82: TRUE | G82: TRUE | H82: FALSE
A83: 50 - 54 | B83: 4119 | C83: 1862 | D83: 2257 | E83: FALSE | F83: TRUE | G83: TRUE | H83: FALSE
A84: 55 - 59 | B84: 5435 | C84: 2401 | D84: 3034 | E84: FALSE | F84: TRUE | G84: TRUE | H84: FALSE
A85: 60 - 64 | B85: 5298 | C85: 2371 | D85: 2927 | E85: FALSE | F85: TRUE | G85: TRUE | H85: FALSE
A86: 65 - 69 | B86: 3747 | C86: 1593 | D86: 2154 | E86: FALSE | F86: TRUE | G86: TRUE | H86: FALSE
A87: 70 i więcej | B87: 6386 | C87: 2328 | D87: 4058 | E87: TRUE | F87: FALSE | G87: TRUE | H87: FALSE
A88: 65+ | B88: =SUM(B86:B87) -> 10133 | C88: =SUM(C86:C87) -> 3921 | D88: =SUM(D86:D87) -> 6212 | E88: TRUE | F88: TRUE | G88: =IFERROR(IF(SEARCH("65+",A88)>0,FALSE,TRUE),TRUE) -> FALSE | H88: FALSE
A89: bialski | B89: 112330 | C89: 55703 | D89: 56627 | E89: TRUE | F89: TRUE | G89: TRUE | H89: TRUE
A90: 0 - 4 | B90: 5566 | C90: 2882 | D90: 2684 | E90: FALSE | F90: TRUE | G90: TRUE | H90: FALSE
A91: 5 - 9 | B91: 6217 | C91: 3176 | D91: 3041 | E91: FALSE | F91: TRUE | G91: TRUE | H91: FALSE
A92: 10 - 14 | B92: 5929 | C92: 3044 | D92: 2885 | E92: FALSE | F92: TRUE | G92: TRUE | H92: FALSE
A93: 15 - 19 | B93: 6946 | C93: 3543 | D93: 3403 | E93: FALSE | F93: TRUE | G93: TRUE | H93: FALSE
A94: 20 - 24 | B94: 8665 | C94: 4381 | D94: 4284 | E94: FALSE | F94: TRUE | G94: TRUE | H94: FALSE
A95: 25 - 29 | B95: 8535 | C95: 4472 | D95: 4063 | E95: FALSE | F95: TRUE | G95: TRUE | H95: FALSE
A96: 30 - 34 | B96: 8483 | C96: 4591 | D96: 3892 | E96: FALSE | F96: TRUE | G96: TRUE | H96: FALSE
A97: 35 - 39 | B97: 7933 | C97: 4175 | D97: 3758 | E97: FALSE | F97: TRUE | G97: TRUE | H97: FALSE
A98: 40 - 44 | B98: 7624 | C98: 4023 | D98: 3601 | E98: FALSE | F98: TRUE | G98: TRUE | H98: FALSE
A99: 45 - 49 | B99: 7151 | C99: 3669 | D99: 3482 | E99: FALSE | F99: TRUE | G99: TRUE | H99: FALSE
A100: 50 - 54 | B100: 7078 | C100: 3701 | D100: 3377 | E100: FALSE | F100: TRUE | G100: TRUE | H100: FALSE
A101: 55 - 59 | B101: 7578 | C101: 3885 | D101: 3693 | E101: FALSE | F101: TRUE | G101: TRUE | H101: FALSE
A102: 60 - 64 | B102: 6754 | C102: 3360 | D102: 3394 | E102: FALSE | F102: TRUE | G102: TRUE | H102: FALSE
A103: 65 - 69 | B103: 5502 | C103: 2442 | D103: 3060 | E103: FALSE | F103: TRUE | G103: TRUE | H103: FALSE
A104: 70 i więcej | B104: 12369 | C104: 4359 | D104: 8010 | E104: TRUE | F104: FALSE | G104: TRUE | H104: FALSE
A105: 65+ | B105: =SUM(B103:B104) -> 17871 | C105: =SUM(C103:C104) -> 6801 | D105: =SUM(D103:D104) -> 11070 | E105: TRUE | F105: TRUE | G105: =IFERROR(IF(SEARCH("65+",A105)>0,FALSE,TRUE),TRUE) -> FALSE | H105: FALSE
A106: biłgorajski | B106: 102341 | C106: 50440 | D106: 51901 | E106: TRUE | F106: TRUE | G106: TRUE | H106: TRUE
A107: 0 - 4 | B107: 4619 | C107: 2424 | D107: 2195 | E107: FALSE | F107: TRUE | G107: TRUE | H107: FALSE
A108: 5 - 9 | B108: 5350 | C108: 2729 | D108: 2621 | E108: FALSE | F108: TRUE | G108: TRUE | H108: FALSE
A109: 10 - 14 | B109: 5197 | C109: 2652 | D109: 2545 | E109: FALSE | F109: TRUE | G109: TRUE | H109: FALSE
A110: 15 - 19 | B110: 5988 | C110: 3162 | D110: 2826 | E110: FALSE | F110: TRUE | G110: TRUE | H110: FALSE
A111: 20 - 24 | B111: 6976 | C111: 3521 | D111: 3455 | E111: FALSE | F111: TRUE | G111: TRUE | H111: FALSE
A112: 25 - 29 | B112: 7634 | C112: 4048 | D112: 3586 | E112: FALSE | F112: TRUE | G112: TRUE | H112: FALSE
A113: 30 - 34 | B113: 8339 | C113: 4421 | D113: 3918 | E113: FALSE | F113: TRUE | G113: TRUE | H113: FALSE
A114: 35 - 39 | B114: 7917 | C114: 4058 | D114: 3859 | E114: FALSE | F114: TRUE | G114: TRUE | H114: FALSE
A115: 40 - 44 | B115: 7132 | C115: 3742 | D115: 3390 | E115: FALSE | F115: TRUE | G115: TRUE | H115: FALSE
A116: 45 - 49 | B116: 6133 | C116: 3189 | D116: 2944 | E116: FALSE | F116: TRUE | G116: TRUE | H116: FALSE
A117: 50 - 54 | B117: 6593 | C117: 3369 | D117: 3224 | E117: FALSE | F117: TRUE | G117: TRUE | H117: FALSE
A118: 55 - 59 | B118: 7222 | C118: 3614 | D118: 3608 | E118: FALSE | F118: TRUE | G118: TRUE | H118: FALSE
A119: 60 - 64 | B119: 6594 | C119: 3127 | D119: 3467 | E119: FALSE | F119: TRUE | G119: TRUE | H119: FALSE
A120: 65 - 69 | B120: 5521 | C120: 2519 | D120: 3002 | E120: FALSE | F120: TRUE | G120: TRUE | H120: FALSE
A121: 70 i więcej | B121: 11126 | C121: 3865 | D121: 7261 | E121: TRUE | F121: FALSE | G121: TRUE | H121: FALSE
A122: 65+ | B122: =SUM(B120:B121) -> 16647 | C122: =SUM(C120:C121) -> 6384 | D122: =SUM(D120:D121) -> 10263 | E122: TRUE | F122: TRUE | G122: =IFERROR(IF(SEARCH("65+",A122)>0,FALSE,TRUE),TRUE) -> FALSE | H122: FALSE
A123: chełmski | B123: 79239 | C123: 39045 | D123: 40194 | E123: TRUE | F123: TRUE | G123: TRUE | H123: TRUE
A124: 0 - 4 | B124: 3627 | C124: 1801 | D124: 1826 | E124: FALSE | F124: TRUE | G124: TRUE | H124: FALSE
A125: 5 - 9 | B125: 4300 | C125: 2210 | D125: 2090 | E125: FALSE | F125: TRUE | G125: TRUE | H125: FALSE
A126: 10 - 14 | B126: 3933 | C126: 2009 | D126: 1924 | E126: FALSE | F126: TRUE | G126: TRUE | H126: FALSE
A127: 15 - 19 | B127: 4620 | C127: 2374 | D127: 2246 | E127: FALSE | F127: TRUE | G127: TRUE | H127: FALSE
A128: 20 - 24 | B128: 5902 | C128: 3024 | D128: 2878 | E128: FALSE | F128: TRUE | G128: TRUE | H128: FALSE
A129: 25 - 29 | B129: 6128 | C129: 3250 | D129: 2878 | E129: FALSE | F129: TRUE | G129: TRUE | H129: FALSE
A130: 30 - 34 | B130: 6351 | C130: 3349 | D130: 3002 | E130: FALSE | F130: TRUE | G130: TRUE | H130: FALSE
A131: 35 - 39 | B131: 6006 | C131: 3165 | D131: 2841 | E131: FALSE | F131: TRUE | G131: TRUE | H131: FALSE
A132: 40 - 44 | B132: 5504 | C132: 2874 | D132: 2630 | E132: FALSE | F132: TRUE | G132: TRUE | H132: FALSE
A133: 45 - 49 | B133: 4876 | C133: 2453 | D133: 2423 | E133: =IFERROR(IF(SEARCH(" - ",A133)>0,FALSE,TRUE),TRUE) -> FALSE | F133: =IFERROR(IF(SEARCH(" 70 ",A133)>0,FALSE,TRUE),TRUE) -> TRUE | G133: =IFERROR(IF(SEARCH(" 65+ ",A133)>0,FALSE,TRUE),TRUE) -> TRUE | H133: =AND(E133:G133) -> FALSE
A134: 50 - 54 | B134: 5012 | C134: 2620 | D134: 2392 | E134: FALSE | F134: TRUE | G134: TRUE | H134: FALSE
A135: 55 - 59 | B135: 5664 | C135: 2877 | D135: 2787 | E135: FALSE | F135: TRUE | G135: TRUE | H135: FALSE
A136: 60 - 64 | B136: 5259 | C136: 2662 | D136: 2597 | E136: FALSE | F136: TRUE | G136: TRUE | H136: FALSE
A137: 65 - 69 | B137: 3993 | C137: 1814 | D137: 2179 | E137: FALSE | F137: TRUE | G137: TRUE | H137: FALSE
A138: 70 i więcej | B138: 8064 | C138: 2563 | D138: 5501 | E138: TRUE | F138: FALSE | G138: TRUE | H138: FALSE
A139: 65+ | B139: =SUM(B137:B138) -> 12057 | C139: =SUM(C137:C138) -> 4377 | D139: =SUM(D137:D138) -> 7680 | E139: TRUE | F139: TRUE | G139: =IFERROR(IF(SEARCH("65+",A139)>0,FALSE,TRUE),TRUE) -> FALSE | H139: FALSE
A140: hrubieszowski | B140: 65562 | C140: 32140 | D140: 33422 | E140: TRUE | F140: TRUE | G140: TRUE | H140: TRUE
A141: 0 - 4 | B141: 2692 | C141: 1369 | D141: 1323 | E141: FALSE | F141: TRUE | G141: TRUE | H141: FALSE
A142: 5 - 9 | B142: 3139 | C142: 1617 | D142: 1522 | E142: FALSE | F142: TRUE | G142: TRUE | H142: FALSE
A143: 10 - 14 | B143: 3038 | C143: 1554 | D143: 1484 | E143: FALSE | F143: TRUE | G143: TRUE | H143: FALSE
A144: 15 - 19 | B144: 3569 | C144: 1809 | D144: 1760 | E144: FALSE | F144: TRUE | G144: TRUE | H144: FALSE
A145: 20 - 24 | B145: 4616 | C145: 2380 | D145: 2236 | E145: FALSE | F145: TRUE | G145: TRUE | H145: FALSE
A146: 25 - 29 | B146: 4633 | C146: 2444 | D146: 2189 | E146: FALSE | F146: TRUE | G146: TRUE | H146: FALSE
A147: 30 - 34 | B147: 5060 | C147: 2728 | D147: 2332 | E147: FALSE | F147: TRUE | G147: TRUE | H147: FALSE
A148: 35 - 39 | B148: 4728 | C148: 2529 | D148: 2199 | E148: FALSE | F148: TRUE | G148: TRUE | H148: FALSE
A149: 40 - 44 | B149: 4370 | C149: 2267 | D149: 2103 | E149: FALSE | F149: TRUE | G149: TRUE | H149: FALSE
A150: 45 - 49 | B150: 4022 | C150: 2086 | D150: 1936 | E150: FALSE | F150: TRUE | G150: TRUE | H150: FALSE
A151: 50 - 54 | B151: 4228 | C151: 2090 | D151: 2138 | E151: FALSE | F151: TRUE | G151: TRUE | H151: FALSE
A152: 55 - 59 | B152: 4928 | C152: 2477 | D152: 2451 | E152: FALSE | F152: TRUE | G152: TRUE | H152: FALSE
A153: 60 - 64 | B153: 4702 | C153: 2290 | D153: 2412 | E153: FALSE | F153: TRUE | G153: TRUE | H153: FALSE
A154: 65 - 69 | B154: 3875 | C154: 1711 | D154: 2164 | E154: FALSE | F154: TRUE | G154: TRUE | H154: FALSE
A155: 70 i więcej | B155: 7962 | C155: 2789 | D155: 5173 | E155: TRUE | F155: FALSE | G155: TRUE | H155: FALSE
A156: 65+ | B156: =SUM(B154:B155) -> 11837 | C156: =SUM(C154:C155) -> 4500 | D156: =SUM(D154:D155) -> 7337 | E156: TRUE | F156: TRUE | G156: =IFERROR(IF(SEARCH("65+",A156)>0,FALSE,TRUE),TRUE) -> FALSE | H156: FALSE
A157: janowski | B157: 46742 | C157: 23135 | D157: 23607 | E157: TRUE | F157: TRUE | G157: TRUE | H157: TRUE
A158: 0 - 4 | B158: 2042 | C158: 996 | D158: 1046 | E158: FALSE | F158: TRUE | G158: TRUE | H158: FALSE
A159: 5 - 9 | B159: 2348 | C159: 1211 | D159: 1137 | E159: FALSE | F159: TRUE | G159: TRUE | H159: FALSE
A160: 10 - 14 | B160: 2407 | C160: 1242 | D160: 1165 | E160: FALSE | F160: TRUE | G160: TRUE | H160: FALSE
A161: 15 - 19 | B161: 2756 | C161: 1416 | D161: 1340 | E161: FALSE | F161: TRUE | G161: TRUE | H161: FALSE
A162: 20 - 24 | B162: 3529 | C162: 1820 | D162: 1709 | E162: FALSE | F162: TRUE | G162: TRUE | H162: FALSE
A163: 25 - 29 | B163: 3315 | C163: 1743 | D163: 1572 | E163: FALSE | F163: TRUE | G163: TRUE | H163: FALSE
A164: 30 - 34 | B164: 3414 | C164: 1837 | D164: 1577 | E164: FALSE | F164: TRUE | G164: TRUE | H164: FALSE
A165: 35 - 39 | B165: 3444 | C165: 1762 | D165: 1682 | E165: FALSE | F165: TRUE | G165: TRUE | H165: FALSE
A166: 40 - 44 | B166: 3322 | C166: 1733 | D166: 1589 | E166: FALSE | F166: TRUE | G166: TRUE | H166: FALSE
A167: 45 - 49 | B167: 3017 | C167: 1608 | D167: 1409 | E167: FALSE | F167: TRUE | G167: TRUE | H167: FALSE
A168: 50 - 54 | B168: 3065 | C168: 1591 | D168: 1474 | E168: FALSE | F168: TRUE | G168: TRUE | H168: FALSE
A169: 55 - 59 | B169: 3164 | C169: 1617 | D169: 1547 | E169: FALSE | F169: TRUE | G169: TRUE | H169: FALSE
A170: 60 - 64 | B170: 2874 | C170: 1428 | D170: 1446 | E170: FALSE | F170: TRUE | G170: TRUE | H170: FALSE
A171: 65 - 69 | B171: 2537 | C171: 1159 | D171: 1378 | E171: FALSE | F171: TRUE | G171: TRUE | H171: FALSE
A172: 70 i więcej | B172: 5508 | C172: 1972 | D172: 3536 | E172: TRUE | F172: FALSE | G172: TRUE | H172: FALSE
A173: 65+ | B173: =SUM(B171:B172) -> 8045 | C173: =SUM(C171:C172) -> 3131 | D173: =SUM(D171:D172) -> 4914 | E173: TRUE | F173: TRUE | G173: =IFERROR(IF(SEARCH("65+",A173)>0,FALSE,TRUE),TRUE) -> FALSE | H173: FALSE
A174: krasnostawski | B174: 65142 | C174: 31696 | D174: 33446 | E174: TRUE | F174: TRUE | G174: TRUE | H174: TRUE
A175: 0 - 4 | B175: 2572 | C175: 1261 | D175: 1311 | E175: FALSE | F175: TRUE | G175: TRUE | H175: FALSE
A176: 5 - 9 | B176: 2903 | C176: 1504 | D176: 1399 | E176: FALSE | F176: TRUE | G176: TRUE | H176: FALSE
A177: 10 - 14 | B177: 2939 | C177: 1553 | D177: 1386 | E177: FALSE | F177: TRUE | G177: TRUE | H177: FALSE
A178: 15 - 19 | B178: 3369 | C178: 1774 | D178: 1595 | E178: FALSE | F178: TRUE | G178: TRUE | H178: FALSE
A179: 20 - 24 | B179: 4372 | C179: 2237 | D179: 2135 | E179: FALSE | F179: TRUE | G179: TRUE | H179: FALSE
A180: 25 - 29 | B180: 4416 | C180: 2311 | D180: 2105 | E180: FALSE | F180: TRUE | G180: TRUE | H180: FALSE
A181: 30 - 34 | B181: 4930 | C181: 2583 | D181: 2347 | E181: FALSE | F181: TRUE | G181: TRUE | H181: FALSE
A182: 35 - 39 | B182: 4938 | C182: 2609 | D182: 2329 | E182: FALSE | F182: TRUE | G182: TRUE | H182: FALSE
A183: 40 - 44 | B183: 4395 | C183: 2339 | D183: 2056 | E183: FALSE | F183: TRUE | G183: TRUE | H183: FALSE
A184: 45 - 49 | B184: 3782 | C184: 1918 | D184: 1864 | E184: FALSE | F184: TRUE | G184: TRUE | H184: FALSE
A185: 50 - 54 | B185: 3944 | C185: 1974 | D185: 1970 | E185: FALSE | F185: TRUE | G185: TRUE | H185: FALSE
A186: 55 - 59 | B186: 4901 | C186: 2479 | D186: 2422 | E186: FALSE | F186: TRUE | G186: TRUE | H186: FALSE
A187: 60 - 64 | B187: 4979 | C187: 2365 | D187: 2614 | E187: FALSE | F187: TRUE | G187: TRUE | H187: FALSE
A188: 65 - 69 | B188: 3967 | C188: 1743 | D188: 2224 | E188: FALSE | F188: TRUE | G188: TRUE | H188: FALSE
A189: 70 i więcej | B189: 8735 | C189: 3046 | D189: 5689 | E189: TRUE | F189: FALSE | G189: TRUE | H189: FALSE
A190: 65+ | B190: =SUM(B188:B189) -> 12702 | C190: =SUM(C188:C189) -> 4789 | D190: =SUM(D188:D189) -> 7913 | E190: TRUE | F190: TRUE | G190: =IFERROR(IF(SEARCH("65+",A190)>0,FALSE,TRUE),TRUE) -> FALSE | H190: FALSE
A191: kraśnicki | B191: 97244 | C191: 47321 | D191: 49923 | E191: TRUE | F191: TRUE | G191: TRUE | H191: TRUE
A192: 0 - 4 | B192: 3977 | C192: 2038 | D192: 1939 | E192: FALSE | F192: TRUE | G192: TRUE | H192: FALSE
A193: 5 - 9 | B193: 4845 | C193: 2453 | D193: 2392 | E193: FALSE | F193: TRUE | G193: TRUE | H193: FALSE
A194: 10 - 14 | B194: 4699 | C194: 2425 | D194: 2274 | E194: FALSE | F194: TRUE | G194: TRUE | H194: FALSE
A195: 15 - 19 | B195: 5261 | C195: 2731 | D195: 2530 | E195: FALSE | F195: TRUE | G195: TRUE | H195: FALSE
A196: 20 - 24 | B196: 6589 | C196: 3443 | D196: 3146 | E196: FALSE | F196: TRUE | G196: TRUE | H196: FALSE
A197: 25 - 29 | B197: 6868 | C197: 3557 | D197: 3311 | E197: =IFERROR(IF(SEARCH(" - ",A197)>0,FALSE,TRUE),TRUE) -> FALSE | F197: =IFERROR(IF(SEARCH(" 70 ",A197)>0,FALSE,TRUE),TRUE) -> TRUE | G197: =IFERROR(IF(SEARCH(" 65+ ",A197)>0,FALSE,TRUE),TRUE) -> TRUE | H197: =AND(E197:G197) -> FALSE
A198: 30 - 34 | B198: 7643 | C198: 3920 | D198: 3723 | E198: FALSE | F198: TRUE | G198: TRUE | H198: FALSE
A199: 35 - 39 | B199: 7526 | C199: 3893 | D199: 3633 | E199: FALSE | F199: TRUE | G199: TRUE | H199: FALSE
A200: 40 - 44 | B200: 6693 | C200: 3389 | D200: 3304 | E200: FALSE | F200: TRUE | G200: TRUE | H200: FALSE
A201: 45 - 49 | B201: 5976 | C201: 3041 | D201: 2935 | E201: FALSE | F201: TRUE | G201: TRUE | H201: FALSE
A202: 50 - 54 | B202: 6031 | C202: 3040 | D202: 2991 | E202: FALSE | F202: TRUE | G202: TRUE | H202: FALSE
... 226 more rows

Sheet Lubuskie (hidden)
A1: Województwa Powiaty Grupy wieku | B1: Ogółem | C1: Mężczyźni | D1: Kobiety
A4: Lubuskie | B4: 1017450 | C4: 495223 | D4: 522227 | E4: =IFERROR(IF(SEARCH(" - ",A4)>0,FALSE,TRUE),TRUE) -> TRUE | F4: =IFERROR(IF(SEARCH("65+",A4)>0,FALSE,TRUE),TRUE) -> TRUE | G4: =IFERROR(IF(SEARCH("70",A4)>0,FALSE,TRUE),TRUE) -> TRUE | H4: =AND(E4:G4) -> TRUE
A5: 0 - 4 | B5: 49362 | C5: 25234 | D5: 24128 | E5: =IFERROR(IF(SEARCH(" - ",A5)>0,FALSE,TRUE),TRUE) -> FALSE | F5: =IFERROR(IF(SEARCH("65+",A5)>0,FALSE,TRUE),TRUE) -> TRUE | G5: =IFERROR(IF(SEARCH("70",A5)>0,FALSE,TRUE),TRUE) -> TRUE | H5: =AND(E5:G5) -> FALSE
A6: 5 - 9 | B6: 56462 | C6: 28894 | D6: 27568 | E6: FALSE | F6: TRUE | G6: TRUE | H6: FALSE
A7: 10 - 14 | B7: 48135 | C7: 24658 | D7: 23477 | E7: FALSE | F7: TRUE | G7: TRUE | H7: FALSE
A8: 15 - 19 | B8: 51974 | C8: 26759 | D8: 25215 | E8: FALSE | F8: TRUE | G8: TRUE | H8: FALSE
A9: 20 - 24 | B9: 62341 | C9: 31657 | D9: 30684 | E9: FALSE | F9: TRUE | G9: TRUE | H9: FALSE
A10: 25 - 29 | B10: 73181 | C10: 37404 | D10: 35777 | E10: FALSE | F10: TRUE | G10: TRUE | H10: FALSE
A11: 30 - 34 | B11: 87258 | C11: 44488 | D11: 42770 | E11: FALSE | F11: TRUE | G11: TRUE | H11: FALSE
A12: 35 - 39 | B12: 84314 | C12: 43133 | D12: 41181 | E12: FALSE | F12: TRUE | G12: TRUE | H12: FALSE
A13: 40 - 44 | B13: 74216 | C13: 37941 | D13: 36275 | E13: FALSE | F13: TRUE | G13: TRUE | H13: FALSE
A14: 45 - 49 | B14: 59644 | C14: 30061 | D14: 29583 | E14: FALSE | F14: TRUE | G14: TRUE | H14: FALSE
A15: 50 - 54 | B15: 62240 | C15: 30941 | D15: 31299 | E15: FALSE | F15: TRUE | G15: TRUE | H15: FALSE
A16: 55 - 59 | B16: 77542 | C16: 37662 | D16: 39880 | E16: FALSE | F16: TRUE | G16: TRUE | H16: FALSE
A17: 60 - 64 | B17: 76928 | C17: 36130 | D17: 40798 | E17: FALSE | F17: TRUE | G17: TRUE | H17: FALSE
A18: 65 - 69 | B18: 62251 | C18: 28379 | D18: 33872 | E18: FALSE | F18: TRUE | G18: TRUE | H18: FALSE
A19: 70 i więcej | B19: 91602 | C19: 31882 | D19: 59720 | E19: TRUE | F19: TRUE | G19: FALSE | H19: FALSE
A20: 65+ | B20: =SUM(B18:B19) -> 153853 | C20: =SUM(C18:C19) -> 60261 | D20: =SUM(D18:D19) -> 93592 | E20: TRUE | F20: FALSE | G20: TRUE | H20: FALSE
A21: Gorzów Wielkopolski | B21: 123911 | C21: 58980 | D21: 64931 | E21: TRUE | F21: TRUE | G21: TRUE | H21: TRUE
A22: 0 - 4 | B22: 6038 | C22: 3098 | D22: 2940 | E22: FALSE | F22: TRUE | G22: TRUE | H22: FALSE
A23: 5 - 9 | B23: 6601 | C23: 3403 | D23: 3198 | E23: FALSE | F23: TRUE | G23: TRUE | H23: FALSE
A24: 10 - 14 | B24: 5272 | C24: 2761 | D24: 2511 | E24: FALSE | F24: TRUE | G24: TRUE | H24: FALSE
A25: 15 - 19 | B25: 5609 | C25: 2879 | D25: 2730 | E25: FALSE | F25: TRUE | G25: TRUE | H25: FALSE
A26: 20 - 24 | B26: 6033 | C26: 3145 | D26: 2888 | E26: FALSE | F26: TRUE | G26: TRUE | H26: FALSE
A27: 25 - 29 | B27: 8483 | C27: 4234 | D27: 4249 | E27: FALSE | F27: TRUE | G27: TRUE | H27: FALSE
A28: 30 - 34 | B28: 10929 | C28: 5497 | D28: 5432 | E28: FALSE | F28: TRUE | G28: TRUE | H28: FALSE
A29: 35 - 39 | B29: 10859 | C29: 5353 | D29: 5506 | E29: FALSE | F29: TRUE | G29: TRUE | H29: FALSE
A30: 40 - 44 | B30: 9042 | C30: 4506 | D30: 4536 | E30: FALSE | F30: TRUE | G30: TRUE | H30: FALSE
A31: 45 - 49 | B31: 7250 | C31: 3620 | D31: 3630 | E31: FALSE | F31: TRUE | G31: TRUE | H31: FALSE
A32: 50 - 54 | B32: 7091 | C32: 3475 | D32: 3616 | E32: FALSE | F32: TRUE | G32: TRUE | H32: FALSE
A33: 55 - 59 | B33: 9274 | C33: 4280 | D33: 4994 | E33: FALSE | F33: TRUE | G33: TRUE | H33: FALSE
A34: 60 - 64 | B34: 10366 | C34: 4533 | D34: 5833 | E34: FALSE | F34: TRUE | G34: TRUE | H34: FALSE
A35: 65 - 69 | B35: 8611 | C35: 3779 | D35: 4832 | E35: FALSE | F35: TRUE | G35: TRUE | H35: FALSE
A36: 70 i więcej | B36: 12453 | C36: 4417 | D36: 8036 | E36: TRUE | F36: TRUE | G36: FALSE | H36: FALSE
A37: 65+ | B37: =SUM(B35:B36) -> 21064 | C37: =SUM(C35:C36) -> 8196 | D37: =SUM(D35:D36) -> 12868 | E37: TRUE | F37: FALSE | G37: TRUE | H37: FALSE
A38: Zielona Góra | B38: 138898 | C38: 65952 | D38: 72946 | E38: TRUE | F38: TRUE | G38: TRUE | H38: TRUE
A39: 0 - 4 | B39: 6960 | C39: 3543 | D39: 3417 | E39: FALSE | F39: TRUE | G39: TRUE | H39: FALSE
A40: 5 - 9 | B40: 7398 | C40: 3780 | D40: 3618 | E40: FALSE | F40: TRUE | G40: TRUE | H40: FALSE
A41: 10 - 14 | B41: 5880 | C41: 2960 | D41: 2920 | E41: FALSE | F41: TRUE | G41: TRUE | H41: FALSE
A42: 15 - 19 | B42: 6435 | C42: 3254 | D42: 3181 | E42: FALSE | F42: TRUE | G42: TRUE | H42: FALSE
A43: 20 - 24 | B43: 6743 | C43: 3464 | D43: 3279 | E43: FALSE | F43: TRUE | G43: TRUE | H43: FALSE
A44: 25 - 29 | B44: 8896 | C44: 4406 | D44: 4490 | E44: FALSE | F44: TRUE | G44: TRUE | H44: FALSE
A45: 30 - 34 | B45: 12790 | C45: 6280 | D45: 6510 | E45: FALSE | F45: TRUE | G45: TRUE | H45: FALSE
A46: 35 - 39 | B46: 12710 | C46: 6312 | D46: 6398 | E46: FALSE | F46: TRUE | G46: TRUE | H46: FALSE
A47: 40 - 44 | B47: 10658 | C47: 5334 | D47: 5324 | E47: FALSE | F47: TRUE | G47: TRUE | H47: FALSE
A48: 45 - 49 | B48: 7758 | C48: 3833 | D48: 3925 | E48: FALSE | F48: TRUE | G48: TRUE | H48: FALSE
A49: 50 - 54 | B49: 7906 | C49: 3836 | D49: 4070 | E49: FALSE | F49: TRUE | G49: TRUE | H49: FALSE
A50: 55 - 59 | B50: 10202 | C50: 4717 | D50: 5485 | E50: FALSE | F50: TRUE | G50: TRUE | H50: FALSE
A51: 60 - 64 | B51: 10856 | C51: 4844 | D51: 6012 | E51: FALSE | F51: TRUE | G51: TRUE | H51: FALSE
A52: 65 - 69 | B52: 9220 | C52: 4046 | D52: 5174 | E52: FALSE | F52: TRUE | G52: TRUE | H52: FALSE
A53: 70 i więcej | B53: 14486 | C53: 5343 | D53: 9143 | E53: TRUE | F53: TRUE | G53: FALSE | H53: FALSE
A54: 65+ | B54: =SUM(B52:B53) -> 23706 | C54: =SUM(C52:C53) -> 9389 | D54: =SUM(D52:D53) -> 14317 | E54: TRUE | F54: FALSE | G54: TRUE | H54: FALSE
A55: gorzowski | B55: 70990 | C55: 35193 | D55: 35797 | E55: TRUE | F55: TRUE | G55: TRUE | H55: TRUE
A56: 0 - 4 | B56: 3485 | C56: 1804 | D56: 1681 | E56: FALSE | F56: TRUE | G56: TRUE | H56: FALSE
A57: 5 - 9 | B57: 4321 | C57: 2219 | D57: 2102 | E57: FALSE | F57: TRUE | G57: TRUE | H57: FALSE
A58: 10 - 14 | B58: 3857 | C58: 1984 | D58: 1873 | E58: FALSE | F58: TRUE | G58: TRUE | H58: FALSE
A59: 15 - 19 | B59: 3957 | C59: 2024 | D59: 1933 | E59: FALSE | F59: TRUE | G59: TRUE | H59: FALSE
A60: 20 - 24 | B60: 4796 | C60: 2428 | D60: 2368 | E60: FALSE | F60: TRUE | G60: TRUE | H60: FALSE
A61: 25 - 29 | B61: 5213 | C61: 2682 | D61: 2531 | E61: FALSE | F61: TRUE | G61: TRUE | H61: FALSE
A62: 30 - 34 | B62: 5758 | C62: 2927 | D62: 2831 | E62: FALSE | F62: TRUE | G62: TRUE | H62: FALSE
A63: 35 - 39 | B63: 5889 | C63: 3012 | D63: 2877 | E63: FALSE | F63: TRUE | G63: TRUE | H63: FALSE
A64: 40 - 44 | B64: 5410 | C64: 2764 | D64: 2646 | E64: FALSE | F64: TRUE | G64: TRUE | H64: FALSE
A65: 45 - 49 | B65: 4621 | C65: 2368 | D65: 2253 | E65: FALSE | F65: TRUE | G65: TRUE | H65: FALSE
A66: 50 - 54 | B66: 4583 | C66: 2331 | D66: 2252 | E66: FALSE | F66: TRUE | G66: TRUE | H66: FALSE
A67: 55 - 59 | B67: 5368 | C67: 2700 | D67: 2668 | E67: FALSE | F67: TRUE | G67: TRUE | H67: FALSE
A68: 60 - 64 | B68: 4802 | C68: 2373 | D68: 2429 | E68: FALSE | F68: TRUE | G68: TRUE | H68: FALSE
A69: 65 - 69 | B69: 3705 | C69: 1751 | D69: 1954 | E69: =IFERROR(IF(SEARCH(" - ",A69)>0,FALSE,TRUE),TRUE) -> FALSE | F69: =IFERROR(IF(SEARCH("65+",A69)>0,FALSE,TRUE),TRUE) -> TRUE | G69: =IFERROR(IF(SEARCH("70",A69)>0,FALSE,TRUE),TRUE) -> TRUE | H69: =AND(E69:G69) -> FALSE
A70: 70 i więcej | B70: 5225 | C70: 1826 | D70: 3399 | E70: TRUE | F70: TRUE | G70: FALSE | H70: FALSE
A71: 65+ | B71: =SUM(B69:B70) -> 8930 | C71: =SUM(C69:C70) -> 3577 | D71: =SUM(D69:D70) -> 5353 | E71: TRUE | F71: FALSE | G71: TRUE | H71: FALSE
A72: krośnieński | B72: 55855 | C72: 27403 | D72: 28452 | E72: TRUE | F72: TRUE | G72: TRUE | H72: TRUE
A73: 0 - 4 | B73: 2593 | C73: 1322 | D73: 1271 | E73: FALSE | F73: TRUE | G73: TRUE | H73: FALSE
A74: 5 - 9 | B74: 2992 | C74: 1529 | D74: 1463 | E74: FALSE | F74: TRUE | G74: TRUE | H74: FALSE
A75: 10 - 14 | B75: 2565 | C75: 1308 | D75: 1257 | E75: FALSE | F75: TRUE | G75: TRUE | H75: FALSE
A76: 15 - 19 | B76: 2995 | C76: 1544 | D76: 1451 | E76: FALSE | F76: TRUE | G76: TRUE | H76: FALSE
A77: 20 - 24 | B77: 3704 | C77: 1847 | D77: 1857 | E77: FALSE | F77: TRUE | G77: TRUE | H77: FALSE
A78: 25 - 29 | B78: 4013 | C78: 2100 | D78: 1913 | E78: FALSE | F78: TRUE | G78: TRUE | H78: FALSE
A79: 30 - 34 | B79: 4743 | C79: 2434 | D79: 2309 | E79: FALSE | F79: TRUE | G79: TRUE | H79: FALSE
A80: 35 - 39 | B80: 4561 | C80: 2355 | D80: 2206 | E80: FALSE | F80: TRUE | G80: TRUE | H80: FALSE
A81: 40 - 44 | B81: 4081 | C81: 2120 | D81: 1961 | E81: FALSE | F81: TRUE | G81: TRUE | H81: FALSE
A82: 45 - 49 | B82: 3333 | C82: 1700 | D82: 1633 | E82: FALSE | F82: TRUE | G82: TRUE | H82: FALSE
A83: 50 - 54 | B83: 3505 | C83: 1778 | D83: 1727 | E83: FALSE | F83: TRUE | G83: TRUE | H83: FALSE
A84: 55 - 59 | B84: 4333 | C84: 2102 | D84: 2231 | E84: FALSE | F84: TRUE | G84: TRUE | H84: FALSE
A85: 60 - 64 | B85: 4369 | C85: 2104 | D85: 2265 | E85: FALSE | F85: TRUE | G85: TRUE | H85: FALSE
A86: 65 - 69 | B86: 3410 | C86: 1594 | D86: 1816 | E86: FALSE | F86: TRUE | G86: TRUE | H86: FALSE
A87: 70 i więcej | B87: 4658 | C87: 1566 | D87: 3092 | E87: TRUE | F87: TRUE | G87: FALSE | H87: FALSE
A88: 65+ | B88: =SUM(B86:B87) -> 8068 | C88: =SUM(C86:C87) -> 3160 | D88: =SUM(D86:D87) -> 4908 | E88: TRUE | F88: FALSE | G88: TRUE | H88: FALSE
A89: międzyrzecki | B89: 58375 | C89: 28832 | D89: 29543 | E89: TRUE | F89: TRUE | G89: TRUE | H89: TRUE
A90: 0 - 4 | B90: 2833 | C90: 1441 | D90: 1392 | E90: FALSE | F90: TRUE | G90: TRUE | H90: FALSE
A91: 5 - 9 | B91: 3209 | C91: 1626 | D91: 1583 | E91: FALSE | F91: TRUE | G91: TRUE | H91: FALSE
A92: 10 - 14 | B92: 2679 | C92: 1431 | D92: 1248 | E92: FALSE | F92: TRUE | G92: TRUE | H92: FALSE
A93: 15 - 19 | B93: 2812 | C93: 1446 | D93: 1366 | E93: FALSE | F93: TRUE | G93: TRUE | H93: FALSE
A94: 20 - 24 | B94: 3716 | C94: 1905 | D94: 1811 | E94: FALSE | F94: TRUE | G94: TRUE | H94: FALSE
A95: 25 - 29 | B95: 4480 | C95: 2295 | D95: 2185 | E95: FALSE | F95: TRUE | G95: TRUE | H95: FALSE
A96: 30 - 34 | B96: 5032 | C96: 2569 | D96: 2463 | E96: FALSE | F96: TRUE | G96: TRUE | H96: FALSE
A97: 35 - 39 | B97: 4636 | C97: 2408 | D97: 2228 | E97: FALSE | F97: TRUE | G97: TRUE | H97: FALSE
A98: 40 - 44 | B98: 4154 | C98: 2191 | D98: 1963 | E98: FALSE | F98: TRUE | G98: TRUE | H98: FALSE
A99: 45 - 49 | B99: 3443 | C99: 1742 | D99: 1701 | E99: FALSE | F99: TRUE | G99: TRUE | H99: FALSE
A100: 50 - 54 | B100: 3788 | C100: 1917 | D100: 1871 | E100: FALSE | F100: TRUE | G100: TRUE | H100: FALSE
A101: 55 - 59 | B101: 4552 | C101: 2272 | D101: 2280 | E101: FALSE | F101: TRUE | G101: TRUE | H101: FALSE
A102: 60 - 64 | B102: 4340 | C102: 2086 | D102: 2254 | E102: FALSE | F102: TRUE | G102: TRUE | H102: FALSE
A103: 65 - 69 | B103: 3603 | C103: 1671 | D103: 1932 | E103: FALSE | F103: TRUE | G103: TRUE | H103: FALSE
A104: 70 i więcej | B104: 5098 | C104: 1832 | D104: 3266 | E104: TRUE | F104: TRUE | G104: FALSE | H104: FALSE
A105: 65+ | B105: =SUM(B103:B104) -> 8701 | C105: =SUM(C103:C104) -> 3503 | D105: =SUM(D103:D104) -> 5198 | E105: TRUE | F105: FALSE | G105: TRUE | H105: FALSE
A106: nowosolski | B106: 87213 | C106: 42444 | D106: 44769 | E106: TRUE | F106: TRUE | G106: TRUE | H106: TRUE
A107: 0 - 4 | B107: 4188 | C107: 2182 | D107: 2006 | E107: FALSE | F107: TRUE | G107: TRUE | H107: FALSE
A108: 5 - 9 | B108: 4971 | C108: 2523 | D108: 2448 | E108: FALSE | F108: TRUE | G108: TRUE | H108: FALSE
A109: 10 - 14 | B109: 4258 | C109: 2173 | D109: 2085 | E109: FALSE | F109: TRUE | G109: TRUE | H109: FALSE
A110: 15 - 19 | B110: 4520 | C110: 2362 | D110: 2158 | E110: FALSE | F110: TRUE | G110: TRUE | H110: FALSE
A111: 20 - 24 | B111: 5584 | C111: 2807 | D111: 2777 | E111: FALSE | F111: TRUE | G111: TRUE | H111: FALSE
A112: 25 - 29 | B112: 6077 | C112: 3111 | D112: 2966 | E112: FALSE | F112: TRUE | G112: TRUE | H112: FALSE
A113: 30 - 34 | B113: 7259 | C113: 3715 | D113: 3544 | E113: FALSE | F113: TRUE | G113: TRUE | H113: FALSE
A114: 35 - 39 | B114: 7069 | C114: 3660 | D114: 3409 | E114: FALSE | F114: TRUE | G114: TRUE | H114: FALSE
A115: 40 - 44 | B115: 6112 | C115: 3172 | D115: 2940 | E115: FALSE | F115: TRUE | G115: TRUE | H115: FALSE
A116: 45 - 49 | B116: 4992 | C116: 2511 | D116: 2481 | E116: FALSE | F116: TRUE | G116: TRUE | H116: FALSE
A117: 50 - 54 | B117: 5125 | C117: 2580 | D117: 2545 | E117: FALSE | F117: TRUE | G117: TRUE | H117: FALSE
A118: 55 - 59 | B118: 6557 | C118: 3139 | D118: 3418 | E118: FALSE | F118: TRUE | G118: TRUE | H118: FALSE
A119: 60 - 64 | B119: 6699 | C119: 3090 | D119: 3609 | E119: FALSE | F119: TRUE | G119: TRUE | H119: FALSE
A120: 65 - 69 | B120: 5587 | C120: 2579 | D120: 3008 | E120: FALSE | F120: TRUE | G120: TRUE | H120: FALSE
A121: 70 i więcej | B121: 8215 | C121: 2840 | D121: 5375 | E121: TRUE | F121: TRUE | G121: FALSE | H121: FALSE
A122: 65+ | B122: =SUM(B120:B121) -> 13802 | C122: =SUM(C120:C121) -> 5419 | D122: =SUM(D120:D121) -> 8383 | E122: TRUE | F122: FALSE | G122: TRUE | H122: FALSE
A123: słubicki | B123: 47247 | C123: 23202 | D123: 24045 | E123: TRUE | F123: TRUE | G123: TRUE | H123: TRUE
A124: 0 - 4 | B124: 2292 | C124: 1158 | D124: 1134 | E124: FALSE | F124: TRUE | G124: TRUE | H124: FALSE
A125: 5 - 9 | B125: 2728 | C125: 1342 | D125: 1386 | E125: FALSE | F125: TRUE | G125: TRUE | H125: FALSE
A126: 10 - 14 | B126: 2438 | C126: 1280 | D126: 1158 | E126: FALSE | F126: TRUE | G126: TRUE | H126: FALSE
A127: 15 - 19 | B127: 2590 | C127: 1347 | D127: 1243 | E127: FALSE | F127: TRUE | G127: TRUE | H127: FALSE
A128: 20 - 24 | B128: 3042 | C128: 1606 | D128: 1436 | E128: FALSE | F128: TRUE | G128: TRUE | H128: FALSE
A129: 25 - 29 | B129: 3571 | C129: 1823 | D129: 1748 | E129: FALSE | F129: TRUE | G129: TRUE | H129: FALSE
A130: 30 - 34 | B130: 4086 | C130: 2081 | D130: 2005 | E130: FALSE | F130: TRUE | G130: TRUE | H130: FALSE
A131: 35 - 39 | B131: 3808 | C131: 1956 | D131: 1852 | E131: FALSE | F131: TRUE | G131: TRUE | H131: FALSE
A132: 40 - 44 | B132: 3487 | C132: 1768 | D132: 1719 | E132: FALSE | F132: TRUE | G132: TRUE | H132: FALSE
A133: 45 - 49 | B133: 2981 | C133: 1515 | D133: 1466 | E133: =IFERROR(IF(SEARCH(" - ",A133)>0,FALSE,TRUE),TRUE) -> FALSE | F133: =IFERROR(IF(SEARCH("65+",A133)>0,FALSE,TRUE),TRUE) -> TRUE | G133: =IFERROR(IF(SEARCH("70",A133)>0,FALSE,TRUE),TRUE) -> TRUE | H133: =AND(E133:G133) -> FALSE
A134: 50 - 54 | B134: 3114 | C134: 1546 | D134: 1568 | E134: FALSE | F134: TRUE | G134: TRUE | H134: FALSE
A135: 55 - 59 | B135: 3700 | C135: 1854 | D135: 1846 | E135: FALSE | F135: TRUE | G135: TRUE | H135: FALSE
A136: 60 - 64 | B136: 3176 | C136: 1529 | D136: 1647 | E136: FALSE | F136: TRUE | G136: TRUE | H136: FALSE
A137: 65 - 69 | B137: 2475 | C137: 1121 | D137: 1354 | E137: FALSE | F137: TRUE | G137: TRUE | H137: FALSE
A138: 70 i więcej | B138: 3759 | C138: 1276 | D138: 2483 | E138: TRUE | F138: TRUE | G138: FALSE | H138: FALSE
A139: 65+ | B139: =SUM(B137:B138) -> 6234 | C139: =SUM(C137:C138) -> 2397 | D139: =SUM(D137:D138) -> 3837 | E139: TRUE | F139: FALSE | G139: TRUE | H139: FALSE
A140: strzelecko-drezdenecki | B140: 49936 | C140: 24589 | D140: 25347 | E140: TRUE | F140: TRUE | G140: TRUE | H140: TRUE
A141: 0 - 4 | B141: 2506 | C141: 1287 | D141: 1219 | E141: FALSE | F141: TRUE | G141: TRUE | H141: FALSE
A142: 5 - 9 | B142: 2853 | C142: 1428 | D142: 1425 | E142: FALSE | F142: TRUE | G142: TRUE | H142: FALSE
A143: 10 - 14 | B143: 2502 | C143: 1264 | D143: 1238 | E143: FALSE | F143: TRUE | G143: TRUE | H143: FALSE
A144: 15 - 19 | B144: 2605 | C144: 1343 | D144: 1262 | E144: FALSE | F144: TRUE | G144: TRUE | H144: FALSE
A145: 20 - 24 | B145: 3335 | C145: 1628 | D145: 1707 | E145: FALSE | F145: TRUE | G145: TRUE | H145: FALSE
A146: 25 - 29 | B146: 3698 | C146: 1905 | D146: 1793 | E146: FALSE | F146: TRUE | G146: TRUE | H146: FALSE
A147: 30 - 34 | B147: 4054 | C147: 2136 | D147: 1918 | E147: FALSE | F147: TRUE | G147: TRUE | H147: FALSE
A148: 35 - 39 | B148: 3864 | C148: 2028 | D148: 1836 | E148: FALSE | F148: TRUE | G148: TRUE | H148: FALSE
A149: 40 - 44 | B149: 3460 | C149: 1760 | D149: 1700 | E149: FALSE | F149: TRUE | G149: TRUE | H149: FALSE
A150: 45 - 49 | B150: 2972 | C150: 1514 | D150: 1458 | E150: FALSE | F150: TRUE | G150: TRUE | H150: FALSE
A151: 50 - 54 | B151: 3088 | C151: 1569 | D151: 1519 | E151: FALSE | F151: TRUE | G151: TRUE | H151: FALSE
A152: 55 - 59 | B152: 3796 | C152: 1940 | D152: 1856 | E152: FALSE | F152: TRUE | G152: TRUE | H152: FALSE
A153: 60 - 64 | B153: 3679 | C153: 1790 | D153: 1889 | E153: FALSE | F153: TRUE | G153: TRUE | H153: FALSE
A154: 65 - 69 | B154: 3048 | C154: 1457 | D154: 1591 | E154: FALSE | F154: TRUE | G154: TRUE | H154: FALSE
A155: 70 i więcej | B155: 4476 | C155: 1540 | D155: 2936 | E155: TRUE | F155: TRUE | G155: FALSE | H155: FALSE
A156: 65+ | B156: =SUM(B154:B155) -> 7524 | C156: =SUM(C154:C155) -> 2997 | D156: =SUM(D154:D155) -> 4527 | E156: TRUE | F156: FALSE | G156: TRUE | H156: FALSE
A157: sulęciński | B157: 35457 | C157: 17620 | D157: 17837 | E157: TRUE | F157: TRUE | G157: TRUE | H157: TRUE
A158: 0 - 4 | B158: 1796 | C158: 931 | D158: 865 | E158: FALSE | F158: TRUE | G158: TRUE | H158: FALSE
A159: 5 - 9 | B159: 2116 | C159: 1078 | D159: 1038 | E159: FALSE | F159: TRUE | G159: TRUE | H159: FALSE
A160: 10 - 14 | B160: 1741 | C160: 874 | D160: 867 | E160: FALSE | F160: TRUE | G160: TRUE | H160: FALSE
A161: 15 - 19 | B161: 1758 | C161: 896 | D161: 862 | E161: FALSE | F161: TRUE | G161: TRUE | H161: FALSE
A162: 20 - 24 | B162: 2399 | C162: 1248 | D162: 1151 | E162: FALSE | F162: TRUE | G162: TRUE | H162: FALSE
A163: 25 - 29 | B163: 2834 | C163: 1481 | D163: 1353 | E163: FALSE | F163: TRUE | G163: TRUE | H163: FALSE
A164: 30 - 34 | B164: 3123 | C164: 1669 | D164: 1454 | E164: FALSE | F164: TRUE | G164: TRUE | H164: FALSE
A165: 35 - 39 | B165: 2706 | C165: 1421 | D165: 1285 | E165: FALSE | F165: TRUE | G165: TRUE | H165: FALSE
A166: 40 - 44 | B166: 2483 | C166: 1311 | D166: 1172 | E166: FALSE | F166: TRUE | G166: TRUE | H166: FALSE
A167: 45 - 49 | B167: 2027 | C167: 1013 | D167: 1014 | E167: FALSE | F167: TRUE | G167: TRUE | H167: FALSE
A168: 50 - 54 | B168: 2255 | C168: 1157 | D168: 1098 | E168: FALSE | F168: TRUE | G168: TRUE | H168: FALSE
A169: 55 - 59 | B169: 2721 | C169: 1362 | D169: 1359 | E169: FALSE | F169: TRUE | G169: TRUE | H169: FALSE
A170: 60 - 64 | B170: 2553 | C170: 1273 | D170: 1280 | E170: FALSE | F170: TRUE | G170: TRUE | H170: FALSE
A171: 65 - 69 | B171: 1908 | C171: 919 | D171: 989 | E171: FALSE | F171: TRUE | G171: TRUE | H171: FALSE
A172: 70 i więcej | B172: 3037 | C172: 987 | D172: 2050 | E172: TRUE | F172: TRUE | G172: FALSE | H172: FALSE
A173: 65+ | B173: =SUM(B171:B172) -> 4945 | C173: =SUM(C171:C172) -> 1906 | D173: =SUM(D171:D172) -> 3039 | E173: TRUE | F173: FALSE | G173: TRUE | H173: FALSE
A174: świebodziński | B174: 56232 | C174: 27533 | D174: 28699 | E174: TRUE | F174: TRUE | G174: TRUE | H174: TRUE
A175: 0 - 4 | B175: 2909 | C175: 1456 | D175: 1453 | E175: FALSE | F175: TRUE | G175: TRUE | H175: FALSE
A176: 5 - 9 | B176: 3126 | C176: 1640 | D176: 1486 | E176: FALSE | F176: TRUE | G176: TRUE | H176: FALSE
A177: 10 - 14 | B177: 2715 | C177: 1363 | D177: 1352 | E177: FALSE | F177: TRUE | G177: TRUE | H177: FALSE
A178: 15 - 19 | B178: 3013 | C178: 1542 | D178: 1471 | E178: FALSE | F178: TRUE | G178: TRUE | H178: FALSE
A179: 20 - 24 | B179: 3650 | C179: 1817 | D179: 1833 | E179: FALSE | F179: TRUE | G179: TRUE | H179: FALSE
A180: 25 - 29 | B180: 4176 | C180: 2159 | D180: 2017 | E180: FALSE | F180: TRUE | G180: TRUE | H180: FALSE
A181: 30 - 34 | B181: 4817 | C181: 2474 | D181: 2343 | E181: FALSE | F181: TRUE | G181: TRUE | H181: FALSE
A182: 35 - 39 | B182: 4477 | C182: 2353 | D182: 2124 | E182: FALSE | F182: TRUE | G182: TRUE | H182: FALSE
A183: 40 - 44 | B183: 3943 | C183: 2024 | D183: 1919 | E183: FALSE | F183: TRUE | G183: TRUE | H183: FALSE
A184: 45 - 49 | B184: 3240 | C184: 1662 | D184: 1578 | E184: FALSE | F184: TRUE | G184: TRUE | H184: FALSE
A185: 50 - 54 | B185: 3568 | C185: 1759 | D185: 1809 | E185: FALSE | F185: TRUE | G185: TRUE | H185: FALSE
A186: 55 - 59 | B186: 4316 | C186: 2154 | D186: 2162 | E186: FALSE | F186: TRUE | G186: TRUE | H186: FALSE
A187: 60 - 64 | B187: 4073 | C187: 1932 | D187: 2141 | E187: FALSE | F187: TRUE | G187: TRUE | H187: FALSE
A188: 65 - 69 | B188: 3372 | C188: 1530 | D188: 1842 | E188: FALSE | F188: TRUE | G188: TRUE | H188: FALSE
A189: 70 i więcej | B189: 4837 | C189: 1668 | D189: 3169 | E189: TRUE | F189: TRUE | G189: FALSE | H189: FALSE
A190: 65+ | B190: =SUM(B188:B189) -> 8209 | C190: =SUM(C188:C189) -> 3198 | D190: =SUM(D188:D189) -> 5011 | E190: TRUE | F190: FALSE | G190: TRUE | H190: FALSE
A191: zielonogórski | B191: 75283 | C191: 37145 | D191: 38138 | E191: TRUE | F191: TRUE | G191: TRUE | H191: TRUE
A192: 0 - 4 | B192: 3710 | C192: 1914 | D192: 1796 | E192: FALSE | F192: TRUE | G192: TRUE | H192: FALSE
A193: 5 - 9 | B193: 4169 | C193: 2123 | D193: 2046 | E193: FALSE | F193: TRUE | G193: TRUE | H193: FALSE
A194: 10 - 14 | B194: 3571 | C194: 1777 | D194: 1794 | E194: FALSE | F194: TRUE | G194: TRUE | H194: FALSE
A195: 15 - 19 | B195: 4110 | C195: 2142 | D195: 1968 | E195: FALSE | F195: TRUE | G195: TRUE | H195: FALSE
A196: 20 - 24 | B196: 5061 | C196: 2532 | D196: 2529 | E196: FALSE | F196: TRUE | G196: TRUE | H196: FALSE
A197: 25 - 29 | B197: 5844 | C197: 3033 | D197: 2811 | E197: =IFERROR(IF(SEARCH(" - ",A197)>0,FALSE,TRUE),TRUE) -> FALSE | F197: =IFERROR(IF(SEARCH("65+",A197)>0,FALSE,TRUE),TRUE) -> TRUE | G197: =IFERROR(IF(SEARCH("70",A197)>0,FALSE,TRUE),TRUE) -> TRUE | H197: =AND(E197:G197) -> FALSE
A198: 30 - 34 | B198: 6432 | C198: 3301 | D198: 3131 | E198: FALSE | F198: TRUE | G198: TRUE | H198: FALSE
A199: 35 - 39 | B199: 6209 | C199: 3249 | D199: 2960 | E199: FALSE | F199: TRUE | G199: TRUE | H199: FALSE
A200: 40 - 44 | B200: 5513 | C200: 2806 | D200: 2707 | E200: FALSE | F200: TRUE | G200: TRUE | H200: FALSE
A201: 45 - 49 | B201: 4422 | C201: 2244 | D201: 2178 | E201: FALSE | F201: TRUE | G201: TRUE | H201: FALSE
A202: 50 - 54 | B202: 4631 | C202: 2298 | D202: 2333 | E202: FALSE | F202: TRUE | G202: TRUE | H202: FALSE
... 56 more rows

Sheet Łódzkie (hidden)
A1: Województwa Powiaty Grupy wieku | B1: Ogółem | C1: Mężczyźni | D1: Kobiety
A4: Łódzkie | B4: 2488417 | C4: 1185645 | D4: 1302772 | E4: =IFERROR(IF(SEARCH(" - ",A4)>0,FALSE,TRUE),TRUE) -> TRUE | F4: =IFERROR(IF(SEARCH("65+",A4)>0,FALSE,TRUE),TRUE) -> TRUE | G4: =IFERROR(IF(SEARCH("70",A4)>0,FALSE,TRUE),TRUE) -> TRUE | H4: =AND(E4:G4) -> TRUE
A5: 0 - 4 | B5: 113494 | C5: 58489 | D5: 55005 | E5: =IFERROR(IF(SEARCH(" - ",A5)>0,FALSE,TRUE),TRUE) -> FALSE | F5: =IFERROR(IF(SEARCH("65+",A5)>0,FALSE,TRUE),TRUE) -> TRUE | G5: =IFERROR(IF(SEARCH("70",A5)>0,FALSE,TRUE),TRUE) -> TRUE | H5: =AND(E5:G5) -> FALSE
A6: 5 - 9 | B6: 125557 | C6: 64470 | D6: 61087 | E6: FALSE | F6: TRUE | G6: TRUE | H6: FALSE
A7: 10 - 14 | B7: 110034 | C7: 56539 | D7: 53495 | E7: FALSE | F7: TRUE | G7: TRUE | H7: FALSE
A8: 15 - 19 | B8: 118793 | C8: 61012 | D8: 57781 | E8: FALSE | F8: TRUE | G8: TRUE | H8: FALSE
A9: 20 - 24 | B9: 147447 | C9: 75192 | D9: 72255 | E9: FALSE | F9: TRUE | G9: TRUE | H9: FALSE
A10: 25 - 29 | B10: 168890 | C10: 86245 | D10: 82645 | E10: FALSE | F10: TRUE | G10: TRUE | H10: FALSE
A11: 30 - 34 | B11: 197422 | C11: 101148 | D11: 96274 | E11: FALSE | F11: TRUE | G11: TRUE | H11: FALSE
A12: 35 - 39 | B12: 196029 | C12: 99453 | D12: 96576 | E12: FALSE | F12: TRUE | G12: TRUE | H12: FALSE
A13: 40 - 44 | B13: 178790 | C13: 89935 | D13: 88855 | E13: FALSE | F13: TRUE | G13: TRUE | H13: FALSE
A14: 45 - 49 | B14: 153358 | C14: 76056 | D14: 77302 | E14: FALSE | F14: TRUE | G14: TRUE | H14: FALSE
A15: 50 - 54 | B15: 152629 | C15: 74259 | D15: 78370 | E15: FALSE | F15: TRUE | G15: TRUE | H15: FALSE
A16: 55 - 59 | B16: 187082 | C16: 88011 | D16: 99071 | E16: FALSE | F16: TRUE | G16: TRUE | H16: FALSE
A17: 60 - 64 | B17: 191861 | C17: 87592 | D17: 104269 | E17: FALSE | F17: TRUE | G17: TRUE | H17: FALSE
A18: 65 - 69 | B18: 162273 | C18: 69634 | D18: 92639 | E18: FALSE | F18: TRUE | G18: TRUE | H18: FALSE
A19: 70 i więcej | B19: 284758 | C19: 97610 | D19: 187148 | E19: TRUE | F19: TRUE | G19: FALSE | H19: FALSE
A20: 65+ | B20: =SUM(B18:B19) -> 447031 | C20: =SUM(C18:C19) -> 167244 | D20: =SUM(D18:D19) -> 279787 | E20: TRUE | F20: FALSE | G20: TRUE | H20: FALSE
A21: Łódź | B21: 698688 | C21: 318043 | D21: 380645 | E21: TRUE | F21: TRUE | G21: TRUE | H21: TRUE
A22: 0 - 4 | B22: 28973 | C22: 14938 | D22: 14035 | E22: FALSE | F22: TRUE | G22: TRUE | H22: FALSE
A23: 5 - 9 | B23: 30589 | C23: 15705 | D23: 14884 | E23: FALSE | F23: TRUE | G23: TRUE | H23: FALSE
A24: 10 - 14 | B24: 25652 | C24: 13246 | D24: 12406 | E24: FALSE | F24: TRUE | G24: TRUE | H24: FALSE
A25: 15 - 19 | B25: 26216 | C25: 13334 | D25: 12882 | E25: FALSE | F25: TRUE | G25: TRUE | H25: FALSE
A26: 20 - 24 | B26: 34262 | C26: 17089 | D26: 17173 | E26: FALSE | F26: TRUE | G26: TRUE | H26: FALSE
A27: 25 - 29 | B27: 43930 | C27: 21742 | D27: 22188 | E27: FALSE | F27: TRUE | G27: TRUE | H27: FALSE
A28: 30 - 34 | B28: 58085 | C28: 28930 | D28: 29155 | E28: FALSE | F28: TRUE | G28: TRUE | H28: FALSE
A29: 35 - 39 | B29: 57607 | C29: 28504 | D29: 29103 | E29: FALSE | F29: TRUE | G29: TRUE | H29: FALSE
A30: 40 - 44 | B30: 49965 | C30: 24621 | D30: 25344 | E30: FALSE | F30: TRUE | G30: TRUE | H30: FALSE
A31: 45 - 49 | B31: 40062 | C31: 19222 | D31: 20840 | E31: FALSE | F31: TRUE | G31: TRUE | H31: FALSE
A32: 50 - 54 | B32: 39976 | C32: 18479 | D32: 21497 | E32: FALSE | F32: TRUE | G32: TRUE | H32: FALSE
A33: 55 - 59 | B33: 54098 | C33: 23654 | D33: 30444 | E33: FALSE | F33: TRUE | G33: TRUE | H33: FALSE
A34: 60 - 64 | B34: 61735 | C34: 26206 | D34: 35529 | E34: FALSE | F34: TRUE | G34: TRUE | H34: FALSE
A35: 65 - 69 | B35: 54048 | C35: 22091 | D35: 31957 | E35: FALSE | F35: TRUE | G35: TRUE | H35: FALSE
A36: 70 i więcej | B36: 93490 | C36: 30282 | D36: 63208 | E36: TRUE | F36: TRUE | G36: FALSE | H36: FALSE
A37: 65+ | B37: =SUM(B35:B36) -> 147538 | C37: =SUM(C35:C36) -> 52373 | D37: =SUM(D35:D36) -> 95165 | E37: TRUE | F37: FALSE | G37: TRUE | H37: FALSE
A38: Piotrków Trybunalski | B38: 74905 | C38: 35171 | D38: 39734 | E38: TRUE | F38: TRUE | G38: TRUE | H38: TRUE
A39: 0 - 4 | B39: 3518 | C39: 1821 | D39: 1697 | E39: FALSE | F39: TRUE | G39: TRUE | H39: FALSE
A40: 5 - 9 | B40: 3945 | C40: 2020 | D40: 1925 | E40: FALSE | F40: TRUE | G40: TRUE | H40: FALSE
A41: 10 - 14 | B41: 3510 | C41: 1734 | D41: 1776 | E41: FALSE | F41: TRUE | G41: TRUE | H41: FALSE
A42: 15 - 19 | B42: 3586 | C42: 1828 | D42: 1758 | E42: FALSE | F42: TRUE | G42: TRUE | H42: FALSE
A43: 20 - 24 | B43: 4043 | C43: 2093 | D43: 1950 | E43: FALSE | F43: TRUE | G43: TRUE | H43: FALSE
A44: 25 - 29 | B44: 4875 | C44: 2435 | D44: 2440 | E44: FALSE | F44: TRUE | G44: TRUE | H44: FALSE
A45: 30 - 34 | B45: 5891 | C45: 3000 | D45: 2891 | E45: FALSE | F45: TRUE | G45: TRUE | H45: FALSE
A46: 35 - 39 | B46: 6220 | C46: 3128 | D46: 3092 | E46: FALSE | F46: TRUE | G46: TRUE | H46: FALSE
A47: 40 - 44 | B47: 5498 | C47: 2788 | D47: 2710 | E47: FALSE | F47: TRUE | G47: TRUE | H47: FALSE
A48: 45 - 49 | B48: 4548 | C48: 2188 | D48: 2360 | E48: FALSE | F48: TRUE | G48: TRUE | H48: FALSE
A49: 50 - 54 | B49: 4387 | C49: 2092 | D49: 2295 | E49: FALSE | F49: TRUE | G49: TRUE | H49: FALSE
A50: 55 - 59 | B50: 5459 | C50: 2401 | D50: 3058 | E50: FALSE | F50: TRUE | G50: TRUE | H50: FALSE
A51: 60 - 64 | B51: 6170 | C51: 2653 | D51: 3517 | E51: FALSE | F51: TRUE | G51: TRUE | H51: FALSE
A52: 65 - 69 | B52: 5114 | C52: 2124 | D52: 2990 | E52: FALSE | F52: TRUE | G52: TRUE | H52: FALSE
A53: 70 i więcej | B53: 8141 | C53: 2866 | D53: 5275 | E53: TRUE | F53: TRUE | G53: FALSE | H53: FALSE
A54: 65+ | B54: =SUM(B52:B53) -> 13255 | C54: =SUM(C52:C53) -> 4990 | D54: =SUM(D52:D53) -> 8265 | E54: TRUE | F54: FALSE | G54: TRUE | H54: FALSE
A55: Skierniewice | B55: 48304 | C55: 23073 | D55: 25231 | E55: TRUE | F55: TRUE | G55: TRUE | H55: TRUE
A56: 0 - 4 | B56: 2541 | C56: 1336 | D56: 1205 | E56: FALSE | F56: TRUE | G56: TRUE | H56: FALSE
A57: 5 - 9 | B57: 2712 | C57: 1392 | D57: 1320 | E57: FALSE | F57: TRUE | G57: TRUE | H57: FALSE
A58: 10 - 14 | B58: 2198 | C58: 1141 | D58: 1057 | E58: FALSE | F58: TRUE | G58: TRUE | H58: FALSE
A59: 15 - 19 | B59: 2197 | C59: 1192 | D59: 1005 | E59: FALSE | F59: TRUE | G59: TRUE | H59: FALSE
A60: 20 - 24 | B60: 2659 | C60: 1378 | D60: 1281 | E60: FALSE | F60: TRUE | G60: TRUE | H60: FALSE
A61: 25 - 29 | B61: 3253 | C61: 1647 | D61: 1606 | E61: FALSE | F61: TRUE | G61: TRUE | H61: FALSE
A62: 30 - 34 | B62: 4073 | C62: 2060 | D62: 2013 | E62: FALSE | F62: TRUE | G62: TRUE | H62: FALSE
A63: 35 - 39 | B63: 3953 | C63: 1965 | D63: 1988 | E63: FALSE | F63: TRUE | G63: TRUE | H63: FALSE
A64: 40 - 44 | B64: 3327 | C64: 1677 | D64: 1650 | E64: FALSE | F64: TRUE | G64: TRUE | H64: FALSE
A65: 45 - 49 | B65: 2865 | C65: 1378 | D65: 1487 | E65: FALSE | F65: TRUE | G65: TRUE | H65: FALSE
A66: 50 - 54 | B66: 2987 | C66: 1386 | D66: 1601 | E66: FALSE | F66: TRUE | G66: TRUE | H66: FALSE
A67: 55 - 59 | B67: 3814 | C67: 1734 | D67: 2080 | E67: FALSE | F67: TRUE | G67: TRUE | H67: FALSE
A68: 60 - 64 | B68: 3980 | C68: 1766 | D68: 2214 | E68: FALSE | F68: TRUE | G68: TRUE | H68: FALSE
A69: 65 - 69 | B69: 3105 | C69: 1350 | D69: 1755 | E69: =IFERROR(IF(SEARCH(" - ",A69)>0,FALSE,TRUE),TRUE) -> FALSE | F69: =IFERROR(IF(SEARCH("65+",A69)>0,FALSE,TRUE),TRUE) -> TRUE | G69: =IFERROR(IF(SEARCH("70",A69)>0,FALSE,TRUE),TRUE) -> TRUE | H69: =AND(E69:G69) -> FALSE
A70: 70 i więcej | B70: 4640 | C70: 1671 | D70: 2969 | E70: TRUE | F70: TRUE | G70: FALSE | H70: FALSE
A71: 65+ | B71: =SUM(B69:B70) -> 7745 | C71: =SUM(C69:C70) -> 3021 | D71: =SUM(D69:D70) -> 4724 | E71: TRUE | F71: FALSE | G71: TRUE | H71: FALSE
A72: bełchatowski | B72: 112853 | C72: 55410 | D72: 57443 | E72: TRUE | F72: TRUE | G72: TRUE | H72: TRUE
A73: 0 - 4 | B73: 5914 | C73: 3076 | D73: 2838 | E73: FALSE | F73: TRUE | G73: TRUE | H73: FALSE
A74: 5 - 9 | B74: 6417 | C74: 3310 | D74: 3107 | E74: FALSE | F74: TRUE | G74: TRUE | H74: FALSE
A75: 10 - 14 | B75: 5110 | C75: 2610 | D75: 2500 | E75: FALSE | F75: TRUE | G75: TRUE | H75: FALSE
A76: 15 - 19 | B76: 5668 | C76: 2899 | D76: 2769 | E76: FALSE | F76: TRUE | G76: TRUE | H76: FALSE
A77: 20 - 24 | B77: 7162 | C77: 3642 | D77: 3520 | E77: FALSE | F77: TRUE | G77: TRUE | H77: FALSE
A78: 25 - 29 | B78: 8657 | C78: 4445 | D78: 4212 | E78: FALSE | F78: TRUE | G78: TRUE | H78: FALSE
A79: 30 - 34 | B79: 10277 | C79: 5334 | D79: 4943 | E79: FALSE | F79: TRUE | G79: TRUE | H79: FALSE
A80: 35 - 39 | B80: 9437 | C80: 4811 | D80: 4626 | E80: FALSE | F80: TRUE | G80: TRUE | H80: FALSE
A81: 40 - 44 | B81: 7501 | C81: 3793 | D81: 3708 | E81: FALSE | F81: TRUE | G81: TRUE | H81: FALSE
A82: 45 - 49 | B82: 6371 | C82: 3093 | D82: 3278 | E82: FALSE | F82: TRUE | G82: TRUE | H82: FALSE
A83: 50 - 54 | B83: 7559 | C83: 3547 | D83: 4012 | E83: FALSE | F83: TRUE | G83: TRUE | H83: FALSE
A84: 55 - 59 | B84: 9796 | C84: 4748 | D84: 5048 | E84: FALSE | F84: TRUE | G84: TRUE | H84: FALSE
A85: 60 - 64 | B85: 8583 | C85: 4211 | D85: 4372 | E85: FALSE | F85: TRUE | G85: TRUE | H85: FALSE
A86: 65 - 69 | B86: 5855 | C86: 2801 | D86: 3054 | E86: FALSE | F86: TRUE | G86: TRUE | H86: FALSE
A87: 70 i więcej | B87: 8546 | C87: 3090 | D87: 5456 | E87: TRUE | F87: TRUE | G87: FALSE | H87: FALSE
A88: 65+ | B88: =SUM(B86:B87) -> 14401 | C88: =SUM(C86:C87) -> 5891 | D88: =SUM(D86:D87) -> 8510 | E88: TRUE | F88: FALSE | G88: TRUE | H88: FALSE
A89: kutnowski | B89: 98825 | C89: 47496 | D89: 51329 | E89: TRUE | F89: TRUE | G89: TRUE | H89: TRUE
A90: 0 - 4 | B90: 4232 | C90: 2123 | D90: 2109 | E90: FALSE | F90: TRUE | G90: TRUE | H90: FALSE
A91: 5 - 9 | B91: 4545 | C91: 2352 | D91: 2193 | E91: FALSE | F91: TRUE | G91: TRUE | H91: FALSE
A92: 10 - 14 | B92: 4062 | C92: 2108 | D92: 1954 | E92: FALSE | F92: TRUE | G92: TRUE | H92: FALSE
A93: 15 - 19 | B93: 4702 | C93: 2418 | D93: 2284 | E93: FALSE | F93: TRUE | G93: TRUE | H93: FALSE
A94: 20 - 24 | B94: 6153 | C94: 3171 | D94: 2982 | E94: FALSE | F94: TRUE | G94: TRUE | H94: FALSE
A95: 25 - 29 | B95: 6731 | C95: 3573 | D95: 3158 | E95: FALSE | F95: TRUE | G95: TRUE | H95: FALSE
A96: 30 - 34 | B96: 7330 | C96: 3847 | D96: 3483 | E96: FALSE | F96: TRUE | G96: TRUE | H96: FALSE
A97: 35 - 39 | B97: 7385 | C97: 3880 | D97: 3505 | E97: FALSE | F97: TRUE | G97: TRUE | H97: FALSE
A98: 40 - 44 | B98: 6759 | C98: 3461 | D98: 3298 | E98: FALSE | F98: TRUE | G98: TRUE | H98: FALSE
A99: 45 - 49 | B99: 6432 | C99: 3150 | D99: 3282 | E99: FALSE | F99: TRUE | G99: TRUE | H99: FALSE
A100: 50 - 54 | B100: 6748 | C100: 3279 | D100: 3469 | E100: FALSE | F100: TRUE | G100: TRUE | H100: FALSE
A101: 55 - 59 | B101: 7957 | C101: 3840 | D101: 4117 | E101: FALSE | F101: TRUE | G101: TRUE | H101: FALSE
A102: 60 - 64 | B102: 7856 | C102: 3581 | D102: 4275 | E102: FALSE | F102: TRUE | G102: TRUE | H102: FALSE
A103: 65 - 69 | B103: 6528 | C103: 2818 | D103: 3710 | E103: FALSE | F103: TRUE | G103: TRUE | H103: FALSE
A104: 70 i więcej | B104: 11405 | C104: 3895 | D104: 7510 | E104: TRUE | F104: TRUE | G104: FALSE | H104: FALSE
A105: 65+ | B105: =SUM(B103:B104) -> 17933 | C105: =SUM(C103:C104) -> 6713 | D105: =SUM(D103:D104) -> 11220 | E105: TRUE | F105: FALSE | G105: TRUE | H105: FALSE
A106: łaski | B106: 50232 | C106: 24458 | D106: 25774 | E106: TRUE | F106: TRUE | G106: TRUE | H106: TRUE
A107: 0 - 4 | B107: 2314 | C107: 1232 | D107: 1082 | E107: FALSE | F107: TRUE | G107: TRUE | H107: FALSE
A108: 5 - 9 | B108: 2500 | C108: 1250 | D108: 1250 | E108: FALSE | F108: TRUE | G108: TRUE | H108: FALSE
A109: 10 - 14 | B109: 2274 | C109: 1188 | D109: 1086 | E109: FALSE | F109: TRUE | G109: TRUE | H109: FALSE
A110: 15 - 19 | B110: 2555 | C110: 1310 | D110: 1245 | E110: FALSE | F110: TRUE | G110: TRUE | H110: FALSE
A111: 20 - 24 | B111: 3257 | C111: 1679 | D111: 1578 | E111: FALSE | F111: TRUE | G111: TRUE | H111: FALSE
A112: 25 - 29 | B112: 3559 | C112: 1822 | D112: 1737 | E112: FALSE | F112: TRUE | G112: TRUE | H112: FALSE
A113: 30 - 34 | B113: 4072 | C113: 2148 | D113: 1924 | E113: FALSE | F113: TRUE | G113: TRUE | H113: FALSE
A114: 35 - 39 | B114: 3822 | C114: 1975 | D114: 1847 | E114: FALSE | F114: TRUE | G114: TRUE | H114: FALSE
A115: 40 - 44 | B115: 3620 | C115: 1897 | D115: 1723 | E115: FALSE | F115: TRUE | G115: TRUE | H115: FALSE
A116: 45 - 49 | B116: 3215 | C116: 1591 | D116: 1624 | E116: FALSE | F116: TRUE | G116: TRUE | H116: FALSE
A117: 50 - 54 | B117: 3164 | C117: 1577 | D117: 1587 | E117: FALSE | F117: TRUE | G117: TRUE | H117: FALSE
A118: 55 - 59 | B118: 3766 | C118: 1839 | D118: 1927 | E118: FALSE | F118: TRUE | G118: TRUE | H118: FALSE
A119: 60 - 64 | B119: 3619 | C119: 1710 | D119: 1909 | E119: FALSE | F119: TRUE | G119: TRUE | H119: FALSE
A120: 65 - 69 | B120: 3059 | C120: 1344 | D120: 1715 | E120: FALSE | F120: TRUE | G120: TRUE | H120: FALSE
A121: 70 i więcej | B121: 5436 | C121: 1896 | D121: 3540 | E121: TRUE | F121: TRUE | G121: FALSE | H121: FALSE
A122: 65+ | B122: =SUM(B120:B121) -> 8495 | C122: =SUM(C120:C121) -> 3240 | D122: =SUM(D120:D121) -> 5255 | E122: TRUE | F122: FALSE | G122: TRUE | H122: FALSE
A123: łęczycki | B123: 50888 | C123: 24783 | D123: 26105 | E123: TRUE | F123: TRUE | G123: TRUE | H123: TRUE
A124: 0 - 4 | B124: 2304 | C124: 1187 | D124: 1117 | E124: FALSE | F124: TRUE | G124: TRUE | H124: FALSE
A125: 5 - 9 | B125: 2525 | C125: 1301 | D125: 1224 | E125: FALSE | F125: TRUE | G125: TRUE | H125: FALSE
A126: 10 - 14 | B126: 2309 | C126: 1170 | D126: 1139 | E126: FALSE | F126: TRUE | G126: TRUE | H126: FALSE
A127: 15 - 19 | B127: 2638 | C127: 1423 | D127: 1215 | E127: FALSE | F127: TRUE | G127: TRUE | H127: FALSE
A128: 20 - 24 | B128: 3390 | C128: 1739 | D128: 1651 | E128: FALSE | F128: TRUE | G128: TRUE | H128: FALSE
A129: 25 - 29 | B129: 3513 | C129: 1839 | D129: 1674 | E129: FALSE | F129: TRUE | G129: TRUE | H129: FALSE
A130: 30 - 34 | B130: 3881 | C130: 2065 | D130: 1816 | E130: FALSE | F130: TRUE | G130: TRUE | H130: FALSE
A131: 35 - 39 | B131: 3610 | C131: 1880 | D131: 1730 | E131: FALSE | F131: TRUE | G131: TRUE | H131: FALSE
A132: 40 - 44 | B132: 3456 | C132: 1784 | D132: 1672 | E132: FALSE | F132: TRUE | G132: TRUE | H132: FALSE
A133: 45 - 49 | B133: 3209 | C133: 1597 | D133: 1612 | E133: =IFERROR(IF(SEARCH(" - ",A133)>0,FALSE,TRUE),TRUE) -> FALSE | F133: =IFERROR(IF(SEARCH("65+",A133)>0,FALSE,TRUE),TRUE) -> TRUE | G133: =IFERROR(IF(SEARCH("70",A133)>0,FALSE,TRUE),TRUE) -> TRUE | H133: =AND(E133:G133) -> FALSE
A134: 50 - 54 | B134: 3365 | C134: 1692 | D134: 1673 | E134: FALSE | F134: TRUE | G134: TRUE | H134: FALSE
A135: 55 - 59 | B135: 3892 | C135: 1896 | D135: 1996 | E135: FALSE | F135: TRUE | G135: TRUE | H135: FALSE
A136: 60 - 64 | B136: 3533 | C136: 1715 | D136: 1818 | E136: FALSE | F136: TRUE | G136: TRUE | H136: FALSE
A137: 65 - 69 | B137: 3096 | C137: 1354 | D137: 1742 | E137: FALSE | F137: TRUE | G137: TRUE | H137: FALSE
A138: 70 i więcej | B138: 6167 | C138: 2141 | D138: 4026 | E138: TRUE | F138: TRUE | G138: FALSE | H138: FALSE
A139: 65+ | B139: =SUM(B137:B138) -> 9263 | C139: =SUM(C137:C138) -> 3495 | D139: =SUM(D137:D138) -> 5768 | E139: TRUE | F139: FALSE | G139: TRUE | H139: FALSE
A140: łowicki | B140: 79426 | C140: 38512 | D140: 40914 | E140: TRUE | F140: TRUE | G140: TRUE | H140: TRUE
A141: 0 - 4 | B141: 3754 | C141: 1906 | D141: 1848 | E141: FALSE | F141: TRUE | G141: TRUE | H141: FALSE
A142: 5 - 9 | B142: 4096 | C142: 2103 | D142: 1993 | E142: FALSE | F142: TRUE | G142: TRUE | H142: FALSE
A143: 10 - 14 | B143: 3709 | C143: 1856 | D143: 1853 | E143: FALSE | F143: TRUE | G143: TRUE | H143: FALSE
A144: 15 - 19 | B144: 4345 | C144: 2258 | D144: 2087 | E144: FALSE | F144: TRUE | G144: TRUE | H144: FALSE
A145: 20 - 24 | B145: 5019 | C145: 2520 | D145: 2499 | E145: FALSE | F145: TRUE | G145: TRUE | H145: FALSE
A146: 25 - 29 | B146: 5621 | C146: 2925 | D146: 2696 | E146: FALSE | F146: TRUE | G146: TRUE | H146: FALSE
A147: 30 - 34 | B147: 6181 | C147: 3216 | D147: 2965 | E147: FALSE | F147: TRUE | G147: TRUE | H147: FALSE
A148: 35 - 39 | B148: 5897 | C148: 3063 | D148: 2834 | E148: FALSE | F148: TRUE | G148: TRUE | H148: FALSE
A149: 40 - 44 | B149: 5429 | C149: 2765 | D149: 2664 | E149: FALSE | F149: TRUE | G149: TRUE | H149: FALSE
A150: 45 - 49 | B150: 4931 | C150: 2465 | D150: 2466 | E150: FALSE | F150: TRUE | G150: TRUE | H150: FALSE
A151: 50 - 54 | B151: 5098 | C151: 2521 | D151: 2577 | E151: FALSE | F151: TRUE | G151: TRUE | H151: FALSE
A152: 55 - 59 | B152: 5813 | C152: 2875 | D152: 2938 | E152: FALSE | F152: TRUE | G152: TRUE | H152: FALSE
A153: 60 - 64 | B153: 5812 | C153: 2764 | D153: 3048 | E153: FALSE | F153: TRUE | G153: TRUE | H153: FALSE
A154: 65 - 69 | B154: 4687 | C154: 2090 | D154: 2597 | E154: FALSE | F154: TRUE | G154: TRUE | H154: FALSE
A155: 70 i więcej | B155: 9034 | C155: 3185 | D155: 5849 | E155: TRUE | F155: TRUE | G155: FALSE | H155: FALSE
A156: 65+ | B156: =SUM(B154:B155) -> 13721 | C156: =SUM(C154:C155) -> 5275 | D156: =SUM(D154:D155) -> 8446 | E156: TRUE | F156: FALSE | G156: TRUE | H156: FALSE
A157: łódzki wschodni | B157: 70619 | C157: 33916 | D157: 36703 | E157: TRUE | F157: TRUE | G157: TRUE | H157: TRUE
A158: 0 - 4 | B158: 3439 | C158: 1758 | D158: 1681 | E158: FALSE | F158: TRUE | G158: TRUE | H158: FALSE
A159: 5 - 9 | B159: 4047 | C159: 2029 | D159: 2018 | E159: FALSE | F159: TRUE | G159: TRUE | H159: FALSE
A160: 10 - 14 | B160: 3566 | C160: 1800 | D160: 1766 | E160: FALSE | F160: TRUE | G160: TRUE | H160: FALSE
A161: 15 - 19 | B161: 3510 | C161: 1798 | D161: 1712 | E161: FALSE | F161: TRUE | G161: TRUE | H161: FALSE
A162: 20 - 24 | B162: 4225 | C162: 2170 | D162: 2055 | E162: FALSE | F162: TRUE | G162: TRUE | H162: FALSE
A163: 25 - 29 | B163: 4662 | C163: 2353 | D163: 2309 | E163: FALSE | F163: TRUE | G163: TRUE | H163: FALSE
A164: 30 - 34 | B164: 5427 | C164: 2728 | D164: 2699 | E164: FALSE | F164: TRUE | G164: TRUE | H164: FALSE
A165: 35 - 39 | B165: 5729 | C165: 2852 | D165: 2877 | E165: FALSE | F165: TRUE | G165: TRUE | H165: FALSE
A166: 40 - 44 | B166: 5521 | C166: 2751 | D166: 2770 | E166: FALSE | F166: TRUE | G166: TRUE | H166: FALSE
A167: 45 - 49 | B167: 4768 | C167: 2333 | D167: 2435 | E167: FALSE | F167: TRUE | G167: TRUE | H167: FALSE
A168: 50 - 54 | B168: 4582 | C168: 2234 | D168: 2348 | E168: FALSE | F168: TRUE | G168: TRUE | H168: FALSE
A169: 55 - 59 | B169: 5114 | C169: 2419 | D169: 2695 | E169: FALSE | F169: TRUE | G169: TRUE | H169: FALSE
A170: 60 - 64 | B170: 5166 | C170: 2464 | D170: 2702 | E170: FALSE | F170: TRUE | G170: TRUE | H170: FALSE
A171: 65 - 69 | B171: 4095 | C171: 1828 | D171: 2267 | E171: FALSE | F171: TRUE | G171: TRUE | H171: FALSE
A172: 70 i więcej | B172: 6768 | C172: 2399 | D172: 4369 | E172: TRUE | F172: TRUE | G172: FALSE | H172: FALSE
A173: 65+ | B173: =SUM(B171:B172) -> 10863 | C173: =SUM(C171:C172) -> 4227 | D173: =SUM(D171:D172) -> 6636 | E173: TRUE | F173: FALSE | G173: TRUE | H173: FALSE
A174: opoczyński | B174: 77313 | C174: 38263 | D174: 39050 | E174: TRUE | F174: TRUE | G174: TRUE | H174: TRUE
A175: 0 - 4 | B175: 3850 | C175: 1968 | D175: 1882 | E175: FALSE | F175: TRUE | G175: TRUE | H175: FALSE
A176: 5 - 9 | B176: 4483 | C176: 2280 | D176: 2203 | E176: FALSE | F176: TRUE | G176: TRUE | H176: FALSE
A177: 10 - 14 | B177: 4037 | C177: 2016 | D177: 2021 | E177: FALSE | F177: TRUE | G177: TRUE | H177: FALSE
A178: 15 - 19 | B178: 4516 | C178: 2383 | D178: 2133 | E178: FALSE | F178: TRUE | G178: TRUE | H178: FALSE
A179: 20 - 24 | B179: 5382 | C179: 2763 | D179: 2619 | E179: FALSE | F179: TRUE | G179: TRUE | H179: FALSE
A180: 25 - 29 | B180: 5825 | C180: 3032 | D180: 2793 | E180: FALSE | F180: TRUE | G180: TRUE | H180: FALSE
A181: 30 - 34 | B181: 6031 | C181: 3206 | D181: 2825 | E181: FALSE | F181: TRUE | G181: TRUE | H181: FALSE
A182: 35 - 39 | B182: 5600 | C182: 2999 | D182: 2601 | E182: FALSE | F182: TRUE | G182: TRUE | H182: FALSE
A183: 40 - 44 | B183: 5206 | C183: 2712 | D183: 2494 | E183: FALSE | F183: TRUE | G183: TRUE | H183: FALSE
A184: 45 - 49 | B184: 4674 | C184: 2350 | D184: 2324 | E184: FALSE | F184: TRUE | G184: TRUE | H184: FALSE
A185: 50 - 54 | B185: 4888 | C185: 2525 | D185: 2363 | E185: FALSE | F185: TRUE | G185: TRUE | H185: FALSE
A186: 55 - 59 | B186: 5541 | C186: 2861 | D186: 2680 | E186: FALSE | F186: TRUE | G186: TRUE | H186: FALSE
A187: 60 - 64 | B187: 5179 | C187: 2584 | D187: 2595 | E187: FALSE | F187: TRUE | G187: TRUE | H187: FALSE
A188: 65 - 69 | B188: 4025 | C188: 1826 | D188: 2199 | E188: FALSE | F188: TRUE | G188: TRUE | H188: FALSE
A189: 70 i więcej | B189: 8076 | C189: 2758 | D189: 5318 | E189: TRUE | F189: TRUE | G189: FALSE | H189: FALSE
A190: 65+ | B190: =SUM(B188:B189) -> 12101 | C190: =SUM(C188:C189) -> 4584 | D190: =SUM(D188:D189) -> 7517 | E190: TRUE | F190: FALSE | G190: TRUE | H190: FALSE
A191: pabianicki | B191: 119484 | C191: 56056 | D191: 63428 | E191: TRUE | F191: TRUE | G191: TRUE | H191: TRUE
A192: 0 - 4 | B192: 5397 | C192: 2792 | D192: 2605 | E192: FALSE | F192: TRUE | G192: TRUE | H192: FALSE
A193: 5 - 9 | B193: 5923 | C193: 3015 | D193: 2908 | E193: FALSE | F193: TRUE | G193: TRUE | H193: FALSE
A194: 10 - 14 | B194: 5029 | C194: 2609 | D194: 2420 | E194: FALSE | F194: TRUE | G194: TRUE | H194: FALSE
A195: 15 - 19 | B195: 5382 | C195: 2789 | D195: 2593 | E195: FALSE | F195: TRUE | G195: TRUE | H195: FALSE
A196: 20 - 24 | B196: 6559 | C196: 3331 | D196: 3228 | E196: FALSE | F196: TRUE | G196: TRUE | H196: FALSE
A197: 25 - 29 | B197: 7604 | C197: 3905 | D197: 3699 | E197: =IFERROR(IF(SEARCH(" - ",A197)>0,FALSE,TRUE),TRUE) -> FALSE | F197: =IFERROR(IF(SEARCH("65+",A197)>0,FALSE,TRUE),TRUE) -> TRUE | G197: =IFERROR(IF(SEARCH("70",A197)>0,FALSE,TRUE),TRUE) -> TRUE | H197: =AND(E197:G197) -> FALSE
A198: 30 - 34 | B198: 9491 | C198: 4783 | D198: 4708 | E198: FALSE | F198: TRUE | G198: TRUE | H198: FALSE
A199: 35 - 39 | B199: 9867 | C199: 4894 | D199: 4973 | E199: FALSE | F199: TRUE | G199: TRUE | H199: FALSE
A200: 40 - 44 | B200: 9149 | C200: 4470 | D200: 4679 | E200: FALSE | F200: TRUE | G200: TRUE | H200: FALSE
A201: 45 - 49 | B201: 7573 | C201: 3717 | D201: 3856 | E201: FALSE | F201: TRUE | G201: TRUE | H201: FALSE
A202: 50 - 54 | B202: 7270 | C202: 3460 | D202: 3810 | E202: FALSE | F202: TRUE | G202: TRUE | H202: FALSE
... 226 more rows

Sheet Małopolskie (hidden)
A1: Województwa Powiaty Grupy wieku | B1: Ogółem | C1: Mężczyźni | D1: Kobiety
A4: Małopolskie | B4: 3376329 | C4: 1638593 | D4: 1737736 | E4: =IFERROR(IF(SEARCH(" - ",A4)>0,FALSE,TRUE),TRUE) -> TRUE | F4: =IFERROR(IF(SEARCH("65+",A4)>0,FALSE,TRUE),TRUE) -> TRUE | G4: =IFERROR(IF(SEARCH("70",A4)>0,FALSE,TRUE),TRUE) -> TRUE | H4: =AND(E4:G4) -> TRUE
A5: 0 - 4 | B5: 175648 | C5: 90482 | D5: 85166 | E5: =IFERROR(IF(SEARCH(" - ",A5)>0,FALSE,TRUE),TRUE) -> FALSE | F5: =IFERROR(IF(SEARCH("65+",A5)>0,FALSE,TRUE),TRUE) -> TRUE | G5: =IFERROR(IF(SEARCH("70",A5)>0,FALSE,TRUE),TRUE) -> TRUE | H5: =AND(E5:G5) -> FALSE
A6: 5 - 9 | B6: 188870 | C6: 96829 | D6: 92041 | E6: FALSE | F6: TRUE | G6: TRUE | H6: FALSE
A7: 10 - 14 | B7: 166431 | C7: 85289 | D7: 81142 | E7: FALSE | F7: TRUE | G7: TRUE | H7: FALSE
A8: 15 - 19 | B8: 182579 | C8: 93301 | D8: 89278 | E8: FALSE | F8: TRUE | G8: TRUE | H8: FALSE
A9: 20 - 24 | B9: 217178 | C9: 110792 | D9: 106386 | E9: FALSE | F9: TRUE | G9: TRUE | H9: FALSE
A10: 25 - 29 | B10: 258413 | C10: 130356 | D10: 128057 | E10: FALSE | F10: TRUE | G10: TRUE | H10: FALSE
A11: 30 - 34 | B11: 289451 | C11: 145166 | D11: 144285 | E11: FALSE | F11: TRUE | G11: TRUE | H11: FALSE
A12: 35 - 39 | B12: 272149 | C12: 137197 | D12: 134952 | E12: FALSE | F12: TRUE | G12: TRUE | H12: FALSE
A13: 40 - 44 | B13: 242357 | C13: 121356 | D13: 121001 | E13: FALSE | F13: TRUE | G13: TRUE | H13: FALSE
A14: 45 - 49 | B14: 210746 | C14: 105862 | D14: 104884 | E14: FALSE | F14: TRUE | G14: TRUE | H14: FALSE
A15: 50 - 54 | B15: 208580 | C15: 103844 | D15: 104736 | E15: FALSE | F15: TRUE | G15: TRUE | H15: FALSE
A16: 55 - 59 | B16: 226070 | C16: 110267 | D16: 115803 | E16: FALSE | F16: TRUE | G16: TRUE | H16: FALSE
A17: 60 - 64 | B17: 214540 | C17: 101181 | D17: 113359 | E17: FALSE | F17: TRUE | G17: TRUE | H17: FALSE
A18: 65 - 69 | B18: 173082 | C18: 77344 | D18: 95738 | E18: FALSE | F18: TRUE | G18: TRUE | H18: FALSE
A19: 70 i więcej | B19: 350235 | C19: 129327 | D19: 220908 | E19: TRUE | F19: TRUE | G19: FALSE | H19: FALSE
A20: 65+ | B20: =SUM(B18:B19) -> 523317 | C20: =SUM(C18:C19) -> 206671 | D20: =SUM(D18:D19) -> 316646 | E20: TRUE | F20: FALSE | G20: TRUE | H20: FALSE
A21: Kraków | B21: 762448 | C21: 355687 | D21: 406761 | E21: TRUE | F21: TRUE | G21: TRUE | H21: TRUE
A22: 0 - 4 | B22: 38744 | C22: 19893 | D22: 18851 | E22: FALSE | F22: TRUE | G22: TRUE | H22: FALSE
A23: 5 - 9 | B23: 36638 | C23: 18868 | D23: 17770 | E23: FALSE | F23: TRUE | G23: TRUE | H23: FALSE
A24: 10 - 14 | B24: 28764 | C24: 14784 | D24: 13980 | E24: FALSE | F24: TRUE | G24: TRUE | H24: FALSE
A25: 15 - 19 | B25: 30194 | C25: 15291 | D25: 14903 | E25: FALSE | F25: TRUE | G25: TRUE | H25: FALSE
A26: 20 - 24 | B26: 37662 | C26: 19113 | D26: 18549 | E26: FALSE | F26: TRUE | G26: TRUE | H26: FALSE
A27: 25 - 29 | B27: 59501 | C27: 28256 | D27: 31245 | E27: FALSE | F27: TRUE | G27: TRUE | H27: FALSE
A28: 30 - 34 | B28: 76364 | C28: 36630 | D28: 39734 | E28: FALSE | F28: TRUE | G28: TRUE | H28: FALSE
A29: 35 - 39 | B29: 67644 | C29: 33301 | D29: 34343 | E29: FALSE | F29: TRUE | G29: TRUE | H29: FALSE
A30: 40 - 44 | B30: 56065 | C30: 27353 | D30: 28712 | E30: FALSE | F30: TRUE | G30: TRUE | H30: FALSE
A31: 45 - 49 | B31: 44080 | C31: 21486 | D31: 22594 | E31: FALSE | F31: TRUE | G31: TRUE | H31: FALSE
A32: 50 - 54 | B32: 41871 | C32: 19891 | D32: 21980 | E32: FALSE | F32: TRUE | G32: TRUE | H32: FALSE
A33: 55 - 59 | B33: 50316 | C33: 22806 | D33: 27510 | E33: FALSE | F33: TRUE | G33: TRUE | H33: FALSE
A34: 60 - 64 | B34: 54392 | C34: 23811 | D34: 30581 | E34: FALSE | F34: TRUE | G34: TRUE | H34: FALSE
A35: 65 - 69 | B35: 46089 | C35: 19388 | D35: 26701 | E35: FALSE | F35: TRUE | G35: TRUE | H35: FALSE
A36: 70 i więcej | B36: 94124 | C36: 34816 | D36: 59308 | E36: TRUE | F36: TRUE | G36: FALSE | H36: FALSE
A37: 65+ | B37: =SUM(B35:B36) -> 140213 | C37: =SUM(C35:C36) -> 54204 | D37: =SUM(D35:D36) -> 86009 | E37: TRUE | F37: FALSE | G37: TRUE | H37: FALSE
A38: Nowy Sącz | B38: 83829 | C38: 40083 | D38: 43746 | E38: TRUE | F38: TRUE | G38: TRUE | H38: TRUE
A39: 0 - 4 | B39: 4180 | C39: 2157 | D39: 2023 | E39: FALSE | F39: TRUE | G39: TRUE | H39: FALSE
A40: 5 - 9 | B40: 4597 | C40: 2332 | D40: 2265 | E40: FALSE | F40: TRUE | G40: TRUE | H40: FALSE
A41: 10 - 14 | B41: 4120 | C41: 2133 | D41: 1987 | E41: FALSE | F41: TRUE | G41: TRUE | H41: FALSE
A42: 15 - 19 | B42: 4670 | C42: 2343 | D42: 2327 | E42: FALSE | F42: TRUE | G42: TRUE | H42: FALSE
A43: 20 - 24 | B43: 4970 | C43: 2563 | D43: 2407 | E43: FALSE | F43: TRUE | G43: TRUE | H43: FALSE
A44: 25 - 29 | B44: 6313 | C44: 3163 | D44: 3150 | E44: FALSE | F44: TRUE | G44: TRUE | H44: FALSE
A45: 30 - 34 | B45: 7277 | C45: 3723 | D45: 3554 | E45: FALSE | F45: TRUE | G45: TRUE | H45: FALSE
A46: 35 - 39 | B46: 6779 | C46: 3408 | D46: 3371 | E46: FALSE | F46: TRUE | G46: TRUE | H46: FALSE
A47: 40 - 44 | B47: 5751 | C47: 2807 | D47: 2944 | E47: FALSE | F47: TRUE | G47: TRUE | H47: FALSE
A48: 45 - 49 | B48: 5052 | C48: 2466 | D48: 2586 | E48: FALSE | F48: TRUE | G48: TRUE | H48: FALSE
A49: 50 - 54 | B49: 5382 | C49: 2529 | D49: 2853 | E49: FALSE | F49: TRUE | G49: TRUE | H49: FALSE
A50: 55 - 59 | B50: 5873 | C50: 2753 | D50: 3120 | E50: FALSE | F50: TRUE | G50: TRUE | H50: FALSE
A51: 60 - 64 | B51: 5569 | C51: 2496 | D51: 3073 | E51: FALSE | F51: TRUE | G51: TRUE | H51: FALSE
A52: 65 - 69 | B52: 4778 | C52: 2024 | D52: 2754 | E52: FALSE | F52: TRUE | G52: TRUE | H52: FALSE
A53: 70 i więcej | B53: 8518 | C53: 3186 | D53: 5332 | E53: TRUE | F53: TRUE | G53: FALSE | H53: FALSE
A54: 65+ | B54: =SUM(B52:B53) -> 13296 | C54: =SUM(C52:C53) -> 5210 | D54: =SUM(D52:D53) -> 8086 | E54: TRUE | F54: FALSE | G54: TRUE | H54: FALSE
A55: Tarnów | B55: 110381 | C55: 52173 | D55: 58208 | E55: TRUE | F55: TRUE | G55: TRUE | H55: TRUE
A56: 0 - 4 | B56: 4455 | C56: 2315 | D56: 2140 | E56: FALSE | F56: TRUE | G56: TRUE | H56: FALSE
A57: 5 - 9 | B57: 4987 | C57: 2573 | D57: 2414 | E57: FALSE | F57: TRUE | G57: TRUE | H57: FALSE
A58: 10 - 14 | B58: 4570 | C58: 2355 | D58: 2215 | E58: FALSE | F58: TRUE | G58: TRUE | H58: FALSE
A59: 15 - 19 | B59: 5774 | C59: 2874 | D59: 2900 | E59: FALSE | F59: TRUE | G59: TRUE | H59: FALSE
A60: 20 - 24 | B60: 5916 | C60: 3086 | D60: 2830 | E60: FALSE | F60: TRUE | G60: TRUE | H60: FALSE
A61: 25 - 29 | B61: 7559 | C61: 3761 | D61: 3798 | E61: FALSE | F61: TRUE | G61: TRUE | H61: FALSE
A62: 30 - 34 | B62: 9256 | C62: 4714 | D62: 4542 | E62: FALSE | F62: TRUE | G62: TRUE | H62: FALSE
A63: 35 - 39 | B63: 8816 | C63: 4505 | D63: 4311 | E63: FALSE | F63: TRUE | G63: TRUE | H63: FALSE
A64: 40 - 44 | B64: 7724 | C64: 3849 | D64: 3875 | E64: FALSE | F64: TRUE | G64: TRUE | H64: FALSE
A65: 45 - 49 | B65: 6888 | C65: 3417 | D65: 3471 | E65: FALSE | F65: TRUE | G65: TRUE | H65: FALSE
A66: 50 - 54 | B66: 7125 | C66: 3412 | D66: 3713 | E66: FALSE | F66: TRUE | G66: TRUE | H66: FALSE
A67: 55 - 59 | B67: 8359 | C67: 3777 | D67: 4582 | E67: FALSE | F67: TRUE | G67: TRUE | H67: FALSE
A68: 60 - 64 | B68: 8220 | C68: 3535 | D68: 4685 | E68: FALSE | F68: TRUE | G68: TRUE | H68: FALSE
A69: 65 - 69 | B69: 6915 | C69: 2911 | D69: 4004 | E69: =IFERROR(IF(SEARCH(" - ",A69)>0,FALSE,TRUE),TRUE) -> FALSE | F69: =IFERROR(IF(SEARCH("65+",A69)>0,FALSE,TRUE),TRUE) -> TRUE | G69: =IFERROR(IF(SEARCH("70",A69)>0,FALSE,TRUE),TRUE) -> TRUE | H69: =AND(E69:G69) -> FALSE
A70: 70 i więcej | B70: 13817 | C70: 5089 | D70: 8728 | E70: TRUE | F70: TRUE | G70: FALSE | H70: FALSE
A71: 65+ | B71: =SUM(B69:B70) -> 20732 | C71: =SUM(C69:C70) -> 8000 | D71: =SUM(D69:D70) -> 12732 | E71: TRUE | F71: FALSE | G71: TRUE | H71: FALSE
A72: bocheński | B72: 105577 | C72: 52064 | D72: 53513 | E72: TRUE | F72: TRUE | G72: TRUE | H72: TRUE
A73: 0 - 4 | B73: 6149 | C73: 3182 | D73: 2967 | E73: FALSE | F73: TRUE | G73: TRUE | H73: FALSE
A74: 5 - 9 | B74: 6531 | C74: 3350 | D74: 3181 | E74: FALSE | F74: TRUE | G74: TRUE | H74: FALSE
A75: 10 - 14 | B75: 5730 | C75: 2846 | D75: 2884 | E75: FALSE | F75: TRUE | G75: TRUE | H75: FALSE
A76: 15 - 19 | B76: 6236 | C76: 3211 | D76: 3025 | E76: FALSE | F76: TRUE | G76: TRUE | H76: FALSE
A77: 20 - 24 | B77: 7498 | C77: 3845 | D77: 3653 | E77: FALSE | F77: TRUE | G77: TRUE | H77: FALSE
A78: 25 - 29 | B78: 8559 | C78: 4397 | D78: 4162 | E78: FALSE | F78: TRUE | G78: TRUE | H78: FALSE
A79: 30 - 34 | B79: 8789 | C79: 4453 | D79: 4336 | E79: FALSE | F79: TRUE | G79: TRUE | H79: FALSE
A80: 35 - 39 | B80: 8275 | C80: 4209 | D80: 4066 | E80: FALSE | F80: TRUE | G80: TRUE | H80: FALSE
A81: 40 - 44 | B81: 7378 | C81: 3714 | D81: 3664 | E81: FALSE | F81: TRUE | G81: TRUE | H81: FALSE
A82: 45 - 49 | B82: 6441 | C82: 3217 | D82: 3224 | E82: FALSE | F82: TRUE | G82: TRUE | H82: FALSE
A83: 50 - 54 | B83: 6433 | C83: 3203 | D83: 3230 | E83: FALSE | F83: TRUE | G83: TRUE | H83: FALSE
A84: 55 - 59 | B84: 6730 | C84: 3390 | D84: 3340 | E84: FALSE | F84: TRUE | G84: TRUE | H84: FALSE
A85: 60 - 64 | B85: 6337 | C85: 3117 | D85: 3220 | E85: FALSE | F85: TRUE | G85: TRUE | H85: FALSE
A86: 65 - 69 | B86: 5040 | C86: 2385 | D86: 2655 | E86: FALSE | F86: TRUE | G86: TRUE | H86: FALSE
A87: 70 i więcej | B87: 9451 | C87: 3545 | D87: 5906 | E87: TRUE | F87: TRUE | G87: FALSE | H87: FALSE
A88: 65+ | B88: =SUM(B86:B87) -> 14491 | C88: =SUM(C86:C87) -> 5930 | D88: =SUM(D86:D87) -> 8561 | E88: TRUE | F88: FALSE | G88: TRUE | H88: FALSE
A89: brzeski | B89: 92963 | C89: 46003 | D89: 46960 | E89: TRUE | F89: TRUE | G89: TRUE | H89: TRUE
A90: 0 - 4 | B90: 4823 | C90: 2498 | D90: 2325 | E90: FALSE | F90: TRUE | G90: TRUE | H90: FALSE
A91: 5 - 9 | B91: 5509 | C91: 2793 | D91: 2716 | E91: FALSE | F91: TRUE | G91: TRUE | H91: FALSE
A92: 10 - 14 | B92: 4989 | C92: 2529 | D92: 2460 | E92: FALSE | F92: TRUE | G92: TRUE | H92: FALSE
A93: 15 - 19 | B93: 5558 | C93: 2964 | D93: 2594 | E93: FALSE | F93: TRUE | G93: TRUE | H93: FALSE
A94: 20 - 24 | B94: 6870 | C94: 3453 | D94: 3417 | E94: FALSE | F94: TRUE | G94: TRUE | H94: FALSE
A95: 25 - 29 | B95: 7471 | C95: 3983 | D95: 3488 | E95: FALSE | F95: TRUE | G95: TRUE | H95: FALSE
A96: 30 - 34 | B96: 7544 | C96: 3856 | D96: 3688 | E96: FALSE | F96: TRUE | G96: TRUE | H96: FALSE
A97: 35 - 39 | B97: 7223 | C97: 3671 | D97: 3552 | E97: FALSE | F97: TRUE | G97: TRUE | H97: FALSE
A98: 40 - 44 | B98: 6597 | C98: 3330 | D98: 3267 | E98: FALSE | F98: TRUE | G98: TRUE | H98: FALSE
A99: 45 - 49 | B99: 5989 | C99: 3012 | D99: 2977 | E99: FALSE | F99: TRUE | G99: TRUE | H99: FALSE
A100: 50 - 54 | B100: 5966 | C100: 3055 | D100: 2911 | E100: FALSE | F100: TRUE | G100: TRUE | H100: FALSE
A101: 55 - 59 | B101: 5926 | C101: 3010 | D101: 2916 | E101: FALSE | F101: TRUE | G101: TRUE | H101: FALSE
A102: 60 - 64 | B102: 5349 | C102: 2641 | D102: 2708 | E102: FALSE | F102: TRUE | G102: TRUE | H102: FALSE
A103: 65 - 69 | B103: 4346 | C103: 1971 | D103: 2375 | E103: FALSE | F103: TRUE | G103: TRUE | H103: FALSE
A104: 70 i więcej | B104: 8803 | C104: 3237 | D104: 5566 | E104: TRUE | F104: TRUE | G104: FALSE | H104: FALSE
A105: 65+ | B105: =SUM(B103:B104) -> 13149 | C105: =SUM(C103:C104) -> 5208 | D105: =SUM(D103:D104) -> 7941 | E105: TRUE | F105: FALSE | G105: TRUE | H105: FALSE
A106: chrzanowski | B106: 126222 | C106: 61100 | D106: 65122 | E106: TRUE | F106: TRUE | G106: TRUE | H106: TRUE
A107: 0 - 4 | B107: 5688 | C107: 2872 | D107: 2816 | E107: FALSE | F107: TRUE | G107: TRUE | H107: FALSE
A108: 5 - 9 | B108: 6172 | C108: 3131 | D108: 3041 | E108: FALSE | F108: TRUE | G108: TRUE | H108: FALSE
A109: 10 - 14 | B109: 5403 | C109: 2769 | D109: 2634 | E109: FALSE | F109: TRUE | G109: TRUE | H109: FALSE
A110: 15 - 19 | B110: 5666 | C110: 2915 | D110: 2751 | E110: FALSE | F110: TRUE | G110: TRUE | H110: FALSE
A111: 20 - 24 | B111: 7256 | C111: 3671 | D111: 3585 | E111: FALSE | F111: TRUE | G111: TRUE | H111: FALSE
A112: 25 - 29 | B112: 8750 | C112: 4547 | D112: 4203 | E112: FALSE | F112: TRUE | G112: TRUE | H112: FALSE
A113: 30 - 34 | B113: 10551 | C113: 5411 | D113: 5140 | E113: FALSE | F113: TRUE | G113: TRUE | H113: FALSE
A114: 35 - 39 | B114: 10139 | C114: 5166 | D114: 4973 | E114: FALSE | F114: TRUE | G114: TRUE | H114: FALSE
A115: 40 - 44 | B115: 8666 | C115: 4424 | D115: 4242 | E115: FALSE | F115: TRUE | G115: TRUE | H115: FALSE
A116: 45 - 49 | B116: 7798 | C116: 3940 | D116: 3858 | E116: FALSE | F116: TRUE | G116: TRUE | H116: FALSE
A117: 50 - 54 | B117: 8644 | C117: 4254 | D117: 4390 | E117: FALSE | F117: TRUE | G117: TRUE | H117: FALSE
A118: 55 - 59 | B118: 10215 | C118: 4947 | D118: 5268 | E118: FALSE | F118: TRUE | G118: TRUE | H118: FALSE
A119: 60 - 64 | B119: 9486 | C119: 4464 | D119: 5022 | E119: FALSE | F119: TRUE | G119: TRUE | H119: FALSE
A120: 65 - 69 | B120: 7361 | C120: 3277 | D120: 4084 | E120: FALSE | F120: TRUE | G120: TRUE | H120: FALSE
A121: 70 i więcej | B121: 14427 | C121: 5312 | D121: 9115 | E121: TRUE | F121: TRUE | G121: FALSE | H121: FALSE
A122: 65+ | B122: =SUM(B120:B121) -> 21788 | C122: =SUM(C120:C121) -> 8589 | D122: =SUM(D120:D121) -> 13199 | E122: TRUE | F122: FALSE | G122: TRUE | H122: FALSE
A123: dąbrowski | B123: 59314 | C123: 29561 | D123: 29753 | E123: TRUE | F123: TRUE | G123: TRUE | H123: TRUE
A124: 0 - 4 | B124: 2827 | C124: 1501 | D124: 1326 | E124: FALSE | F124: TRUE | G124: TRUE | H124: FALSE
A125: 5 - 9 | B125: 3048 | C125: 1615 | D125: 1433 | E125: FALSE | F125: TRUE | G125: TRUE | H125: FALSE
A126: 10 - 14 | B126: 2937 | C126: 1502 | D126: 1435 | E126: FALSE | F126: TRUE | G126: TRUE | H126: FALSE
A127: 15 - 19 | B127: 3391 | C127: 1722 | D127: 1669 | E127: FALSE | F127: TRUE | G127: TRUE | H127: FALSE
A128: 20 - 24 | B128: 4483 | C128: 2274 | D128: 2209 | E128: FALSE | F128: TRUE | G128: TRUE | H128: FALSE
A129: 25 - 29 | B129: 4728 | C129: 2444 | D129: 2284 | E129: FALSE | F129: TRUE | G129: TRUE | H129: FALSE
A130: 30 - 34 | B130: 5053 | C130: 2606 | D130: 2447 | E130: FALSE | F130: TRUE | G130: TRUE | H130: FALSE
A131: 35 - 39 | B131: 4651 | C131: 2363 | D131: 2288 | E131: FALSE | F131: TRUE | G131: TRUE | H131: FALSE
A132: 40 - 44 | B132: 4351 | C132: 2224 | D132: 2127 | E132: FALSE | F132: TRUE | G132: TRUE | H132: FALSE
A133: 45 - 49 | B133: 3990 | C133: 2076 | D133: 1914 | E133: =IFERROR(IF(SEARCH(" - ",A133)>0,FALSE,TRUE),TRUE) -> FALSE | F133: =IFERROR(IF(SEARCH("65+",A133)>0,FALSE,TRUE),TRUE) -> TRUE | G133: =IFERROR(IF(SEARCH("70",A133)>0,FALSE,TRUE),TRUE) -> TRUE | H133: =AND(E133:G133) -> FALSE
A134: 50 - 54 | B134: 3951 | C134: 2042 | D134: 1909 | E134: FALSE | F134: TRUE | G134: TRUE | H134: FALSE
A135: 55 - 59 | B135: 3867 | C135: 2015 | D135: 1852 | E135: FALSE | F135: TRUE | G135: TRUE | H135: FALSE
A136: 60 - 64 | B136: 3370 | C136: 1709 | D136: 1661 | E136: FALSE | F136: TRUE | G136: TRUE | H136: FALSE
A137: 65 - 69 | B137: 2669 | C137: 1240 | D137: 1429 | E137: FALSE | F137: TRUE | G137: TRUE | H137: FALSE
A138: 70 i więcej | B138: 5998 | C138: 2228 | D138: 3770 | E138: TRUE | F138: TRUE | G138: FALSE | H138: FALSE
A139: 65+ | B139: =SUM(B137:B138) -> 8667 | C139: =SUM(C137:C138) -> 3468 | D139: =SUM(D137:D138) -> 5199 | E139: TRUE | F139: FALSE | G139: TRUE | H139: FALSE
A140: gorlicki | B140: 109072 | C140: 53985 | D140: 55087 | E140: TRUE | F140: TRUE | G140: TRUE | H140: TRUE
A141: 0 - 4 | B141: 5654 | C141: 2878 | D141: 2776 | E141: FALSE | F141: TRUE | G141: TRUE | H141: FALSE
A142: 5 - 9 | B142: 6419 | C142: 3285 | D142: 3134 | E142: FALSE | F142: TRUE | G142: TRUE | H142: FALSE
A143: 10 - 14 | B143: 5717 | C143: 2984 | D143: 2733 | E143: FALSE | F143: TRUE | G143: TRUE | H143: FALSE
A144: 15 - 19 | B144: 6358 | C144: 3303 | D144: 3055 | E144: FALSE | F144: TRUE | G144: TRUE | H144: FALSE
A145: 20 - 24 | B145: 7521 | C145: 3900 | D145: 3621 | E145: FALSE | F145: TRUE | G145: TRUE | H145: FALSE
A146: 25 - 29 | B146: 8506 | C146: 4458 | D146: 4048 | E146: FALSE | F146: TRUE | G146: TRUE | H146: FALSE
A147: 30 - 34 | B147: 8799 | C147: 4556 | D147: 4243 | E147: FALSE | F147: TRUE | G147: TRUE | H147: FALSE
A148: 35 - 39 | B148: 8093 | C148: 4140 | D148: 3953 | E148: FALSE | F148: TRUE | G148: TRUE | H148: FALSE
A149: 40 - 44 | B149: 7461 | C149: 3890 | D149: 3571 | E149: FALSE | F149: TRUE | G149: TRUE | H149: FALSE
A150: 45 - 49 | B150: 6841 | C150: 3450 | D150: 3391 | E150: FALSE | F150: TRUE | G150: TRUE | H150: FALSE
A151: 50 - 54 | B151: 7243 | C151: 3720 | D151: 3523 | E151: FALSE | F151: TRUE | G151: TRUE | H151: FALSE
A152: 55 - 59 | B152: 7495 | C152: 3754 | D152: 3741 | E152: FALSE | F152: TRUE | G152: TRUE | H152: FALSE
A153: 60 - 64 | B153: 6673 | C153: 3238 | D153: 3435 | E153: FALSE | F153: TRUE | G153: TRUE | H153: FALSE
A154: 65 - 69 | B154: 5235 | C154: 2373 | D154: 2862 | E154: FALSE | F154: TRUE | G154: TRUE | H154: FALSE
A155: 70 i więcej | B155: 11057 | C155: 4056 | D155: 7001 | E155: TRUE | F155: TRUE | G155: FALSE | H155: FALSE
A156: 65+ | B156: =SUM(B154:B155) -> 16292 | C156: =SUM(C154:C155) -> 6429 | D156: =SUM(D154:D155) -> 9863 | E156: TRUE | F156: FALSE | G156: TRUE | H156: FALSE
A157: krakowski | B157: 271529 | C157: 132986 | D157: 138543 | E157: TRUE | F157: TRUE | G157: TRUE | H157: TRUE
A158: 0 - 4 | B158: 14020 | C158: 7340 | D158: 6680 | E158: FALSE | F158: TRUE | G158: TRUE | H158: FALSE
A159: 5 - 9 | B159: 16213 | C159: 8343 | D159: 7870 | E159: FALSE | F159: TRUE | G159: TRUE | H159: FALSE
A160: 10 - 14 | B160: 14237 | C160: 7329 | D160: 6908 | E160: FALSE | F160: TRUE | G160: TRUE | H160: FALSE
A161: 15 - 19 | B161: 15448 | C161: 7752 | D161: 7696 | E161: FALSE | F161: TRUE | G161: TRUE | H161: FALSE
A162: 20 - 24 | B162: 16908 | C162: 8628 | D162: 8280 | E162: FALSE | F162: TRUE | G162: TRUE | H162: FALSE
A163: 25 - 29 | B163: 19602 | C163: 9835 | D163: 9767 | E163: FALSE | F163: TRUE | G163: TRUE | H163: FALSE
A164: 30 - 34 | B164: 22141 | C164: 11180 | D164: 10961 | E164: FALSE | F164: TRUE | G164: TRUE | H164: FALSE
A165: 35 - 39 | B165: 22748 | C165: 11304 | D165: 11444 | E165: FALSE | F165: TRUE | G165: TRUE | H165: FALSE
A166: 40 - 44 | B166: 20886 | C166: 10508 | D166: 10378 | E166: FALSE | F166: TRUE | G166: TRUE | H166: FALSE
A167: 45 - 49 | B167: 17649 | C167: 8969 | D167: 8680 | E167: FALSE | F167: TRUE | G167: TRUE | H167: FALSE
A168: 50 - 54 | B168: 16851 | C168: 8361 | D168: 8490 | E168: FALSE | F168: TRUE | G168: TRUE | H168: FALSE
A169: 55 - 59 | B169: 18441 | C169: 9121 | D169: 9320 | E169: FALSE | F169: TRUE | G169: TRUE | H169: FALSE
A170: 60 - 64 | B170: 17474 | C170: 8494 | D170: 8980 | E170: FALSE | F170: TRUE | G170: TRUE | H170: FALSE
A171: 65 - 69 | B171: 13524 | C171: 6332 | D171: 7192 | E171: FALSE | F171: TRUE | G171: TRUE | H171: FALSE
A172: 70 i więcej | B172: 25387 | C172: 9490 | D172: 15897 | E172: TRUE | F172: TRUE | G172: FALSE | H172: FALSE
A173: 65+ | B173: =SUM(B171:B172) -> 38911 | C173: =SUM(C171:C172) -> 15822 | D173: =SUM(D171:D172) -> 23089 | E173: TRUE | F173: FALSE | G173: TRUE | H173: FALSE
A174: limanowski | B174: 129936 | C174: 64967 | D174: 64969 | E174: TRUE | F174: TRUE | G174: TRUE | H174: TRUE
A175: 0 - 4 | B175: 8168 | C175: 4215 | D175: 3953 | E175: FALSE | F175: TRUE | G175: TRUE | H175: FALSE
A176: 5 - 9 | B176: 8825 | C176: 4548 | D176: 4277 | E176: FALSE | F176: TRUE | G176: TRUE | H176: FALSE
A177: 10 - 14 | B177: 8258 | C177: 4200 | D177: 4058 | E177: FALSE | F177: TRUE | G177: TRUE | H177: FALSE
A178: 15 - 19 | B178: 9191 | C178: 4697 | D178: 4494 | E178: FALSE | F178: TRUE | G178: TRUE | H178: FALSE
A179: 20 - 24 | B179: 10185 | C179: 5175 | D179: 5010 | E179: FALSE | F179: TRUE | G179: TRUE | H179: FALSE
A180: 25 - 29 | B180: 10281 | C180: 5280 | D180: 5001 | E180: FALSE | F180: TRUE | G180: TRUE | H180: FALSE
A181: 30 - 34 | B181: 10349 | C181: 5290 | D181: 5059 | E181: FALSE | F181: TRUE | G181: TRUE | H181: FALSE
A182: 35 - 39 | B182: 9434 | C182: 4829 | D182: 4605 | E182: FALSE | F182: TRUE | G182: TRUE | H182: FALSE
A183: 40 - 44 | B183: 8921 | C183: 4562 | D183: 4359 | E183: FALSE | F183: TRUE | G183: TRUE | H183: FALSE
A184: 45 - 49 | B184: 8163 | C184: 4271 | D184: 3892 | E184: FALSE | F184: TRUE | G184: TRUE | H184: FALSE
A185: 50 - 54 | B185: 8121 | C185: 4256 | D185: 3865 | E185: FALSE | F185: TRUE | G185: TRUE | H185: FALSE
A186: 55 - 59 | B186: 7667 | C186: 4068 | D186: 3599 | E186: FALSE | F186: TRUE | G186: TRUE | H186: FALSE
A187: 60 - 64 | B187: 6258 | C187: 3174 | D187: 3084 | E187: FALSE | F187: TRUE | G187: TRUE | H187: FALSE
A188: 65 - 69 | B188: 5093 | C188: 2360 | D188: 2733 | E188: FALSE | F188: TRUE | G188: TRUE | H188: FALSE
A189: 70 i więcej | B189: 11022 | C189: 4042 | D189: 6980 | E189: TRUE | F189: TRUE | G189: FALSE | H189: FALSE
A190: 65+ | B190: =SUM(B188:B189) -> 16115 | C190: =SUM(C188:C189) -> 6402 | D190: =SUM(D188:D189) -> 9713 | E190: TRUE | F190: FALSE | G190: TRUE | H190: FALSE
A191: miechowski | B191: 49521 | C191: 24360 | D191: 25161 | E191: TRUE | F191: TRUE | G191: TRUE | H191: TRUE
A192: 0 - 4 | B192: 2296 | C192: 1185 | D192: 1111 | E192: FALSE | F192: TRUE | G192: TRUE | H192: FALSE
A193: 5 - 9 | B193: 2450 | C193: 1227 | D193: 1223 | E193: FALSE | F193: TRUE | G193: TRUE | H193: FALSE
A194: 10 - 14 | B194: 2314 | C194: 1181 | D194: 1133 | E194: FALSE | F194: TRUE | G194: TRUE | H194: FALSE
A195: 15 - 19 | B195: 2444 | C195: 1251 | D195: 1193 | E195: FALSE | F195: TRUE | G195: TRUE | H195: FALSE
A196: 20 - 24 | B196: 3314 | C196: 1683 | D196: 1631 | E196: FALSE | F196: TRUE | G196: TRUE | H196: FALSE
A197: 25 - 29 | B197: 3474 | C197: 1797 | D197: 1677 | E197: =IFERROR(IF(SEARCH(" - ",A197)>0,FALSE,TRUE),TRUE) -> FALSE | F197: =IFERROR(IF(SEARCH("65+",A197)>0,FALSE,TRUE),TRUE) -> TRUE | G197: =IFERROR(IF(SEARCH("70",A197)>0,FALSE,TRUE),TRUE) -> TRUE | H197: =AND(E197:G197) -> FALSE
A198: 30 - 34 | B198: 3773 | C198: 1985 | D198: 1788 | E198: FALSE | F198: TRUE | G198: TRUE | H198: FALSE
A199: 35 - 39 | B199: 3789 | C199: 1952 | D199: 1837 | E199: FALSE | F199: TRUE | G199: TRUE | H199: FALSE
A200: 40 - 44 | B200: 3358 | C200: 1777 | D200: 1581 | E200: FALSE | F200: TRUE | G200: TRUE | H200: FALSE
A201: 45 - 49 | B201: 2900 | C201: 1504 | D201: 1396 | E201: FALSE | F201: TRUE | G201: TRUE | H201: FALSE
A202: 50 - 54 | B202: 3037 | C202: 1476 | D202: 1561 | E202: FALSE | F202: TRUE | G202: TRUE | H202: FALSE
... 192 more rows

Sheet Mazowieckie (hidden)
A1: Województwa Powiaty Grupy wieku | B1: Ogółem | C1: Mężczyźni | D1: Kobiety
A4: Mazowieckie | B4: 5356838 | C4: 2562757 | D4: 2794081 | E4: =IFERROR(IF(SEARCH(" - ",A4)>0,FALSE,TRUE),TRUE) -> TRUE | F4: =IFERROR(IF(SEARCH("65+",A4)>0,FALSE,TRUE),TRUE) -> TRUE | G4: =IFERROR(IF(SEARCH("70",A4)>0,FALSE,TRUE),TRUE) -> TRUE | H4: =AND(E4:G4) -> TRUE
A5: 0 - 4 | B5: 286725 | C5: 147453 | D5: 139272 | E5: =IFERROR(IF(SEARCH(" - ",A5)>0,FALSE,TRUE),TRUE) -> FALSE | F5: =IFERROR(IF(SEARCH("65+",A5)>0,FALSE,TRUE),TRUE) -> TRUE | G5: =IFERROR(IF(SEARCH("70",A5)>0,FALSE,TRUE),TRUE) -> TRUE | H5: =AND(E5:G5) -> FALSE
A6: 5 - 9 | B6: 305015 | C6: 156623 | D6: 148392 | E6: FALSE | F6: TRUE | G6: TRUE | H6: FALSE
A7: 10 - 14 | B7: 255216 | C7: 130537 | D7: 124679 | E7: FALSE | F7: TRUE | G7: TRUE | H7: FALSE
A8: 15 - 19 | B8: 257829 | C8: 132168 | D8: 125661 | E8: FALSE | F8: TRUE | G8: TRUE | H8: FALSE
A9: 20 - 24 | B9: 303394 | C9: 154481 | D9: 148913 | E9: FALSE | F9: TRUE | G9: TRUE | H9: FALSE
A10: 25 - 29 | B10: 373808 | C10: 187444 | D10: 186364 | E10: FALSE | F10: TRUE | G10: TRUE | H10: FALSE
A11: 30 - 34 | B11: 459675 | C11: 227867 | D11: 231808 | E11: FALSE | F11: TRUE | G11: TRUE | H11: FALSE
A12: 35 - 39 | B12: 457504 | C12: 226892 | D12: 230612 | E12: FALSE | F12: TRUE | G12: TRUE | H12: FALSE
A13: 40 - 44 | B13: 403196 | C13: 200707 | D13: 202489 | E13: FALSE | F13: TRUE | G13: TRUE | H13: FALSE
A14: 45 - 49 | B14: 319849 | C14: 159493 | D14: 160356 | E14: FALSE | F14: TRUE | G14: TRUE | H14: FALSE
A15: 50 - 54 | B15: 307642 | C15: 151043 | D15: 156599 | E15: FALSE | F15: TRUE | G15: TRUE | H15: FALSE
A16: 55 - 59 | B16: 366590 | C16: 174489 | D16: 192101 | E16: FALSE | F16: TRUE | G16: TRUE | H16: FALSE
A17: 60 - 64 | B17: 378276 | C17: 173501 | D17: 204775 | E17: FALSE | F17: TRUE | G17: TRUE | H17: FALSE
A18: 65 - 69 | B18: 299080 | C18: 130681 | D18: 168399 | E18: FALSE | F18: TRUE | G18: TRUE | H18: FALSE
A19: 70 i więcej | B19: 583039 | C19: 209378 | D19: 373661 | E19: TRUE | F19: TRUE | G19: FALSE | H19: FALSE
A20: 65+ | B20: =SUM(B18:B19) -> 882119 | C20: =SUM(C18:C19) -> 340059 | D20: =SUM(D18:D19) -> 542060 | E20: TRUE | F20: FALSE | G20: TRUE | H20: FALSE
A21: Ostrołęka | B21: 52408 | C21: 25077 | D21: 27331 | E21: TRUE | F21: TRUE | G21: TRUE | H21: TRUE
A22: 0 - 4 | B22: 2609 | C22: 1325 | D22: 1284 | E22: FALSE | F22: TRUE | G22: TRUE | H22: FALSE
A23: 5 - 9 | B23: 2748 | C23: 1399 | D23: 1349 | E23: FALSE | F23: TRUE | G23: TRUE | H23: FALSE
A24: 10 - 14 | B24: 2363 | C24: 1209 | D24: 1154 | E24: FALSE | F24: TRUE | G24: TRUE | H24: FALSE
A25: 15 - 19 | B25: 3046 | C25: 1518 | D25: 1528 | E25: FALSE | F25: TRUE | G25: TRUE | H25: FALSE
A26: 20 - 24 | B26: 2980 | C26: 1519 | D26: 1461 | E26: FALSE | F26: TRUE | G26: TRUE | H26: FALSE
A27: 25 - 29 | B27: 3752 | C27: 1901 | D27: 1851 | E27: FALSE | F27: TRUE | G27: TRUE | H27: FALSE
A28: 30 - 34 | B28: 4594 | C28: 2390 | D28: 2204 | E28: FALSE | F28: TRUE | G28: TRUE | H28: FALSE
A29: 35 - 39 | B29: 4275 | C29: 2202 | D29: 2073 | E29: FALSE | F29: TRUE | G29: TRUE | H29: FALSE
A30: 40 - 44 | B30: 3401 | C30: 1708 | D30: 1693 | E30: FALSE | F30: TRUE | G30: TRUE | H30: FALSE
A31: 45 - 49 | B31: 3132 | C31: 1504 | D31: 1628 | E31: FALSE | F31: TRUE | G31: TRUE | H31: FALSE
A32: 50 - 54 | B32: 3331 | C32: 1507 | D32: 1824 | E32: FALSE | F32: TRUE | G32: TRUE | H32: FALSE
A33: 55 - 59 | B33: 4337 | C33: 1900 | D33: 2437 | E33: FALSE | F33: TRUE | G33: TRUE | H33: FALSE
A34: 60 - 64 | B34: 4384 | C34: 1934 | D34: 2450 | E34: FALSE | F34: TRUE | G34: TRUE | H34: FALSE
A35: 65 - 69 | B35: 3023 | C35: 1379 | D35: 1644 | E35: FALSE | F35: TRUE | G35: TRUE | H35: FALSE
A36: 70 i więcej | B36: 4433 | C36: 1682 | D36: 2751 | E36: TRUE | F36: TRUE | G36: FALSE | H36: FALSE
A37: 65+ | B37: =SUM(B35:B36) -> 7456 | C37: =SUM(C35:C36) -> 3061 | D37: =SUM(D35:D36) -> 4395 | E37: TRUE | F37: FALSE | G37: TRUE | H37: FALSE
A38: Płock | B38: 121468 | C38: 57376 | D38: 64092 | E38: TRUE | F38: TRUE | G38: TRUE | H38: TRUE
A39: 0 - 4 | B39: 5880 | C39: 3079 | D39: 2801 | E39: FALSE | F39: TRUE | G39: TRUE | H39: FALSE
A40: 5 - 9 | B40: 6223 | C40: 3253 | D40: 2970 | E40: FALSE | F40: TRUE | G40: TRUE | H40: FALSE
A41: 10 - 14 | B41: 5178 | C41: 2637 | D41: 2541 | E41: FALSE | F41: TRUE | G41: TRUE | H41: FALSE
A42: 15 - 19 | B42: 5935 | C42: 2921 | D42: 3014 | E42: FALSE | F42: TRUE | G42: TRUE | H42: FALSE
A43: 20 - 24 | B43: 6814 | C43: 3458 | D43: 3356 | E43: FALSE | F43: TRUE | G43: TRUE | H43: FALSE
A44: 25 - 29 | B44: 7770 | C44: 4004 | D44: 3766 | E44: FALSE | F44: TRUE | G44: TRUE | H44: FALSE
A45: 30 - 34 | B45: 9939 | C45: 5001 | D45: 4938 | E45: FALSE | F45: TRUE | G45: TRUE | H45: FALSE
A46: 35 - 39 | B46: 10306 | C46: 5136 | D46: 5170 | E46: FALSE | F46: TRUE | G46: TRUE | H46: FALSE
A47: 40 - 44 | B47: 9078 | C47: 4496 | D47: 4582 | E47: FALSE | F47: TRUE | G47: TRUE | H47: FALSE
A48: 45 - 49 | B48: 7646 | C48: 3697 | D48: 3949 | E48: FALSE | F48: TRUE | G48: TRUE | H48: FALSE
A49: 50 - 54 | B49: 7272 | C49: 3455 | D49: 3817 | E49: FALSE | F49: TRUE | G49: TRUE | H49: FALSE
A50: 55 - 59 | B50: 8576 | C50: 3771 | D50: 4805 | E50: FALSE | F50: TRUE | G50: TRUE | H50: FALSE
A51: 60 - 64 | B51: 9673 | C51: 4112 | D51: 5561 | E51: FALSE | F51: TRUE | G51: TRUE | H51: FALSE
A52: 65 - 69 | B52: 8533 | C52: 3668 | D52: 4865 | E52: FALSE | F52: TRUE | G52: TRUE | H52: FALSE
A53: 70 i więcej | B53: 12645 | C53: 4688 | D53: 7957 | E53: TRUE | F53: TRUE | G53: FALSE | H53: FALSE
A54: 65+ | B54: =SUM(B52:B53) -> 21178 | C54: =SUM(C52:C53) -> 8356 | D54: =SUM(D52:D53) -> 12822 | E54: TRUE | F54: FALSE | G54: TRUE | H54: FALSE
A55: Radom | B55: 215653 | C55: 102481 | D55: 113172 | E55: TRUE | F55: TRUE | G55: TRUE | H55: TRUE
A56: 0 - 4 | B56: 9889 | C56: 5069 | D56: 4820 | E56: FALSE | F56: TRUE | G56: TRUE | H56: FALSE
A57: 5 - 9 | B57: 10965 | C57: 5724 | D57: 5241 | E57: FALSE | F57: TRUE | G57: TRUE | H57: FALSE
A58: 10 - 14 | B58: 9787 | C58: 5048 | D58: 4739 | E58: FALSE | F58: TRUE | G58: TRUE | H58: FALSE
A59: 15 - 19 | B59: 10814 | C59: 5544 | D59: 5270 | E59: FALSE | F59: TRUE | G59: TRUE | H59: FALSE
A60: 20 - 24 | B60: 12836 | C60: 6544 | D60: 6292 | E60: FALSE | F60: TRUE | G60: TRUE | H60: FALSE
A61: 25 - 29 | B61: 15305 | C61: 7942 | D61: 7363 | E61: FALSE | F61: TRUE | G61: TRUE | H61: FALSE
A62: 30 - 34 | B62: 17962 | C62: 9340 | D62: 8622 | E62: FALSE | F62: TRUE | G62: TRUE | H62: FALSE
A63: 35 - 39 | B63: 17437 | C63: 8930 | D63: 8507 | E63: FALSE | F63: TRUE | G63: TRUE | H63: FALSE
A64: 40 - 44 | B64: 14945 | C64: 7425 | D64: 7520 | E64: FALSE | F64: TRUE | G64: TRUE | H64: FALSE
A65: 45 - 49 | B65: 12634 | C65: 6179 | D65: 6455 | E65: FALSE | F65: TRUE | G65: TRUE | H65: FALSE
A66: 50 - 54 | B66: 13122 | C66: 6154 | D66: 6968 | E66: FALSE | F66: TRUE | G66: TRUE | H66: FALSE
A67: 55 - 59 | B67: 16400 | C67: 7462 | D67: 8938 | E67: FALSE | F67: TRUE | G67: TRUE | H67: FALSE
A68: 60 - 64 | B68: 17248 | C68: 7652 | D68: 9596 | E68: FALSE | F68: TRUE | G68: TRUE | H68: FALSE
A69: 65 - 69 | B69: 12762 | C69: 5247 | D69: 7515 | E69: =IFERROR(IF(SEARCH(" - ",A69)>0,FALSE,TRUE),TRUE) -> FALSE | F69: =IFERROR(IF(SEARCH("65+",A69)>0,FALSE,TRUE),TRUE) -> TRUE | G69: =IFERROR(IF(SEARCH("70",A69)>0,FALSE,TRUE),TRUE) -> TRUE | H69: =AND(E69:G69) -> FALSE
A70: 70 i więcej | B70: 23547 | C70: 8221 | D70: 15326 | E70: TRUE | F70: TRUE | G70: FALSE | H70: FALSE
A71: 65+ | B71: =SUM(B69:B70) -> 36309 | C71: =SUM(C69:C70) -> 13468 | D71: =SUM(D69:D70) -> 22841 | E71: TRUE | F71: FALSE | G71: TRUE | H71: FALSE
A72: Siedlce | B72: 77072 | C72: 36479 | D72: 40593 | E72: TRUE | F72: TRUE | G72: TRUE | H72: TRUE
A73: 0 - 4 | B73: 4533 | C73: 2342 | D73: 2191 | E73: FALSE | F73: TRUE | G73: TRUE | H73: FALSE
A74: 5 - 9 | B74: 4492 | C74: 2312 | D74: 2180 | E74: FALSE | F74: TRUE | G74: TRUE | H74: FALSE
A75: 10 - 14 | B75: 3728 | C75: 1925 | D75: 1803 | E75: FALSE | F75: TRUE | G75: TRUE | H75: FALSE
A76: 15 - 19 | B76: 3791 | C76: 1967 | D76: 1824 | E76: FALSE | F76: TRUE | G76: TRUE | H76: FALSE
A77: 20 - 24 | B77: 4217 | C77: 2203 | D77: 2014 | E77: FALSE | F77: TRUE | G77: TRUE | H77: FALSE
A78: 25 - 29 | B78: 5727 | C78: 2790 | D78: 2937 | E78: FALSE | F78: TRUE | G78: TRUE | H78: FALSE
A79: 30 - 34 | B79: 7097 | C79: 3585 | D79: 3512 | E79: FALSE | F79: TRUE | G79: TRUE | H79: FALSE
A80: 35 - 39 | B80: 6551 | C80: 3258 | D80: 3293 | E80: FALSE | F80: TRUE | G80: TRUE | H80: FALSE
A81: 40 - 44 | B81: 5243 | C81: 2554 | D81: 2689 | E81: FALSE | F81: TRUE | G81: TRUE | H81: FALSE
A82: 45 - 49 | B82: 4140 | C82: 2018 | D82: 2122 | E82: FALSE | F82: TRUE | G82: TRUE | H82: FALSE
A83: 50 - 54 | B83: 4272 | C83: 1909 | D83: 2363 | E83: FALSE | F83: TRUE | G83: TRUE | H83: FALSE
A84: 55 - 59 | B84: 5469 | C84: 2369 | D84: 3100 | E84: FALSE | F84: TRUE | G84: TRUE | H84: FALSE
A85: 60 - 64 | B85: 6038 | C85: 2604 | D85: 3434 | E85: FALSE | F85: TRUE | G85: TRUE | H85: FALSE
A86: 65 - 69 | B86: 4601 | C86: 2024 | D86: 2577 | E86: FALSE | F86: TRUE | G86: TRUE | H86: FALSE
A87: 70 i więcej | B87: 7173 | C87: 2619 | D87: 4554 | E87: TRUE | F87: TRUE | G87: FALSE | H87: FALSE
A88: 65+ | B88: =SUM(B86:B87) -> 11774 | C88: =SUM(C86:C87) -> 4643 | D88: =SUM(D86:D87) -> 7131 | E88: TRUE | F88: FALSE | G88: TRUE | H88: FALSE
A89: Warszawa | B89: 1748916 | C89: 802969 | D89: 945947 | E89: TRUE | F89: TRUE | G89: TRUE | H89: TRUE
A90: 0 - 4 | B90: 96652 | C90: 49697 | D90: 46955 | E90: FALSE | F90: TRUE | G90: TRUE | H90: FALSE
A91: 5 - 9 | B91: 94143 | C91: 48418 | D91: 45725 | E91: FALSE | F91: TRUE | G91: TRUE | H91: FALSE
A92: 10 - 14 | B92: 69217 | C92: 35241 | D92: 33976 | E92: FALSE | F92: TRUE | G92: TRUE | H92: FALSE
A93: 15 - 19 | B93: 59908 | C93: 30371 | D93: 29537 | E93: FALSE | F93: TRUE | G93: TRUE | H93: FALSE
A94: 20 - 24 | B94: 69616 | C94: 35159 | D94: 34457 | E94: FALSE | F94: TRUE | G94: TRUE | H94: FALSE
A95: 25 - 29 | B95: 119015 | C95: 55949 | D95: 63066 | E95: FALSE | F95: TRUE | G95: TRUE | H95: FALSE
A96: 30 - 34 | B96: 169791 | C96: 79696 | D96: 90095 | E96: FALSE | F96: TRUE | G96: TRUE | H96: FALSE
A97: 35 - 39 | B97: 166245 | C97: 78778 | D97: 87467 | E97: FALSE | F97: TRUE | G97: TRUE | H97: FALSE
A98: 40 - 44 | B98: 138402 | C98: 66283 | D98: 72119 | E98: FALSE | F98: TRUE | G98: TRUE | H98: FALSE
A99: 45 - 49 | B99: 95804 | C99: 46458 | D99: 49346 | E99: FALSE | F99: TRUE | G99: TRUE | H99: FALSE
A100: 50 - 54 | B100: 88182 | C100: 41831 | D100: 46351 | E100: FALSE | F100: TRUE | G100: TRUE | H100: FALSE
A101: 55 - 59 | B101: 114060 | C101: 51300 | D101: 62760 | E101: FALSE | F101: TRUE | G101: TRUE | H101: FALSE
A102: 60 - 64 | B102: 131481 | C102: 57295 | D102: 74186 | E102: FALSE | F102: TRUE | G102: TRUE | H102: FALSE
A103: 65 - 69 | B103: 107241 | C103: 44832 | D103: 62409 | E103: FALSE | F103: TRUE | G103: TRUE | H103: FALSE
A104: 70 i więcej | B104: 229159 | C104: 81661 | D104: 147498 | E104: TRUE | F104: TRUE | G104: FALSE | H104: FALSE
A105: 65+ | B105: =SUM(B103:B104) -> 336400 | C105: =SUM(C103:C104) -> 126493 | D105: =SUM(D103:D104) -> 209907 | E105: TRUE | F105: FALSE | G105: TRUE | H105: FALSE
A106: białobrzeski | B106: 33553 | C106: 16955 | D106: 16598 | E106: TRUE | F106: TRUE | G106: TRUE | H106: TRUE
A107: 0 - 4 | B107: 1828 | C107: 963 | D107: 865 | E107: FALSE | F107: TRUE | G107: TRUE | H107: FALSE
A108: 5 - 9 | B108: 1970 | C108: 1021 | D108: 949 | E108: FALSE | F108: TRUE | G108: TRUE | H108: FALSE
A109: 10 - 14 | B109: 1913 | C109: 950 | D109: 963 | E109: FALSE | F109: TRUE | G109: TRUE | H109: FALSE
A110: 15 - 19 | B110: 2002 | C110: 1056 | D110: 946 | E110: FALSE | F110: TRUE | G110: TRUE | H110: FALSE
A111: 20 - 24 | B111: 2642 | C111: 1399 | D111: 1243 | E111: FALSE | F111: TRUE | G111: TRUE | H111: FALSE
A112: 25 - 29 | B112: 2556 | C112: 1357 | D112: 1199 | E112: FALSE | F112: TRUE | G112: TRUE | H112: FALSE
A113: 30 - 34 | B113: 2598 | C113: 1392 | D113: 1206 | E113: FALSE | F113: TRUE | G113: TRUE | H113: FALSE
A114: 35 - 39 | B114: 2540 | C114: 1413 | D114: 1127 | E114: FALSE | F114: TRUE | G114: TRUE | H114: FALSE
A115: 40 - 44 | B115: 2265 | C115: 1151 | D115: 1114 | E115: FALSE | F115: TRUE | G115: TRUE | H115: FALSE
A116: 45 - 49 | B116: 2066 | C116: 1048 | D116: 1018 | E116: FALSE | F116: TRUE | G116: TRUE | H116: FALSE
A117: 50 - 54 | B117: 2003 | C117: 1059 | D117: 944 | E117: FALSE | F117: TRUE | G117: TRUE | H117: FALSE
A118: 55 - 59 | B118: 2257 | C118: 1162 | D118: 1095 | E118: FALSE | F118: TRUE | G118: TRUE | H118: FALSE
A119: 60 - 64 | B119: 2154 | C119: 1121 | D119: 1033 | E119: FALSE | F119: TRUE | G119: TRUE | H119: FALSE
A120: 65 - 69 | B120: 1635 | C120: 714 | D120: 921 | E120: FALSE | F120: TRUE | G120: TRUE | H120: FALSE
A121: 70 i więcej | B121: 3124 | C121: 1149 | D121: 1975 | E121: TRUE | F121: TRUE | G121: FALSE | H121: FALSE
A122: 65+ | B122: =SUM(B120:B121) -> 4759 | C122: =SUM(C120:C121) -> 1863 | D122: =SUM(D120:D121) -> 2896 | E122: TRUE | F122: FALSE | G122: TRUE | H122: FALSE
A123: ciechanowski | B123: 90256 | C123: 44332 | D123: 45924 | E123: TRUE | F123: TRUE | G123: TRUE | H123: TRUE
A124: 0 - 4 | B124: 4547 | C124: 2275 | D124: 2272 | E124: FALSE | F124: TRUE | G124: TRUE | H124: FALSE
A125: 5 - 9 | B125: 4711 | C125: 2457 | D125: 2254 | E125: FALSE | F125: TRUE | G125: TRUE | H125: FALSE
A126: 10 - 14 | B126: 4329 | C126: 2234 | D126: 2095 | E126: FALSE | F126: TRUE | G126: TRUE | H126: FALSE
A127: 15 - 19 | B127: 5030 | C127: 2623 | D127: 2407 | E127: FALSE | F127: TRUE | G127: TRUE | H127: FALSE
A128: 20 - 24 | B128: 6168 | C128: 3176 | D128: 2992 | E128: FALSE | F128: TRUE | G128: TRUE | H128: FALSE
A129: 25 - 29 | B129: 6895 | C129: 3610 | D129: 3285 | E129: FALSE | F129: TRUE | G129: TRUE | H129: FALSE
A130: 30 - 34 | B130: 7031 | C130: 3790 | D130: 3241 | E130: FALSE | F130: TRUE | G130: TRUE | H130: FALSE
A131: 35 - 39 | B131: 6580 | C131: 3442 | D131: 3138 | E131: FALSE | F131: TRUE | G131: TRUE | H131: FALSE
A132: 40 - 44 | B132: 5878 | C132: 2994 | D132: 2884 | E132: FALSE | F132: TRUE | G132: TRUE | H132: FALSE
A133: 45 - 49 | B133: 5533 | C133: 2756 | D133: 2777 | E133: =IFERROR(IF(SEARCH(" - ",A133)>0,FALSE,TRUE),TRUE) -> FALSE | F133: =IFERROR(IF(SEARCH("65+",A133)>0,FALSE,TRUE),TRUE) -> TRUE | G133: =IFERROR(IF(SEARCH("70",A133)>0,FALSE,TRUE),TRUE) -> TRUE | H133: =AND(E133:G133) -> FALSE
A134: 50 - 54 | B134: 6132 | C134: 3008 | D134: 3124 | E134: FALSE | F134: TRUE | G134: TRUE | H134: FALSE
A135: 55 - 59 | B135: 7283 | C135: 3592 | D135: 3691 | E135: FALSE | F135: TRUE | G135: TRUE | H135: FALSE
A136: 60 - 64 | B136: 6711 | C136: 3158 | D136: 3553 | E136: FALSE | F136: TRUE | G136: TRUE | H136: FALSE
A137: 65 - 69 | B137: 4975 | C137: 2278 | D137: 2697 | E137: FALSE | F137: TRUE | G137: TRUE | H137: FALSE
A138: 70 i więcej | B138: 8453 | C138: 2939 | D138: 5514 | E138: TRUE | F138: TRUE | G138: FALSE | H138: FALSE
A139: 65+ | B139: =SUM(B137:B138) -> 13428 | C139: =SUM(C137:C138) -> 5217 | D139: =SUM(D137:D138) -> 8211 | E139: TRUE | F139: FALSE | G139: TRUE | H139: FALSE
A140: garwoliński | B140: 108765 | C140: 54012 | D140: 54753 | E140: TRUE | F140: TRUE | G140: TRUE | H140: TRUE
A141: 0 - 4 | B141: 6513 | C141: 3341 | D141: 3172 | E141: FALSE | F141: TRUE | G141: TRUE | H141: FALSE
A142: 5 - 9 | B142: 6542 | C142: 3342 | D142: 3200 | E142: FALSE | F142: TRUE | G142: TRUE | H142: FALSE
A143: 10 - 14 | B143: 6099 | C143: 3126 | D143: 2973 | E143: FALSE | F143: TRUE | G143: TRUE | H143: FALSE
A144: 15 - 19 | B144: 6753 | C144: 3427 | D144: 3326 | E144: FALSE | F144: TRUE | G144: TRUE | H144: FALSE
A145: 20 - 24 | B145: 8208 | C145: 4186 | D145: 4022 | E145: FALSE | F145: TRUE | G145: TRUE | H145: FALSE
A146: 25 - 29 | B146: 8403 | C146: 4392 | D146: 4011 | E146: FALSE | F146: TRUE | G146: TRUE | H146: FALSE
A147: 30 - 34 | B147: 8735 | C147: 4623 | D147: 4112 | E147: FALSE | F147: TRUE | G147: TRUE | H147: FALSE
A148: 35 - 39 | B148: 8157 | C148: 4277 | D148: 3880 | E148: FALSE | F148: TRUE | G148: TRUE | H148: FALSE
A149: 40 - 44 | B149: 7376 | C149: 3834 | D149: 3542 | E149: FALSE | F149: TRUE | G149: TRUE | H149: FALSE
A150: 45 - 49 | B150: 6437 | C150: 3292 | D150: 3145 | E150: FALSE | F150: TRUE | G150: TRUE | H150: FALSE
A151: 50 - 54 | B151: 6491 | C151: 3302 | D151: 3189 | E151: FALSE | F151: TRUE | G151: TRUE | H151: FALSE
A152: 55 - 59 | B152: 7196 | C152: 3684 | D152: 3512 | E152: FALSE | F152: TRUE | G152: TRUE | H152: FALSE
A153: 60 - 64 | B153: 6491 | C153: 3157 | D153: 3334 | E153: FALSE | F153: TRUE | G153: TRUE | H153: FALSE
A154: 65 - 69 | B154: 4988 | C154: 2273 | D154: 2715 | E154: FALSE | F154: TRUE | G154: TRUE | H154: FALSE
A155: 70 i więcej | B155: 10376 | C155: 3756 | D155: 6620 | E155: TRUE | F155: TRUE | G155: FALSE | H155: FALSE
A156: 65+ | B156: =SUM(B154:B155) -> 15364 | C156: =SUM(C154:C155) -> 6029 | D156: =SUM(D154:D155) -> 9335 | E156: TRUE | F156: FALSE | G156: TRUE | H156: FALSE
A157: gostyniński | B157: 45869 | C157: 22325 | D157: 23544 | E157: TRUE | F157: TRUE | G157: TRUE | H157: TRUE
A158: 0 - 4 | B158: 1967 | C158: 985 | D158: 982 | E158: FALSE | F158: TRUE | G158: TRUE | H158: FALSE
A159: 5 - 9 | B159: 2314 | C159: 1216 | D159: 1098 | E159: FALSE | F159: TRUE | G159: TRUE | H159: FALSE
A160: 10 - 14 | B160: 2122 | C160: 1107 | D160: 1015 | E160: FALSE | F160: TRUE | G160: TRUE | H160: FALSE
A161: 15 - 19 | B161: 2518 | C161: 1314 | D161: 1204 | E161: FALSE | F161: TRUE | G161: TRUE | H161: FALSE
A162: 20 - 24 | B162: 3066 | C162: 1587 | D162: 1479 | E162: FALSE | F162: TRUE | G162: TRUE | H162: FALSE
A163: 25 - 29 | B163: 3253 | C163: 1661 | D163: 1592 | E163: FALSE | F163: TRUE | G163: TRUE | H163: FALSE
A164: 30 - 34 | B164: 3530 | C164: 1846 | D164: 1684 | E164: FALSE | F164: TRUE | G164: TRUE | H164: FALSE
A165: 35 - 39 | B165: 3341 | C165: 1756 | D165: 1585 | E165: FALSE | F165: TRUE | G165: TRUE | H165: FALSE
A166: 40 - 44 | B166: 3334 | C166: 1719 | D166: 1615 | E166: FALSE | F166: TRUE | G166: TRUE | H166: FALSE
A167: 45 - 49 | B167: 2894 | C167: 1450 | D167: 1444 | E167: FALSE | F167: TRUE | G167: TRUE | H167: FALSE
A168: 50 - 54 | B168: 2935 | C168: 1430 | D168: 1505 | E168: FALSE | F168: TRUE | G168: TRUE | H168: FALSE
A169: 55 - 59 | B169: 3576 | C169: 1719 | D169: 1857 | E169: FALSE | F169: TRUE | G169: TRUE | H169: FALSE
A170: 60 - 64 | B170: 3233 | C170: 1539 | D170: 1694 | E170: FALSE | F170: TRUE | G170: TRUE | H170: FALSE
A171: 65 - 69 | B171: 2850 | C171: 1249 | D171: 1601 | E171: FALSE | F171: TRUE | G171: TRUE | H171: FALSE
A172: 70 i więcej | B172: 4936 | C172: 1747 | D172: 3189 | E172: TRUE | F172: TRUE | G172: FALSE | H172: FALSE
A173: 65+ | B173: =SUM(B171:B172) -> 7786 | C173: =SUM(C171:C172) -> 2996 | D173: =SUM(D171:D172) -> 4790 | E173: TRUE | F173: FALSE | G173: TRUE | H173: FALSE
A174: grodziski | B174: 91289 | C174: 43731 | D174: 47558 | E174: TRUE | F174: TRUE | G174: TRUE | H174: TRUE
A175: 0 - 4 | B175: 5080 | C175: 2618 | D175: 2462 | E175: FALSE | F175: TRUE | G175: TRUE | H175: FALSE
A176: 5 - 9 | B176: 6028 | C176: 3121 | D176: 2907 | E176: FALSE | F176: TRUE | G176: TRUE | H176: FALSE
A177: 10 - 14 | B177: 4862 | C177: 2565 | D177: 2297 | E177: FALSE | F177: TRUE | G177: TRUE | H177: FALSE
A178: 15 - 19 | B178: 4715 | C178: 2386 | D178: 2329 | E178: FALSE | F178: TRUE | G178: TRUE | H178: FALSE
A179: 20 - 24 | B179: 5069 | C179: 2589 | D179: 2480 | E179: FALSE | F179: TRUE | G179: TRUE | H179: FALSE
A180: 25 - 29 | B180: 5554 | C180: 2806 | D180: 2748 | E180: FALSE | F180: TRUE | G180: TRUE | H180: FALSE
A181: 30 - 34 | B181: 7135 | C181: 3452 | D181: 3683 | E181: FALSE | F181: TRUE | G181: TRUE | H181: FALSE
A182: 35 - 39 | B182: 7939 | C182: 3810 | D182: 4129 | E182: FALSE | F182: TRUE | G182: TRUE | H182: FALSE
A183: 40 - 44 | B183: 7444 | C183: 3635 | D183: 3809 | E183: FALSE | F183: TRUE | G183: TRUE | H183: FALSE
A184: 45 - 49 | B184: 5838 | C184: 2893 | D184: 2945 | E184: FALSE | F184: TRUE | G184: TRUE | H184: FALSE
A185: 50 - 54 | B185: 5277 | C185: 2580 | D185: 2697 | E185: FALSE | F185: TRUE | G185: TRUE | H185: FALSE
A186: 55 - 59 | B186: 6176 | C186: 2923 | D186: 3253 | E186: FALSE | F186: TRUE | G186: TRUE | H186: FALSE
A187: 60 - 64 | B187: 6428 | C187: 3003 | D187: 3425 | E187: FALSE | F187: TRUE | G187: TRUE | H187: FALSE
A188: 65 - 69 | B188: 4875 | C188: 2145 | D188: 2730 | E188: FALSE | F188: TRUE | G188: TRUE | H188: FALSE
A189: 70 i więcej | B189: 8869 | C189: 3205 | D189: 5664 | E189: TRUE | F189: TRUE | G189: FALSE | H189: FALSE
A190: 65+ | B190: =SUM(B188:B189) -> 13744 | C190: =SUM(C188:C189) -> 5350 | D190: =SUM(D188:D189) -> 8394 | E190: TRUE | F190: FALSE | G190: TRUE | H190: FALSE
A191: grójecki | B191: 98551 | C191: 48480 | D191: 50071 | E191: TRUE | F191: TRUE | G191: TRUE | H191: TRUE
A192: 0 - 4 | B192: 5134 | C192: 2643 | D192: 2491 | E192: FALSE | F192: TRUE | G192: TRUE | H192: FALSE
A193: 5 - 9 | B193: 5501 | C193: 2823 | D193: 2678 | E193: FALSE | F193: TRUE | G193: TRUE | H193: FALSE
A194: 10 - 14 | B194: 5015 | C194: 2601 | D194: 2414 | E194: FALSE | F194: TRUE | G194: TRUE | H194: FALSE
A195: 15 - 19 | B195: 5076 | C195: 2698 | D195: 2378 | E195: FALSE | F195: TRUE | G195: TRUE | H195: FALSE
A196: 20 - 24 | B196: 6437 | C196: 3283 | D196: 3154 | E196: FALSE | F196: TRUE | G196: TRUE | H196: FALSE
A197: 25 - 29 | B197: 6687 | C197: 3391 | D197: 3296 | E197: =IFERROR(IF(SEARCH(" - ",A197)>0,FALSE,TRUE),TRUE) -> FALSE | F197: =IFERROR(IF(SEARCH("65+",A197)>0,FALSE,TRUE),TRUE) -> TRUE | G197: =IFERROR(IF(SEARCH("70",A197)>0,FALSE,TRUE),TRUE) -> TRUE | H197: =AND(E197:G197) -> FALSE
A198: 30 - 34 | B198: 7715 | C198: 3977 | D198: 3738 | E198: FALSE | F198: TRUE | G198: TRUE | H198: FALSE
A199: 35 - 39 | B199: 7875 | C199: 4049 | D199: 3826 | E199: FALSE | F199: TRUE | G199: TRUE | H199: FALSE
A200: 40 - 44 | B200: 7180 | C200: 3761 | D200: 3419 | E200: FALSE | F200: TRUE | G200: TRUE | H200: FALSE
A201: 45 - 49 | B201: 6000 | C201: 3027 | D201: 2973 | E201: FALSE | F201: TRUE | G201: TRUE | H201: FALSE
A202: 50 - 54 | B202: 5930 | C202: 2971 | D202: 2959 | E202: FALSE | F202: TRUE | G202: TRUE | H202: FALSE
... 532 more rows

Sheet Opolskie (hidden)
A1: Województwa Powiaty Grupy wieku | B1: Ogółem | C1: Mężczyźni | D1: Kobiety
A4: Opolskie | B4: 994489 | C4: 481132 | D4: 513357 | E4: =IFERROR(IF(SEARCH(" - ",A4)>0,FALSE,TRUE),TRUE) -> TRUE | F4: =IFERROR(IF(SEARCH("65+",A4)>0,FALSE,TRUE),TRUE) -> TRUE | G4: =IFERROR(IF(SEARCH("70",A4)>0,FALSE,TRUE),TRUE) -> TRUE | H4: =AND(E4:G4) -> TRUE
A5: 0 - 4 | B5: 42351 | C5: 21883 | D5: 20468 | E5: =IFERROR(IF(SEARCH(" - ",A5)>0,FALSE,TRUE),TRUE) -> FALSE | F5: =IFERROR(IF(SEARCH("65+",A5)>0,FALSE,TRUE),TRUE) -> TRUE | G5: =IFERROR(IF(SEARCH("70",A5)>0,FALSE,TRUE),TRUE) -> TRUE | H5: =AND(E5:G5) -> FALSE
A6: 5 - 9 | B6: 46166 | C6: 23707 | D6: 22459 | E6: FALSE | F6: TRUE | G6: TRUE | H6: FALSE
A7: 10 - 14 | B7: 42165 | C7: 21720 | D7: 20445 | E7: FALSE | F7: TRUE | G7: TRUE | H7: FALSE
A8: 15 - 19 | B8: 48470 | C8: 24807 | D8: 23663 | E8: FALSE | F8: TRUE | G8: TRUE | H8: FALSE
A9: 20 - 24 | B9: 59368 | C9: 30093 | D9: 29275 | E9: FALSE | F9: TRUE | G9: TRUE | H9: FALSE
A10: 25 - 29 | B10: 73771 | C10: 37421 | D10: 36350 | E10: FALSE | F10: TRUE | G10: TRUE | H10: FALSE
A11: 30 - 34 | B11: 81810 | C11: 40990 | D11: 40820 | E11: FALSE | F11: TRUE | G11: TRUE | H11: FALSE
A12: 35 - 39 | B12: 77788 | C12: 39064 | D12: 38724 | E12: FALSE | F12: TRUE | G12: TRUE | H12: FALSE
A13: 40 - 44 | B13: 71684 | C13: 35964 | D13: 35720 | E13: FALSE | F13: TRUE | G13: TRUE | H13: FALSE
A14: 45 - 49 | B14: 66909 | C14: 33540 | D14: 33369 | E14: FALSE | F14: TRUE | G14: TRUE | H14: FALSE
A15: 50 - 54 | B15: 70341 | C15: 35579 | D15: 34762 | E15: FALSE | F15: TRUE | G15: TRUE | H15: FALSE
A16: 55 - 59 | B16: 76059 | C16: 37429 | D16: 38630 | E16: FALSE | F16: TRUE | G16: TRUE | H16: FALSE
A17: 60 - 64 | B17: 70933 | C17: 33575 | D17: 37358 | E17: FALSE | F17: TRUE | G17: TRUE | H17: FALSE
A18: 65 - 69 | B18: 56763 | C18: 25478 | D18: 31285 | E18: FALSE | F18: TRUE | G18: TRUE | H18: FALSE
A19: 70 i więcej | B19: 109911 | C19: 39882 | D19: 70029 | E19: TRUE | F19: TRUE | G19: FALSE | H19: FALSE
A20: 65+ | B20: =SUM(B18:B19) -> 166674 | C20: =SUM(C18:C19) -> 65360 | D20: =SUM(D18:D19) -> 101314 | E20: TRUE | F20: FALSE | G20: TRUE | H20: FALSE
A21: Opole | B21: 118938 | C21: 55811 | D21: 63127 | E21: TRUE | F21: TRUE | G21: TRUE | H21: TRUE
A22: 0 - 4 | B22: 5308 | C22: 2755 | D22: 2553 | E22: FALSE | F22: TRUE | G22: TRUE | H22: FALSE
A23: 5 - 9 | B23: 5470 | C23: 2756 | D23: 2714 | E23: FALSE | F23: TRUE | G23: TRUE | H23: FALSE
A24: 10 - 14 | B24: 4455 | C24: 2289 | D24: 2166 | E24: FALSE | F24: TRUE | G24: TRUE | H24: FALSE
A25: 15 - 19 | B25: 4660 | C25: 2382 | D25: 2278 | E25: FALSE | F25: TRUE | G25: TRUE | H25: FALSE
A26: 20 - 24 | B26: 5439 | C26: 2810 | D26: 2629 | E26: FALSE | F26: TRUE | G26: TRUE | H26: FALSE
A27: 25 - 29 | B27: 7847 | C27: 3881 | D27: 3966 | E27: FALSE | F27: TRUE | G27: TRUE | H27: FALSE
A28: 30 - 34 | B28: 10961 | C28: 5345 | D28: 5616 | E28: FALSE | F28: TRUE | G28: TRUE | H28: FALSE
A29: 35 - 39 | B29: 10598 | C29: 5220 | D29: 5378 | E29: FALSE | F29: TRUE | G29: TRUE | H29: FALSE
A30: 40 - 44 | B30: 8893 | C30: 4341 | D30: 4552 | E30: FALSE | F30: TRUE | G30: TRUE | H30: FALSE
A31: 45 - 49 | B31: 7111 | C31: 3485 | D31: 3626 | E31: FALSE | F31: TRUE | G31: TRUE | H31: FALSE
A32: 50 - 54 | B32: 7233 | C32: 3449 | D32: 3784 | E32: FALSE | F32: TRUE | G32: TRUE | H32: FALSE
A33: 55 - 59 | B33: 8925 | C33: 4057 | D33: 4868 | E33: FALSE | F33: TRUE | G33: TRUE | H33: FALSE
A34: 60 - 64 | B34: 9514 | C34: 4243 | D34: 5271 | E34: FALSE | F34: TRUE | G34: TRUE | H34: FALSE
A35: 65 - 69 | B35: 8124 | C35: 3463 | D35: 4661 | E35: FALSE | F35: TRUE | G35: TRUE | H35: FALSE
A36: 70 i więcej | B36: 14400 | C36: 5335 | D36: 9065 | E36: TRUE | F36: TRUE | G36: FALSE | H36: FALSE
A37: 65+ | B37: =SUM(B35:B36) -> 22524 | C37: =SUM(C35:C36) -> 8798 | D37: =SUM(D35:D36) -> 13726 | E37: TRUE | F37: FALSE | G37: TRUE | H37: FALSE
A38: brzeski | B38: 91044 | C38: 44328 | D38: 46716 | E38: TRUE | F38: TRUE | G38: TRUE | H38: TRUE
A39: 0 - 4 | B39: 4082 | C39: 2114 | D39: 1968 | E39: FALSE | F39: TRUE | G39: TRUE | H39: FALSE
A40: 5 - 9 | B40: 5005 | C40: 2596 | D40: 2409 | E40: FALSE | F40: TRUE | G40: TRUE | H40: FALSE
A41: 10 - 14 | B41: 4132 | C41: 2203 | D41: 1929 | E41: FALSE | F41: TRUE | G41: TRUE | H41: FALSE
A42: 15 - 19 | B42: 4658 | C42: 2315 | D42: 2343 | E42: FALSE | F42: TRUE | G42: TRUE | H42: FALSE
A43: 20 - 24 | B43: 5733 | C43: 2881 | D43: 2852 | E43: FALSE | F43: TRUE | G43: TRUE | H43: FALSE
A44: 25 - 29 | B44: 6669 | C44: 3422 | D44: 3247 | E44: FALSE | F44: TRUE | G44: TRUE | H44: FALSE
A45: 30 - 34 | B45: 7613 | C45: 3912 | D45: 3701 | E45: FALSE | F45: TRUE | G45: TRUE | H45: FALSE
A46: 35 - 39 | B46: 7176 | C46: 3659 | D46: 3517 | E46: FALSE | F46: TRUE | G46: TRUE | H46: FALSE
A47: 40 - 44 | B47: 6536 | C47: 3343 | D47: 3193 | E47: FALSE | F47: TRUE | G47: TRUE | H47: FALSE
A48: 45 - 49 | B48: 5548 | C48: 2854 | D48: 2694 | E48: FALSE | F48: TRUE | G48: TRUE | H48: FALSE
A49: 50 - 54 | B49: 5791 | C49: 2902 | D49: 2889 | E49: FALSE | F49: TRUE | G49: TRUE | H49: FALSE
A50: 55 - 59 | B50: 6952 | C50: 3432 | D50: 3520 | E50: FALSE | F50: TRUE | G50: TRUE | H50: FALSE
A51: 60 - 64 | B51: 6653 | C51: 3119 | D51: 3534 | E51: FALSE | F51: TRUE | G51: TRUE | H51: FALSE
A52: 65 - 69 | B52: 5515 | C52: 2528 | D52: 2987 | E52: FALSE | F52: TRUE | G52: TRUE | H52: FALSE
A53: 70 i więcej | B53: 8981 | C53: 3048 | D53: 5933 | E53: TRUE | F53: TRUE | G53: FALSE | H53: FALSE
A54: 65+ | B54: =SUM(B52:B53) -> 14496 | C54: =SUM(C52:C53) -> 5576 | D54: =SUM(D52:D53) -> 8920 | E54: TRUE | F54: FALSE | G54: TRUE | H54: FALSE
A55: głubczycki | B55: 46695 | C55: 22783 | D55: 23912 | E55: TRUE | F55: TRUE | G55: TRUE | H55: TRUE
A56: 0 - 4 | B56: 1887 | C56: 980 | D56: 907 | E56: FALSE | F56: TRUE | G56: TRUE | H56: FALSE
A57: 5 - 9 | B57: 2188 | C57: 1106 | D57: 1082 | E57: FALSE | F57: TRUE | G57: TRUE | H57: FALSE
A58: 10 - 14 | B58: 2090 | C58: 1062 | D58: 1028 | E58: FALSE | F58: TRUE | G58: TRUE | H58: FALSE
A59: 15 - 19 | B59: 2360 | C59: 1220 | D59: 1140 | E59: FALSE | F59: TRUE | G59: TRUE | H59: FALSE
A60: 20 - 24 | B60: 2967 | C60: 1515 | D60: 1452 | E60: FALSE | F60: TRUE | G60: TRUE | H60: FALSE
A61: 25 - 29 | B61: 3439 | C61: 1738 | D61: 1701 | E61: FALSE | F61: TRUE | G61: TRUE | H61: FALSE
A62: 30 - 34 | B62: 3717 | C62: 1958 | D62: 1759 | E62: FALSE | F62: TRUE | G62: TRUE | H62: FALSE
A63: 35 - 39 | B63: 3301 | C63: 1726 | D63: 1575 | E63: FALSE | F63: TRUE | G63: TRUE | H63: FALSE
A64: 40 - 44 | B64: 3158 | C64: 1618 | D64: 1540 | E64: FALSE | F64: TRUE | G64: TRUE | H64: FALSE
A65: 45 - 49 | B65: 2972 | C65: 1528 | D65: 1444 | E65: FALSE | F65: TRUE | G65: TRUE | H65: FALSE
A66: 50 - 54 | B66: 3220 | C66: 1621 | D66: 1599 | E66: FALSE | F66: TRUE | G66: TRUE | H66: FALSE
A67: 55 - 59 | B67: 3748 | C67: 1901 | D67: 1847 | E67: FALSE | F67: TRUE | G67: TRUE | H67: FALSE
A68: 60 - 64 | B68: 3522 | C68: 1743 | D68: 1779 | E68: FALSE | F68: TRUE | G68: TRUE | H68: FALSE
A69: 65 - 69 | B69: 3014 | C69: 1385 | D69: 1629 | E69: =IFERROR(IF(SEARCH(" - ",A69)>0,FALSE,TRUE),TRUE) -> FALSE | F69: =IFERROR(IF(SEARCH("65+",A69)>0,FALSE,TRUE),TRUE) -> TRUE | G69: =IFERROR(IF(SEARCH("70",A69)>0,FALSE,TRUE),TRUE) -> TRUE | H69: =AND(E69:G69) -> FALSE
A70: 70 i więcej | B70: 5112 | C70: 1682 | D70: 3430 | E70: TRUE | F70: TRUE | G70: FALSE | H70: FALSE
A71: 65+ | B71: =SUM(B69:B70) -> 8126 | C71: =SUM(C69:C70) -> 3067 | D71: =SUM(D69:D70) -> 5059 | E71: TRUE | F71: FALSE | G71: TRUE | H71: FALSE
A72: kędzierzyńsko-kozielski | B72: 95888 | C72: 46293 | D72: 49595 | E72: TRUE | F72: TRUE | G72: TRUE | H72: TRUE
A73: 0 - 4 | B73: 3840 | C73: 2025 | D73: 1815 | E73: FALSE | F73: TRUE | G73: TRUE | H73: FALSE
A74: 5 - 9 | B74: 4246 | C74: 2180 | D74: 2066 | E74: FALSE | F74: TRUE | G74: TRUE | H74: FALSE
A75: 10 - 14 | B75: 3946 | C75: 2029 | D75: 1917 | E75: FALSE | F75: TRUE | G75: TRUE | H75: FALSE
A76: 15 - 19 | B76: 4576 | C76: 2438 | D76: 2138 | E76: FALSE | F76: TRUE | G76: TRUE | H76: FALSE
A77: 20 - 24 | B77: 5482 | C77: 2776 | D77: 2706 | E77: FALSE | F77: TRUE | G77: TRUE | H77: FALSE
A78: 25 - 29 | B78: 7103 | C78: 3542 | D78: 3561 | E78: FALSE | F78: TRUE | G78: TRUE | H78: FALSE
A79: 30 - 34 | B79: 7456 | C79: 3701 | D79: 3755 | E79: FALSE | F79: TRUE | G79: TRUE | H79: FALSE
A80: 35 - 39 | B80: 7114 | C80: 3531 | D80: 3583 | E80: FALSE | F80: TRUE | G80: TRUE | H80: FALSE
A81: 40 - 44 | B81: 6788 | C81: 3331 | D81: 3457 | E81: FALSE | F81: TRUE | G81: TRUE | H81: FALSE
A82: 45 - 49 | B82: 6992 | C82: 3522 | D82: 3470 | E82: FALSE | F82: TRUE | G82: TRUE | H82: FALSE
A83: 50 - 54 | B83: 7135 | C83: 3692 | D83: 3443 | E83: FALSE | F83: TRUE | G83: TRUE | H83: FALSE
A84: 55 - 59 | B84: 7377 | C84: 3636 | D84: 3741 | E84: FALSE | F84: TRUE | G84: TRUE | H84: FALSE
A85: 60 - 64 | B85: 6456 | C85: 3066 | D85: 3390 | E85: FALSE | F85: TRUE | G85: TRUE | H85: FALSE
A86: 65 - 69 | B86: 5582 | C86: 2435 | D86: 3147 | E86: FALSE | F86: TRUE | G86: TRUE | H86: FALSE
A87: 70 i więcej | B87: 11795 | C87: 4389 | D87: 7406 | E87: TRUE | F87: TRUE | G87: FALSE | H87: FALSE
A88: 65+ | B88: =SUM(B86:B87) -> 17377 | C88: =SUM(C86:C87) -> 6824 | D88: =SUM(D86:D87) -> 10553 | E88: TRUE | F88: FALSE | G88: TRUE | H88: FALSE
A89: kluczborski | B89: 66503 | C89: 32450 | D89: 34053 | E89: TRUE | F89: TRUE | G89: TRUE | H89: TRUE
A90: 0 - 4 | B90: 2726 | C90: 1465 | D90: 1261 | E90: FALSE | F90: TRUE | G90: TRUE | H90: FALSE
A91: 5 - 9 | B91: 2979 | C91: 1576 | D91: 1403 | E91: FALSE | F91: TRUE | G91: TRUE | H91: FALSE
A92: 10 - 14 | B92: 2824 | C92: 1455 | D92: 1369 | E92: FALSE | F92: TRUE | G92: TRUE | H92: FALSE
A93: 15 - 19 | B93: 3447 | C93: 1771 | D93: 1676 | E93: FALSE | F93: TRUE | G93: TRUE | H93: FALSE
A94: 20 - 24 | B94: 4313 | C94: 2202 | D94: 2111 | E94: FALSE | F94: TRUE | G94: TRUE | H94: FALSE
A95: 25 - 29 | B95: 5245 | C95: 2681 | D95: 2564 | E95: FALSE | F95: TRUE | G95: TRUE | H95: FALSE
A96: 30 - 34 | B96: 5571 | C96: 2834 | D96: 2737 | E96: FALSE | F96: TRUE | G96: TRUE | H96: FALSE
A97: 35 - 39 | B97: 5129 | C97: 2611 | D97: 2518 | E97: FALSE | F97: TRUE | G97: TRUE | H97: FALSE
A98: 40 - 44 | B98: 4704 | C98: 2379 | D98: 2325 | E98: FALSE | F98: TRUE | G98: TRUE | H98: FALSE
A99: 45 - 49 | B99: 4475 | C99: 2228 | D99: 2247 | E99: FALSE | F99: TRUE | G99: TRUE | H99: FALSE
A100: 50 - 54 | B100: 4719 | C100: 2392 | D100: 2327 | E100: FALSE | F100: TRUE | G100: TRUE | H100: FALSE
A101: 55 - 59 | B101: 5005 | C101: 2452 | D101: 2553 | E101: FALSE | F101: TRUE | G101: TRUE | H101: FALSE
A102: 60 - 64 | B102: 4481 | C102: 2136 | D102: 2345 | E102: FALSE | F102: TRUE | G102: TRUE | H102: FALSE
A103: 65 - 69 | B103: 3690 | C103: 1651 | D103: 2039 | E103: FALSE | F103: TRUE | G103: TRUE | H103: FALSE
A104: 70 i więcej | B104: 7195 | C104: 2617 | D104: 4578 | E104: TRUE | F104: TRUE | G104: FALSE | H104: FALSE
A105: 65+ | B105: =SUM(B103:B104) -> 10885 | C105: =SUM(C103:C104) -> 4268 | D105: =SUM(D103:D104) -> 6617 | E105: TRUE | F105: FALSE | G105: TRUE | H105: FALSE
A106: krapkowicki | B106: 64463 | C106: 31179 | D106: 33284 | E106: TRUE | F106: TRUE | G106: TRUE | H106: TRUE
A107: 0 - 4 | B107: 2770 | C107: 1392 | D107: 1378 | E107: FALSE | F107: TRUE | G107: TRUE | H107: FALSE
A108: 5 - 9 | B108: 2781 | C108: 1410 | D108: 1371 | E108: FALSE | F108: TRUE | G108: TRUE | H108: FALSE
A109: 10 - 14 | B109: 2707 | C109: 1409 | D109: 1298 | E109: FALSE | F109: TRUE | G109: TRUE | H109: FALSE
A110: 15 - 19 | B110: 3088 | C110: 1591 | D110: 1497 | E110: FALSE | F110: TRUE | G110: TRUE | H110: FALSE
A111: 20 - 24 | B111: 3942 | C111: 2053 | D111: 1889 | E111: FALSE | F111: TRUE | G111: TRUE | H111: FALSE
A112: 25 - 29 | B112: 4896 | C112: 2481 | D112: 2415 | E112: FALSE | F112: TRUE | G112: TRUE | H112: FALSE
A113: 30 - 34 | B113: 5135 | C113: 2498 | D113: 2637 | E113: FALSE | F113: TRUE | G113: TRUE | H113: FALSE
A114: 35 - 39 | B114: 5052 | C114: 2482 | D114: 2570 | E114: FALSE | F114: TRUE | G114: TRUE | H114: FALSE
A115: 40 - 44 | B115: 4707 | C115: 2329 | D115: 2378 | E115: FALSE | F115: TRUE | G115: TRUE | H115: FALSE
A116: 45 - 49 | B116: 4828 | C116: 2376 | D116: 2452 | E116: FALSE | F116: TRUE | G116: TRUE | H116: FALSE
A117: 50 - 54 | B117: 4967 | C117: 2532 | D117: 2435 | E117: FALSE | F117: TRUE | G117: TRUE | H117: FALSE
A118: 55 - 59 | B118: 4898 | C118: 2445 | D118: 2453 | E118: FALSE | F118: TRUE | G118: TRUE | H118: FALSE
A119: 60 - 64 | B119: 4358 | C119: 2042 | D119: 2316 | E119: FALSE | F119: TRUE | G119: TRUE | H119: FALSE
A120: 65 - 69 | B120: 3198 | C120: 1442 | D120: 1756 | E120: FALSE | F120: TRUE | G120: TRUE | H120: FALSE
A121: 70 i więcej | B121: 7136 | C121: 2697 | D121: 4439 | E121: TRUE | F121: TRUE | G121: FALSE | H121: FALSE
A122: 65+ | B122: =SUM(B120:B121) -> 10334 | C122: =SUM(C120:C121) -> 4139 | D122: =SUM(D120:D121) -> 6195 | E122: TRUE | F122: FALSE | G122: TRUE | H122: FALSE
A123: namysłowski | B123: 42665 | C123: 20865 | D123: 21800 | E123: TRUE | F123: TRUE | G123: TRUE | H123: TRUE
A124: 0 - 4 | B124: 1923 | C124: 1001 | D124: 922 | E124: FALSE | F124: TRUE | G124: TRUE | H124: FALSE
A125: 5 - 9 | B125: 2306 | C125: 1205 | D125: 1101 | E125: FALSE | F125: TRUE | G125: TRUE | H125: FALSE
A126: 10 - 14 | B126: 1964 | C126: 1035 | D126: 929 | E126: FALSE | F126: TRUE | G126: TRUE | H126: FALSE
A127: 15 - 19 | B127: 2300 | C127: 1162 | D127: 1138 | E127: FALSE | F127: TRUE | G127: TRUE | H127: FALSE
A128: 20 - 24 | B128: 2741 | C128: 1338 | D128: 1403 | E128: FALSE | F128: TRUE | G128: TRUE | H128: FALSE
A129: 25 - 29 | B129: 3193 | C129: 1677 | D129: 1516 | E129: FALSE | F129: TRUE | G129: TRUE | H129: FALSE
A130: 30 - 34 | B130: 3565 | C130: 1822 | D130: 1743 | E130: FALSE | F130: TRUE | G130: TRUE | H130: FALSE
A131: 35 - 39 | B131: 3431 | C131: 1732 | D131: 1699 | E131: FALSE | F131: TRUE | G131: TRUE | H131: FALSE
A132: 40 - 44 | B132: 2885 | C132: 1466 | D132: 1419 | E132: FALSE | F132: TRUE | G132: TRUE | H132: FALSE
A133: 45 - 49 | B133: 2568 | C133: 1330 | D133: 1238 | E133: =IFERROR(IF(SEARCH(" - ",A133)>0,FALSE,TRUE),TRUE) -> FALSE | F133: =IFERROR(IF(SEARCH("65+",A133)>0,FALSE,TRUE),TRUE) -> TRUE | G133: =IFERROR(IF(SEARCH("70",A133)>0,FALSE,TRUE),TRUE) -> TRUE | H133: =AND(E133:G133) -> FALSE
A134: 50 - 54 | B134: 2875 | C134: 1431 | D134: 1444 | E134: FALSE | F134: TRUE | G134: TRUE | H134: FALSE
A135: 55 - 59 | B135: 3327 | C135: 1654 | D135: 1673 | E135: FALSE | F135: TRUE | G135: TRUE | H135: FALSE
A136: 60 - 64 | B136: 3020 | C136: 1435 | D136: 1585 | E136: FALSE | F136: TRUE | G136: TRUE | H136: FALSE
A137: 65 - 69 | B137: 2505 | C137: 1182 | D137: 1323 | E137: FALSE | F137: TRUE | G137: TRUE | H137: FALSE
A138: 70 i więcej | B138: 4062 | C138: 1395 | D138: 2667 | E138: TRUE | F138: TRUE | G138: FALSE | H138: FALSE
A139: 65+ | B139: =SUM(B137:B138) -> 6567 | C139: =SUM(C137:C138) -> 2577 | D139: =SUM(D137:D138) -> 3990 | E139: TRUE | F139: FALSE | G139: TRUE | H139: FALSE
A140: nyski | B140: 138548 | C140: 67374 | D140: 71174 | E140: TRUE | F140: TRUE | G140: TRUE | H140: TRUE
A141: 0 - 4 | B141: 5425 | C141: 2751 | D141: 2674 | E141: FALSE | F141: TRUE | G141: TRUE | H141: FALSE
A142: 5 - 9 | B142: 6420 | C142: 3290 | D142: 3130 | E142: FALSE | F142: TRUE | G142: TRUE | H142: FALSE
A143: 10 - 14 | B143: 5874 | C143: 2990 | D143: 2884 | E143: FALSE | F143: TRUE | G143: TRUE | H143: FALSE
A144: 15 - 19 | B144: 7015 | C144: 3568 | D144: 3447 | E144: FALSE | F144: TRUE | G144: TRUE | H144: FALSE
A145: 20 - 24 | B145: 8795 | C145: 4493 | D145: 4302 | E145: FALSE | F145: TRUE | G145: TRUE | H145: FALSE
A146: 25 - 29 | B146: 10243 | C146: 5393 | D146: 4850 | E146: FALSE | F146: TRUE | G146: TRUE | H146: FALSE
A147: 30 - 34 | B147: 11237 | C147: 5825 | D147: 5412 | E147: FALSE | F147: TRUE | G147: TRUE | H147: FALSE
A148: 35 - 39 | B148: 10825 | C148: 5556 | D148: 5269 | E148: FALSE | F148: TRUE | G148: TRUE | H148: FALSE
A149: 40 - 44 | B149: 9800 | C149: 4998 | D149: 4802 | E149: FALSE | F149: TRUE | G149: TRUE | H149: FALSE
A150: 45 - 49 | B150: 8570 | C150: 4302 | D150: 4268 | E150: FALSE | F150: TRUE | G150: TRUE | H150: FALSE
A151: 50 - 54 | B151: 9144 | C151: 4616 | D151: 4528 | E151: FALSE | F151: TRUE | G151: TRUE | H151: FALSE
A152: 55 - 59 | B152: 10891 | C152: 5301 | D152: 5590 | E152: FALSE | F152: TRUE | G152: TRUE | H152: FALSE
A153: 60 - 64 | B153: 10804 | C153: 5151 | D153: 5653 | E153: FALSE | F153: TRUE | G153: TRUE | H153: FALSE
A154: 65 - 69 | B154: 8955 | C154: 4039 | D154: 4916 | E154: FALSE | F154: TRUE | G154: TRUE | H154: FALSE
A155: 70 i więcej | B155: 14550 | C155: 5101 | D155: 9449 | E155: TRUE | F155: TRUE | G155: FALSE | H155: FALSE
A156: 65+ | B156: =SUM(B154:B155) -> 23505 | C156: =SUM(C154:C155) -> 9140 | D156: =SUM(D154:D155) -> 14365 | E156: TRUE | F156: FALSE | G156: TRUE | H156: FALSE
A157: oleski | B157: 65181 | C157: 31769 | D157: 33412 | E157: TRUE | F157: TRUE | G157: TRUE | H157: TRUE
A158: 0 - 4 | B158: 2831 | C158: 1458 | D158: 1373 | E158: FALSE | F158: TRUE | G158: TRUE | H158: FALSE
A159: 5 - 9 | B159: 2882 | C159: 1474 | D159: 1408 | E159: FALSE | F159: TRUE | G159: TRUE | H159: FALSE
A160: 10 - 14 | B160: 2814 | C160: 1431 | D160: 1383 | E160: FALSE | F160: TRUE | G160: TRUE | H160: FALSE
A161: 15 - 19 | B161: 3344 | C161: 1709 | D161: 1635 | E161: FALSE | F161: TRUE | G161: TRUE | H161: FALSE
A162: 20 - 24 | B162: 4047 | C162: 1993 | D162: 2054 | E162: FALSE | F162: TRUE | G162: TRUE | H162: FALSE
A163: 25 - 29 | B163: 5043 | C163: 2567 | D163: 2476 | E163: FALSE | F163: TRUE | G163: TRUE | H163: FALSE
A164: 30 - 34 | B164: 5045 | C164: 2581 | D164: 2464 | E164: FALSE | F164: TRUE | G164: TRUE | H164: FALSE
A165: 35 - 39 | B165: 4789 | C165: 2376 | D165: 2413 | E165: FALSE | F165: TRUE | G165: TRUE | H165: FALSE
A166: 40 - 44 | B166: 4624 | C166: 2315 | D166: 2309 | E166: FALSE | F166: TRUE | G166: TRUE | H166: FALSE
A167: 45 - 49 | B167: 4566 | C167: 2317 | D167: 2249 | E167: FALSE | F167: TRUE | G167: TRUE | H167: FALSE
A168: 50 - 54 | B168: 4975 | C168: 2574 | D168: 2401 | E168: FALSE | F168: TRUE | G168: TRUE | H168: FALSE
A169: 55 - 59 | B169: 4873 | C169: 2453 | D169: 2420 | E169: FALSE | F169: TRUE | G169: TRUE | H169: FALSE
A170: 60 - 64 | B170: 4560 | C170: 2187 | D170: 2373 | E170: FALSE | F170: TRUE | G170: TRUE | H170: FALSE
A171: 65 - 69 | B171: 3346 | C171: 1525 | D171: 1821 | E171: FALSE | F171: TRUE | G171: TRUE | H171: FALSE
A172: 70 i więcej | B172: 7442 | C172: 2809 | D172: 4633 | E172: TRUE | F172: TRUE | G172: FALSE | H172: FALSE
A173: 65+ | B173: =SUM(B171:B172) -> 10788 | C173: =SUM(C171:C172) -> 4334 | D173: =SUM(D171:D172) -> 6454 | E173: TRUE | F173: FALSE | G173: TRUE | H173: FALSE
A174: opolski | B174: 133197 | C174: 64625 | D174: 68572 | E174: TRUE | F174: TRUE | G174: TRUE | H174: TRUE
A175: 0 - 4 | B175: 5697 | C175: 2932 | D175: 2765 | E175: FALSE | F175: TRUE | G175: TRUE | H175: FALSE
A176: 5 - 9 | B176: 5978 | C176: 3110 | D176: 2868 | E176: FALSE | F176: TRUE | G176: TRUE | H176: FALSE
A177: 10 - 14 | B177: 5752 | C177: 2926 | D177: 2826 | E177: FALSE | F177: TRUE | G177: TRUE | H177: FALSE
A178: 15 - 19 | B178: 6592 | C178: 3408 | D178: 3184 | E178: FALSE | F178: TRUE | G178: TRUE | H178: FALSE
A179: 20 - 24 | B179: 7689 | C179: 3835 | D179: 3854 | E179: FALSE | F179: TRUE | G179: TRUE | H179: FALSE
A180: 25 - 29 | B180: 9679 | C180: 4820 | D180: 4859 | E180: FALSE | F180: TRUE | G180: TRUE | H180: FALSE
A181: 30 - 34 | B181: 10835 | C181: 5186 | D181: 5649 | E181: FALSE | F181: TRUE | G181: TRUE | H181: FALSE
A182: 35 - 39 | B182: 10676 | C182: 5223 | D182: 5453 | E182: FALSE | F182: TRUE | G182: TRUE | H182: FALSE
A183: 40 - 44 | B183: 10290 | C183: 5202 | D183: 5088 | E183: FALSE | F183: TRUE | G183: TRUE | H183: FALSE
A184: 45 - 49 | B184: 10142 | C184: 5020 | D184: 5122 | E184: FALSE | F184: TRUE | G184: TRUE | H184: FALSE
A185: 50 - 54 | B185: 10482 | C185: 5419 | D185: 5063 | E185: FALSE | F185: TRUE | G185: TRUE | H185: FALSE
A186: 55 - 59 | B186: 10192 | C186: 5110 | D186: 5082 | E186: FALSE | F186: TRUE | G186: TRUE | H186: FALSE
A187: 60 - 64 | B187: 8804 | C187: 4263 | D187: 4541 | E187: FALSE | F187: TRUE | G187: TRUE | H187: FALSE
A188: 65 - 69 | B188: 6178 | C188: 2875 | D188: 3303 | E188: FALSE | F188: TRUE | G188: TRUE | H188: FALSE
A189: 70 i więcej | B189: 14211 | C189: 5296 | D189: 8915 | E189: TRUE | F189: TRUE | G189: FALSE | H189: FALSE
A190: 65+ | B190: =SUM(B188:B189) -> 20389 | C190: =SUM(C188:C189) -> 8171 | D190: =SUM(D188:D189) -> 12218 | E190: TRUE | F190: FALSE | G190: TRUE | H190: FALSE
A191: prudnicki | B191: 56043 | C191: 26987 | D191: 29056 | E191: TRUE | F191: TRUE | G191: TRUE | H191: TRUE
A192: 0 - 4 | B192: 2385 | C192: 1255 | D192: 1130 | E192: FALSE | F192: TRUE | G192: TRUE | H192: FALSE
A193: 5 - 9 | B193: 2642 | C193: 1353 | D193: 1289 | E193: FALSE | F193: TRUE | G193: TRUE | H193: FALSE
A194: 10 - 14 | B194: 2497 | C194: 1243 | D194: 1254 | E194: FALSE | F194: TRUE | G194: TRUE | H194: FALSE
A195: 15 - 19 | B195: 2822 | C195: 1444 | D195: 1378 | E195: FALSE | F195: TRUE | G195: TRUE | H195: FALSE
A196: 20 - 24 | B196: 3638 | C196: 1908 | D196: 1730 | E196: FALSE | F196: TRUE | G196: TRUE | H196: FALSE
A197: 25 - 29 | B197: 4329 | C197: 2177 | D197: 2152 | E197: =IFERROR(IF(SEARCH(" - ",A197)>0,FALSE,TRUE),TRUE) -> FALSE | F197: =IFERROR(IF(SEARCH("65+",A197)>0,FALSE,TRUE),TRUE) -> TRUE | G197: =IFERROR(IF(SEARCH("70",A197)>0,FALSE,TRUE),TRUE) -> TRUE | H197: =AND(E197:G197) -> FALSE
A198: 30 - 34 | B198: 4408 | C198: 2177 | D198: 2231 | E198: FALSE | F198: TRUE | G198: TRUE | H198: FALSE
A199: 35 - 39 | B199: 4061 | C199: 2060 | D199: 2001 | E199: FALSE | F199: TRUE | G199: TRUE | H199: FALSE
A200: 40 - 44 | B200: 3867 | C200: 1950 | D200: 1917 | E200: FALSE | F200: TRUE | G200: TRUE | H200: FALSE
A201: 45 - 49 | B201: 3686 | C201: 1823 | D201: 1863 | E201: FALSE | F201: TRUE | G201: TRUE | H201: FALSE
A202: 50 - 54 | B202: 3925 | C202: 1958 | D202: 1967 | E202: FALSE | F202: TRUE | G202: TRUE | H202: FALSE
... 22 more rows

Sheet Podkarpackie (hidden)
A1: Województwa Powiaty Grupy wieku | B1: Ogółem | C1: Mężczyźni | D1: Kobiety
A4: Podkarpackie | B4: 2126824 | C4: 1041429 | D4: 1085395 | E4: =IFERROR(IF(SEARCH(" - ",A4)>0,FALSE,TRUE),TRUE) -> TRUE | F4: =IFERROR(IF(SEARCH("65+",A4)>0,FALSE,TRUE),TRUE) -> TRUE | G4: =IFERROR(IF(SEARCH("70",A4)>0,FALSE,TRUE),TRUE) -> TRUE | H4: =AND(E4:G4) -> TRUE
A5: 0 - 4 | B5: 101422 | C5: 52004 | D5: 49418 | E5: =IFERROR(IF(SEARCH(" - ",A5)>0,FALSE,TRUE),TRUE) -> FALSE | F5: =IFERROR(IF(SEARCH("65+",A5)>0,FALSE,TRUE),TRUE) -> TRUE | G5: =IFERROR(IF(SEARCH("70",A5)>0,FALSE,TRUE),TRUE) -> TRUE | H5: =AND(E5:G5) -> FALSE
A6: 5 - 9 | B6: 113556 | C6: 58139 | D6: 55417 | E6: FALSE | F6: TRUE | G6: TRUE | H6: FALSE
A7: 10 - 14 | B7: 106780 | C7: 54848 | D7: 51932 | E7: FALSE | F7: TRUE | G7: TRUE | H7: FALSE
A8: 15 - 19 | B8: 121608 | C8: 62415 | D8: 59193 | E8: FALSE | F8: TRUE | G8: TRUE | H8: FALSE
A9: 20 - 24 | B9: 146339 | C9: 74443 | D9: 71896 | E9: FALSE | F9: TRUE | G9: TRUE | H9: FALSE
A10: 25 - 29 | B10: 167060 | C10: 86056 | D10: 81004 | E10: FALSE | F10: TRUE | G10: TRUE | H10: FALSE
A11: 30 - 34 | B11: 176985 | C11: 90681 | D11: 86304 | E11: FALSE | F11: TRUE | G11: TRUE | H11: FALSE
A12: 35 - 39 | B12: 167143 | C12: 85299 | D12: 81844 | E12: FALSE | F12: TRUE | G12: TRUE | H12: FALSE
A13: 40 - 44 | B13: 152060 | C13: 77314 | D13: 74746 | E13: FALSE | F13: TRUE | G13: TRUE | H13: FALSE
A14: 45 - 49 | B14: 133841 | C14: 67387 | D14: 66454 | E14: FALSE | F14: TRUE | G14: TRUE | H14: FALSE
A15: 50 - 54 | B15: 135910 | C15: 68492 | D15: 67418 | E15: FALSE | F15: TRUE | G15: TRUE | H15: FALSE
A16: 55 - 59 | B16: 146343 | C16: 72156 | D16: 74187 | E16: FALSE | F16: TRUE | G16: TRUE | H16: FALSE
A17: 60 - 64 | B17: 136040 | C17: 64709 | D17: 71331 | E17: FALSE | F17: TRUE | G17: TRUE | H17: FALSE
A18: 65 - 69 | B18: 108022 | C18: 48939 | D18: 59083 | E18: FALSE | F18: TRUE | G18: TRUE | H18: FALSE
A19: 70 i więcej | B19: 213715 | C19: 78547 | D19: 135168 | E19: TRUE | F19: TRUE | G19: FALSE | H19: FALSE
A20: 65+ | B20: =SUM(B18:B19) -> 321737 | C20: =SUM(C18:C19) -> 127486 | D20: =SUM(D18:D19) -> 194251 | E20: TRUE | F20: FALSE | G20: TRUE | H20: FALSE
A21: Krosno | B21: 46695 | C21: 22085 | D21: 24610 | E21: TRUE | F21: TRUE | G21: TRUE | H21: TRUE
A22: 0 - 4 | B22: 2029 | C22: 1035 | D22: 994 | E22: FALSE | F22: TRUE | G22: TRUE | H22: FALSE
A23: 5 - 9 | B23: 2314 | C23: 1198 | D23: 1116 | E23: FALSE | F23: TRUE | G23: TRUE | H23: FALSE
A24: 10 - 14 | B24: 2032 | C24: 1012 | D24: 1020 | E24: FALSE | F24: TRUE | G24: TRUE | H24: FALSE
A25: 15 - 19 | B25: 2341 | C25: 1231 | D25: 1110 | E25: FALSE | F25: TRUE | G25: TRUE | H25: FALSE
A26: 20 - 24 | B26: 2411 | C26: 1188 | D26: 1223 | E26: FALSE | F26: TRUE | G26: TRUE | H26: FALSE
A27: 25 - 29 | B27: 3218 | C27: 1631 | D27: 1587 | E27: FALSE | F27: TRUE | G27: TRUE | H27: FALSE
A28: 30 - 34 | B28: 3881 | C28: 1926 | D28: 1955 | E28: FALSE | F28: TRUE | G28: TRUE | H28: FALSE
A29: 35 - 39 | B29: 3991 | C29: 2050 | D29: 1941 | E29: FALSE | F29: TRUE | G29: TRUE | H29: FALSE
A30: 40 - 44 | B30: 3331 | C30: 1689 | D30: 1642 | E30: FALSE | F30: TRUE | G30: TRUE | H30: FALSE
A31: 45 - 49 | B31: 2609 | C31: 1258 | D31: 1351 | E31: FALSE | F31: TRUE | G31: TRUE | H31: FALSE
A32: 50 - 54 | B32: 2865 | C32: 1301 | D32: 1564 | E32: FALSE | F32: TRUE | G32: TRUE | H32: FALSE
A33: 55 - 59 | B33: 3535 | C33: 1598 | D33: 1937 | E33: FALSE | F33: TRUE | G33: TRUE | H33: FALSE
A34: 60 - 64 | B34: 3803 | C34: 1665 | D34: 2138 | E34: FALSE | F34: TRUE | G34: TRUE | H34: FALSE
A35: 65 - 69 | B35: 3097 | C35: 1336 | D35: 1761 | E35: FALSE | F35: TRUE | G35: TRUE | H35: FALSE
A36: 70 i więcej | B36: 5238 | C36: 1967 | D36: 3271 | E36: TRUE | F36: TRUE | G36: FALSE | H36: FALSE
A37: 65+ | B37: =SUM(B35:B36) -> 8335 | C37: =SUM(C35:C36) -> 3303 | D37: =SUM(D35:D36) -> 5032 | E37: TRUE | F37: FALSE | G37: TRUE | H37: FALSE
A38: Przemyśl | B38: 62485 | C38: 29355 | D38: 33130 | E38: TRUE | F38: TRUE | G38: TRUE | H38: TRUE
A39: 0 - 4 | B39: 2546 | C39: 1312 | D39: 1234 | E39: FALSE | F39: TRUE | G39: TRUE | H39: FALSE
A40: 5 - 9 | B40: 2999 | C40: 1536 | D40: 1463 | E40: FALSE | F40: TRUE | G40: TRUE | H40: FALSE
A41: 10 - 14 | B41: 2773 | C41: 1412 | D41: 1361 | E41: FALSE | F41: TRUE | G41: TRUE | H41: FALSE
A42: 15 - 19 | B42: 3098 | C42: 1606 | D42: 1492 | E42: FALSE | F42: TRUE | G42: TRUE | H42: FALSE
A43: 20 - 24 | B43: 3567 | C43: 1830 | D43: 1737 | E43: FALSE | F43: TRUE | G43: TRUE | H43: FALSE
A44: 25 - 29 | B44: 4272 | C44: 2149 | D44: 2123 | E44: FALSE | F44: TRUE | G44: TRUE | H44: FALSE
A45: 30 - 34 | B45: 5020 | C45: 2540 | D45: 2480 | E45: FALSE | F45: TRUE | G45: TRUE | H45: FALSE
A46: 35 - 39 | B46: 5002 | C46: 2548 | D46: 2454 | E46: FALSE | F46: TRUE | G46: TRUE | H46: FALSE
A47: 40 - 44 | B47: 4392 | C47: 2176 | D47: 2216 | E47: FALSE | F47: TRUE | G47: TRUE | H47: FALSE
A48: 45 - 49 | B48: 3754 | C48: 1845 | D48: 1909 | E48: FALSE | F48: TRUE | G48: TRUE | H48: FALSE
A49: 50 - 54 | B49: 4057 | C49: 1882 | D49: 2175 | E49: FALSE | F49: TRUE | G49: TRUE | H49: FALSE
A50: 55 - 59 | B50: 4892 | C50: 2164 | D50: 2728 | E50: FALSE | F50: TRUE | G50: TRUE | H50: FALSE
A51: 60 - 64 | B51: 4900 | C51: 2147 | D51: 2753 | E51: FALSE | F51: TRUE | G51: TRUE | H51: FALSE
A52: 65 - 69 | B52: 3824 | C52: 1587 | D52: 2237 | E52: FALSE | F52: TRUE | G52: TRUE | H52: FALSE
A53: 70 i więcej | B53: 7389 | C53: 2621 | D53: 4768 | E53: TRUE | F53: TRUE | G53: FALSE | H53: FALSE
A54: 65+ | B54: =SUM(B52:B53) -> 11213 | C54: =SUM(C52:C53) -> 4208 | D54: =SUM(D52:D53) -> 7005 | E54: TRUE | F54: FALSE | G54: TRUE | H54: FALSE
A55: Rzeszów | B55: 187027 | C55: 88381 | D55: 98646 | E55: TRUE | F55: TRUE | G55: TRUE | H55: TRUE
A56: 0 - 4 | B56: 10322 | C56: 5353 | D56: 4969 | E56: FALSE | F56: TRUE | G56: TRUE | H56: FALSE
A57: 5 - 9 | B57: 9675 | C57: 4902 | D57: 4773 | E57: FALSE | F57: TRUE | G57: TRUE | H57: FALSE
A58: 10 - 14 | B58: 7761 | C58: 3899 | D58: 3862 | E58: FALSE | F58: TRUE | G58: TRUE | H58: FALSE
A59: 15 - 19 | B59: 9647 | C59: 4759 | D59: 4888 | E59: FALSE | F59: TRUE | G59: TRUE | H59: FALSE
A60: 20 - 24 | B60: 11416 | C60: 5692 | D60: 5724 | E60: FALSE | F60: TRUE | G60: TRUE | H60: FALSE
A61: 25 - 29 | B61: 15796 | C61: 7724 | D61: 8072 | E61: FALSE | F61: TRUE | G61: TRUE | H61: FALSE
A62: 30 - 34 | B62: 18604 | C62: 9200 | D62: 9404 | E62: FALSE | F62: TRUE | G62: TRUE | H62: FALSE
A63: 35 - 39 | B63: 16018 | C63: 7890 | D63: 8128 | E63: FALSE | F63: TRUE | G63: TRUE | H63: FALSE
A64: 40 - 44 | B64: 12693 | C64: 6309 | D64: 6384 | E64: FALSE | F64: TRUE | G64: TRUE | H64: FALSE
A65: 45 - 49 | B65: 10026 | C65: 4770 | D65: 5256 | E65: FALSE | F65: TRUE | G65: TRUE | H65: FALSE
A66: 50 - 54 | B66: 10498 | C66: 4877 | D66: 5621 | E66: FALSE | F66: TRUE | G66: TRUE | H66: FALSE
A67: 55 - 59 | B67: 12736 | C67: 5790 | D67: 6946 | E67: FALSE | F67: TRUE | G67: TRUE | H67: FALSE
A68: 60 - 64 | B68: 13202 | C68: 5926 | D68: 7276 | E68: FALSE | F68: TRUE | G68: TRUE | H68: FALSE
A69: 65 - 69 | B69: 9905 | C69: 4292 | D69: 5613 | E69: =IFERROR(IF(SEARCH(" - ",A69)>0,FALSE,TRUE),TRUE) -> FALSE | F69: =IFERROR(IF(SEARCH("65+",A69)>0,FALSE,TRUE),TRUE) -> TRUE | G69: =IFERROR(IF(SEARCH("70",A69)>0,FALSE,TRUE),TRUE) -> TRUE | H69: =AND(E69:G69) -> FALSE
A70: 70 i więcej | B70: 18728 | C70: 6998 | D70: 11730 | E70: TRUE | F70: TRUE | G70: FALSE | H70: FALSE
A71: 65+ | B71: =SUM(B69:B70) -> 28633 | C71: =SUM(C69:C70) -> 11290 | D71: =SUM(D69:D70) -> 17343 | E71: TRUE | F71: FALSE | G71: TRUE | H71: FALSE
A72: Tarnobrzeg | B72: 47658 | C72: 22870 | D72: 24788 | E72: TRUE | F72: TRUE | G72: TRUE | H72: TRUE
A73: 0 - 4 | B73: 1781 | C73: 918 | D73: 863 | E73: FALSE | F73: TRUE | G73: TRUE | H73: FALSE
A74: 5 - 9 | B74: 2212 | C74: 1122 | D74: 1090 | E74: FALSE | F74: TRUE | G74: TRUE | H74: FALSE
A75: 10 - 14 | B75: 2168 | C75: 1137 | D75: 1031 | E75: FALSE | F75: TRUE | G75: TRUE | H75: FALSE
A76: 15 - 19 | B76: 2342 | C76: 1200 | D76: 1142 | E76: FALSE | F76: TRUE | G76: TRUE | H76: FALSE
A77: 20 - 24 | B77: 2814 | C77: 1439 | D77: 1375 | E77: FALSE | F77: TRUE | G77: TRUE | H77: FALSE
A78: 25 - 29 | B78: 3243 | C78: 1703 | D78: 1540 | E78: FALSE | F78: TRUE | G78: TRUE | H78: FALSE
A79: 30 - 34 | B79: 3555 | C79: 1826 | D79: 1729 | E79: FALSE | F79: TRUE | G79: TRUE | H79: FALSE
A80: 35 - 39 | B80: 3734 | C80: 1901 | D80: 1833 | E80: FALSE | F80: TRUE | G80: TRUE | H80: FALSE
A81: 40 - 44 | B81: 3617 | C81: 1792 | D81: 1825 | E81: FALSE | F81: TRUE | G81: TRUE | H81: FALSE
A82: 45 - 49 | B82: 3296 | C82: 1649 | D82: 1647 | E82: FALSE | F82: TRUE | G82: TRUE | H82: FALSE
A83: 50 - 54 | B83: 3285 | C83: 1537 | D83: 1748 | E83: FALSE | F83: TRUE | G83: TRUE | H83: FALSE
A84: 55 - 59 | B84: 3570 | C84: 1698 | D84: 1872 | E84: FALSE | F84: TRUE | G84: TRUE | H84: FALSE
A85: 60 - 64 | B85: 3598 | C85: 1537 | D85: 2061 | E85: FALSE | F85: TRUE | G85: TRUE | H85: FALSE
A86: 65 - 69 | B86: 3220 | C86: 1357 | D86: 1863 | E86: FALSE | F86: TRUE | G86: TRUE | H86: FALSE
A87: 70 i więcej | B87: 5223 | C87: 2054 | D87: 3169 | E87: TRUE | F87: TRUE | G87: FALSE | H87: FALSE
A88: 65+ | B88: =SUM(B86:B87) -> 8443 | C88: =SUM(C86:C87) -> 3411 | D88: =SUM(D86:D87) -> 5032 | E88: TRUE | F88: FALSE | G88: TRUE | H88: FALSE
A89: bieszczadzki | B89: 22032 | C89: 10902 | D89: 11130 | E89: TRUE | F89: TRUE | G89: TRUE | H89: TRUE
A90: 0 - 4 | B90: 987 | C90: 486 | D90: 501 | E90: FALSE | F90: TRUE | G90: TRUE | H90: FALSE
A91: 5 - 9 | B91: 1147 | C91: 584 | D91: 563 | E91: FALSE | F91: TRUE | G91: TRUE | H91: FALSE
A92: 10 - 14 | B92: 1127 | C92: 569 | D92: 558 | E92: FALSE | F92: TRUE | G92: TRUE | H92: FALSE
A93: 15 - 19 | B93: 1052 | C93: 531 | D93: 521 | E93: FALSE | F93: TRUE | G93: TRUE | H93: FALSE
A94: 20 - 24 | B94: 1638 | C94: 827 | D94: 811 | E94: FALSE | F94: TRUE | G94: TRUE | H94: FALSE
A95: 25 - 29 | B95: 1668 | C95: 850 | D95: 818 | E95: FALSE | F95: TRUE | G95: TRUE | H95: FALSE
A96: 30 - 34 | B96: 1887 | C96: 986 | D96: 901 | E96: FALSE | F96: TRUE | G96: TRUE | H96: FALSE
A97: 35 - 39 | B97: 1798 | C97: 942 | D97: 856 | E97: FALSE | F97: TRUE | G97: TRUE | H97: FALSE
A98: 40 - 44 | B98: 1522 | C98: 780 | D98: 742 | E98: FALSE | F98: TRUE | G98: TRUE | H98: FALSE
A99: 45 - 49 | B99: 1396 | C99: 709 | D99: 687 | E99: FALSE | F99: TRUE | G99: TRUE | H99: FALSE
A100: 50 - 54 | B100: 1457 | C100: 736 | D100: 721 | E100: FALSE | F100: TRUE | G100: TRUE | H100: FALSE
A101: 55 - 59 | B101: 1795 | C101: 875 | D101: 920 | E101: FALSE | F101: TRUE | G101: TRUE | H101: FALSE
A102: 60 - 64 | B102: 1502 | C102: 743 | D102: 759 | E102: FALSE | F102: TRUE | G102: TRUE | H102: FALSE
A103: 65 - 69 | B103: 1130 | C103: 555 | D103: 575 | E103: FALSE | F103: TRUE | G103: TRUE | H103: FALSE
A104: 70 i więcej | B104: 1926 | C104: 729 | D104: 1197 | E104: TRUE | F104: TRUE | G104: FALSE | H104: FALSE
A105: 65+ | B105: =SUM(B103:B104) -> 3056 | C105: =SUM(C103:C104) -> 1284 | D105: =SUM(D103:D104) -> 1772 | E105: TRUE | F105: FALSE | G105: TRUE | H105: FALSE
A106: brzozowski | B106: 66004 | C106: 32657 | D106: 33347 | E106: TRUE | F106: TRUE | G106: TRUE | H106: TRUE
A107: 0 - 4 | B107: 3349 | C107: 1707 | D107: 1642 | E107: FALSE | F107: TRUE | G107: TRUE | H107: FALSE
A108: 5 - 9 | B108: 3741 | C108: 1960 | D108: 1781 | E108: FALSE | F108: TRUE | G108: TRUE | H108: FALSE
A109: 10 - 14 | B109: 3657 | C109: 1890 | D109: 1767 | E109: FALSE | F109: TRUE | G109: TRUE | H109: FALSE
A110: 15 - 19 | B110: 3975 | C110: 2021 | D110: 1954 | E110: FALSE | F110: TRUE | G110: TRUE | H110: FALSE
A111: 20 - 24 | B111: 4826 | C111: 2429 | D111: 2397 | E111: FALSE | F111: TRUE | G111: TRUE | H111: FALSE
A112: 25 - 29 | B112: 5365 | C112: 2790 | D112: 2575 | E112: FALSE | F112: TRUE | G112: TRUE | H112: FALSE
A113: 30 - 34 | B113: 5161 | C113: 2673 | D113: 2488 | E113: FALSE | F113: TRUE | G113: TRUE | H113: FALSE
A114: 35 - 39 | B114: 4991 | C114: 2572 | D114: 2419 | E114: FALSE | F114: TRUE | G114: TRUE | H114: FALSE
A115: 40 - 44 | B115: 4656 | C115: 2357 | D115: 2299 | E115: FALSE | F115: TRUE | G115: TRUE | H115: FALSE
A116: 45 - 49 | B116: 4151 | C116: 2068 | D116: 2083 | E116: FALSE | F116: TRUE | G116: TRUE | H116: FALSE
A117: 50 - 54 | B117: 4123 | C117: 2188 | D117: 1935 | E117: FALSE | F117: TRUE | G117: TRUE | H117: FALSE
A118: 55 - 59 | B118: 4391 | C118: 2230 | D118: 2161 | E118: FALSE | F118: TRUE | G118: TRUE | H118: FALSE
A119: 60 - 64 | B119: 3853 | C119: 1869 | D119: 1984 | E119: FALSE | F119: TRUE | G119: TRUE | H119: FALSE
A120: 65 - 69 | B120: 3138 | C120: 1475 | D120: 1663 | E120: FALSE | F120: TRUE | G120: TRUE | H120: FALSE
A121: 70 i więcej | B121: 6627 | C121: 2428 | D121: 4199 | E121: TRUE | F121: TRUE | G121: FALSE | H121: FALSE
A122: 65+ | B122: =SUM(B120:B121) -> 9765 | C122: =SUM(C120:C121) -> 3903 | D122: =SUM(D120:D121) -> 5862 | E122: TRUE | F122: FALSE | G122: TRUE | H122: FALSE
A123: dębicki | B123: 135242 | C123: 66829 | D123: 68413 | E123: TRUE | F123: TRUE | G123: TRUE | H123: TRUE
A124: 0 - 4 | B124: 6820 | C124: 3412 | D124: 3408 | E124: FALSE | F124: TRUE | G124: TRUE | H124: FALSE
A125: 5 - 9 | B125: 7713 | C125: 3968 | D125: 3745 | E125: FALSE | F125: TRUE | G125: TRUE | H125: FALSE
A126: 10 - 14 | B126: 7070 | C126: 3620 | D126: 3450 | E126: FALSE | F126: TRUE | G126: TRUE | H126: FALSE
A127: 15 - 19 | B127: 7767 | C127: 4045 | D127: 3722 | E127: FALSE | F127: TRUE | G127: TRUE | H127: FALSE
A128: 20 - 24 | B128: 9532 | C128: 4947 | D128: 4585 | E128: FALSE | F128: TRUE | G128: TRUE | H128: FALSE
A129: 25 - 29 | B129: 11129 | C129: 5804 | D129: 5325 | E129: FALSE | F129: TRUE | G129: TRUE | H129: FALSE
A130: 30 - 34 | B130: 11496 | C130: 5993 | D130: 5503 | E130: FALSE | F130: TRUE | G130: TRUE | H130: FALSE
A131: 35 - 39 | B131: 10443 | C131: 5386 | D131: 5057 | E131: FALSE | F131: TRUE | G131: TRUE | H131: FALSE
A132: 40 - 44 | B132: 9345 | C132: 4755 | D132: 4590 | E132: FALSE | F132: TRUE | G132: TRUE | H132: FALSE
A133: 45 - 49 | B133: 8553 | C133: 4354 | D133: 4199 | E133: =IFERROR(IF(SEARCH(" - ",A133)>0,FALSE,TRUE),TRUE) -> FALSE | F133: =IFERROR(IF(SEARCH("65+",A133)>0,FALSE,TRUE),TRUE) -> TRUE | G133: =IFERROR(IF(SEARCH("70",A133)>0,FALSE,TRUE),TRUE) -> TRUE | H133: =AND(E133:G133) -> FALSE
A134: 50 - 54 | B134: 8839 | C134: 4463 | D134: 4376 | E134: FALSE | F134: TRUE | G134: TRUE | H134: FALSE
A135: 55 - 59 | B135: 9284 | C135: 4599 | D135: 4685 | E135: FALSE | F135: TRUE | G135: TRUE | H135: FALSE
A136: 60 - 64 | B136: 8097 | C136: 3889 | D136: 4208 | E136: FALSE | F136: TRUE | G136: TRUE | H136: FALSE
A137: 65 - 69 | B137: 6230 | C137: 2813 | D137: 3417 | E137: FALSE | F137: TRUE | G137: TRUE | H137: FALSE
A138: 70 i więcej | B138: 12924 | C138: 4781 | D138: 8143 | E138: TRUE | F138: TRUE | G138: FALSE | H138: FALSE
A139: 65+ | B139: =SUM(B137:B138) -> 19154 | C139: =SUM(C137:C138) -> 7594 | D139: =SUM(D137:D138) -> 11560 | E139: TRUE | F139: FALSE | G139: TRUE | H139: FALSE
A140: jarosławski | B140: 121374 | C140: 59186 | D140: 62188 | E140: TRUE | F140: TRUE | G140: TRUE | H140: TRUE
A141: 0 - 4 | B141: 5776 | C141: 2934 | D141: 2842 | E141: FALSE | F141: TRUE | G141: TRUE | H141: FALSE
A142: 5 - 9 | B142: 6406 | C142: 3254 | D142: 3152 | E142: FALSE | F142: TRUE | G142: TRUE | H142: FALSE
A143: 10 - 14 | B143: 6066 | C143: 3102 | D143: 2964 | E143: FALSE | F143: TRUE | G143: TRUE | H143: FALSE
A144: 15 - 19 | B144: 7392 | C144: 3782 | D144: 3610 | E144: FALSE | F144: TRUE | G144: TRUE | H144: FALSE
A145: 20 - 24 | B145: 8548 | C145: 4415 | D145: 4133 | E145: FALSE | F145: TRUE | G145: TRUE | H145: FALSE
A146: 25 - 29 | B146: 9627 | C146: 4915 | D146: 4712 | E146: FALSE | F146: TRUE | G146: TRUE | H146: FALSE
A147: 30 - 34 | B147: 10116 | C147: 5146 | D147: 4970 | E147: FALSE | F147: TRUE | G147: TRUE | H147: FALSE
A148: 35 - 39 | B148: 9374 | C148: 4834 | D148: 4540 | E148: FALSE | F148: TRUE | G148: TRUE | H148: FALSE
A149: 40 - 44 | B149: 8441 | C149: 4288 | D149: 4153 | E149: FALSE | F149: TRUE | G149: TRUE | H149: FALSE
A150: 45 - 49 | B150: 7597 | C150: 3807 | D150: 3790 | E150: FALSE | F150: TRUE | G150: TRUE | H150: FALSE
A151: 50 - 54 | B151: 7642 | C151: 3810 | D151: 3832 | E151: FALSE | F151: TRUE | G151: TRUE | H151: FALSE
A152: 55 - 59 | B152: 8417 | C152: 4154 | D152: 4263 | E152: FALSE | F152: TRUE | G152: TRUE | H152: FALSE
A153: 60 - 64 | B153: 7929 | C153: 3717 | D153: 4212 | E153: FALSE | F153: TRUE | G153: TRUE | H153: FALSE
A154: 65 - 69 | B154: 6233 | C154: 2786 | D154: 3447 | E154: FALSE | F154: TRUE | G154: TRUE | H154: FALSE
A155: 70 i więcej | B155: 11810 | C155: 4242 | D155: 7568 | E155: TRUE | F155: TRUE | G155: FALSE | H155: FALSE
A156: 65+ | B156: =SUM(B154:B155) -> 18043 | C156: =SUM(C154:C155) -> 7028 | D156: =SUM(D154:D155) -> 11015 | E156: TRUE | F156: FALSE | G156: TRUE | H156: FALSE
A157: jasielski | B157: 114533 | C157: 56224 | D157: 58309 | E157: TRUE | F157: TRUE | G157: TRUE | H157: TRUE
A158: 0 - 4 | B158: 5033 | C158: 2622 | D158: 2411 | E158: FALSE | F158: TRUE | G158: TRUE | H158: FALSE
A159: 5 - 9 | B159: 5828 | C159: 3057 | D159: 2771 | E159: FALSE | F159: TRUE | G159: TRUE | H159: FALSE
A160: 10 - 14 | B160: 5678 | C160: 2828 | D160: 2850 | E160: FALSE | F160: TRUE | G160: TRUE | H160: FALSE
A161: 15 - 19 | B161: 6545 | C161: 3382 | D161: 3163 | E161: FALSE | F161: TRUE | G161: TRUE | H161: FALSE
A162: 20 - 24 | B162: 7998 | C162: 4012 | D162: 3986 | E162: FALSE | F162: TRUE | G162: TRUE | H162: FALSE
A163: 25 - 29 | B163: 8888 | C163: 4642 | D163: 4246 | E163: FALSE | F163: TRUE | G163: TRUE | H163: FALSE
A164: 30 - 34 | B164: 9131 | C164: 4733 | D164: 4398 | E164: FALSE | F164: TRUE | G164: TRUE | H164: FALSE
A165: 35 - 39 | B165: 8761 | C165: 4509 | D165: 4252 | E165: FALSE | F165: TRUE | G165: TRUE | H165: FALSE
A166: 40 - 44 | B166: 8273 | C166: 4248 | D166: 4025 | E166: FALSE | F166: TRUE | G166: TRUE | H166: FALSE
A167: 45 - 49 | B167: 7597 | C167: 3856 | D167: 3741 | E167: FALSE | F167: TRUE | G167: TRUE | H167: FALSE
A168: 50 - 54 | B168: 7811 | C168: 4002 | D168: 3809 | E168: FALSE | F168: TRUE | G168: TRUE | H168: FALSE
A169: 55 - 59 | B169: 8087 | C169: 4001 | D169: 4086 | E169: FALSE | F169: TRUE | G169: TRUE | H169: FALSE
A170: 60 - 64 | B170: 7304 | C170: 3561 | D170: 3743 | E170: FALSE | F170: TRUE | G170: TRUE | H170: FALSE
A171: 65 - 69 | B171: 5713 | C171: 2562 | D171: 3151 | E171: FALSE | F171: TRUE | G171: TRUE | H171: FALSE
A172: 70 i więcej | B172: 11886 | C172: 4209 | D172: 7677 | E172: TRUE | F172: TRUE | G172: FALSE | H172: FALSE
A173: 65+ | B173: =SUM(B171:B172) -> 17599 | C173: =SUM(C171:C172) -> 6771 | D173: =SUM(D171:D172) -> 10828 | E173: TRUE | F173: FALSE | G173: TRUE | H173: FALSE
A174: kolbuszowski | B174: 62412 | C174: 31091 | D174: 31321 | E174: TRUE | F174: TRUE | G174: TRUE | H174: TRUE
A175: 0 - 4 | B175: 2809 | C175: 1418 | D175: 1391 | E175: FALSE | F175: TRUE | G175: TRUE | H175: FALSE
A176: 5 - 9 | B176: 3329 | C176: 1762 | D176: 1567 | E176: FALSE | F176: TRUE | G176: TRUE | H176: FALSE
A177: 10 - 14 | B177: 3375 | C177: 1729 | D177: 1646 | E177: FALSE | F177: TRUE | G177: TRUE | H177: FALSE
A178: 15 - 19 | B178: 3852 | C178: 2003 | D178: 1849 | E178: FALSE | F178: TRUE | G178: TRUE | H178: FALSE
A179: 20 - 24 | B179: 4817 | C179: 2439 | D179: 2378 | E179: FALSE | F179: TRUE | G179: TRUE | H179: FALSE
A180: 25 - 29 | B180: 5078 | C180: 2661 | D180: 2417 | E180: FALSE | F180: TRUE | G180: TRUE | H180: FALSE
A181: 30 - 34 | B181: 5176 | C181: 2680 | D181: 2496 | E181: FALSE | F181: TRUE | G181: TRUE | H181: FALSE
A182: 35 - 39 | B182: 4875 | C182: 2470 | D182: 2405 | E182: FALSE | F182: TRUE | G182: TRUE | H182: FALSE
A183: 40 - 44 | B183: 4618 | C183: 2387 | D183: 2231 | E183: FALSE | F183: TRUE | G183: TRUE | H183: FALSE
A184: 45 - 49 | B184: 4199 | C184: 2121 | D184: 2078 | E184: FALSE | F184: TRUE | G184: TRUE | H184: FALSE
A185: 50 - 54 | B185: 4184 | C185: 2189 | D185: 1995 | E185: FALSE | F185: TRUE | G185: TRUE | H185: FALSE
A186: 55 - 59 | B186: 3876 | C186: 2011 | D186: 1865 | E186: FALSE | F186: TRUE | G186: TRUE | H186: FALSE
A187: 60 - 64 | B187: 3352 | C187: 1638 | D187: 1714 | E187: FALSE | F187: TRUE | G187: TRUE | H187: FALSE
A188: 65 - 69 | B188: 2773 | C188: 1278 | D188: 1495 | E188: FALSE | F188: TRUE | G188: TRUE | H188: FALSE
A189: 70 i więcej | B189: 6099 | C189: 2305 | D189: 3794 | E189: TRUE | F189: TRUE | G189: FALSE | H189: FALSE
A190: 65+ | B190: =SUM(B188:B189) -> 8872 | C190: =SUM(C188:C189) -> 3583 | D190: =SUM(D188:D189) -> 5289 | E190: TRUE | F190: FALSE | G190: TRUE | H190: FALSE
A191: krośnieński | B191: 112081 | C191: 55129 | D191: 56952 | E191: TRUE | F191: TRUE | G191: TRUE | H191: TRUE
A192: 0 - 4 | B192: 5504 | C192: 2851 | D192: 2653 | E192: FALSE | F192: TRUE | G192: TRUE | H192: FALSE
A193: 5 - 9 | B193: 6257 | C193: 3186 | D193: 3071 | E193: FALSE | F193: TRUE | G193: TRUE | H193: FALSE
A194: 10 - 14 | B194: 5741 | C194: 2962 | D194: 2779 | E194: FALSE | F194: TRUE | G194: TRUE | H194: FALSE
A195: 15 - 19 | B195: 7080 | C195: 3643 | D195: 3437 | E195: FALSE | F195: TRUE | G195: TRUE | H195: FALSE
A196: 20 - 24 | B196: 7674 | C196: 3957 | D196: 3717 | E196: FALSE | F196: TRUE | G196: TRUE | H196: FALSE
A197: 25 - 29 | B197: 8461 | C197: 4384 | D197: 4077 | E197: =IFERROR(IF(SEARCH(" - ",A197)>0,FALSE,TRUE),TRUE) -> FALSE | F197: =IFERROR(IF(SEARCH("65+",A197)>0,FALSE,TRUE),TRUE) -> TRUE | G197: =IFERROR(IF(SEARCH("70",A197)>0,FALSE,TRUE),TRUE) -> TRUE | H197: =AND(E197:G197) -> FALSE
A198: 30 - 34 | B198: 8788 | C198: 4578 | D198: 4210 | E198: FALSE | F198: TRUE | G198: TRUE | H198: FALSE
A199: 35 - 39 | B199: 8563 | C199: 4377 | D199: 4186 | E199: FALSE | F199: TRUE | G199: TRUE | H199: FALSE
A200: 40 - 44 | B200: 7926 | C200: 4064 | D200: 3862 | E200: FALSE | F200: TRUE | G200: TRUE | H200: FALSE
A201: 45 - 49 | B201: 7252 | C201: 3701 | D201: 3551 | E201: FALSE | F201: TRUE | G201: TRUE | H201: FALSE
A202: 50 - 54 | B202: 7254 | C202: 3693 | D202: 3561 | E202: FALSE | F202: TRUE | G202: TRUE | H202: FALSE
... 243 more rows

Sheet Podlaskie (hidden)
A1: Województwa Powiaty Grupy wieku | B1: Ogółem | C1: Mężczyźni | D1: Kobiety
A4: Podlaskie | B4: 1187587 | C4: 578856 | D4: 608731 | E4: =IFERROR(IF(SEARCH(" - ",A4)>0,FALSE,TRUE),TRUE) -> TRUE | F4: =IFERROR(IF(SEARCH("65+",A4)>0,FALSE,TRUE),TRUE) -> TRUE | G4: =IFERROR(IF(SEARCH("70",A4)>0,FALSE,TRUE),TRUE) -> TRUE | H4: =AND(E4:G4) -> TRUE
A5: 0 - 4 | B5: 54281 | C5: 28090 | D5: 26191 | E5: =IFERROR(IF(SEARCH(" - ",A5)>0,FALSE,TRUE),TRUE) -> FALSE | F5: =IFERROR(IF(SEARCH("65+",A5)>0,FALSE,TRUE),TRUE) -> TRUE | G5: =IFERROR(IF(SEARCH("70",A5)>0,FALSE,TRUE),TRUE) -> TRUE | H5: =AND(E5:G5) -> FALSE
A6: 5 - 9 | B6: 60397 | C6: 31071 | D6: 29326 | E6: FALSE | F6: TRUE | G6: TRUE | H6: FALSE
A7: 10 - 14 | B7: 55700 | C7: 28431 | D7: 27269 | E7: FALSE | F7: TRUE | G7: TRUE | H7: FALSE
A8: 15 - 19 | B8: 63180 | C8: 32362 | D8: 30818 | E8: FALSE | F8: TRUE | G8: TRUE | H8: FALSE
A9: 20 - 24 | B9: 79775 | C9: 40758 | D9: 39017 | E9: FALSE | F9: TRUE | G9: TRUE | H9: FALSE
A10: 25 - 29 | B10: 91281 | C10: 47239 | D10: 44042 | E10: FALSE | F10: TRUE | G10: TRUE | H10: FALSE
A11: 30 - 34 | B11: 97394 | C11: 50741 | D11: 46653 | E11: FALSE | F11: TRUE | G11: TRUE | H11: FALSE
A12: 35 - 39 | B12: 88784 | C12: 45482 | D12: 43302 | E12: FALSE | F12: TRUE | G12: TRUE | H12: FALSE
A13: 40 - 44 | B13: 82519 | C13: 41891 | D13: 40628 | E13: FALSE | F13: TRUE | G13: TRUE | H13: FALSE
A14: 45 - 49 | B14: 76507 | C14: 38521 | D14: 37986 | E14: FALSE | F14: TRUE | G14: TRUE | H14: FALSE
A15: 50 - 54 | B15: 79671 | C15: 39823 | D15: 39848 | E15: FALSE | F15: TRUE | G15: TRUE | H15: FALSE
A16: 55 - 59 | B16: 88047 | C16: 43327 | D16: 44720 | E16: FALSE | F16: TRUE | G16: TRUE | H16: FALSE
A17: 60 - 64 | B17: 76658 | C17: 36426 | D17: 40232 | E17: FALSE | F17: TRUE | G17: TRUE | H17: FALSE
A18: 65 - 69 | B18: 59818 | C18: 26469 | D18: 33349 | E18: FALSE | F18: TRUE | G18: TRUE | H18: FALSE
A19: 70 i więcej | B19: 133575 | C19: 48225 | D19: 85350 | E19: TRUE | F19: TRUE | G19: FALSE | H19: FALSE
A20: 65+ | B20: =SUM(B18:B19) -> 193393 | C20: =SUM(C18:C19) -> 74694 | D20: =SUM(D18:D19) -> 118699 | E20: TRUE | F20: FALSE | G20: TRUE | H20: FALSE
A21: Białystok | B21: 296310 | C21: 139023 | D21: 157287 | E21: TRUE | F21: TRUE | G21: TRUE | H21: TRUE
A22: 0 - 4 | B22: 14682 | C22: 7540 | D22: 7142 | E22: FALSE | F22: TRUE | G22: TRUE | H22: FALSE
A23: 5 - 9 | B23: 15121 | C23: 7830 | D23: 7291 | E23: FALSE | F23: TRUE | G23: TRUE | H23: FALSE
A24: 10 - 14 | B24: 12501 | C24: 6351 | D24: 6150 | E24: FALSE | F24: TRUE | G24: TRUE | H24: FALSE
A25: 15 - 19 | B25: 13924 | C25: 7115 | D25: 6809 | E25: FALSE | F25: TRUE | G25: TRUE | H25: FALSE
A26: 20 - 24 | B26: 15765 | C26: 7852 | D26: 7913 | E26: FALSE | F26: TRUE | G26: TRUE | H26: FALSE
A27: 25 - 29 | B27: 24278 | C27: 11809 | D27: 12469 | E27: FALSE | F27: TRUE | G27: TRUE | H27: FALSE
A28: 30 - 34 | B28: 27552 | C28: 13739 | D28: 13813 | E28: FALSE | F28: TRUE | G28: TRUE | H28: FALSE
A29: 35 - 39 | B29: 24702 | C29: 12296 | D29: 12406 | E29: FALSE | F29: TRUE | G29: TRUE | H29: FALSE
A30: 40 - 44 | B30: 21792 | C30: 10620 | D30: 11172 | E30: FALSE | F30: TRUE | G30: TRUE | H30: FALSE
A31: 45 - 49 | B31: 18567 | C31: 9006 | D31: 9561 | E31: FALSE | F31: TRUE | G31: TRUE | H31: FALSE
A32: 50 - 54 | B32: 18607 | C32: 8804 | D32: 9803 | E32: FALSE | F32: TRUE | G32: TRUE | H32: FALSE
A33: 55 - 59 | B33: 21931 | C33: 9935 | D33: 11996 | E33: FALSE | F33: TRUE | G33: TRUE | H33: FALSE
A34: 60 - 64 | B34: 19982 | C34: 8873 | D34: 11109 | E34: FALSE | F34: TRUE | G34: TRUE | H34: FALSE
A35: 65 - 69 | B35: 15340 | C35: 6237 | D35: 9103 | E35: FALSE | F35: TRUE | G35: TRUE | H35: FALSE
A36: 70 i więcej | B36: 31566 | C36: 11016 | D36: 20550 | E36: TRUE | F36: TRUE | G36: FALSE | H36: FALSE
A37: 65+ | B37: =SUM(B35:B36) -> 46906 | C37: =SUM(C35:C36) -> 17253 | D37: =SUM(D35:D36) -> 29653 | E37: TRUE | F37: FALSE | G37: TRUE | H37: FALSE
A38: Łomża | B38: 62716 | C38: 30065 | D38: 32651 | E38: TRUE | F38: TRUE | G38: TRUE | H38: TRUE
A39: 0 - 4 | B39: 2799 | C39: 1450 | D39: 1349 | E39: FALSE | F39: TRUE | G39: TRUE | H39: FALSE
A40: 5 - 9 | B40: 3133 | C40: 1629 | D40: 1504 | E40: FALSE | F40: TRUE | G40: TRUE | H40: FALSE
A41: 10 - 14 | B41: 2727 | C41: 1389 | D41: 1338 | E41: FALSE | F41: TRUE | G41: TRUE | H41: FALSE
A42: 15 - 19 | B42: 3706 | C42: 1800 | D42: 1906 | E42: FALSE | F42: TRUE | G42: TRUE | H42: FALSE
A43: 20 - 24 | B43: 3756 | C43: 1933 | D43: 1823 | E43: FALSE | F43: TRUE | G43: TRUE | H43: FALSE
A44: 25 - 29 | B44: 4844 | C44: 2499 | D44: 2345 | E44: FALSE | F44: TRUE | G44: TRUE | H44: FALSE
A45: 30 - 34 | B45: 5670 | C45: 2899 | D45: 2771 | E45: FALSE | F45: TRUE | G45: TRUE | H45: FALSE
A46: 35 - 39 | B46: 4946 | C46: 2514 | D46: 2432 | E46: FALSE | F46: TRUE | G46: TRUE | H46: FALSE
A47: 40 - 44 | B47: 4159 | C47: 2078 | D47: 2081 | E47: FALSE | F47: TRUE | G47: TRUE | H47: FALSE
A48: 45 - 49 | B48: 3849 | C48: 1826 | D48: 2023 | E48: FALSE | F48: TRUE | G48: TRUE | H48: FALSE
A49: 50 - 54 | B49: 4431 | C49: 2020 | D49: 2411 | E49: FALSE | F49: TRUE | G49: TRUE | H49: FALSE
A50: 55 - 59 | B50: 5276 | C50: 2417 | D50: 2859 | E50: FALSE | F50: TRUE | G50: TRUE | H50: FALSE
A51: 60 - 64 | B51: 4727 | C51: 2120 | D51: 2607 | E51: FALSE | F51: TRUE | G51: TRUE | H51: FALSE
A52: 65 - 69 | B52: 3302 | C52: 1443 | D52: 1859 | E52: FALSE | F52: TRUE | G52: TRUE | H52: FALSE
A53: 70 i więcej | B53: 5391 | C53: 2048 | D53: 3343 | E53: TRUE | F53: TRUE | G53: FALSE | H53: FALSE
A54: 65+ | B54: =SUM(B52:B53) -> 8693 | C54: =SUM(C52:C53) -> 3491 | D54: =SUM(D52:D53) -> 5202 | E54: TRUE | F54: FALSE | G54: TRUE | H54: FALSE
A55: Suwałki | B55: 69543 | C55: 33240 | D55: 36303 | E55: TRUE | F55: TRUE | G55: TRUE | H55: TRUE
A56: 0 - 4 | B56: 3337 | C56: 1707 | D56: 1630 | E56: FALSE | F56: TRUE | G56: TRUE | H56: FALSE
A57: 5 - 9 | B57: 3994 | C57: 2047 | D57: 1947 | E57: FALSE | F57: TRUE | G57: TRUE | H57: FALSE
A58: 10 - 14 | B58: 3508 | C58: 1782 | D58: 1726 | E58: FALSE | F58: TRUE | G58: TRUE | H58: FALSE
A59: 15 - 19 | B59: 3895 | C59: 1952 | D59: 1943 | E59: FALSE | F59: TRUE | G59: TRUE | H59: FALSE
A60: 20 - 24 | B60: 4852 | C60: 2440 | D60: 2412 | E60: FALSE | F60: TRUE | G60: TRUE | H60: FALSE
A61: 25 - 29 | B61: 5484 | C61: 2786 | D61: 2698 | E61: FALSE | F61: TRUE | G61: TRUE | H61: FALSE
A62: 30 - 34 | B62: 6065 | C62: 3045 | D62: 3020 | E62: FALSE | F62: TRUE | G62: TRUE | H62: FALSE
A63: 35 - 39 | B63: 5215 | C63: 2621 | D63: 2594 | E63: FALSE | F63: TRUE | G63: TRUE | H63: FALSE
A64: 40 - 44 | B64: 4720 | C64: 2285 | D64: 2435 | E64: FALSE | F64: TRUE | G64: TRUE | H64: FALSE
A65: 45 - 49 | B65: 4387 | C65: 2071 | D65: 2316 | E65: FALSE | F65: TRUE | G65: TRUE | H65: FALSE
A66: 50 - 54 | B66: 4988 | C66: 2344 | D66: 2644 | E66: FALSE | F66: TRUE | G66: TRUE | H66: FALSE
A67: 55 - 59 | B67: 5554 | C67: 2605 | D67: 2949 | E67: FALSE | F67: TRUE | G67: TRUE | H67: FALSE
A68: 60 - 64 | B68: 4553 | C68: 2097 | D68: 2456 | E68: FALSE | F68: TRUE | G68: TRUE | H68: FALSE
A69: 65 - 69 | B69: 3392 | C69: 1490 | D69: 1902 | E69: =IFERROR(IF(SEARCH(" - ",A69)>0,FALSE,TRUE),TRUE) -> FALSE | F69: =IFERROR(IF(SEARCH("65+",A69)>0,FALSE,TRUE),TRUE) -> TRUE | G69: =IFERROR(IF(SEARCH("70",A69)>0,FALSE,TRUE),TRUE) -> TRUE | H69: =AND(E69:G69) -> FALSE
A70: 70 i więcej | B70: 5599 | C70: 1968 | D70: 3631 | E70: TRUE | F70: TRUE | G70: FALSE | H70: FALSE
A71: 65+ | B71: =SUM(B69:B70) -> 8991 | C71: =SUM(C69:C70) -> 3458 | D71: =SUM(D69:D70) -> 5533 | E71: TRUE | F71: FALSE | G71: TRUE | H71: FALSE
A72: augustowski | B72: 58998 | C72: 28906 | D72: 30092 | E72: TRUE | F72: TRUE | G72: TRUE | H72: TRUE
A73: 0 - 4 | B73: 2576 | C73: 1377 | D73: 1199 | E73: FALSE | F73: TRUE | G73: TRUE | H73: FALSE
A74: 5 - 9 | B74: 2973 | C74: 1505 | D74: 1468 | E74: FALSE | F74: TRUE | G74: TRUE | H74: FALSE
A75: 10 - 14 | B75: 2977 | C75: 1548 | D75: 1429 | E75: FALSE | F75: TRUE | G75: TRUE | H75: FALSE
A76: 15 - 19 | B76: 3255 | C76: 1681 | D76: 1574 | E76: FALSE | F76: TRUE | G76: TRUE | H76: FALSE
A77: 20 - 24 | B77: 4277 | C77: 2163 | D77: 2114 | E77: FALSE | F77: TRUE | G77: TRUE | H77: FALSE
A78: 25 - 29 | B78: 4460 | C78: 2349 | D78: 2111 | E78: FALSE | F78: TRUE | G78: TRUE | H78: FALSE
A79: 30 - 34 | B79: 4497 | C79: 2349 | D79: 2148 | E79: FALSE | F79: TRUE | G79: TRUE | H79: FALSE
A80: 35 - 39 | B80: 4232 | C80: 2140 | D80: 2092 | E80: FALSE | F80: TRUE | G80: TRUE | H80: FALSE
A81: 40 - 44 | B81: 4202 | C81: 2143 | D81: 2059 | E81: FALSE | F81: TRUE | G81: TRUE | H81: FALSE
A82: 45 - 49 | B82: 3967 | C82: 2028 | D82: 1939 | E82: FALSE | F82: TRUE | G82: TRUE | H82: FALSE
A83: 50 - 54 | B83: 4043 | C83: 2025 | D83: 2018 | E83: FALSE | F83: TRUE | G83: TRUE | H83: FALSE
A84: 55 - 59 | B84: 4234 | C84: 2102 | D84: 2132 | E84: FALSE | F84: TRUE | G84: TRUE | H84: FALSE
A85: 60 - 64 | B85: 3569 | C85: 1687 | D85: 1882 | E85: FALSE | F85: TRUE | G85: TRUE | H85: FALSE
A86: 65 - 69 | B86: 3045 | C86: 1370 | D86: 1675 | E86: FALSE | F86: TRUE | G86: TRUE | H86: FALSE
A87: 70 i więcej | B87: 6691 | C87: 2439 | D87: 4252 | E87: TRUE | F87: TRUE | G87: FALSE | H87: FALSE
A88: 65+ | B88: =SUM(B86:B87) -> 9736 | C88: =SUM(C86:C87) -> 3809 | D88: =SUM(D86:D87) -> 5927 | E88: TRUE | F88: FALSE | G88: TRUE | H88: FALSE
A89: białostocki | B89: 145874 | C89: 71865 | D89: 74009 | E89: TRUE | F89: TRUE | G89: TRUE | H89: TRUE
A90: 0 - 4 | B90: 6735 | C90: 3498 | D90: 3237 | E90: FALSE | F90: TRUE | G90: TRUE | H90: FALSE
A91: 5 - 9 | B91: 7851 | C91: 3995 | D91: 3856 | E91: FALSE | F91: TRUE | G91: TRUE | H91: FALSE
A92: 10 - 14 | B92: 7069 | C92: 3515 | D92: 3554 | E92: FALSE | F92: TRUE | G92: TRUE | H92: FALSE
A93: 15 - 19 | B93: 7764 | C93: 3989 | D93: 3775 | E93: FALSE | F93: TRUE | G93: TRUE | H93: FALSE
A94: 20 - 24 | B94: 9910 | C94: 5105 | D94: 4805 | E94: FALSE | F94: TRUE | G94: TRUE | H94: FALSE
A95: 25 - 29 | B95: 10998 | C95: 5746 | D95: 5252 | E95: FALSE | F95: TRUE | G95: TRUE | H95: FALSE
A96: 30 - 34 | B96: 11789 | C96: 6132 | D96: 5657 | E96: FALSE | F96: TRUE | G96: TRUE | H96: FALSE
A97: 35 - 39 | B97: 11235 | C97: 5722 | D97: 5513 | E97: FALSE | F97: TRUE | G97: TRUE | H97: FALSE
A98: 40 - 44 | B98: 10519 | C98: 5475 | D98: 5044 | E98: FALSE | F98: TRUE | G98: TRUE | H98: FALSE
A99: 45 - 49 | B99: 9719 | C99: 4936 | D99: 4783 | E99: FALSE | F99: TRUE | G99: TRUE | H99: FALSE
A100: 50 - 54 | B100: 10027 | C100: 5108 | D100: 4919 | E100: FALSE | F100: TRUE | G100: TRUE | H100: FALSE
A101: 55 - 59 | B101: 10512 | C101: 5382 | D101: 5130 | E101: FALSE | F101: TRUE | G101: TRUE | H101: FALSE
A102: 60 - 64 | B102: 9193 | C102: 4433 | D102: 4760 | E102: FALSE | F102: TRUE | G102: TRUE | H102: FALSE
A103: 65 - 69 | B103: 7075 | C103: 3274 | D103: 3801 | E103: FALSE | F103: TRUE | G103: TRUE | H103: FALSE
A104: 70 i więcej | B104: 15478 | C104: 5555 | D104: 9923 | E104: TRUE | F104: TRUE | G104: FALSE | H104: FALSE
A105: 65+ | B105: =SUM(B103:B104) -> 22553 | C105: =SUM(C103:C104) -> 8829 | D105: =SUM(D103:D104) -> 13724 | E105: TRUE | F105: FALSE | G105: TRUE | H105: FALSE
A106: bielski | B106: 56259 | C106: 27839 | D106: 28420 | E106: TRUE | F106: TRUE | G106: TRUE | H106: TRUE
A107: 0 - 4 | B107: 2390 | C107: 1264 | D107: 1126 | E107: FALSE | F107: TRUE | G107: TRUE | H107: FALSE
A108: 5 - 9 | B108: 2659 | C108: 1399 | D108: 1260 | E108: FALSE | F108: TRUE | G108: TRUE | H108: FALSE
A109: 10 - 14 | B109: 2464 | C109: 1222 | D109: 1242 | E109: FALSE | F109: TRUE | G109: TRUE | H109: FALSE
A110: 15 - 19 | B110: 2768 | C110: 1417 | D110: 1351 | E110: FALSE | F110: TRUE | G110: TRUE | H110: FALSE
A111: 20 - 24 | B111: 3698 | C111: 1914 | D111: 1784 | E111: FALSE | F111: TRUE | G111: TRUE | H111: FALSE
A112: 25 - 29 | B112: 4071 | C112: 2178 | D112: 1893 | E112: FALSE | F112: TRUE | G112: TRUE | H112: FALSE
A113: 30 - 34 | B113: 4185 | C113: 2274 | D113: 1911 | E113: FALSE | F113: TRUE | G113: TRUE | H113: FALSE
A114: 35 - 39 | B114: 3652 | C114: 1901 | D114: 1751 | E114: FALSE | F114: TRUE | G114: TRUE | H114: FALSE
A115: 40 - 44 | B115: 3482 | C115: 1861 | D115: 1621 | E115: FALSE | F115: TRUE | G115: TRUE | H115: FALSE
A116: 45 - 49 | B116: 3481 | C116: 1800 | D116: 1681 | E116: FALSE | F116: TRUE | G116: TRUE | H116: FALSE
A117: 50 - 54 | B117: 3773 | C117: 1905 | D117: 1868 | E117: FALSE | F117: TRUE | G117: TRUE | H117: FALSE
A118: 55 - 59 | B118: 4265 | C118: 2207 | D118: 2058 | E118: FALSE | F118: TRUE | G118: TRUE | H118: FALSE
A119: 60 - 64 | B119: 3693 | C119: 1810 | D119: 1883 | E119: FALSE | F119: TRUE | G119: TRUE | H119: FALSE
A120: 65 - 69 | B120: 2955 | C120: 1356 | D120: 1599 | E120: FALSE | F120: TRUE | G120: TRUE | H120: FALSE
A121: 70 i więcej | B121: 8723 | C121: 3331 | D121: 5392 | E121: TRUE | F121: TRUE | G121: FALSE | H121: FALSE
A122: 65+ | B122: =SUM(B120:B121) -> 11678 | C122: =SUM(C120:C121) -> 4687 | D122: =SUM(D120:D121) -> 6991 | E122: TRUE | F122: FALSE | G122: TRUE | H122: FALSE
A123: grajewski | B123: 48228 | C123: 23956 | D123: 24272 | E123: TRUE | F123: TRUE | G123: TRUE | H123: TRUE
A124: 0 - 4 | B124: 2188 | C124: 1149 | D124: 1039 | E124: FALSE | F124: TRUE | G124: TRUE | H124: FALSE
A125: 5 - 9 | B125: 2525 | C125: 1326 | D125: 1199 | E125: FALSE | F125: TRUE | G125: TRUE | H125: FALSE
A126: 10 - 14 | B126: 2518 | C126: 1302 | D126: 1216 | E126: FALSE | F126: TRUE | G126: TRUE | H126: FALSE
A127: 15 - 19 | B127: 2654 | C127: 1382 | D127: 1272 | E127: FALSE | F127: TRUE | G127: TRUE | H127: FALSE
A128: 20 - 24 | B128: 3567 | C128: 1867 | D128: 1700 | E128: FALSE | F128: TRUE | G128: TRUE | H128: FALSE
A129: 25 - 29 | B129: 3672 | C129: 1950 | D129: 1722 | E129: FALSE | F129: TRUE | G129: TRUE | H129: FALSE
A130: 30 - 34 | B130: 3847 | C130: 2033 | D130: 1814 | E130: FALSE | F130: TRUE | G130: TRUE | H130: FALSE
A131: 35 - 39 | B131: 3622 | C131: 1850 | D131: 1772 | E131: FALSE | F131: TRUE | G131: TRUE | H131: FALSE
A132: 40 - 44 | B132: 3345 | C132: 1740 | D132: 1605 | E132: FALSE | F132: TRUE | G132: TRUE | H132: FALSE
A133: 45 - 49 | B133: 3185 | C133: 1584 | D133: 1601 | E133: =IFERROR(IF(SEARCH(" - ",A133)>0,FALSE,TRUE),TRUE) -> FALSE | F133: =IFERROR(IF(SEARCH("65+",A133)>0,FALSE,TRUE),TRUE) -> TRUE | G133: =IFERROR(IF(SEARCH("70",A133)>0,FALSE,TRUE),TRUE) -> TRUE | H133: =AND(E133:G133) -> FALSE
A134: 50 - 54 | B134: 3294 | C134: 1655 | D134: 1639 | E134: FALSE | F134: TRUE | G134: TRUE | H134: FALSE
A135: 55 - 59 | B135: 3619 | C135: 1838 | D135: 1781 | E135: FALSE | F135: TRUE | G135: TRUE | H135: FALSE
A136: 60 - 64 | B136: 3035 | C136: 1509 | D136: 1526 | E136: FALSE | F136: TRUE | G136: TRUE | H136: FALSE
A137: 65 - 69 | B137: 2350 | C137: 1046 | D137: 1304 | E137: FALSE | F137: TRUE | G137: TRUE | H137: FALSE
A138: 70 i więcej | B138: 4807 | C138: 1725 | D138: 3082 | E138: TRUE | F138: TRUE | G138: FALSE | H138: FALSE
A139: 65+ | B139: =SUM(B137:B138) -> 7157 | C139: =SUM(C137:C138) -> 2771 | D139: =SUM(D137:D138) -> 4386 | E139: TRUE | F139: FALSE | G139: TRUE | H139: FALSE
A140: hajnowski | B140: 44322 | C140: 21467 | D140: 22855 | E140: TRUE | F140: TRUE | G140: TRUE | H140: TRUE
A141: 0 - 4 | B141: 1621 | C141: 836 | D141: 785 | E141: FALSE | F141: TRUE | G141: TRUE | H141: FALSE
A142: 5 - 9 | B142: 1725 | C142: 852 | D142: 873 | E142: FALSE | F142: TRUE | G142: TRUE | H142: FALSE
A143: 10 - 14 | B143: 1732 | C143: 890 | D143: 842 | E143: FALSE | F143: TRUE | G143: TRUE | H143: FALSE
A144: 15 - 19 | B144: 2008 | C144: 1042 | D144: 966 | E144: FALSE | F144: TRUE | G144: TRUE | H144: FALSE
A145: 20 - 24 | B145: 2634 | C145: 1288 | D145: 1346 | E145: FALSE | F145: TRUE | G145: TRUE | H145: FALSE
A146: 25 - 29 | B146: 2851 | C146: 1495 | D146: 1356 | E146: FALSE | F146: TRUE | G146: TRUE | H146: FALSE
A147: 30 - 34 | B147: 3150 | C147: 1746 | D147: 1404 | E147: FALSE | F147: TRUE | G147: TRUE | H147: FALSE
A148: 35 - 39 | B148: 2999 | C148: 1617 | D148: 1382 | E148: FALSE | F148: TRUE | G148: TRUE | H148: FALSE
A149: 40 - 44 | B149: 2648 | C149: 1407 | D149: 1241 | E149: FALSE | F149: TRUE | G149: TRUE | H149: FALSE
A150: 45 - 49 | B150: 2528 | C150: 1334 | D150: 1194 | E150: FALSE | F150: TRUE | G150: TRUE | H150: FALSE
A151: 50 - 54 | B151: 3111 | C151: 1577 | D151: 1534 | E151: FALSE | F151: TRUE | G151: TRUE | H151: FALSE
A152: 55 - 59 | B152: 3820 | C152: 1924 | D152: 1896 | E152: FALSE | F152: TRUE | G152: TRUE | H152: FALSE
A153: 60 - 64 | B153: 3433 | C153: 1635 | D153: 1798 | E153: FALSE | F153: TRUE | G153: TRUE | H153: FALSE
A154: 65 - 69 | B154: 2711 | C154: 1215 | D154: 1496 | E154: FALSE | F154: TRUE | G154: TRUE | H154: FALSE
A155: 70 i więcej | B155: 7351 | C155: 2609 | D155: 4742 | E155: TRUE | F155: TRUE | G155: FALSE | H155: FALSE
A156: 65+ | B156: =SUM(B154:B155) -> 10062 | C156: =SUM(C154:C155) -> 3824 | D156: =SUM(D154:D155) -> 6238 | E156: TRUE | F156: FALSE | G156: TRUE | H156: FALSE
A157: kolneński | B157: 39068 | C157: 19555 | D157: 19513 | E157: TRUE | F157: TRUE | G157: TRUE | H157: TRUE
A158: 0 - 4 | B158: 1793 | C158: 932 | D158: 861 | E158: FALSE | F158: TRUE | G158: TRUE | H158: FALSE
A159: 5 - 9 | B159: 2084 | C159: 1096 | D159: 988 | E159: FALSE | F159: TRUE | G159: TRUE | H159: FALSE
A160: 10 - 14 | B160: 2132 | C160: 1108 | D160: 1024 | E160: FALSE | F160: TRUE | G160: TRUE | H160: FALSE
A161: 15 - 19 | B161: 2313 | C161: 1163 | D161: 1150 | E161: FALSE | F161: TRUE | G161: TRUE | H161: FALSE
A162: 20 - 24 | B162: 3320 | C162: 1647 | D162: 1673 | E162: FALSE | F162: TRUE | G162: TRUE | H162: FALSE
A163: 25 - 29 | B163: 3100 | C163: 1621 | D163: 1479 | E163: FALSE | F163: TRUE | G163: TRUE | H163: FALSE
A164: 30 - 34 | B164: 2894 | C164: 1538 | D164: 1356 | E164: FALSE | F164: TRUE | G164: TRUE | H164: FALSE
A165: 35 - 39 | B165: 2804 | C165: 1465 | D165: 1339 | E165: FALSE | F165: TRUE | G165: TRUE | H165: FALSE
A166: 40 - 44 | B166: 2730 | C166: 1414 | D166: 1316 | E166: FALSE | F166: TRUE | G166: TRUE | H166: FALSE
A167: 45 - 49 | B167: 2726 | C167: 1441 | D167: 1285 | E167: FALSE | F167: TRUE | G167: TRUE | H167: FALSE
A168: 50 - 54 | B168: 2719 | C168: 1476 | D168: 1243 | E168: FALSE | F168: TRUE | G168: TRUE | H168: FALSE
A169: 55 - 59 | B169: 2620 | C169: 1378 | D169: 1242 | E169: FALSE | F169: TRUE | G169: TRUE | H169: FALSE
A170: 60 - 64 | B170: 2076 | C170: 1027 | D170: 1049 | E170: FALSE | F170: TRUE | G170: TRUE | H170: FALSE
A171: 65 - 69 | B171: 1702 | C171: 775 | D171: 927 | E171: FALSE | F171: TRUE | G171: TRUE | H171: FALSE
A172: 70 i więcej | B172: 4055 | C172: 1474 | D172: 2581 | E172: TRUE | F172: TRUE | G172: FALSE | H172: FALSE
A173: 65+ | B173: =SUM(B171:B172) -> 5757 | C173: =SUM(C171:C172) -> 2249 | D173: =SUM(D171:D172) -> 3508 | E173: TRUE | F173: FALSE | G173: TRUE | H173: FALSE
A174: łomżyński | B174: 51363 | C174: 25941 | D174: 25422 | E174: TRUE | F174: TRUE | G174: TRUE | H174: TRUE
A175: 0 - 4 | B175: 2501 | C175: 1308 | D175: 1193 | E175: FALSE | F175: TRUE | G175: TRUE | H175: FALSE
A176: 5 - 9 | B176: 2772 | C176: 1413 | D176: 1359 | E176: FALSE | F176: TRUE | G176: TRUE | H176: FALSE
A177: 10 - 14 | B177: 2730 | C177: 1439 | D177: 1291 | E177: FALSE | F177: TRUE | G177: TRUE | H177: FALSE
A178: 15 - 19 | B178: 3173 | C178: 1682 | D178: 1491 | E178: FALSE | F178: TRUE | G178: TRUE | H178: FALSE
